Workbook

Sheet Overview
A2: CDCM Annual Review Pack (incorporating DCP 179)
A4: Company: | B4: ='CDCM Forecast Data'!E3 -> Electricity North West
A5: Date of Issue: | B5: 2014-12-22
A7: ="Although every effort has been made to ensure the accuracy of the information provided in this annual review pack, " & 'CDCM Forecast Data'!E3 & " does not accept any liability for the accuracy of the information contained herein and, in particular, " & 'CDCM Forecast Data'!E3 & " or any of its employees, shall not be held liable for any misstatement or opinion on which the recipient of this statement relies or seeks to rely." -> Although every effort has been made to ensure the accuracy of the information provided in this annual review pack, Electricity North West does not accept any liability for the accuracy of the information contained herein and, in particular, Electricity North West or any of its employees, shall not be held liable for any misstatement or opinion on which the recipient of this statement relies or seeks to rely.
A12: Contents:
A14: Sheet Name | B14: Detail
A15: Commentary | B15: This sheet contains the DNO's commentary on the forecast input CDCM data for the forecast over the 5 year period.
A16: CDCM Forecast Data | B16: This sheet contains historical and forecast data for all CDCM inputs except for volume data (table 1053) and matrix of applicability data (table 1025 - 1028). The RPI forecast is seperated out and listed as a standalone assumption. Any forecasts that relate to RPI will be linked to this row. Comments are provided alongside each forecast explaining any assumptions made by the DNO.
A17: Table 1 | B17: This sheet contains the DNO's table 1 produced in accordance with DCUSA Schedule 15 "cost information table".
A18: Mat of App | B18: This sheet contains the forecast CDCM matrix of applicability data (table 1025 - 1028). The default value is that the same matrix will be used for each of the five years.
A19: CDCM Volume Forecasts | B19: This sheet contains forecast CDCM volume data (table 1053). The matrix at the top can be used to apply different growth rates to groups of customers.
A20: CDCM Timebands | B20: Contains the time bands that the DNO plans to use for the coming year and advance warning of any changes.
A21: CDCM Input Sheet (Y) | B21: This sheet contains the CDCM input sheet for base year 0 (Y) in a format that can be copy and pasted (paste-value) into the CDCM spreadsheet model.
A22: CDCM Input Sheet (Y + 1) | B22: This sheet contains the CDCM input sheet for base year +1 (Y+1) in a format that can be copy and pasted (paste-value) into the CDCM spreadsheet model.
A23: CDCM Input Sheet (Y + 2) | B23: This sheet contains the CDCM input sheet for base year +2 (Y+2) in a format that can be copy and pasted (paste-value) into the CDCM spreadsheet model.
A24: CDCM Input Sheet (Y + 3) | B24: This sheet contains the CDCM input sheet for base year +3 (Y+3) in a format that can be copy and pasted (paste-value) into the CDCM spreadsheet model.
A25: CDCM Input Sheet (Y + 4) | B25: This sheet contains the CDCM input sheet for base year +4 (Y+4) in a format that can be copy and pasted (paste-value) into the CDCM spreadsheet model.
A26: Tariffs ARP | B26: This sheet contains the CDCM tariffs that are produced from the CDCM input data, after the Macro on this sheet has been run. It contains the tariffs for each of the 5 years.
A29: This document, model or dataset has been prepared by Reckon LLP on the instructions of the DCUSA Panel or
A30: one of its working groups. Only the DCUSA Panel and its working groups have authority to approve this
A31: material as meeting their requirements. Reckon LLP makes no representation about the suitability of this
A32: material for the purposes of complying with any licence conditions or furthering any relevant objective.

Sheet Commentary
B3: ='CDCM Forecast Data'!E3 -> Electricity North West

Sheet CDCM Forecast Data
D3: Company: | E3: Electricity North West
D4: Date of Issue: | E4: =Overview!B5 -> 2014-12-22
D5: Status | E5: April 2015 (Finals)
C9: Historical CDCM Input Data (Actuals) | E9: ="CDCM Values - "&E5 -> CDCM Values - April 2015 (Finals) | F9: Forecast CDCM Values
B10: Year Ref -> | C10: Y-2 | D10: Y-1 | E10: Y | F10: Y+1 | G10: Y+2 | H10: Y+3 | I10: Y+4
B11: Charging Year -> | C11: 2013/14 | D11: 2014/15 | E11: 2015/16 | F11: 2016/17 | G11: 2017/18 | H11: 2018/19 | I11: 2019/20
B12: DPCR -> | C12: DPCR5 | D12: DPCR5 | E12: RIIO - ED1 | F12: RIIO - ED1 | G12: RIIO - ED1 | H12: RIIO - ED1 | I12: RIIO - ED1 | J12: Assumptions
B13: RPI Forecast: | F13: 0.031 | G13: 0.031 | H13: 0.031 | I13: 0.031
A14: 1 | B14: 1000 Company name, charging year and model version
A15: 2 | B15: Company | C15: ENWL | D15: ENWL | E15: ENWL | F15: ENWL | G15: ENWL | H15: ENWL | I15: ENWL
A16: 3 | B16: Year | C16: 2013/14 | D16: 2014/15 | E16: 2015/16 | F16: 2016/17 | G16: 2017/18 | H16: 2018/19 | I16: 2019/20
A17: 4 | B17: Version | C17: v1 | D17: v1 | E17: v1 | F17: v1 | G17: v1 | H17: v1 | I17: v1
A18: 5 | B18: 1010 Financial and general assumptions
A19: 6 | B19: Rate of return | C19: 0.056 | D19: 0.056 | E19: 0.056 | F19: 0.056 | G19: 0.056 | H19: 0.056 | I19: 0.056 | J19: Assumed constant
A20: 7 | B20: Annualisation period (years) | C20: 40 | D20: 40 | E20: 40 | F20: 40 | G20: 40 | H20: 40 | I20: 40 | J20: Assumed constant
A21: 8 | B21: Power factor | C21: 0.95 | D21: 0.95 | E21: 0.95 | F21: 0.95 | G21: 0.95 | H21: 0.95 | I21: 0.95 | J21: Assumed constant
A22: 9 | B22: Days in the charging period | C22: 365 | D22: 365 | E22: 366 | F22: 365 | G22: 365 | H22: 365 | I22: 366 | J22: Leap year in 2015/16 and 2019/2020
A23: 10 | B23: 1017 Diversity allowance between top and bottom of network level
A24: 11 | B24: GSPs | C24: 0.08478373473 | D24: 0.08478373473 | E24: 0.114 | F24: 0.08164011631 | G24: 0.08164011631 | H24: 0.08164011631 | I24: 0.08164011631 | J24: The 2016/17 value will be used in the CDCM model for April 2016 tariffs and this constitutes 15 month notice of a change to this value by Electricity North West, in line with DCUSA.
A25: 12 | B25: 132kV | C25: 0.0430819956 | D25: 0.0430819956 | E25: 0.049 | F25: 0.049 | G25: 0.049 | H25: 0.049 | I25: 0.049 | J25: The 2016/17 value will be used in the CDCM model for April 2016 tariffs and this constitutes 15 month notice of a change to this value by Electricity North West, in line with DCUSA.
A26: 13 | B26: EHV | C26: 0.0850110413 | D26: 0.0850110413 | E26: 0.07 | F26: 0.06653429705 | G26: 0.06653429705 | H26: 0.06653429705 | I26: 0.06653429705 | J26: The 2016/17 value will be used in the CDCM model for April 2016 tariffs and this constitutes 15 month notice of a change to this value by Electricity North West, in line with DCUSA.
A27: 14 | B27: HV | C27: 0.33411 | D27: 0.33411 | E27: 0.34 | F27: 0.3056153455 | G27: 0.3056153455 | H27: 0.3056153455 | I27: 0.3056153455 | J27: The 2016/17 value will be used in the CDCM model for April 2016 tariffs and this constitutes 15 month notice of a change to this value by Electricity North West, in line with DCUSA.
A28: 15 | B28: 1018 Proportion of relevant load going through 132kV/HV direct transformation | C28: 0 | D28: 0 | E28: 0 | F28: 0 | G28: 0 | H28: 0 | I28: 0 | J28: The 2016/17 value will be used in the CDCM model for April 2016 tariffs and this constitutes 15 month notice of a change to this value by Electricity North West, in line with DCUSA.
A29: 16 | B29: 1019 Network model GSP demand (MW) | C29: 500 | D29: 500 | E29: 500 | F29: 500 | G29: 500 | H29: 500 | I29: 500 | J29: The 2016/17 value will be used in the CDCM model for April 2016 tariffs and this constitutes 15 month notice of a change to this value by Electricity North West, in line with DCUSA.
A30: 17 | B30: 1020 Gross asset cost by network level (£)
A31: 18 | B31: 132kV | C31: 42397008 | D31: 69440518.35 | E31: 83368102.69 | F31: 88430333.73 | G31: =F31*(1+G$13) -> 91171674.08 | H31: =G31*(1+H$13) -> 93997995.98 | I31: =H31*(1+I$13) -> 96911933.85 | J31: The 2016/17 value will be used in the CDCM model for April 2016 tariffs and this constitutes 15 month notice of a change to this value by Electricity North West, in line with DCUSA.
A32: 19 | B32: 132kV/EHV | C32: 39106356 | D32: 36438519.6 | E32: 34102423.29 | F32: 35408417.71 | G32: =F32*(1+G$13) -> 36506078.66 | H32: 37637767.1 | I32: 38804537.88 | J32: The 2016/17 value will be used in the CDCM model for April 2016 tariffs and this constitutes 15 month notice of a change to this value by Electricity North West, in line with DCUSA.
A33: 20 | B33: EHV | C33: 59607696 | D33: 79532172.72 | E33: 84319183.47 | F33: 80625641.92 | G33: 83125036.82 | H33: 85701912.96 | I33: 88358672.26 | J33: The 2016/17 value will be used in the CDCM model for April 2016 tariffs and this constitutes 15 month notice of a change to this value by Electricity North West, in line with DCUSA.
A34: 21 | B34: EHV/HV | C34: 73812370 | D34: 64113474.6 | E34: 61366613.59 | F34: 56826402.11 | G34: 58588020.58 | H34: 60404249.21 | I34: 62276780.94 | J34: The 2016/17 value will be used in the CDCM model for April 2016 tariffs and this constitutes 15 month notice of a change to this value by Electricity North West, in line with DCUSA.
A35: 22 | B35: 132kV/HV | D35: 0 | E35: 0 | F35: 0 | G35: 0 | H35: 0 | I35: 0 | J35: The 2016/17 value will be used in the CDCM model for April 2016 tariffs and this constitutes 15 month notice of a change to this value by Electricity North West, in line with DCUSA.
A36: 23 | B36: HV | C36: 107231851 | D36: 117354063.5 | E36: 107407524 | F36: 105110360.2 | G36: 108368781.4 | H36: 111728213.6 | I36: 115191788.2 | J36: The 2016/17 value will be used in the CDCM model for April 2016 tariffs and this constitutes 15 month notice of a change to this value by Electricity North West, in line with DCUSA.
A37: 24 | B37: HV/LV | C37: 92686127 | D37: 94490955.36 | E37: 88717503.72 | F37: 95431840.51 | G37: 98390227.57 | H37: 101440324.6 | I37: 104584974.7 | J37: The 2016/17 value will be used in the CDCM model for April 2016 tariffs and this constitutes 15 month notice of a change to this value by Electricity North West, in line with DCUSA.
A38: 25 | B38: LV circuits | C38: 55106404 | D38: 62237013 | E38: 56877258.37 | F38: 52903758.2 | G38: 54543774.71 | H38: 56234631.72 | I38: 57977905.3 | J38: The 2016/17 value will be used in the CDCM model for April 2016 tariffs and this constitutes 15 month notice of a change to this value by Electricity North West, in line with DCUSA.
A39: 26 | B39: 1022 LV service model asset cost (£)
A40: 27 | B40: LV service model 1 | C40: 9108 | D40: 9806.134028 | E40: 9801.997385 | F40: 10042.78468 | G40: 10354.111 | H40: 10675.08844 | I40: 11006.01619 | J40: The 2016/17 value will be used in the CDCM model for April 2016 tariffs and this constitutes 15 month notice of a change to this value by Electricity North West, in line with DCUSA.
A41: 28 | B41: LV service model 2 | C41: 455 | D41: 490.3067014 | E41: 490.0998692 | F41: 502.1392339 | G41: 517.7055501 | H41: =G41*(1+H$13) -> 533.7544222 | I41: 550.3008093 | J41: The 2016/17 value will be used in the CDCM model for April 2016 tariffs and this constitutes 15 month notice of a change to this value by Electricity North West, in line with DCUSA.
A42: 29 | B42: LV service model 3 | C42: 2089 | D42: 2233.887586 | E42: 2347.400002 | F42: 2360.703536 | G42: 2433.885346 | H42: =G42*(1+H$13) -> 2509.335792 | I42: 2587.125201 | J42: The 2016/17 value will be used in the CDCM model for April 2016 tariffs and this constitutes 15 month notice of a change to this value by Electricity North West, in line with DCUSA.
A43: 30 | B43: LV service model 4 | C43: 6118 | D43: 9238.858043 | E43: 7517.031302 | F43: 7578.139443 | G43: 7813.061766 | H43: =G43*(1+H$13) -> 8055.266681 | I43: 8304.979948 | J43: The 2016/17 value will be used in the CDCM model for April 2016 tariffs and this constitutes 15 month notice of a change to this value by Electricity North West, in line with DCUSA.
A44: 31 | B44: LV service model 5 | C44: 242 | D44: 261.9511657 | E44: 271.9836973 | F44: 276.0055187 | G44: 284.5616898 | H44: =G44*(1+H$13) -> 293.3831022 | I44: 302.4779783 | J44: The 2016/17 value will be used in the CDCM model for April 2016 tariffs and this constitutes 15 month notice of a change to this value by Electricity North West, in line with DCUSA.
A45: 32 | B45: LV service model 6 | C45: 0 | D45: 0 | E45: 0 | F45: 0 | G45: 0 | H45: =G45*(1+H$13) -> 0 | I45: 0 | J45: The 2016/17 value will be used in the CDCM model for April 2016 tariffs and this constitutes 15 month notice of a change to this value by Electricity North West, in line with DCUSA.
A46: 33 | B46: LV service model 7 | C46: 0 | D46: 0 | E46: 0 | F46: 0 | G46: 0 | H46: =G46*(1+H$13) -> 0 | I46: 0 | J46: The 2016/17 value will be used in the CDCM model for April 2016 tariffs and this constitutes 15 month notice of a change to this value by Electricity North West, in line with DCUSA.
A47: 34 | B47: LV service model 8 | C47: 0 | D47: 0 | E47: 0 | F47: 0 | G47: 0 | H47: =G47*(1+H$13) -> 0 | I47: 0 | J47: The 2016/17 value will be used in the CDCM model for April 2016 tariffs and this constitutes 15 month notice of a change to this value by Electricity North West, in line with DCUSA.
A48: 35 | B48: 1023 HV service model asset cost (£)
A49: 36 | B49: HV service model 1 | C49: 23578 | D49: 17978.17449 | E49: 18868.15825 | F49: 18851.02254 | G49: 19435.40424 | H49: 20037.90177 | I49: 20659.07673 | J49: The 2016/17 value will be used in the CDCM model for April 2016 tariffs and this constitutes 15 month notice of a change to this value by Electricity North West, in line with DCUSA.
A50: 37 | B50: HV service model 2 | C50: 17965 | D50: 18750.53678 | E50: 16696.82258 | F50: 16663.31822 | G50: 17179.88109 | H50: =G50*(1+H$13) -> 17712.4574 | I50: 18261.54358 | J50: The 2016/17 value will be used in the CDCM model for April 2016 tariffs and this constitutes 15 month notice of a change to this value by Electricity North West, in line with DCUSA.
A51: 38 | B51: HV service model 3 | C51: 1114 | D51: 1143.9666 | E51: 1187.91403 | F51: 1136.64 | G51: 1171.87584 | H51: =G51*(1+H$13) -> 1208.203991 | I51: 1245.658315 | J51: The 2016/17 value will be used in the CDCM model for April 2016 tariffs and this constitutes 15 month notice of a change to this value by Electricity North West, in line with DCUSA.
A52: 39 | B52: HV service model 4 | C52: - | D52: - | E52: - | F52: 0 | G52: - | H52: - | I52: - | J52: The 2016/17 value will be used in the CDCM model for April 2016 tariffs and this constitutes 15 month notice of a change to this value by Electricity North West, in line with DCUSA.
A53: 40 | B53: HV service model 5 | C53: - | D53: - | E53: - | F53: 0 | G53: - | H53: - | I53: - | J53: The 2016/17 value will be used in the CDCM model for April 2016 tariffs and this constitutes 15 month notice of a change to this value by Electricity North West, in line with DCUSA.
A54: 41 | B54: 1025 Matrix of applicability of LV service models to tariffs with fixed charges
A55: 42 | B55: 1026 Matrix of applicability of LV service models to unmetered tariffs
A56: 43 | B56: 1028 Matrix of applicability of HV service models to tariffs with fixed charges
A57: 44 | B57: 1032 Loss adjustment factors to transmission
A58: 45 | B58: 132kV | C58: 1.01 | D58: 1.01 | E58: 1.010413289 | F58: 1.010413289 | G58: 1.010413289 | H58: 1.010413289 | I58: 1.010413289 | J58: Assumed constant from 2015/16
A59: 46 | B59: 132kV/EHV | C59: 1.015 | D59: 1.015 | E59: 1.015393496 | F59: 1.015393496 | G59: 1.015393496 | H59: 1.015393496 | I59: 1.015393496 | J59: Assumed constant from 2015/16
A60: 47 | B60: EHV | C60: 1.021 | D60: 1.021 | E60: 1.021993876 | F60: 1.021993876 | G60: 1.021993876 | H60: 1.021993876 | I60: 1.021993876 | J60: Assumed constant from 2015/16
A61: 48 | B61: EHV/HV | C61: 1.027 | D61: 1.027 | E61: 1.027559519 | F61: 1.027559519 | G61: 1.027559519 | H61: 1.027559519 | I61: 1.027559519 | J61: Assumed constant from 2015/16
A62: 49 | B62: HV | C62: 1.039 | D62: 1.039 | E62: 1.040166974 | F62: 1.040166974 | G62: 1.040166974 | H62: 1.040166974 | I62: 1.040166974 | J62: Assumed constant from 2015/16
A63: 50 | B63: HV/LV | C63: 1.052 | D63: 1.052 | E63: 1.053696394 | F63: 1.053696394 | G63: 1.053696394 | H63: 1.053696394 | I63: 1.053696394 | J63: Assumed constant from 2015/16
A64: 51 | B64: LV circuits | C64: 1.102 | D64: 1.102 | E64: 1.107034802 | F64: 1.107034802 | G64: 1.107034802 | H64: 1.107034802 | I64: 1.107034802 | J64: Assumed constant from 2015/16
A65: 52 | B65: 1037 Embedded network (LDNO) discounts
A66: 53 | B66: LDNO LV: LV user | C66: 0.3254861402 | D66: 0.3341290619 | E66: 0.3352006641 | F66: 0.3352006641 | G66: 0.3352006641 | H66: 0.3352006641 | I66: 0.3352006641 | J66: Assumed constant from 2015/16
A67: 54 | B67: LDNO HV: LV user | C67: 0.5477577363 | D67: 0.5844116687 | E67: 0.5639251225 | F67: 0.5639251225 | G67: 0.5639251225 | H67: 0.5639251225 | I67: 0.5639251225 | J67: Assumed constant from 2015/16
A68: 55 | B68: LDNO HV: LV sub user | C68: 0.3094731168 | D68: 0.3566533208 | E68: 0.323780574 | F68: 0.323780574 | G68: 0.323780574 | H68: 0.323780574 | I68: 0.323780574 | J68: Assumed constant from 2015/16
A69: 56 | B69: LDNO HV: HV user | C69: 0.1932065798 | D69: 0.2429095212 | E69: 0.2035063224 | F69: 0.2035063224 | G69: 0.2035063224 | H69: 0.2035063224 | I69: 0.2035063224 | J69: Assumed constant from 2015/16
A70: 57 | B70: 1041 Load profile data for demand users: coincidence factor
A71: 58 | B71: Domestic Unrestricted | C71: 0.9079551077 | D71: 0.8894527476 | E71: 0.8719950359 | F71: 0.8719950359 | G71: 0.8719950359 | H71: 0.8719950359 | I71: 0.8719950359 | J71: Assumed constant from 2015/16
A72: 59 | B72: Domestic Two Rate | C72: 0.303445318 | D72: 0.2923961216 | E72: 0.2892028269 | F72: 0.2892028269 | G72: 0.2892028269 | H72: 0.2892028269 | I72: 0.2892028269 | J72: Assumed constant from 2015/16
A73: 60 | B73: Domestic Off Peak (related MPAN) | J73: Assumed constant from 2015/16
A74: 61 | B74: Small Non Domestic Unrestricted | C74: 0.6496844237 | D74: 0.6810846655 | E74: 0.6751420264 | F74: 0.6751420264 | G74: 0.6751420264 | H74: 0.6751420264 | I74: 0.6751420264 | J74: Assumed constant from 2015/16
A75: 62 | B75: Small Non Domestic Two Rate | C75: 0.6878287543 | D75: 0.6898873841 | E75: 0.6939934609 | F75: 0.6939934609 | G75: 0.6939934609 | H75: 0.6939934609 | I75: 0.6939934609 | J75: Assumed constant from 2015/16
A76: 63 | B76: Small Non Domestic Off Peak (related MPAN) | J76: Assumed constant from 2015/16
A77: 64 | B77: LV Medium Non-Domestic | C77: 0.8021672994 | D77: 0.8329407611 | E77: 0.8373261501 | F77: 0.8373261501 | G77: 0.8373261501 | H77: 0.8373261501 | I77: 0.8373261501 | J77: Assumed constant from 2015/16
A78: 65 | B78: LV Sub Medium Non-Domestic | C78: 0.7805167166 | D78: 0.8126048746 | E78: 0.8085620113 | F78: 0.8085620113 | G78: 0.8085620113 | H78: 0.8085620113 | I78: 0.8085620113 | J78: Assumed constant from 2015/16
A79: 66 | B79: HV Medium Non-Domestic | C79: 0.634720087 | D79: 0.7136785066 | E79: 0.7394620182 | F79: 0.7394620182 | G79: 0.7394620182 | H79: 0.7394620182 | I79: 0.7394620182 | J79: Assumed constant from 2015/16
A80: 67 | B80: LV Network Domestic | E80: 0.8719950359 | F80: 0.8719950359 | G80: 0.8719950359 | H80: 0.8719950359 | I80: 0.8719950359 | J80: Assumed constant from 2015/16
A81: 68 | B81: LV Network Non-Domestic Non-CT | E81: 0.6751420264 | F81: 0.6751420264 | G81: 0.6751420264 | H81: 0.6751420264 | I81: 0.6751420264 | J81: Assumed constant from 2015/16
A82: 69 | B82: LV HH Metered | C82: 0.5871023618 | D82: 0.6832247724 | E82: 0.8134580127 | F82: 0.8134580127 | G82: 0.8134580127 | H82: 0.8134580127 | I82: 0.8134580127 | J82: Assumed constant from 2015/16
A83: 70 | B83: LV Sub HH Metered | C83: 0.6680016547 | D83: 0.7627675285 | E83: 0.7861625851 | F83: 0.7861625851 | G83: 0.7861625851 | H83: 0.7861625851 | I83: 0.7861625851 | J83: Assumed constant from 2015/16
A84: 71 | B84: HV HH Metered | C84: 0.797588255 | D84: 0.8478213281 | E84: 0.8548488611 | F84: 0.8548488611 | G84: 0.8548488611 | H84: 0.8548488611 | I84: 0.8548488611 | J84: Assumed constant from 2015/16
A85: 72 | B85: NHH UMS category A | C85: 1 | D85: 1 | E85: 1 | F85: 1 | G85: 1 | H85: 1 | I85: 1 | J85: Assumed constant from 2015/16
A86: 73 | B86: NHH UMS category B | C86: 1 | D86: 1 | E86: 1 | F86: 1 | G86: 1 | H86: 1 | I86: 1 | J86: Assumed constant from 2015/16
A87: 74 | B87: NHH UMS category C | C87: 1 | D87: 1 | E87: 1 | F87: 1 | G87: 1 | H87: 1 | I87: 1 | J87: Assumed constant from 2015/16
A88: 75 | B88: NHH UMS category D | C88: 0 | D88: 0 | E88: 0 | F88: 0 | G88: 0 | H88: 0 | I88: 0 | J88: Assumed constant from 2015/16
A89: 76 | B89: LV UMS (Pseudo HH Metered) | C89: 0.7847919424 | D89: 0.9077193592 | E89: 0.9774688096 | F89: 0.9774688096 | G89: 0.9774688096 | H89: 0.9774688096 | I89: 0.9774688096 | J89: Assumed constant from 2015/16
A90: 77 | B90: 1041 Load profile data for demand users: load factor
A91: 78 | B91: Domestic Unrestricted | C91: 0.4156444452 | D91: 0.425096632 | E91: 0.4417027055 | F91: 0.4417027055 | G91: 0.4417027055 | H91: 0.4417027055 | I91: 0.4417027055 | J91: Assumed constant from 2015/16
A92: 79 | B92: Domestic Two Rate | C92: 0.2180675977 | D92: 0.2241627496 | E92: 0.241915909 | F92: 0.241915909 | G92: 0.241915909 | H92: 0.241915909 | I92: 0.241915909 | J92: Assumed constant from 2015/16
A93: 80 | B93: Domestic Off Peak (related MPAN) | C93: 0.147672271 | D93: 0.1536521176 | E93: 0.1615288733 | F93: 0.1615288733 | G93: 0.1615288733 | H93: 0.1615288733 | I93: 0.1615288733 | J93: Assumed constant from 2015/16
A94: 81 | B94: Small Non Domestic Unrestricted | C94: 0.3560094368 | D94: 0.3702747492 | E94: 0.394823 | F94: 0.394823 | G94: 0.394823 | H94: 0.394823 | I94: 0.394823 | J94: Assumed constant from 2015/16
A95: 82 | B95: Small Non Domestic Two Rate | C95: 0.4938784236 | D95: 0.4968878577 | E95: 0.5341090403 | F95: 0.5341090403 | G95: 0.5341090403 | H95: 0.5341090403 | I95: 0.5341090403 | J95: Assumed constant from 2015/16
A96: 83 | B96: Small Non Domestic Off Peak (related MPAN) | C96: 0.1484568814 | D96: 0.1545401669 | E96: 0.1637428864 | F96: 0.1637428864 | G96: 0.1637428864 | H96: 0.1637428864 | I96: 0.1637428864 | J96: Assumed constant from 2015/16
A97: 84 | B97: LV Medium Non-Domestic | C97: 0.5302557485 | D97: 0.5456237824 | E97: 0.5689406855 | F97: 0.5689406855 | G97: 0.5689406855 | H97: 0.5689406855 | I97: 0.5689406855 | J97: Assumed constant from 2015/16
A98: 85 | B98: LV Sub Medium Non-Domestic | C98: 0.5220890553 | D98: 0.5454104986 | E98: 0.5569858525 | F98: 0.5569858525 | G98: 0.5569858525 | H98: 0.5569858525 | I98: 0.5569858525 | J98: Assumed constant from 2015/16
A99: 86 | B99: HV Medium Non-Domestic | C99: 0.4121506246 | D99: 0.4626342321 | E99: 0.490716446 | F99: 0.490716446 | G99: 0.490716446 | H99: 0.490716446 | I99: 0.490716446 | J99: Assumed constant from 2015/16
A100: 87 | B100: LV Network Domestic | E100: 0.4417027055 | F100: 0.4417027055 | G100: 0.4417027055 | H100: 0.4417027055 | I100: 0.4417027055 | J100: Assumed constant from 2015/16
A101: 88 | B101: LV Network Non-Domestic Non-CT | E101: 0.394823 | F101: 0.394823 | G101: 0.394823 | H101: 0.394823 | I101: 0.394823 | J101: Assumed constant from 2015/16
A102: 89 | B102: LV HH Metered | C102: 0.5029874239 | D102: 0.5410071103 | E102: 0.5556497797 | F102: 0.5556497797 | G102: 0.5556497797 | H102: 0.5556497797 | I102: 0.5556497797 | J102: Assumed constant from 2015/16
A103: 90 | B103: LV Sub HH Metered | C103: 0.4999871537 | D103: 0.5418394901 | E103: 0.5560856276 | F103: 0.5560856276 | G103: 0.5560856276 | H103: 0.5560856276 | I103: 0.5560856276 | J103: Assumed constant from 2015/16
A104: 91 | B104: HV HH Metered | C104: 0.6709020877 | D104: 0.6967159082 | E104: 0.7107054151 | F104: 0.7107054151 | G104: 0.7107054151 | H104: 0.7107054151 | I104: 0.7107054151 | J104: Assumed constant from 2015/16
A105: 92 | B105: NHH UMS category A | C105: 1 | D105: 1 | E105: 1 | F105: 1 | G105: 1 | H105: 1 | I105: 1 | J105: Assumed constant from 2015/16
A106: 93 | B106: NHH UMS category B | C106: 0.4743366324 | D106: 0.4743366324 | E106: 0.474 | F106: 0.474 | G106: 0.474 | H106: 0.474 | I106: 0.474 | J106: Assumed constant from 2015/16
A107: 94 | B107: NHH UMS category C | C107: 0.2580201598 | D107: 0.2580201598 | E107: 0.258 | F107: 0.258 | G107: 0.258 | H107: 0.258 | I107: 0.258 | J107: Assumed constant from 2015/16
A108: 95 | B108: NHH UMS category D | C108: 0.5537948744 | D108: 0.5537948744 | E108: 0.554 | F108: 0.554 | G108: 0.554 | H108: 0.554 | I108: 0.554 | J108: Assumed constant from 2015/16
A109: 96 | B109: LV UMS (Pseudo HH Metered) | C109: 0.4963303147 | D109: 0.4793103092 | E109: 0.4829227126 | F109: 0.4829227126 | G109: 0.4829227126 | H109: 0.4829227126 | I109: 0.4829227126 | J109: Assumed constant from 2015/16
A110: 97 | B110: 1053. Volume forecasts for the charging year
A111: 98 | B111: 1055 Transmission exit charges (£/year) | C111: 16923397 | D111: 16749000 | E111: 17073628 | F111: =E111*(1+F$13) -> 17602910.47 | G111: =F111*(1+G$13) -> 18148600.69 | H111: 18711207.31 | I111: 19291254.74 | J111: Latest Assumptions
A112: 99 | B112: 1059 Other Expenditure (£/year)
A113: 100 | B113: Direct cost (£/year) | C113: 28775497.34 | D113: 26120170.59 | E113: 27793060 | F113: 27686559.86 | G113: 27865393.74 | H113: 28923826.09 | I113: =H113*(1+I$13) -> 29820464.7 | J113: Latest Assumptions
A114: 101 | B114: Indirect cost (£/year) | C114: 113122579.8 | D114: 112239910.1 | E114: 104673255 | F114: 100115512.9 | G114: 99516786.91 | H114: 100437816.6 | I114: =H114*(1+I$13) -> 103551388.9 | J114: Latest Assumptions
A115: 102 | B115: Indirect cost proportion | C115: 0.6 | D115: 0.6 | E115: 0.6 | F115: 0.6 | G115: 0.6 | H115: 0.6 | I115: 0.6 | J115: Assumed Constant
A116: 103 | B116: Network rates (£/year) | C116: 24417835.72 | D116: 25573871.7 | E116: 26640502 | F116: 27728788.62 | G116: 28861473.09 | H116: 30040490.04 | I116: 30971745.23 | J116: Latest Assumptions
A117: 104 | B117: 1060 Customer contributions under current connection charging policy
A118: 105 | B118: LV network
A119: 106 | B119: Assets 132kV
A120: 107 | B120: Assets 132kV/EHV
A121: 108 | B121: Assets EHV | C121: 0 | D121: 0 | E121: 0 | F121: 0 | G121: 0 | H121: 0 | I121: 0 | J121: Assumed constant from 2015/16
A122: 109 | B122: Assets EHV/HV | C122: 0 | D122: 0 | E122: 0 | F122: 0 | G122: 0 | H122: 0 | I122: 0 | J122: Assumed constant from 2015/16
A123: 110 | B123: Assets 132kV/HV | C123: 0 | D123: 0 | E123: 0 | F123: 0 | G123: 0 | H123: 0 | I123: 0 | J123: Assumed constant from 2015/16
A124: 111 | B124: Assets HV | C124: 0.3 | D124: 0.3 | E124: 0.3 | F124: 0.3 | G124: 0.3 | H124: 0.3 | I124: 0.3 | J124: Assumed constant from 2015/16
A125: 112 | B125: Assets HV/LV | C125: 0.3 | D125: 0.3 | E125: 0.3 | F125: 0.3 | G125: 0.3 | H125: 0.3 | I125: 0.3 | J125: Assumed constant from 2015/16
A126: 113 | B126: Assets LV circuits | C126: 0.97 | D126: 0.97 | E126: 0.97 | F126: 0.97 | G126: 0.97 | H126: 0.97 | I126: 0.97 | J126: Assumed constant from 2015/16
A127: 114 | B127: LV substation
A128: 115 | B128: Assets 132kV
A129: 116 | B129: Assets 132kV/EHV
A130: 117 | B130: Assets EHV | C130: 0 | D130: 0 | E130: 0 | F130: 0 | G130: 0 | H130: 0 | I130: 0 | J130: Assumed constant from 2015/16
A131: 118 | B131: Assets EHV/HV | C131: 0 | D131: 0 | E131: 0 | F131: 0 | G131: 0 | H131: 0 | I131: 0 | J131: Assumed constant from 2015/16
A132: 119 | B132: Assets 132kV/HV
A133: 120 | B133: Assets HV | C133: 0.3 | D133: 0.3 | E133: 0.3 | F133: 0.3 | G133: 0.3 | H133: 0.3 | I133: 0.3 | J133: Assumed constant from 2015/16
A134: 121 | B134: Assets HV/LV | C134: 0.97 | D134: 0.97 | E134: 0.97 | F134: 0.97 | G134: 0.97 | H134: 0.97 | I134: 0.97 | J134: Assumed constant from 2015/16
A135: 122 | B135: HV network
A136: 123 | B136: Assets 132kV
A137: 124 | B137: Assets 132kV/EHV
A138: 125 | B138: Assets EHV
A139: 126 | B139: Assets EHV/HV | C139: 0.57 | D139: 0.57 | E139: 0.57 | F139: 0.57 | G139: 0.57 | H139: 0.57 | I139: 0.57 | J139: Assumed constant from 2015/16
A140: 127 | B140: Assets 132kV/HV
A141: 128 | B141: Assets HV | C141: 0.91 | D141: 0.91 | E141: 0.91 | F141: 0.91 | G141: 0.91 | H141: 0.91 | I141: 0.91 | J141: Assumed constant from 2015/16
A142: 129 | B142: HV substation
A143: 130 | B143: Assets 132kV
A144: 131 | B144: Assets 132kV/EHV
A145: 132 | B145: Assets EHV | C145: 0.57 | D145: 0.57 | E145: 0.57 | F145: 0.57 | G145: 0.57 | H145: 0.57 | I145: 0.57 | J145: Assumed constant from 2015/16
A146: 133 | B146: Assets EHV/HV | C146: 0.92 | D146: 0.92 | E146: 0.92 | F146: 0.92 | G146: 0.92 | H146: 0.92 | I146: 0.92 | J146: Assumed constant from 2015/16
A147: 134 | B147: 1061 Average split of rate 1 units by distribution time band
A148: 135 | B148: RED
A149: 136 | B149: Domestic Unrestricted | E149: 0.1265129573 | F149: 0.1265129573 | G149: 0.1265129573 | H149: 0.1265129573 | I149: 0.1265129573 | J149: Latest averages for 2015/16 using New Time band
A150: 137 | B150: Domestic Two Rate | C150: 0.09257556043 | D150: 0.09156920881 | E150: 0.1338905581 | F150: 0.1338905581 | G150: 0.1338905581 | H150: 0.1338905581 | I150: 0.1338905581 | J150: Latest averages for 2015/16 using New Time band
A151: 138 | B151: Domestic Off Peak (related MPAN) | C151: 0.002374531295 | D151: 0.002592678632 | E151: 0.005197087863 | F151: 0.005197087863 | G151: 0.005197087863 | H151: 0.005197087863 | I151: 0.005197087863 | J151: Latest averages for 2015/16 using New Time band
A152: 139 | B152: Small Non Domestic Unrestricted | E152: 0.1100380052 | F152: 0.1100380052 | G152: 0.1100380052 | H152: 0.1100380052 | I152: 0.1100380052 | J152: Latest averages for 2015/16 using New Time band
A153: 140 | B153: Small Non Domestic Two Rate | C153: 0.08205671391 | D153: 0.08151827345 | E153: 0.1221373672 | F153: 0.1221373672 | G153: 0.1221373672 | H153: 0.1221373672 | I153: 0.1221373672 | J153: Latest averages for 2015/16 using New Time band
A154: 141 | B154: Small Non Domestic Off Peak (related MPAN) | C154: 0.001025332756 | D154: 0.000666219041 | E154: 0.001419653633 | F154: 0.001419653633 | G154: 0.001419653633 | H154: 0.001419653633 | I154: 0.001419653633 | J154: Latest averages for 2015/16 using New Time band
A155: 142 | B155: LV Medium Non-Domestic | C155: 0.08917874081 | D155: 0.09022075879 | E155: 0.1362142947 | F155: 0.1362142947 | G155: 0.1362142947 | H155: 0.1362142947 | I155: 0.1362142947 | J155: Latest averages for 2015/16 using New Time band
A156: 143 | B156: LV Sub Medium Non-Domestic | C156: 0.08979615472 | D156: 0.0894711874 | E156: 0.1342936723 | F156: 0.1342936723 | G156: 0.1342936723 | H156: 0.1342936723 | I156: 0.1342936723 | J156: Latest averages for 2015/16 using New Time band
A157: 144 | B157: HV Medium Non-Domestic | C157: 0.0883498301 | D157: 0.08744503124 | E157: 0.1307128479 | F157: 0.1307128479 | G157: 0.1307128479 | H157: 0.1307128479 | I157: 0.1307128479 | J157: Latest averages for 2015/16 using New Time band
A158: 145 | B158: AMBER
A159: 146 | B159: Domestic Unrestricted | E159: 0.3290364251 | F159: 0.3290364251 | G159: 0.3290364251 | H159: 0.3290364251 | I159: 0.3290364251 | J159: Latest averages for 2015/16 using New Time band
A160: 147 | B160: Domestic Two Rate | C160: 0.3627688395 | D160: 0.3655445151 | E160: 0.3442653464 | F160: 0.3442653464 | G160: 0.3442653464 | H160: 0.3442653464 | I160: 0.3442653464 | J160: Latest averages for 2015/16 using New Time band
A161: 148 | B161: Domestic Off Peak (related MPAN) | C161: 0.08975790565 | D161: 0.09653021441 | E161: 0.09393634787 | F161: 0.09393634787 | G161: 0.09393634787 | H161: 0.09393634787 | I161: 0.09393634787 | J161: Latest averages for 2015/16 using New Time band
A162: 149 | B162: Small Non Domestic Unrestricted | E162: 0.4508709331 | F162: 0.4508709331 | G162: 0.4508709331 | H162: 0.4508709331 | I162: 0.4508709331 | J162: Latest averages for 2015/16 using New Time band
A163: 150 | B163: Small Non Domestic Two Rate | C163: 0.4849970974 | D163: 0.4847030588 | E163: 0.4592249679 | F163: 0.4592249679 | G163: 0.4592249679 | H163: 0.4592249679 | I163: 0.4592249679 | J163: Latest averages for 2015/16 using New Time band
A164: 151 | B164: Small Non Domestic Off Peak (related MPAN) | C164: 0.05701718165 | D164: 0.04862448566 | E164: 0.04957809505 | F164: 0.04957809505 | G164: 0.04957809505 | H164: 0.04957809505 | I164: 0.04957809505 | J164: Latest averages for 2015/16 using New Time band
A165: 152 | B165: LV Medium Non-Domestic | C165: 0.510632365 | D165: 0.514176377 | E165: 0.4849309772 | F165: 0.4849309772 | G165: 0.4849309772 | H165: 0.4849309772 | I165: 0.4849309772 | J165: Latest averages for 2015/16 using New Time band
A166: 153 | B166: LV Sub Medium Non-Domestic | C166: 0.5209374758 | D166: 0.5153537158 | E166: 0.4818157011 | F166: 0.4818157011 | G166: 0.4818157011 | H166: 0.4818157011 | I166: 0.4818157011 | J166: Latest averages for 2015/16 using New Time band
A167: 154 | B167: HV Medium Non-Domestic | C167: 0.5314674673 | D167: 0.5241533161 | E167: 0.4904338035 | F167: 0.4904338035 | G167: 0.4904338035 | H167: 0.4904338035 | I167: 0.4904338035 | J167: Latest averages for 2015/16 using New Time band
A168: 155 | B168: GREEN
A169: 156 | B169: Domestic Unrestricted | E169: 0.5444506176 | F169: 0.5444506176 | G169: 0.5444506176 | H169: 0.5444506176 | I169: 0.5444506176 | J169: Latest averages for 2015/16 using New Time band
A170: 157 | B170: Domestic Two Rate | C170: 0.5446556 | D170: 0.5428862761 | E170: 0.5218440956 | F170: 0.5218440956 | G170: 0.5218440956 | H170: 0.5218440956 | I170: 0.5218440956 | J170: Latest averages for 2015/16 using New Time band
A171: 158 | B171: Domestic Off Peak (related MPAN) | C171: 0.9078675631 | D171: 0.900877107 | E171: 0.9008665643 | F171: 0.9008665643 | G171: 0.9008665643 | H171: 0.9008665643 | I171: 0.9008665643 | J171: Latest averages for 2015/16 using New Time band
A172: 159 | B172: Small Non Domestic Unrestricted | E172: 0.4390910618 | F172: 0.4390910618 | G172: 0.4390910618 | H172: 0.4390910618 | I172: 0.4390910618 | J172: Latest averages for 2015/16 using New Time band
A173: 160 | B173: Small Non Domestic Two Rate | C173: 0.4329461887 | D173: 0.4337786678 | E173: 0.4186376649 | F173: 0.4186376649 | G173: 0.4186376649 | H173: 0.4186376649 | I173: 0.4186376649 | J173: Latest averages for 2015/16 using New Time band
A174: 161 | B174: Small Non Domestic Off Peak (related MPAN) | C174: 0.9419574856 | D174: 0.9507092953 | E174: 0.9490022513 | F174: 0.9490022513 | G174: 0.9490022513 | H174: 0.9490022513 | I174: 0.9490022513 | J174: Latest averages for 2015/16 using New Time band
A175: 162 | B175: LV Medium Non-Domestic | C175: 0.4001888942 | D175: 0.3956028642 | E175: 0.3788547281 | F175: 0.3788547281 | G175: 0.3788547281 | H175: 0.3788547281 | I175: 0.3788547281 | J175: Latest averages for 2015/16 using New Time band
A176: 163 | B176: LV Sub Medium Non-Domestic | C176: 0.3892663695 | D176: 0.3951750968 | E176: 0.3838906267 | F176: 0.3838906267 | G176: 0.3838906267 | H176: 0.3838906267 | I176: 0.3838906267 | J176: Latest averages for 2015/16 using New Time band
A177: 164 | B177: HV Medium Non-Domestic | C177: 0.3801827026 | D177: 0.3884016527 | E177: 0.3788533486 | F177: 0.3788533486 | G177: 0.3788533486 | H177: 0.3788533486 | I177: 0.3788533486 | J177: Latest averages for 2015/16 using New Time band
A178: 165 | B178: 1062 Average split of rate 2 units by distribution time band
A179: 166 | B179: RED
A180: 167 | B180: Domestic Two Rate | C180: 0 | D180: 0 | E180: 0 | F180: 0 | G180: 0 | H180: 0 | I180: 0 | J180: Latest averages for 2015/16 using New Time band
A181: 168 | B181: Small Non Domestic Two Rate | C181: 0 | D181: 0 | E181: 0 | F181: 0 | G181: 0 | H181: 0 | I181: 0 | J181: Latest averages for 2015/16 using New Time band
A182: 169 | B182: LV Medium Non-Domestic | C182: 0 | D182: 0 | E182: 0 | F182: 0 | G182: 0 | H182: 0 | I182: 0 | J182: Latest averages for 2015/16 using New Time band
A183: 170 | B183: LV Sub Medium Non-Domestic | C183: 0 | D183: 0 | E183: 0 | F183: 0 | G183: 0 | H183: 0 | I183: 0 | J183: Latest averages for 2015/16 using New Time band
A184: 171 | B184: HV Medium Non-Domestic | C184: 0 | D184: 0 | E184: 0 | F184: 0 | G184: 0 | H184: 0 | I184: 0 | J184: Latest averages for 2015/16 using New Time band
A185: 172 | B185: AMBER
A186: 173 | B186: Domestic Two Rate | C186: 0 | D186: 0 | E186: 0 | F186: 0 | G186: 0 | H186: 0 | I186: 0 | J186: Latest averages for 2015/16 using New Time band
A187: 174 | B187: Small Non Domestic Two Rate | C187: 0 | D187: 0 | E187: 0 | F187: 0 | G187: 0 | H187: 0 | I187: 0 | J187: Latest averages for 2015/16 using New Time band
A188: 175 | B188: LV Medium Non-Domestic | C188: 0 | D188: 0 | E188: 0 | F188: 0 | G188: 0 | H188: 0 | I188: 0 | J188: Latest averages for 2015/16 using New Time band
A189: 176 | B189: LV Sub Medium Non-Domestic | C189: 0 | D189: 0 | E189: 0 | F189: 0 | G189: 0 | H189: 0 | I189: 0 | J189: Latest averages for 2015/16 using New Time band
A190: 177 | B190: HV Medium Non-Domestic | C190: 0 | D190: 0 | E190: 0 | F190: 0 | G190: 0 | H190: 0 | I190: 0 | J190: Latest averages for 2015/16 using New Time band
A191: 178 | B191: GREEN
A192: 179 | B192: Domestic Two Rate | C192: 1 | D192: 1 | E192: 1 | F192: 1 | G192: 1 | H192: 1 | I192: 1 | J192: Latest averages for 2015/16 using New Time band
A193: 180 | B193: Small Non Domestic Two Rate | C193: 1 | D193: 1 | E193: 1 | F193: 1 | G193: 1 | H193: 1 | I193: 1 | J193: Latest averages for 2015/16 using New Time band
A194: 181 | B194: LV Medium Non-Domestic | C194: 1 | D194: 1 | E194: 1 | F194: 1 | G194: 1 | H194: 1 | I194: 1 | J194: Latest averages for 2015/16 using New Time band
A195: 182 | B195: LV Sub Medium Non-Domestic | C195: 1 | D195: 1 | E195: 1 | F195: 1 | G195: 1 | H195: 1 | I195: 1 | J195: Latest averages for 2015/16 using New Time band
A196: 183 | B196: HV Medium Non-Domestic | C196: 1 | D196: 1 | E196: 1 | F196: 1 | G196: 1 | H196: 1 | I196: 1 | J196: Latest averages for 2015/16 using New Time band
A197: 184 | B197: 1064. Average split of rate 1 units by special distribution time band
A198: 185 | B198: BLACK
A199: 186 | B199: NHH UMS category A | C199: 0.0196347032 | D199: 0.0196347032 | E199: 0.02945205479 | F199: 0.02945205479 | G199: 0.02945205479 | H199: 0.02945205479 | I199: 0.02945205479 | J199: Latest averages for 2015/16 using New Time band
A200: 187 | B200: NHH UMS category B | C200: 0.03631645494 | D200: 0.03560808437 | E200: 0.05005787061 | F200: 0.05005787061 | G200: 0.05005787061 | H200: 0.05005787061 | I200: 0.05005787061 | J200: Latest averages for 2015/16 using New Time band
A201: 188 | B201: NHH UMS category C | C201: 0.06886288928 | D201: 0.06748819806 | E201: 0.09587863667 | F201: 0.09587863667 | G201: 0.09587863667 | H201: 0.09587863667 | I201: 0.09587863667 | J201: Latest averages for 2015/16 using New Time band
A202: 189 | B202: NHH UMS category D | C202: 0.008382428825 | D202: 0.008506707131 | E202: 0.01671247611 | F202: 0.01671247611 | G202: 0.01671247611 | H202: 0.01671247611 | I202: 0.01671247611 | J202: Latest averages for 2015/16 using New Time band
A203: 190 | B203: YELLOW
A204: 191 | B204: NHH UMS category A | C204: 0.3467465753 | D204: 0.3456621005 | E204: 0.3488013699 | F204: 0.3488013699 | G204: 0.3488013699 | H204: 0.3488013699 | I204: 0.3488013699 | J204: Latest averages for 2015/16 using New Time band
A205: 192 | B205: NHH UMS category B | C205: 0.08968129709 | D205: 0.09026905232 | E205: 0.08381804923 | F205: 0.08381804923 | G205: 0.08381804923 | H205: 0.08381804923 | I205: 0.08381804923 | J205: Latest averages for 2015/16 using New Time band
... 66 more rows

Sheet Table 1
A1: Schedule 15 table 1
A2: ="Company Name: "&'CDCM Forecast Data'!E3 -> Company Name: Electricity North West
A3: Date:
A5: Description | B5: Licence Term | C5: CRC | K5: Assumptions
A6: Regulatory Year | D6: t-2 | E6: t-1 | F6: t | G6: t+1 | H6: t+2 | I6: t+3 | J6: t+4
A7: Regulatory Year | D7: ='CDCM Forecast Data'!C11 -> 2013/14 | E7: ='CDCM Forecast Data'!D11 -> 2014/15 | F7: ='CDCM Forecast Data'!E11 -> 2015/16 | G7: ='CDCM Forecast Data'!F11 -> 2016/17 | H7: ='CDCM Forecast Data'!G11 -> 2017/18 | I7: ='CDCM Forecast Data'!H11 -> 2018/19 | J7: ='CDCM Forecast Data'!I11 -> 2019/20
A8: Base Demand Before Inflation (A1) | B8: PUt | C8: CRC3 | D8: 408.3 | E8: 442.2 | F8: 373 | G8: 381.7 | H8: 362.6 | I8: 358.9 | J8: 355.4 | K8: PU values in licence in 2010/11 prices RIIO ED1 values in 2012/13 prices
A9: RPI Effective % (A2) | B9: PIADt | C9: CRC3 | D9: 1.134 | E9: 1.1671 | F9: 1.082 | G9: =(1+'CDCM Forecast Data'!F13)*F9 -> 1.115542 | H9: =(1+'CDCM Forecast Data'!G13)*G9 -> 1.150123802 | I9: =(1+'CDCM Forecast Data'!H13)*H9 -> 1.18577764 | J9: =(1+'CDCM Forecast Data'!I13)*I9 -> 1.222536747 | K9: 2013/14 3.00%, 2014/15 2.91% RIIO: 3.10%
A10: Merger adjustment (A3) | B10: MGt | C10: CRC3 | K10: Not applicable
A11: Base Demand Revenue (A): [A = A1 * A2 - A3] | B11: BRt | C11: CRC3 | D11: =D8*D9-D10 -> 463.0122 | E11: 516.09162 | F11: 403.586 | G11: 425.8023814 | H11: 417.0348906 | I11: 425.5755949 | J11: 434.4895598 | K11: A = A1 * A2 - A3
A12: Pass-Through Business Rates (B1) | B12: RBt | C12: CRC4 | D12: -1.3 | E12: -1.4
A13: Pass-Through Licence Fees (B2) | B13: LFt | C13: CRC4 | D13: 0.1 | E13: 0.1
A14: Pass-Through Transmission Exit (B3) | B14: TBt | C14: CRC4 | D14: -1.1 | E14: -0.5
A15: Price Control Reopener (B4) | B15: UNCt | C15: CRC4
A16: Pass-Through Others (B5) | B16: MPTt, HBt, IEDt | C16: CRC4
A17: Allowed Pass-Through Items (B): [B = B1 + B2 + B3 +B4 + B5] | B17: PTt | C17: CRC3 | D17: =SUM(D12:D16) -> -2.3 | E17: -1.8 | F17: 0 | G17: 0 | H17: 0 | I17: 0 | J17: 0 | K17: B = B1 + B2 + B3 +B4 + B5
A18: Losses Incentive (C1) | B18: UILt | C18: CRC7 | K18: Forecast reflects the decision to not activate the DPCR5 incentive. Forecast for DPCR4 close out in line with Ofgem direction for the PPL term issued 21-Mar-14.
B19: PCOLt | C19: CRC7
B20: -COLt | C20: CRC7
B21: PPLt | C21: CRC7 | F21: -11.556555 | G21: -11.4
A22: Quality of service incentive adjustment (C2) | B22: IQt | C22: CRC8 | D22: 4.7 | E22: 3.7 | F22: 8.299237 | G22: 12.6 | H22: 12.3 | I22: 12.9 | J22: 12.9
A23: Transmission connection point charges incentive adjustment (C3) | B23: ITt | C23: CRC9 | D23: 0.3 | E23: -0.2
A24: Innovation funding incentive adjustment (C4) | B24: IFIt | C24: CRC10 | D24: 1.9 | E24: 2
A25: Incentive revenue for Distributed Generation (C5) | B25: IGt | C25: CRC11 | D25: 2.1 | E25: 3.1
A26: Connection Guaranteed Standards Systems & Processes penalty (C6) | B26: CGSRAt,CGSSPt & AUMt | C26: CRC12
A27: Low Carbon Networks Fund (C7) | B27: LCN1t | C27: CRC13 | D27: 1.3 | E27: 1.3
B28: LCN2t | C28: CRC13 | D28: 3.4 | E28: 2.1 | F28: 1.646130897 | K28: Scheme will not continue into RIIO - 2014/15 value recovered in 2015/16
B29: LCN3t | C29: CRC13 | F29: 2.825102 | G29: =+G11*0.007 -> 2.98061667 | H29: =+H11*0.007 -> 2.919244234 | I29: 2.979029165 | J29: 3.041426918 | K29: This row includes NIA Scheme introduced in RIIO (0.8% of base revenue) - IFI & Tier 1 (No lag)
A30: Incentive Revenue and Other Adjustments (C): [C = C1 + C2 + C3 + C4 + C5 + C6 + C7] | D30: =SUM(D18:D29) -> 13.7 | E30: =SUM(E18:E29) -> 12 | F30: 1.213914897 | G30: 4.18061667 | H30: 15.21924423 | I30: 15.87902916 | J30: 15.94142692 | K30: C = C1 + C2 + C3 + C4 + C5 + C6 + C7
A31: Correction Factor (D) | B31: -Kt | C31: CRC3 | D31: 16.5 | E31: 18.9 | F31: 0 | G31: 25.9 | H31: 0 | I31: 0 | J31: 0
A32: Tax Trigger Mechanism Adjustment (E) | B32: CTRAt | C32: CRC3 | D32: -3.8 | E32: -16.8 | F32: 0 | G32: 0 | H32: 0 | I32: 0 | J32: 0
A33: Total allowed Revenue (F): [F= A + B + C + D + E] | B33: ARt | D33: =D11+D17+D30+D31+D32 -> 487.1122 | E33: =E11+E17+E30+E31+E32 -> 528.39162 | F33: 404.7999149 | G33: 455.8829981 | H33: 432.2541348 | I33: 441.4546241 | J33: 450.4309867 | K33: F= A + B + C + D + E
A34: Other 1. Excluded services - Top-up, standby, and enhanced system security (G1) | B34: ES4 | C34: CRC15 | D34: 11.1 | E34: 12.6
A35: Other 2. Excluded services - Revenue protection services (G2) | B35: ES5 | C35: CRC15
A36: Other 3. Excluded services - Miscellaneous (G3) | B36: ES7 | C36: CRC15
A37: Other 4. - blank or if required please provide description (G4)
A38: Other 5. - blank or if required please provide description (G5)
A39: Total Other Revenue to be recovered by Use of System Charges (G): [G = G1 + G2 + G3 + G4 +G5] | D39: =SUM(D34:D38) -> 11.1 | E39: =SUM(E34:E38) -> 12.6 | F39: 0 | G39: 0 | H39: 0 | I39: 0 | J39: 0 | K39: G = G1 + G2 + G3 + G4 +G5
A40: Total Revenue for Use of System Charges (H): [H =F + G] | D40: =D39+D33 -> 498.2122 | E40: =E39+E33 -> 540.99162 | F40: 404.7999149 | G40: 455.8829981 | H40: 432.2541348 | I40: 441.4546241 | J40: 450.4309867 | K40: H = F + G
A41: 1. Revenue raised outside CDCM - EDCM and interconnector charges (I1) | D41: 13.1 | E41: 16.3 | F41: 14.26305988 | G41: =F41*(G11/F11) -> 15.048205 | H41: =G41*(H11/G11) -> 14.73835469 | I41: 15.04019018 | J41: 15.355217
A42: 2. Revenue raised outside CDCM - Voluntary under-recovery (I2)
A43: 3. Revenue from increased standing charge to recover £5 rebate | F43: 10.9
A44: 4. Revenue raised outside CDCM - blank or if required please provide description (I4)
A45: Total Revenue to be raised outside the CDCM (I): [I = I1 + I2 + I3 + I4] | D45: =D41+D42+D43+D44 -> 13.1 | E45: =E41+E42+E43+E44 -> 16.3 | F45: 25.16305988 | G45: 15.048205 | H45: 14.73835469 | I45: 15.04019018 | J45: 15.355217 | K45: I = I1 + I2 + I3 + I4
A46: Latest forecast of CDCM Collected Revenue (J): [J = H - I] | D46: =D40-D45 -> 485.1122 | E46: =E40-E45 -> 524.69162 | F46: 379.636855 | G46: 440.8347931 | H46: 417.5157801 | I46: 426.4144339 | J46: 435.0757697 | K46: J = H - I
A47: CDCM Revenue Used in Charging Model | D47: 481.8 | E47: 516.9 | F47: =+F46 -> 379.636855 | G47: =+G46 -> 440.8347931 | H47: 417.5157801 | I47: 426.4144339 | J47: 435.0757697
A48: Final Collected Revenue Forecast (K) | D48: 479.4 | E48: =527.3-12.1 -> 515.2 | F48: =F40 -> 404.7999149 | G48: =G40 -> 455.8829981 | H48: 432.2541348 | I48: 441.4546241 | J48: 450.4309867
A49: Forecast Over / (Under) Recovery [being (K - G - F + I2] | D49: =D48-D39-D33+D42 -> -18.8122 | E49: =E48-E39-E33+E42 -> -25.79162 | F49: =F48-F39-F33+F42 -> 0 | G49: 0 | H49: 0 | I49: 0 | J49: 0 | K49: being K - G - F + I2
A50: Forecast overall percentage change to Allowed Revenue (L) | D50: 0.11 | E50: =E33/D33-1 -> 0.08474314542 | F50: -0.2339017131 | G50: 0.1261934138 | H50: -0.05183098148 | I50: 0.02128490749 | J50: 0.0203336019 | K50: Ft / Ft-1
A51: Overall % change to Use of System Charges effective 1st April of Regulatory Year to balance (M) | D51: 0.098 | E51: =E48/D48-1 -> 0.07467667918 | F51: -0.2142858795 | G51: 0.1261934138 | H51: -0.05183098148 | I51: 0.02128490749 | J51: 0.0203336019

Sheet Smoothed Input Details
A1: DNO | B1: =+'CDCM Forecast Data'!E3 -> Electricity North West
A2: Charges for (year Y) | B2: =+'CDCM Forecast Data'!E11 -> 2015/16
A4: Year charges are set (year Y-1) | B4: =+'CDCM Forecast Data'!D11 -> 2014/15
A6: Year to which input data relates
A7: Year Y-2 | B7: 2013/14
A8: Year Y - 3 | B8: 2012/13
A9: Year Y - 4 | B9: 2011/12
A11: 1041 - load profile for demand users - coincidence factors
A12: 2012/13 charges are set in 2011/12 using historical dats for the previous three years
B14: Y - 4 | C14: Y - 3 | D14: Y - 2 | E14: Information to be used calculating tariffs in year t
A15: Domestic Unrestricted | B15: 0.8759944789 | C15: 0.8581044475 | D15: 0.8818861814 | E15: =AVERAGE(B15:D15) -> 0.8719950359
A16: Domestic Two Rate | B16: 0.2910946238 | C16: 0.2710178272 | D16: 0.3054960297 | E16: =AVERAGE(B16:D16) -> 0.2892028269
A17: Domestic Off Peak (related MPAN)
A18: Small Non Domestic Unrestricted | B18: 0.643997216 | C18: 0.7472520808 | D18: 0.6341767824 | E18: =AVERAGE(B18:D18) -> 0.6751420264
A19: Small Non Domestic Two Rate | B19: 0.6932169035 | C19: 0.6804607509 | D19: 0.7083027282 | E19: =AVERAGE(B19:D19) -> 0.6939934609
A20: Small Non Domestic Off Peak (related MPAN)
A21: LV Medium Non-Domestic | B21: 0.823352836 | C21: 0.8712874334 | D21: 0.8173381809 | E21: =AVERAGE(B21:D21) -> 0.8373261501
A22: LV Sub Medium Non-Domestic | B22: 0.7852576908 | C22: 0.859747255 | D22: 0.780681088 | E22: 0.8085620113
A23: HV Medium Non-Domestic | B23: 0.6887626263 | C23: 0.8282623394 | D23: 0.7013610889 | E23: 0.7394620182
A24: LV Network Domestic | B24: 0.8759944789 | C24: 0.8581044475 | D24: 0.8818861814 | E24: =AVERAGE(B24:D24) -> 0.8719950359
A25: LV Network Non-Domestic Non-CT | B25: 0.643997216 | C25: 0.7472520808 | D25: 0.6341767824 | E25: 0.6751420264
A26: LV HH Metered | B26: 0.7837215571 | C26: 0.8610914613 | D26: 0.7955610196 | E26: 0.8134580127
A27: LV Sub HH Metered | B27: 0.7583345116 | C27: 0.8298355661 | D27: 0.7703176776 | E27: 0.7861625851
A28: HV HH Metered | B28: 0.8377246673 | C28: 0.8856275653 | D28: 0.8411943506 | E28: 0.8548488611
A29: NHH UMS category A | B29: 1 | C29: 1 | D29: 1 | E29: =AVERAGE(B29:D29) -> 1
A30: NHH UMS category B | B30: 1 | C30: 1 | D30: 1 | E30: 1
A31: NHH UMS category C | B31: 1 | C31: 1 | D31: 1 | E31: =AVERAGE(B31:D31) -> 1
A32: NHH UMS category D | B32: 0 | C32: 0 | D32: 0 | E32: 0
A33: LV UMS (Pseudo HH Metered) | B33: 0.9664622494 | C33: 0.9927620623 | D33: 0.9731821171 | E33: 0.9774688096
A37: 1041 - load profile for demand users - load factors
A38: 2012/13 charges are set in 2011/12 using historical data for the previous three years
B41: Y - 4 | C41: Y - 3 | D41: Y - 2 | E41: Information to be used calculating tariffs in year t
A42: Domestic Unrestricted | B42: 0.4362692532 | C42: 0.4429541431 | D42: 0.4458847204 | E42: =AVERAGE(B42:D42) -> 0.4417027055
A43: Domestic Two Rate | B43: 0.2291373449 | C43: 0.235652164 | D43: 0.260958218 | E43: 0.241915909
A44: Domestic Off Peak (related MPAN) | B44: 0.1484809281 | C44: 0.1644645207 | D44: 0.171641171 | E44: 0.1615288733
A45: Small Non Domestic Unrestricted | B45: 0.3921620378 | C45: 0.3851249321 | D45: 0.40718203 | E45: 0.394823
A46: Small Non Domestic Two Rate | B46: 0.5395583023 | C46: 0.4810446063 | D46: 0.5817242122 | E46: 0.5341090403
A47: Small Non Domestic Off Peak (related MPAN) | B47: 0.1540314046 | C47: 0.1647748375 | D47: 0.1724224171 | E47: 0.1637428864
A48: LV Medium Non-Domestic | B48: 0.5657248292 | C48: 0.559701953 | D48: 0.5813952742 | E48: 0.5689406855
A49: LV Sub Medium Non-Domestic | B49: 0.5482462255 | C49: 0.5706733221 | D49: 0.5520380099 | E49: 0.5569858525
A50: HV Medium Non-Domestic | B50: 0.4351584481 | C50: 0.4982585342 | D50: 0.5387323557 | E50: 0.490716446
A51: LV Network Domestic | B51: 0.4362692532 | C51: 0.4429541431 | D51: 0.4458847204 | E51: =AVERAGE(B51:D51) -> 0.4417027055
A52: LV Network Non-Domestic Non-CT | B52: 0.3921620378 | C52: 0.3851249321 | D52: 0.40718203 | E52: 0.394823
A53: LV HH Metered | B53: 0.5485801032 | C53: 0.5515647613 | D53: 0.5668044745 | E53: 0.5556497797
A54: LV Sub HH Metered | B54: 0.5443141644 | C54: 0.5571912198 | D54: 0.5667514985 | E54: 0.5560856276
A55: HV HH Metered | B55: 0.7052395403 | C55: 0.7075622406 | D55: 0.7193144645 | E55: 0.7107054151
A56: NHH UMS category A | B56: 1 | C56: 1 | D56: 1 | E56: 1
A57: NHH UMS category B | B57: 0.474 | C57: 0.474 | D57: 0.474 | E57: 0.474
A58: NHH UMS category C | B58: 0.258 | C58: 0.258 | D58: 0.258 | E58: 0.258
A59: NHH UMS category D | B59: 0.554 | C59: 0.554 | D59: 0.554 | E59: 0.554
A60: LV UMS (Pseudo HH Metered) | B60: 0.4862829586 | C60: 0.4875795651 | D60: 0.4749056141 | E60: 0.4829227126
A64: 1061 - Average split of rate 1 units by distribution time band
A65: 2012/13 charges are set in 2011/12 using historical data for the previous three years
B68: Y - 4 | E68: Y - 3 | H68: Y - 2 | K68: Information to be used calculating tariffs in year t
B69: Red | C69: Amber | D69: Green | E69: Red | F69: Amber | G69: Green | H69: Red | I69: Amber | J69: Green | K69: Red | L69: Amber | M69: Green
A70: Domestic Unrestricted | B70: 0.1262402642 | C70: 0.3246671121 | D70: 0.5490926237 | E70: 0.1263346578 | F70: 0.3306978237 | G70: 0.5429675185 | H70: 0.1269639499 | I70: 0.3317443395 | J70: 0.5412917106 | K70: =AVERAGE(B70,E70,H70) -> 0.1265129573 | L70: 0.3290364251 | M70: 0.5444506176
A71: Domestic Two Rate | B71: 0.1330649594 | C71: 0.3422702018 | D71: 0.5246648388 | E71: 0.1329147759 | F71: 0.3431825457 | G71: 0.5239026784 | H71: 0.1356919388 | I71: 0.3473432916 | J71: 0.5169647695 | K71: =AVERAGE(B71,E71,H71) -> 0.1338905581 | L71: =AVERAGE(C71,F71,I71) -> 0.3442653464 | M71: =AVERAGE(D71,G71,J71) -> 0.5218440956
A72: Domestic Off Peak (related MPAN) | B72: 0.005321020466 | C72: 0.09364408809 | D72: 0.9010348914 | E72: 0.004947070924 | F72: 0.09383309084 | G72: 0.9012198382 | H72: 0.0053231722 | I72: 0.09433186469 | J72: 0.9003449631 | K72: 0.005197087863 | L72: 0.09393634787 | M72: 0.9008665643
A73: Small Non Domestic Unrestricted | B73: 0.1113989973 | C73: 0.452324672 | D73: 0.4362763307 | E73: 0.1087225422 | F73: 0.4502700977 | G73: 0.4410073602 | H73: 0.109992476 | I73: 0.4500180296 | J73: 0.4399894945 | K73: 0.1100380052 | L73: 0.4508709331 | M73: 0.4390910618
A74: Small Non Domestic Two Rate | B74: 0.1228057616 | C74: 0.4572550554 | D74: 0.419939183 | E74: 0.1211711243 | F74: 0.4592146969 | G74: 0.4196141788 | H74: 0.1224352156 | I74: 0.4612051514 | J74: 0.416359633 | K74: 0.1221373672 | L74: 0.4592249679 | M74: 0.4186376649
A75: Small Non Domestic Off Peak (related MPAN) | B75: 0.00121354083 | C75: 0.04764924486 | D75: 0.9511372143 | E75: 0.00137793809 | F75: 0.04928885293 | G75: 0.949333209 | H75: 0.001667481978 | I75: 0.05179618737 | J75: 0.9465363307 | K75: 0.001419653633 | L75: 0.04957809505 | M75: 0.9490022513
A76: LV Medium Non-Domestic | B76: 0.1361015487 | C76: 0.4812240488 | D76: 0.3826744025 | E76: 0.1342167538 | F76: 0.4810414896 | G76: 0.3847417566 | H76: 0.1383245816 | I76: 0.4925273933 | J76: 0.3691480252 | K76: 0.1362142947 | L76: 0.4849309772 | M76: 0.3788547281
A77: LV Sub Medium Non-Domestic | B77: 0.1348728805 | C77: 0.4834791837 | D77: 0.3816479358 | E77: 0.1334687113 | F77: 0.4801713755 | G77: 0.3863599133 | H77: 0.134539425 | I77: 0.4817965441 | J77: 0.3836640309 | K77: 0.1342936723 | L77: 0.4818157011 | M77: 0.3838906267
A78: HV Medium Non-Domestic | B78: 0.1320437604 | C78: 0.4904421669 | D78: 0.3775140727 | E78: 0.1302382602 | F78: 0.489648371 | G78: 0.3801133688 | H78: 0.1298565229 | I78: 0.4912108727 | J78: 0.3789326044 | K78: 0.1307128479 | L78: 0.4904338035 | M78: 0.3788533486
A82: 1062 - Average split of rate 2 units by distribution time band
A83: 2012/13 charges are set in 2011/12 using historical data for the previous three years
B86: Y - 4 | E86: Y - 3 | H86: Y - 2 | K86: Information to be used calculating tariffs in year t
B87: Red | C87: Amber | D87: Green | E87: Red | F87: Amber | G87: Green | H87: Red | I87: Amber | J87: Green | K87: Red | L87: Amber | M87: Green
A88: Domestic Two Rate | B88: 0 | C88: 0 | D88: 1 | E88: 0 | F88: 0 | G88: 1 | H88: 0 | I88: 0 | J88: 1 | K88: 0 | L88: 0 | M88: 1
A89: Small Non Domestic Two Rate | B89: 0 | C89: 0 | D89: 1 | E89: 0 | F89: 0 | G89: 1 | H89: 0 | I89: 0 | J89: 1 | K89: 0 | L89: 0 | M89: 1
A90: LV Medium Non-Domestic | B90: 0 | C90: 0 | D90: 1 | E90: 0 | F90: 0 | G90: 1 | H90: 0 | I90: 0 | J90: 1 | K90: 0 | L90: 0 | M90: 1
A91: LV Sub Medium Non-Domestic | B91: 0 | C91: 0 | D91: 1 | E91: 0 | F91: 0 | G91: 1 | H91: 0 | I91: 0 | J91: 1 | K91: 0 | L91: 0 | M91: 1
A92: HV Medium Non-Domestic | B92: 0 | C92: 0 | D92: 1 | E92: 0 | F92: 0 | G92: 1 | H92: 0 | I92: 0 | J92: 1 | K92: 0 | L92: 0 | M92: 1
A96: 1064. Average split of rate 1 units by special distribution time band
B100: Y - 4 | E100: Y - 3 | H100: Y - 2 | K100: Information to be used calculating tariffs in year t
B101: Black | C101: Yellow | D101: Green | E101: Black | F101: Yellow | G101: Green | H101: Black | I101: Yellow | J101: Green | K101: Black | L101: Yellow | M101: Green
A102: NHH UMS category A | B102: 0.02945205479 | C102: 0.3488013699 | D102: 0.6217465753 | E102: 0.02945205479 | F102: 0.3488013699 | G102: 0.6217465753 | H102: 0.02945205479 | I102: 0.3488013699 | J102: 0.6217465753 | K102: =AVERAGE(B102,E102,H102) -> 0.02945205479 | L102: =AVERAGE(C102,F102,I102) -> 0.3488013699 | M102: =AVERAGE(D102,G102,J102) -> 0.6217465753
A103: NHH UMS category B | B103: 0.05005787061 | C103: 0.08381804923 | D103: 0.8661240802 | E103: 0.05005787061 | F103: 0.08381804923 | G103: 0.8661240802 | H103: 0.05005787061 | I103: 0.08381804923 | J103: 0.8661240802 | K103: 0.05005787061 | L103: 0.08381804923 | M103: 0.8661240802
A104: NHH UMS category C | B104: 0.09587863667 | C104: 0.1645901157 | D104: 0.7395312477 | E104: 0.09587863667 | F104: 0.1645901157 | G104: 0.7395312477 | H104: 0.09587863667 | I104: 0.1645901157 | J104: 0.7395312477 | K104: 0.09587863667 | L104: 0.1645901157 | M104: 0.7395312477
A105: NHH UMS category D | B105: 0.01671247611 | C105: 0.5674766852 | D105: 0.4158108387 | E105: 0.01671247611 | F105: 0.5674766852 | G105: 0.4158108387 | H105: 0.01671247611 | I105: 0.5674766852 | J105: 0.4158108387 | K105: 0.01671247611 | L105: 0.5674766852 | M105: 0.4158108387
A109: 1069 - Peaking probabilities by network level
A110: 2012/13 charges are set in 2011/12 using historical data for the previous three years
B113: Y - 4 | E113: Y - 3 | H113: Y - 2 | K113: Information to be used calculating tariffs in year t
B114: Red | C114: Amber | D114: Green | E114: Red | F114: Amber | G114: Green | H114: Red | I114: Amber | J114: Green | K114: Red | L114: Amber | M114: Green
A115: GSPs | B115: 0.8333333333 | C115: 0.1111111111 | D115: 0.05555555556 | E115: 0.8823529412 | F115: 0.1176470588 | G115: 0 | H115: 0.89 | I115: 0.11 | J115: 0 | K115: =AVERAGE(B115,E115,H115) -> 0.8685620915 | L115: =AVERAGE(C115,F115,I115) -> 0.11291939 | M115: =AVERAGE(D115,G115,J115) -> 0.01851851852
A116: 132kV | B116: 0.7428571429 | C116: 0.2 | D116: 0.05714285714 | E116: 0.7285714286 | F116: 0.2142857143 | G116: 0.05714285714 | H116: 0.7323943662 | I116: 0.1971830986 | J116: 0.07042253521 | K116: 0.7346076459 | L116: 0.2038229376 | M116: 0.0615694165
A117: 132kV/EHV | B117: 0.7428571429 | C117: 0.2 | D117: 0.05714285714 | E117: 0.7285714286 | F117: 0.2142857143 | G117: 0.05714285714 | H117: 0.7323943662 | I117: 0.1971830986 | J117: 0.07042253521 | K117: 0.7346076459 | L117: 0.2038229376 | M117: 0.0615694165
A118: EHV | B118: 0.6405405405 | C118: 0.2783783784 | D118: 0.08108108108 | E118: 0.6145552561 | F118: 0.307277628 | G118: 0.0781671159 | H118: 0.5929919137 | I118: 0.3045822102 | J118: 0.102425876 | K118: 0.6160292368 | L118: 0.2967460722 | M118: 0.087224691
A119: EHV/HV | B119: 0.6405405405 | C119: 0.2783783784 | D119: 0.08108108108 | E119: 0.6145552561 | F119: 0.307277628 | G119: 0.0781671159 | H119: 0.5929919137 | I119: 0.3045822102 | J119: 0.102425876 | K119: 0.6160292368 | L119: 0.2967460722 | M119: 0.087224691
A120: 132kV/HV | B120: 0 | C120: 0 | D120: 0 | E120: 0 | F120: 0 | G120: 0 | H120: 0 | I120: 0 | J120: 0 | K120: 0 | L120: 0 | M120: 0
A121: HV | B121: 0.6405405405 | C121: 0.2783783784 | D121: 0.08108108108 | E121: 0.6145552561 | F121: 0.307277628 | G121: 0.0781671159 | H121: 0.5929919137 | I121: 0.3045822102 | J121: 0.102425876 | K121: 0.6160292368 | L121: 0.2967460722 | M121: 0.087224691
A122: HV/LV | B122: 0.6405405405 | C122: 0.2783783784 | D122: 0.08108108108 | E122: 0.6145552561 | F122: 0.307277628 | G122: 0.0781671159 | H122: 0.5929919137 | I122: 0.3045822102 | J122: 0.102425876 | K122: 0.6160292368 | L122: 0.2967460722 | M122: 0.087224691
A123: LV circuits | B123: 0.6405405405 | C123: 0.2783783784 | D123: 0.08108108108 | E123: 0.6145552561 | F123: 0.307277628 | G123: 0.0781671159 | H123: 0.5929919137 | I123: 0.3045822102 | J123: 0.102425876 | K123: 0.6160292368 | L123: 0.2967460722 | M123: 0.087224691

Sheet Mat of App
B3: 1025. Matrix of applicability of LV service models to tariffs with fixed charges
C5: ='CDCM Forecast Data'!$E$11 -> 2015/16 | K5: ='CDCM Forecast Data'!$F$11 -> 2016/17 | S5: ='CDCM Forecast Data'!$G$11 -> 2017/18 | AA5: ='CDCM Forecast Data'!$H$11 -> 2018/19 | AI5: ='CDCM Forecast Data'!$I$11 -> 2019/20
C6: LV service model 1 | D6: LV service model 2 | E6: LV service model 3 | F6: LV service model 4 | G6: LV service model 5 | H6: LV service model 6 | I6: LV service model 7 | J6: LV service model 8 | K6: LV service model 1 | L6: LV service model 2 | M6: LV service model 3 | N6: LV service model 4 | O6: LV service model 5 | P6: LV service model 6 | Q6: LV service model 7 | R6: LV service model 8 | S6: LV service model 1 | T6: LV service model 2 | U6: LV service model 3 | V6: LV service model 4 | W6: LV service model 5 | X6: LV service model 6 | Y6: LV service model 7 | Z6: LV service model 8 | AA6: LV service model 1 | AB6: LV service model 2 | AC6: LV service model 3 | AD6: LV service model 4 | AE6: LV service model 5 | AF6: LV service model 6 | AG6: LV service model 7 | AH6: LV service model 8 | AI6: LV service model 1 | AJ6: LV service model 2 | AK6: LV service model 3 | AL6: LV service model 4 | AM6: LV service model 5 | AN6: LV service model 6 | AO6: LV service model 7 | AP6: LV service model 8
B7: Domestic Unrestricted | C7: 0.05 | D7: 0 | E7: 0 | F7: 0 | I7: 0 | J7: 0 | K7: =C7 -> 0.05 | L7: =D7 -> 0 | M7: =E7 -> 0 | N7: =F7 -> 0 | O7: =G7 -> 0 | P7: =H7 -> 0 | Q7: =I7 -> 0 | R7: =J7 -> 0 | S7: =K7 -> 0.05 | T7: =L7 -> 0 | U7: =M7 -> 0 | V7: =N7 -> 0 | W7: =O7 -> 0 | X7: =P7 -> 0 | Y7: =Q7 -> 0 | Z7: =R7 -> 0 | AA7: =S7 -> 0.05 | AB7: =T7 -> 0 | AC7: =U7 -> 0 | AD7: =V7 -> 0 | AE7: =W7 -> 0 | AF7: =X7 -> 0 | AG7: =Y7 -> 0 | AH7: =Z7 -> 0 | AI7: =AA7 -> 0.05 | AJ7: =AB7 -> 0 | AK7: =AC7 -> 0 | AL7: =AD7 -> 0 | AM7: =AE7 -> 0 | AN7: =AF7 -> 0 | AO7: =AG7 -> 0 | AP7: =AH7 -> 0
B8: Domestic Two Rate | C8: 0.05 | D8: 0 | E8: 0 | F8: 0 | I8: 0 | J8: 0 | K8: 0.05 | L8: 0 | M8: 0 | N8: 0 | O8: 0 | P8: 0 | Q8: 0 | R8: 0 | S8: 0.05 | T8: 0 | U8: 0 | V8: 0 | W8: 0 | X8: 0 | Y8: 0 | Z8: 0 | AA8: 0.05 | AB8: 0 | AC8: 0 | AD8: 0 | AE8: 0 | AF8: 0 | AG8: 0 | AH8: 0 | AI8: 0.05 | AJ8: 0 | AK8: 0 | AL8: 0 | AM8: 0 | AN8: 0 | AO8: 0 | AP8: 0
B9: Small Non Domestic Unrestricted | C9: 0 | D9: 1 | E9: 0 | F9: 0 | I9: 0 | J9: 0 | K9: 0 | L9: 1 | M9: 0 | N9: 0 | O9: 0 | P9: 0 | Q9: 0 | R9: 0 | S9: 0 | T9: 1 | U9: 0 | V9: 0 | W9: 0 | X9: 0 | Y9: 0 | Z9: 0 | AA9: 0 | AB9: 1 | AC9: 0 | AD9: 0 | AE9: 0 | AF9: 0 | AG9: 0 | AH9: 0 | AI9: 0 | AJ9: 1 | AK9: 0 | AL9: 0 | AM9: 0 | AN9: 0 | AO9: 0 | AP9: 0
B10: Small Non Domestic Two Rate | C10: 0 | D10: 1 | E10: 0 | F10: 0 | I10: 0 | J10: 0 | K10: 0 | L10: 1 | M10: 0 | N10: 0 | O10: 0 | P10: 0 | Q10: 0 | R10: 0 | S10: 0 | T10: 1 | U10: 0 | V10: 0 | W10: 0 | X10: 0 | Y10: 0 | Z10: 0 | AA10: 0 | AB10: 1 | AC10: 0 | AD10: 0 | AE10: 0 | AF10: 0 | AG10: 0 | AH10: 0 | AI10: 0 | AJ10: 1 | AK10: 0 | AL10: 0 | AM10: 0 | AN10: 0 | AO10: 0 | AP10: 0
B11: LV Medium Non-Domestic | C11: 0 | D11: 0.1652421652 | E11: 0.8347578348 | F11: 0 | I11: 0 | J11: 0 | K11: =C11 -> 0 | L11: 0.1807435653 | M11: 0.8192564347 | N11: =F11 -> 0 | O11: =G11 -> 0 | P11: =H11 -> 0 | Q11: =I11 -> 0 | R11: =J11 -> 0 | S11: =K11 -> 0 | T11: 0.1807435653 | U11: 0.8192564347 | V11: =N11 -> 0 | W11: =O11 -> 0 | X11: =P11 -> 0 | Y11: =Q11 -> 0 | Z11: =R11 -> 0 | AA11: =S11 -> 0 | AB11: =T11 -> 0.1807435653 | AC11: =U11 -> 0.8192564347 | AD11: =V11 -> 0 | AE11: =W11 -> 0 | AF11: =X11 -> 0 | AG11: =Y11 -> 0 | AH11: =Z11 -> 0 | AI11: =AA11 -> 0 | AJ11: =AB11 -> 0.1807435653 | AK11: =AC11 -> 0.8192564347 | AL11: =AD11 -> 0 | AM11: =AE11 -> 0 | AN11: =AF11 -> 0 | AO11: =AG11 -> 0 | AP11: =AH11 -> 0
B12: LV Sub Medium Non-Domestic | C12: 0 | D12: 0 | E12: 0 | F12: 1 | I12: 0 | J12: 0 | K12: 0 | L12: =D12 -> 0 | M12: =E12 -> 0 | N12: 1 | O12: 0 | P12: 0 | Q12: 0 | R12: 0 | S12: 0 | T12: =L12 -> 0 | U12: =M12 -> 0 | V12: 1 | W12: 0 | X12: 0 | Y12: 0 | Z12: 0 | AA12: 0 | AB12: 0 | AC12: 0 | AD12: 1 | AE12: 0 | AF12: 0 | AG12: 0 | AH12: 0 | AI12: 0 | AJ12: 0 | AK12: 0 | AL12: 1 | AM12: 0 | AN12: 0 | AO12: 0 | AP12: 0
B13: LV Network Domestic | C13: 0.05 | I13: 0 | J13: 0 | K13: 0.05 | L13: 0 | M13: 0 | N13: 0 | O13: 0 | P13: 0 | Q13: 0 | R13: 0 | S13: 0.05 | T13: 0 | U13: 0 | V13: 0 | W13: 0 | X13: 0 | Y13: 0 | Z13: 0 | AA13: 0.05 | AB13: 0 | AC13: 0 | AD13: 0 | AE13: 0 | AF13: 0 | AG13: 0 | AH13: 0 | AI13: 0.05 | AJ13: 0 | AK13: 0 | AL13: 0 | AM13: 0 | AN13: 0 | AO13: 0 | AP13: 0
B14: LV Network Non-Domestic Non-CT | C14: 0 | D14: 1 | I14: 0 | J14: 0 | K14: 0 | L14: 1 | M14: 0 | N14: 0 | O14: 0 | P14: 0 | Q14: 0 | R14: 0 | S14: 0 | T14: 1 | U14: 0 | V14: 0 | W14: 0 | X14: 0 | Y14: 0 | Z14: 0 | AA14: 0 | AB14: 1 | AC14: 0 | AD14: 0 | AE14: 0 | AF14: 0 | AG14: 0 | AH14: 0 | AI14: 0 | AJ14: 1 | AK14: 0 | AL14: 0 | AM14: 0 | AN14: 0 | AO14: 0 | AP14: 0
B15: LV HH Metered | C15: 0 | D15: 0 | E15: 1 | F15: 0 | I15: 0 | J15: 0 | K15: 0 | L15: 0 | M15: 1 | N15: 0 | O15: 0 | P15: 0 | Q15: 0 | R15: 0 | S15: 0 | T15: 0 | U15: 1 | V15: 0 | W15: 0 | X15: 0 | Y15: 0 | Z15: 0 | AA15: 0 | AB15: 0 | AC15: 1 | AD15: 0 | AE15: 0 | AF15: 0 | AG15: 0 | AH15: 0 | AI15: 0 | AJ15: 0 | AK15: 1 | AL15: 0 | AM15: 0 | AN15: 0 | AO15: 0 | AP15: 0
B16: LV Sub HH Metered | C16: 0 | D16: 0 | E16: 0 | F16: 1 | I16: 0 | J16: 0 | K16: 0 | L16: 0 | M16: 0 | N16: 1 | O16: 0 | P16: 0 | Q16: 0 | R16: 0 | S16: 0 | T16: 0 | U16: 0 | V16: 1 | W16: 0 | X16: 0 | Y16: 0 | Z16: 0 | AA16: 0 | AB16: 0 | AC16: 0 | AD16: 1 | AE16: 0 | AF16: 0 | AG16: 0 | AH16: 0 | AI16: 0 | AJ16: 0 | AK16: 0 | AL16: 1 | AM16: 0 | AN16: 0 | AO16: 0 | AP16: 0
B17: LV Generation NHH or Aggregate HH | C17: 0 | D17: 0 | E17: 0 | I17: 0 | J17: 0 | K17: 0 | L17: 0 | M17: 0 | N17: 0 | O17: 0 | P17: 0 | Q17: 0 | R17: 0 | S17: 0 | T17: 0 | U17: 0 | V17: 0 | W17: 0 | X17: 0 | Y17: 0 | Z17: 0 | AA17: 0 | AB17: 0 | AC17: 0 | AD17: 0 | AE17: 0 | AF17: 0 | AG17: 0 | AH17: 0 | AI17: 0 | AJ17: 0 | AK17: 0 | AL17: 0 | AM17: 0 | AN17: 0 | AO17: 0 | AP17: 0
B18: LV Sub Generation NHH | C18: 0 | D18: 0 | E18: 0 | I18: 0 | J18: 0 | K18: 0 | L18: 0 | M18: 0 | N18: 0 | O18: 0 | P18: 0 | Q18: 0 | R18: 0 | S18: 0 | T18: 0 | U18: 0 | V18: 0 | W18: 0 | X18: 0 | Y18: 0 | Z18: 0 | AA18: 0 | AB18: 0 | AC18: 0 | AD18: 0 | AE18: 0 | AF18: 0 | AG18: 0 | AH18: 0 | AI18: 0 | AJ18: 0 | AK18: 0 | AL18: 0 | AM18: 0 | AN18: 0 | AO18: 0 | AP18: 0
B19: LV Generation Intermittent | C19: 0 | D19: 0 | E19: 0 | I19: 0 | J19: 0 | K19: 0 | L19: 0 | M19: 0 | N19: 0 | O19: 0 | P19: 0 | Q19: 0 | R19: 0 | S19: 0 | T19: 0 | U19: 0 | V19: 0 | W19: 0 | X19: 0 | Y19: 0 | Z19: 0 | AA19: 0 | AB19: 0 | AC19: 0 | AD19: 0 | AE19: 0 | AF19: 0 | AG19: 0 | AH19: 0 | AI19: 0 | AJ19: 0 | AK19: 0 | AL19: 0 | AM19: 0 | AN19: 0 | AO19: 0 | AP19: 0
B20: LV Generation Non-Intermittent | C20: 0 | D20: 0 | E20: 0 | I20: 0 | J20: 0 | K20: 0 | L20: 0 | M20: 0 | N20: 0 | O20: 0 | P20: 0 | Q20: 0 | R20: 0 | S20: 0 | T20: 0 | U20: 0 | V20: 0 | W20: 0 | X20: 0 | Y20: 0 | Z20: 0 | AA20: 0 | AB20: 0 | AC20: 0 | AD20: 0 | AE20: 0 | AF20: 0 | AG20: 0 | AH20: 0 | AI20: 0 | AJ20: 0 | AK20: 0 | AL20: 0 | AM20: 0 | AN20: 0 | AO20: 0 | AP20: 0
B21: LV Sub Generation Intermittent | C21: 0 | D21: 0 | E21: 0 | I21: 0 | J21: 0 | K21: 0 | L21: 0 | M21: 0 | N21: 0 | O21: 0 | P21: 0 | Q21: 0 | R21: 0 | S21: 0 | T21: 0 | U21: 0 | V21: 0 | W21: 0 | X21: 0 | Y21: 0 | Z21: 0 | AA21: 0 | AB21: 0 | AC21: 0 | AD21: 0 | AE21: 0 | AF21: 0 | AG21: 0 | AH21: 0 | AI21: 0 | AJ21: 0 | AK21: 0 | AL21: 0 | AM21: 0 | AN21: 0 | AO21: 0 | AP21: 0
B22: LV Sub Generation Non-Intermittent | C22: 0 | D22: 0 | E22: 0 | I22: 0 | J22: 0 | K22: 0 | L22: 0 | M22: 0 | N22: 0 | O22: 0 | P22: 0 | Q22: 0 | R22: 0 | S22: 0 | T22: 0 | U22: 0 | V22: 0 | W22: 0 | X22: 0 | Y22: 0 | Z22: 0 | AA22: 0 | AB22: 0 | AC22: 0 | AD22: 0 | AE22: 0 | AF22: 0 | AG22: 0 | AH22: 0 | AI22: 0 | AJ22: 0 | AK22: 0 | AL22: 0 | AM22: 0 | AN22: 0 | AO22: 0 | AP22: 0
B24: 1026. Matrix of applicability of LV service models to unmetered tariffs
B26: Source: service models
B27: Proportion of service model involved in connecting load of 1 MWh/year | C27: ='CDCM Forecast Data'!$E$11 -> 2015/16 | K27: ='CDCM Forecast Data'!$F$11 -> 2016/17 | S27: ='CDCM Forecast Data'!$G$11 -> 2017/18 | AA27: ='CDCM Forecast Data'!$H$11 -> 2018/19 | AI27: ='CDCM Forecast Data'!$I$11 -> 2019/20
C28: LV service model 1 | D28: LV service model 2 | E28: LV service model 3 | F28: LV service model 4 | G28: LV service model 5 | H28: LV service model 6 | I28: LV service model 7 | J28: LV service model 8 | K28: LV service model 1 | L28: LV service model 2 | M28: LV service model 3 | N28: LV service model 4 | O28: LV service model 5 | P28: LV service model 6 | Q28: LV service model 7 | R28: LV service model 8 | S28: LV service model 1 | T28: LV service model 2 | U28: LV service model 3 | V28: LV service model 4 | W28: LV service model 5 | X28: LV service model 6 | Y28: LV service model 7 | Z28: LV service model 8 | AA28: LV service model 1 | AB28: LV service model 2 | AC28: LV service model 3 | AD28: LV service model 4 | AE28: LV service model 5 | AF28: LV service model 6 | AG28: LV service model 7 | AH28: LV service model 8 | AI28: LV service model 1 | AJ28: LV service model 2 | AK28: LV service model 3 | AL28: LV service model 4 | AM28: LV service model 5 | AN28: LV service model 6 | AO28: LV service model 7 | AP28: LV service model 8
B29: All LV unmetered tariffs | C29: 0 | D29: 0 | E29: 0 | F29: 0 | G29: 2.874359556 | I29: 0 | J29: 0 | K29: =C29 -> 0 | L29: 0 | M29: 0 | N29: 0 | O29: 2.872632768 | P29: 0 | Q29: 0 | R29: 0 | S29: =K29 -> 0 | T29: =L29 -> 0 | U29: =M29 -> 0 | V29: =N29 -> 0 | W29: =O29 -> 2.872632768 | X29: =P29 -> 0 | Y29: =Q29 -> 0 | Z29: =R29 -> 0 | AA29: =S29 -> 0 | AB29: =T29 -> 0 | AC29: =U29 -> 0 | AD29: =V29 -> 0 | AE29: =W29 -> 2.872632768 | AF29: =X29 -> 0 | AG29: =Y29 -> 0 | AH29: =Z29 -> 0 | AI29: =AA29 -> 0 | AJ29: =AB29 -> 0 | AK29: =AC29 -> 0 | AL29: =AD29 -> 0 | AM29: =AE29 -> 2.872632768 | AN29: =AF29 -> 0 | AO29: =AG29 -> 0 | AP29: =AH29 -> 0
B31: 1028. Matrix of applicability of HV service models to tariffs with fixed charges
C32: ='CDCM Forecast Data'!$E$11 -> 2015/16 | H32: =+'CDCM Forecast Data'!F11 -> 2016/17 | M32: =+'CDCM Forecast Data'!G11 -> 2017/18 | R32: =+'CDCM Forecast Data'!H11 -> 2018/19 | W32: =+'CDCM Forecast Data'!I11 -> 2019/20
C33: HV service model 1 | D33: HV service model 2 | E33: HV service model 3 | F33: HV service model 4 | G33: HV service model 5 | H33: HV service model 1 | I33: HV service model 2 | J33: HV service model 3 | K33: HV service model 4 | L33: HV service model 5 | M33: HV service model 1 | N33: HV service model 2 | O33: HV service model 3 | P33: HV service model 4 | Q33: HV service model 5 | R33: HV service model 1 | S33: HV service model 2 | T33: HV service model 3 | U33: HV service model 4 | V33: HV service model 5 | W33: HV service model 1 | X33: HV service model 2 | Y33: HV service model 3 | Z33: HV service model 4 | AA33: HV service model 5
B34: HV Medium Non-Domestic | C34: 0 | D34: 1 | E34: 0 | F34: 0 | G34: 0 | H34: =C34 -> 0 | I34: =D34 -> 1 | J34: =E34 -> 0 | K34: =F34 -> 0 | L34: =G34 -> 0 | M34: =H34 -> 0 | N34: =I34 -> 1 | O34: =J34 -> 0 | P34: =K34 -> 0 | Q34: =L34 -> 0 | R34: =M34 -> 0 | S34: =N34 -> 1 | T34: =O34 -> 0 | U34: =P34 -> 0 | V34: =Q34 -> 0 | W34: =R34 -> 0 | X34: =S34 -> 1 | Y34: =T34 -> 0 | Z34: =U34 -> 0 | AA34: =V34 -> 0
B35: HV HH Metered | C35: 0 | D35: 1 | E35: 0 | F35: 0 | G35: 0 | H35: 0 | I35: 1 | J35: 0 | K35: 0 | L35: 0 | M35: 0 | N35: 1 | O35: 0 | P35: 0 | Q35: 0 | R35: 0 | S35: 1 | T35: 0 | U35: 0 | V35: 0 | W35: 0 | X35: 1 | Y35: 0 | Z35: 0 | AA35: 0
B36: HV Generation Intermittent | C36: 0 | D36: 0 | E36: 1 | F36: 0 | G36: 0 | H36: 0 | I36: 0 | J36: 1 | K36: 0 | L36: 0 | M36: 0 | N36: 0 | O36: 1 | P36: 0 | Q36: 0 | R36: 0 | S36: 0 | T36: 1 | U36: 0 | V36: 0 | W36: 0 | X36: 0 | Y36: 1 | Z36: 0 | AA36: 0
B37: HV Generation Non-Intermittent | C37: 0 | D37: 0 | E37: 1 | F37: 0 | G37: 0 | H37: 0 | I37: 0 | J37: 1 | K37: 0 | L37: 0 | M37: 0 | N37: 0 | O37: 1 | P37: 0 | Q37: 0 | R37: 0 | S37: 0 | T37: 1 | U37: 0 | V37: 0 | W37: 0 | X37: 0 | Y37: 1 | Z37: 0 | AA37: 0

Sheet CDCM Volume Forecasts
G3: Growth Rates (%)
G4: VOLUME - RED BAND | L4: VOLUME - AMBER BAND | P4: VOLUME - GREEN BAND | T4: CUSTOMER NUMBERS | X4: IMPORT CAPACITY | AB4: REACTIVE POWER
G5: Y | H5: Y + 1 | I5: Y + 2 | J5: Y + 3 | K5: Y + 4 | L5: Y + 1 | M5: Y + 2 | N5: Y + 3 | O5: Y + 4 | P5: Y + 1 | Q5: Y + 2 | R5: Y + 3 | S5: Y + 4 | T5: Y + 1 | U5: Y + 2 | V5: Y + 3 | W5: Y + 4 | X5: Y + 1 | Y5: Y + 2 | Z5: Y + 3 | AA5: Y + 4 | AB5: Y + 1 | AC5: Y + 2 | AD5: Y + 3 | AE5: Y + 4
E6: Customer Category | F6: Description | G6: =+'CDCM Forecast Data'!E11 -> 2015/16 | H6: =+'CDCM Forecast Data'!F11 -> 2016/17 | I6: =+'CDCM Forecast Data'!G11 -> 2017/18 | J6: =+'CDCM Forecast Data'!H11 -> 2018/19 | K6: =+'CDCM Forecast Data'!I11 -> 2019/20 | L6: =+H6 -> 2016/17 | M6: 2017/18 | N6: 2018/19 | O6: 2019/20 | P6: 2016/17 | Q6: 2017/18 | R6: 2018/19 | S6: 2019/20 | T6: 2016/17 | U6: 2017/18 | V6: 2018/19 | W6: 2019/20 | X6: 2016/17 | Y6: 2017/18 | Z6: 2018/19 | AA6: 2019/20 | AB6: 2016/17 | AC6: 2017/18 | AD6: 2018/19 | AE6: 2019/20 | AF6: Assumptions
E7: 1 | F7: Aggregated demand | H7: -0.01 | I7: -0.01 | J7: -0.01 | K7: -0.01 | L7: -0.01 | M7: -0.01 | N7: -0.01 | O7: -0.01 | P7: -0.01 | Q7: -0.01 | R7: -0.01 | S7: -0.01 | T7: 0.0012 | U7: 0.0012 | V7: 0.0012 | W7: 0.0012 | X7: -0.01 | Y7: -0.01 | Z7: -0.01 | AA7: -0.01 | AB7: 0 | AC7: 0 | AD7: 0 | AE7: 0
E8: 2 | F8: Site-specific demand | H8: -0.01 | I8: -0.01 | J8: -0.01 | K8: -0.01 | L8: -0.01 | M8: -0.01 | N8: -0.01 | O8: -0.01 | P8: -0.01 | Q8: -0.01 | R8: -0.01 | S8: -0.01 | T8: 0.0012 | U8: 0.0012 | V8: 0.0012 | W8: 0.0012 | X8: -0.01 | Y8: -0.01 | Z8: -0.01 | AA8: -0.01 | AB8: 0 | AC8: 0 | AD8: 0 | AE8: 0
E9: 3 | F9: Not used
E10: 4 | F10: Generation | H10: 0.01 | I10: 0.01 | J10: 0.01 | K10: 0.01 | L10: 0.01 | M10: 0.01 | N10: 0.01 | O10: 0.01 | P10: 0.01 | Q10: 0.01 | R10: 0.01 | S10: 0.01 | T10: 0.0012 | U10: 0.0012 | V10: 0.0012 | W10: 0.0012 | X10: 0.01 | Y10: 0.01 | Z10: 0.01 | AA10: 0.01 | AB10: 0 | AC10: 0 | AD10: 0 | AE10: 0
E11: 5 | F11: Not used
E12: 6 | F12: Not used
E13: 7 | F13: Not used
E14: 8 | F14: Not used
E15: 9 | F15: Not used
E16: 10 | F16: Not used
E18: Summary Data | F18: Year | G18: =G6 -> 2015/16 | H18: =H6 -> 2016/17 | I18: =I6 -> 2017/18 | J18: =J6 -> 2018/19 | K18: =K6 -> 2019/20
F19: Total Volume | G19: =SUM(D28:F123) -> 20315929.51 | H19: =SUM(J28:L123) -> 20126456.18 | I19: =SUM(P28:R123) -> 19939014.45 | J19: =SUM(V28:X123) -> 19753585.36 | K19: =SUM(AB28:AD123) -> 19570150.17
F20: No. of MPANs | G20: =SUM(G28:G123) -> 2391425 | H20: =SUM(M28:M123) -> 2394294.71 | I20: =SUM(S28:S123) -> 2397167.864 | J20: =SUM(Y28:Y123) -> 2400044.465 | K20: =SUM(AE28:AE123) -> 2402924.518
F21: Total Import Capacity | G21: =SUM(H28:H123) -> 3263208.314 | H21: =SUM(N28:N123) -> 3230576.231 | I21: =SUM(T28:T123) -> 3198270.469 | J21: =SUM(Z28:Z123) -> 3166287.764 | K21: =SUM(AF28:AF123) -> 3134624.886
F22: Total Reactive | G22: =SUM(I28:I123) -> 623237.9211 | H22: =SUM(O28:O123) -> 623237.9211 | I22: =SUM(U28:U123) -> 623237.9211 | J22: =SUM(AA28:AA123) -> 623237.9211 | K22: =SUM(AG28:AG123) -> 623237.9211
C25: 1053. Volume forecasts for the charging year: | D25: =G6& " - ("&G5&")" -> 2015/16 - (Y) | J25: =H6& " - ("&H5&")" -> 2016/17 - (Y + 1) | P25: =I6& " - ("&I5&")" -> 2017/18 - (Y + 2) | V25: =J6& " - ("&J5&")" -> 2018/19 - (Y + 3) | AB25: =K6& " - ("&K5&")" -> 2019/20 - (Y + 4)
B26: Customer Category | C26: Tariff | D26: Rate 1 units (MWh) | E26: Rate 2 units (MWh) | F26: Rate 3 units (MWh) | G26: MPANs | H26: Import capacity (kVA) | I26: Reactive power units (MVArh) | J26: Rate 1 units (MWh) | K26: Rate 2 units (MWh) | L26: Rate 3 units (MWh) | M26: MPANs | N26: Import capacity (kVA) | O26: Reactive power units (MVArh) | P26: Rate 1 units (MWh) | Q26: Rate 2 units (MWh) | R26: Rate 3 units (MWh) | S26: MPANs | T26: Import capacity (kVA) | U26: Reactive power units (MVArh) | V26: Rate 1 units (MWh) | W26: Rate 2 units (MWh) | X26: Rate 3 units (MWh) | Y26: MPANs | Z26: Import capacity (kVA) | AA26: Reactive power units (MVArh) | AB26: Rate 1 units (MWh) | AC26: Rate 2 units (MWh) | AD26: Rate 3 units (MWh) | AE26: MPANs | AF26: Import capacity (kVA) | AG26: Reactive power units (MVArh)
A27: 1 | C27: > Domestic Unrestricted
A28: =A27+1 -> 2 | B28: 1 | C28: Domestic Unrestricted | D28: 6342407.374 | G28: 1988141 | J28: =IF(D28,((VLOOKUP($B28,$E$7:$AE$16,4)+1)*D28),) -> 6278983.3 | K28: =IF(E28,((VLOOKUP($B28,$E$7:$AE$16,8)+1)*E28),) -> 0 | L28: =IF(F28,((VLOOKUP($B28,$E$7:$AE$16,12)+1)*F28),) -> 0 | M28: =IF(G28,((VLOOKUP($B28,$E$7:$AE$16,16)+1)*G28),) -> 1990526.769 | N28: =IF(H28,((VLOOKUP($B28,$E$7:$AE$16,20)+1)*H28),) -> 0 | O28: =IF(I28,((VLOOKUP($B28,$E$7:$AE$16,24)+1)*I28),) -> 0 | P28: =IF(D28,((VLOOKUP($B28,$E$7:$AE$16,5)+1)*J28),) -> 6216193.467 | Q28: =IF(E28,((VLOOKUP($B28,$E$7:$AE$16,5+4)+1)*K28),) -> 0 | R28: =IF(F28,((VLOOKUP($B28,$E$7:$AE$16,5+8)+1)*L28),) -> 0 | S28: =IF(G28,((VLOOKUP($B28,$E$7:$AE$16,5+12)+1)*M28),) -> 1992915.401 | T28: =IF(H28,((VLOOKUP($B28,$E$7:$AE$16,5+16)+1)*N28),) -> 0 | U28: =IF(I28,((VLOOKUP($B28,$E$7:$AE$16,5+20)+1)*O28),) -> 0 | V28: =IF(D28,((VLOOKUP($B28,$E$7:$AE$16,6)+1)*P28),) -> 6154031.532 | W28: =IF(E28,((VLOOKUP($B28,$E$7:$AE$16,6+4)+1)*Q28),) -> 0 | X28: =IF(F28,((VLOOKUP($B28,$E$7:$AE$16,6+8)+1)*R28),) -> 0 | Y28: =IF(G28,((VLOOKUP($B28,$E$7:$AE$16,6+12)+1)*S28),) -> 1995306.9 | Z28: =IF(H28,((VLOOKUP($B28,$E$7:$AE$16,6+16)+1)*T28),) -> 0 | AA28: =IF(I28,((VLOOKUP($B28,$E$7:$AE$16,6+20)+1)*U28),) -> 0 | AB28: =IF(D28,((VLOOKUP($B28,$E$7:$AE$16,7)+1)*V28),) -> 6092491.217 | AC28: =IF(E28,((VLOOKUP($B28,$E$7:$AE$16,7+4)+1)*W28),) -> 0 | AD28: =IF(F28,((VLOOKUP($B28,$E$7:$AE$16,7+8)+1)*X28),) -> 0 | AE28: =IF(G28,((VLOOKUP($B28,$E$7:$AE$16,7+12)+1)*Y28),) -> 1997701.268 | AF28: =IF(H28,((VLOOKUP($B28,$E$7:$AE$16,7+16)+1)*Z28),) -> 0 | AG28: =IF(I28,((VLOOKUP($B28,$E$7:$AE$16,7+20)+1)*AA28),) -> 0
A29: =A28+1 -> 3 | B29: 1 | C29: LDNO LV: Domestic Unrestricted | D29: 55033.65405 | G29: 17735 | J29: =IF(D29,((VLOOKUP($B29,$E$7:$AE$16,4)+1)*D29),) -> 54483.31751 | K29: =IF(E29,((VLOOKUP($B29,$E$7:$AE$16,8)+1)*E29),) -> 0 | L29: =IF(F29,((VLOOKUP($B29,$E$7:$AE$16,12)+1)*F29),) -> 0 | M29: =IF(G29,((VLOOKUP($B29,$E$7:$AE$16,16)+1)*G29),) -> 17756.282 | N29: =IF(H29,((VLOOKUP($B29,$E$7:$AE$16,20)+1)*H29),) -> 0 | O29: =IF(I29,((VLOOKUP($B29,$E$7:$AE$16,24)+1)*I29),) -> 0 | P29: =IF(D29,((VLOOKUP($B29,$E$7:$AE$16,5)+1)*J29),) -> 53938.48434 | Q29: =IF(E29,((VLOOKUP($B29,$E$7:$AE$16,5+4)+1)*K29),) -> 0 | R29: =IF(F29,((VLOOKUP($B29,$E$7:$AE$16,5+8)+1)*L29),) -> 0 | S29: =IF(G29,((VLOOKUP($B29,$E$7:$AE$16,5+12)+1)*M29),) -> 17777.58954 | T29: =IF(H29,((VLOOKUP($B29,$E$7:$AE$16,5+16)+1)*N29),) -> 0 | U29: =IF(I29,((VLOOKUP($B29,$E$7:$AE$16,5+20)+1)*O29),) -> 0 | V29: =IF(D29,((VLOOKUP($B29,$E$7:$AE$16,6)+1)*P29),) -> 53399.09949 | W29: =IF(E29,((VLOOKUP($B29,$E$7:$AE$16,6+4)+1)*Q29),) -> 0 | X29: =IF(F29,((VLOOKUP($B29,$E$7:$AE$16,6+8)+1)*R29),) -> 0 | Y29: =IF(G29,((VLOOKUP($B29,$E$7:$AE$16,6+12)+1)*S29),) -> 17798.92265 | Z29: =IF(H29,((VLOOKUP($B29,$E$7:$AE$16,6+16)+1)*T29),) -> 0 | AA29: =IF(I29,((VLOOKUP($B29,$E$7:$AE$16,6+20)+1)*U29),) -> 0 | AB29: =IF(D29,((VLOOKUP($B29,$E$7:$AE$16,7)+1)*V29),) -> 52865.1085 | AC29: =IF(E29,((VLOOKUP($B29,$E$7:$AE$16,7+4)+1)*W29),) -> 0 | AD29: =IF(F29,((VLOOKUP($B29,$E$7:$AE$16,7+8)+1)*X29),) -> 0 | AE29: =IF(G29,((VLOOKUP($B29,$E$7:$AE$16,7+12)+1)*Y29),) -> 17820.28135 | AF29: =IF(H29,((VLOOKUP($B29,$E$7:$AE$16,7+16)+1)*Z29),) -> 0 | AG29: =IF(I29,((VLOOKUP($B29,$E$7:$AE$16,7+20)+1)*AA29),) -> 0
A30: 4 | B30: 1 | C30: LDNO HV: Domestic Unrestricted | D30: 31916.31155 | G30: 9551 | J30: =IF(D30,((VLOOKUP($B30,$E$7:$AE$16,4)+1)*D30),) -> 31597.14843 | K30: =IF(E30,((VLOOKUP($B30,$E$7:$AE$16,8)+1)*E30),) -> 0 | L30: =IF(F30,((VLOOKUP($B30,$E$7:$AE$16,12)+1)*F30),) -> 0 | M30: =IF(G30,((VLOOKUP($B30,$E$7:$AE$16,16)+1)*G30),) -> 9562.4612 | N30: =IF(H30,((VLOOKUP($B30,$E$7:$AE$16,20)+1)*H30),) -> 0 | O30: =IF(I30,((VLOOKUP($B30,$E$7:$AE$16,24)+1)*I30),) -> 0 | P30: =IF(D30,((VLOOKUP($B30,$E$7:$AE$16,5)+1)*J30),) -> 31281.17695 | Q30: =IF(E30,((VLOOKUP($B30,$E$7:$AE$16,5+4)+1)*K30),) -> 0 | R30: =IF(F30,((VLOOKUP($B30,$E$7:$AE$16,5+8)+1)*L30),) -> 0 | S30: =IF(G30,((VLOOKUP($B30,$E$7:$AE$16,5+12)+1)*M30),) -> 9573.936153 | T30: =IF(H30,((VLOOKUP($B30,$E$7:$AE$16,5+16)+1)*N30),) -> 0 | U30: =IF(I30,((VLOOKUP($B30,$E$7:$AE$16,5+20)+1)*O30),) -> 0 | V30: =IF(D30,((VLOOKUP($B30,$E$7:$AE$16,6)+1)*P30),) -> 30968.36518 | W30: =IF(E30,((VLOOKUP($B30,$E$7:$AE$16,6+4)+1)*Q30),) -> 0 | X30: =IF(F30,((VLOOKUP($B30,$E$7:$AE$16,6+8)+1)*R30),) -> 0 | Y30: =IF(G30,((VLOOKUP($B30,$E$7:$AE$16,6+12)+1)*S30),) -> 9585.424877 | Z30: =IF(H30,((VLOOKUP($B30,$E$7:$AE$16,6+16)+1)*T30),) -> 0 | AA30: =IF(I30,((VLOOKUP($B30,$E$7:$AE$16,6+20)+1)*U30),) -> 0 | AB30: =IF(D30,((VLOOKUP($B30,$E$7:$AE$16,7)+1)*V30),) -> 30658.68153 | AC30: =IF(E30,((VLOOKUP($B30,$E$7:$AE$16,7+4)+1)*W30),) -> 0 | AD30: =IF(F30,((VLOOKUP($B30,$E$7:$AE$16,7+8)+1)*X30),) -> 0 | AE30: =IF(G30,((VLOOKUP($B30,$E$7:$AE$16,7+12)+1)*Y30),) -> 9596.927387 | AF30: =IF(H30,((VLOOKUP($B30,$E$7:$AE$16,7+16)+1)*Z30),) -> 0 | AG30: =IF(I30,((VLOOKUP($B30,$E$7:$AE$16,7+20)+1)*AA30),) -> 0
A31: 5 | C31: > Domestic Two Rate
A32: 6 | B32: 1 | C32: Domestic Two Rate | D32: 598065.3452 | E32: 468502.2944 | G32: 186300 | J32: =IF(D32,((VLOOKUP($B32,$E$7:$AE$16,4)+1)*D32),) -> 592084.6918 | K32: =IF(E32,((VLOOKUP($B32,$E$7:$AE$16,8)+1)*E32),) -> 463817.2715 | L32: =IF(F32,((VLOOKUP($B32,$E$7:$AE$16,12)+1)*F32),) -> 0 | M32: =IF(G32,((VLOOKUP($B32,$E$7:$AE$16,16)+1)*G32),) -> 186523.56 | N32: =IF(H32,((VLOOKUP($B32,$E$7:$AE$16,20)+1)*H32),) -> 0 | O32: =IF(I32,((VLOOKUP($B32,$E$7:$AE$16,24)+1)*I32),) -> 0 | P32: =IF(D32,((VLOOKUP($B32,$E$7:$AE$16,5)+1)*J32),) -> 586163.8449 | Q32: =IF(E32,((VLOOKUP($B32,$E$7:$AE$16,5+4)+1)*K32),) -> 459179.0988 | R32: =IF(F32,((VLOOKUP($B32,$E$7:$AE$16,5+8)+1)*L32),) -> 0 | S32: =IF(G32,((VLOOKUP($B32,$E$7:$AE$16,5+12)+1)*M32),) -> 186747.3883 | T32: =IF(H32,((VLOOKUP($B32,$E$7:$AE$16,5+16)+1)*N32),) -> 0 | U32: =IF(I32,((VLOOKUP($B32,$E$7:$AE$16,5+20)+1)*O32),) -> 0 | V32: =IF(D32,((VLOOKUP($B32,$E$7:$AE$16,6)+1)*P32),) -> 580302.2064 | W32: =IF(E32,((VLOOKUP($B32,$E$7:$AE$16,6+4)+1)*Q32),) -> 454587.3078 | X32: =IF(F32,((VLOOKUP($B32,$E$7:$AE$16,6+8)+1)*R32),) -> 0 | Y32: =IF(G32,((VLOOKUP($B32,$E$7:$AE$16,6+12)+1)*S32),) -> 186971.4851 | Z32: =IF(H32,((VLOOKUP($B32,$E$7:$AE$16,6+16)+1)*T32),) -> 0 | AA32: =IF(I32,((VLOOKUP($B32,$E$7:$AE$16,6+20)+1)*U32),) -> 0 | AB32: =IF(D32,((VLOOKUP($B32,$E$7:$AE$16,7)+1)*V32),) -> 574499.1843 | AC32: =IF(E32,((VLOOKUP($B32,$E$7:$AE$16,7+4)+1)*W32),) -> 450041.4347 | AD32: =IF(F32,((VLOOKUP($B32,$E$7:$AE$16,7+8)+1)*X32),) -> 0 | AE32: =IF(G32,((VLOOKUP($B32,$E$7:$AE$16,7+12)+1)*Y32),) -> 187195.8509 | AF32: =IF(H32,((VLOOKUP($B32,$E$7:$AE$16,7+16)+1)*Z32),) -> 0 | AG32: =IF(I32,((VLOOKUP($B32,$E$7:$AE$16,7+20)+1)*AA32),) -> 0
A33: 7 | B33: 1 | C33: LDNO LV: Domestic Two Rate | D33: 831.56368 | E33: 322.5247782 | G33: 356 | J33: =IF(D33,((VLOOKUP($B33,$E$7:$AE$16,4)+1)*D33),) -> 823.2480432 | K33: =IF(E33,((VLOOKUP($B33,$E$7:$AE$16,8)+1)*E33),) -> 319.2995304 | L33: =IF(F33,((VLOOKUP($B33,$E$7:$AE$16,12)+1)*F33),) -> 0 | M33: =IF(G33,((VLOOKUP($B33,$E$7:$AE$16,16)+1)*G33),) -> 356.4272 | N33: =IF(H33,((VLOOKUP($B33,$E$7:$AE$16,20)+1)*H33),) -> 0 | O33: =IF(I33,((VLOOKUP($B33,$E$7:$AE$16,24)+1)*I33),) -> 0 | P33: =IF(D33,((VLOOKUP($B33,$E$7:$AE$16,5)+1)*J33),) -> 815.0155628 | Q33: =IF(E33,((VLOOKUP($B33,$E$7:$AE$16,5+4)+1)*K33),) -> 316.1065351 | R33: =IF(F33,((VLOOKUP($B33,$E$7:$AE$16,5+8)+1)*L33),) -> 0 | S33: =IF(G33,((VLOOKUP($B33,$E$7:$AE$16,5+12)+1)*M33),) -> 356.8549126 | T33: =IF(H33,((VLOOKUP($B33,$E$7:$AE$16,5+16)+1)*N33),) -> 0 | U33: =IF(I33,((VLOOKUP($B33,$E$7:$AE$16,5+20)+1)*O33),) -> 0 | V33: =IF(D33,((VLOOKUP($B33,$E$7:$AE$16,6)+1)*P33),) -> 806.8654072 | W33: =IF(E33,((VLOOKUP($B33,$E$7:$AE$16,6+4)+1)*Q33),) -> 312.9454698 | X33: =IF(F33,((VLOOKUP($B33,$E$7:$AE$16,6+8)+1)*R33),) -> 0 | Y33: =IF(G33,((VLOOKUP($B33,$E$7:$AE$16,6+12)+1)*S33),) -> 357.2831385 | Z33: =IF(H33,((VLOOKUP($B33,$E$7:$AE$16,6+16)+1)*T33),) -> 0 | AA33: =IF(I33,((VLOOKUP($B33,$E$7:$AE$16,6+20)+1)*U33),) -> 0 | AB33: =IF(D33,((VLOOKUP($B33,$E$7:$AE$16,7)+1)*V33),) -> 798.7967531 | AC33: =IF(E33,((VLOOKUP($B33,$E$7:$AE$16,7+4)+1)*W33),) -> 309.8160151 | AD33: =IF(F33,((VLOOKUP($B33,$E$7:$AE$16,7+8)+1)*X33),) -> 0 | AE33: =IF(G33,((VLOOKUP($B33,$E$7:$AE$16,7+12)+1)*Y33),) -> 357.7118783 | AF33: =IF(H33,((VLOOKUP($B33,$E$7:$AE$16,7+16)+1)*Z33),) -> 0 | AG33: =IF(I33,((VLOOKUP($B33,$E$7:$AE$16,7+20)+1)*AA33),) -> 0
A34: 8 | B34: 1 | C34: LDNO HV: Domestic Two Rate | D34: 2631.0999 | E34: 2089.870385 | G34: 994 | J34: =IF(D34,((VLOOKUP($B34,$E$7:$AE$16,4)+1)*D34),) -> 2604.788901 | K34: =IF(E34,((VLOOKUP($B34,$E$7:$AE$16,8)+1)*E34),) -> 2068.971681 | L34: =IF(F34,((VLOOKUP($B34,$E$7:$AE$16,12)+1)*F34),) -> 0 | M34: =IF(G34,((VLOOKUP($B34,$E$7:$AE$16,16)+1)*G34),) -> 995.1928 | N34: =IF(H34,((VLOOKUP($B34,$E$7:$AE$16,20)+1)*H34),) -> 0 | O34: =IF(I34,((VLOOKUP($B34,$E$7:$AE$16,24)+1)*I34),) -> 0 | P34: =IF(D34,((VLOOKUP($B34,$E$7:$AE$16,5)+1)*J34),) -> 2578.741012 | Q34: =IF(E34,((VLOOKUP($B34,$E$7:$AE$16,5+4)+1)*K34),) -> 2048.281965 | R34: =IF(F34,((VLOOKUP($B34,$E$7:$AE$16,5+8)+1)*L34),) -> 0 | S34: =IF(G34,((VLOOKUP($B34,$E$7:$AE$16,5+12)+1)*M34),) -> 996.3870314 | T34: =IF(H34,((VLOOKUP($B34,$E$7:$AE$16,5+16)+1)*N34),) -> 0 | U34: =IF(I34,((VLOOKUP($B34,$E$7:$AE$16,5+20)+1)*O34),) -> 0 | V34: =IF(D34,((VLOOKUP($B34,$E$7:$AE$16,6)+1)*P34),) -> 2552.953602 | W34: =IF(E34,((VLOOKUP($B34,$E$7:$AE$16,6+4)+1)*Q34),) -> 2027.799145 | X34: =IF(F34,((VLOOKUP($B34,$E$7:$AE$16,6+8)+1)*R34),) -> 0 | Y34: =IF(G34,((VLOOKUP($B34,$E$7:$AE$16,6+12)+1)*S34),) -> 997.5826958 | Z34: =IF(H34,((VLOOKUP($B34,$E$7:$AE$16,6+16)+1)*T34),) -> 0 | AA34: =IF(I34,((VLOOKUP($B34,$E$7:$AE$16,6+20)+1)*U34),) -> 0 | AB34: =IF(D34,((VLOOKUP($B34,$E$7:$AE$16,7)+1)*V34),) -> 2527.424066 | AC34: =IF(E34,((VLOOKUP($B34,$E$7:$AE$16,7+4)+1)*W34),) -> 2007.521154 | AD34: =IF(F34,((VLOOKUP($B34,$E$7:$AE$16,7+8)+1)*X34),) -> 0 | AE34: =IF(G34,((VLOOKUP($B34,$E$7:$AE$16,7+12)+1)*Y34),) -> 998.779795 | AF34: =IF(H34,((VLOOKUP($B34,$E$7:$AE$16,7+16)+1)*Z34),) -> 0 | AG34: =IF(I34,((VLOOKUP($B34,$E$7:$AE$16,7+20)+1)*AA34),) -> 0
A35: 9 | C35: > Domestic Off Peak (related MPAN)
A36: 10 | B36: 1 | C36: Domestic Off Peak (related MPAN) | D36: 21970.22791 | G36: 6309 | J36: =IF(D36,((VLOOKUP($B36,$E$7:$AE$16,4)+1)*D36),) -> 21750.52563 | K36: =IF(E36,((VLOOKUP($B36,$E$7:$AE$16,8)+1)*E36),) -> 0 | L36: =IF(F36,((VLOOKUP($B36,$E$7:$AE$16,12)+1)*F36),) -> 0 | M36: =IF(G36,((VLOOKUP($B36,$E$7:$AE$16,16)+1)*G36),) -> 6316.5708 | N36: =IF(H36,((VLOOKUP($B36,$E$7:$AE$16,20)+1)*H36),) -> 0 | O36: =IF(I36,((VLOOKUP($B36,$E$7:$AE$16,24)+1)*I36),) -> 0 | P36: =IF(D36,((VLOOKUP($B36,$E$7:$AE$16,5)+1)*J36),) -> 21533.02038 | Q36: =IF(E36,((VLOOKUP($B36,$E$7:$AE$16,5+4)+1)*K36),) -> 0 | R36: =IF(F36,((VLOOKUP($B36,$E$7:$AE$16,5+8)+1)*L36),) -> 0 | S36: =IF(G36,((VLOOKUP($B36,$E$7:$AE$16,5+12)+1)*M36),) -> 6324.150685 | T36: =IF(H36,((VLOOKUP($B36,$E$7:$AE$16,5+16)+1)*N36),) -> 0 | U36: =IF(I36,((VLOOKUP($B36,$E$7:$AE$16,5+20)+1)*O36),) -> 0 | V36: =IF(D36,((VLOOKUP($B36,$E$7:$AE$16,6)+1)*P36),) -> 21317.69017 | W36: =IF(E36,((VLOOKUP($B36,$E$7:$AE$16,6+4)+1)*Q36),) -> 0 | X36: =IF(F36,((VLOOKUP($B36,$E$7:$AE$16,6+8)+1)*R36),) -> 0 | Y36: =IF(G36,((VLOOKUP($B36,$E$7:$AE$16,6+12)+1)*S36),) -> 6331.739666 | Z36: =IF(H36,((VLOOKUP($B36,$E$7:$AE$16,6+16)+1)*T36),) -> 0 | AA36: =IF(I36,((VLOOKUP($B36,$E$7:$AE$16,6+20)+1)*U36),) -> 0 | AB36: =IF(D36,((VLOOKUP($B36,$E$7:$AE$16,7)+1)*V36),) -> 21104.51327 | AC36: =IF(E36,((VLOOKUP($B36,$E$7:$AE$16,7+4)+1)*W36),) -> 0 | AD36: =IF(F36,((VLOOKUP($B36,$E$7:$AE$16,7+8)+1)*X36),) -> 0 | AE36: =IF(G36,((VLOOKUP($B36,$E$7:$AE$16,7+12)+1)*Y36),) -> 6339.337753 | AF36: =IF(H36,((VLOOKUP($B36,$E$7:$AE$16,7+16)+1)*Z36),) -> 0 | AG36: =IF(I36,((VLOOKUP($B36,$E$7:$AE$16,7+20)+1)*AA36),) -> 0
A37: 11 | B37: 1 | C37: LDNO LV: Domestic Off Peak (related MPAN) | D37: 0 | G37: 0 | J37: =IF(D37,((VLOOKUP($B37,$E$7:$AE$16,4)+1)*D37),) -> 0 | K37: =IF(E37,((VLOOKUP($B37,$E$7:$AE$16,8)+1)*E37),) -> 0 | L37: =IF(F37,((VLOOKUP($B37,$E$7:$AE$16,12)+1)*F37),) -> 0 | M37: =IF(G37,((VLOOKUP($B37,$E$7:$AE$16,16)+1)*G37),) -> 0 | N37: =IF(H37,((VLOOKUP($B37,$E$7:$AE$16,20)+1)*H37),) -> 0 | O37: =IF(I37,((VLOOKUP($B37,$E$7:$AE$16,24)+1)*I37),) -> 0 | P37: =IF(D37,((VLOOKUP($B37,$E$7:$AE$16,5)+1)*J37),) -> 0 | Q37: =IF(E37,((VLOOKUP($B37,$E$7:$AE$16,5+4)+1)*K37),) -> 0 | R37: =IF(F37,((VLOOKUP($B37,$E$7:$AE$16,5+8)+1)*L37),) -> 0 | S37: =IF(G37,((VLOOKUP($B37,$E$7:$AE$16,5+12)+1)*M37),) -> 0 | T37: =IF(H37,((VLOOKUP($B37,$E$7:$AE$16,5+16)+1)*N37),) -> 0 | U37: =IF(I37,((VLOOKUP($B37,$E$7:$AE$16,5+20)+1)*O37),) -> 0 | V37: =IF(D37,((VLOOKUP($B37,$E$7:$AE$16,6)+1)*P37),) -> 0 | W37: =IF(E37,((VLOOKUP($B37,$E$7:$AE$16,6+4)+1)*Q37),) -> 0 | X37: =IF(F37,((VLOOKUP($B37,$E$7:$AE$16,6+8)+1)*R37),) -> 0 | Y37: =IF(G37,((VLOOKUP($B37,$E$7:$AE$16,6+12)+1)*S37),) -> 0 | Z37: =IF(H37,((VLOOKUP($B37,$E$7:$AE$16,6+16)+1)*T37),) -> 0 | AA37: =IF(I37,((VLOOKUP($B37,$E$7:$AE$16,6+20)+1)*U37),) -> 0 | AB37: =IF(D37,((VLOOKUP($B37,$E$7:$AE$16,7)+1)*V37),) -> 0 | AC37: =IF(E37,((VLOOKUP($B37,$E$7:$AE$16,7+4)+1)*W37),) -> 0 | AD37: =IF(F37,((VLOOKUP($B37,$E$7:$AE$16,7+8)+1)*X37),) -> 0 | AE37: =IF(G37,((VLOOKUP($B37,$E$7:$AE$16,7+12)+1)*Y37),) -> 0 | AF37: =IF(H37,((VLOOKUP($B37,$E$7:$AE$16,7+16)+1)*Z37),) -> 0 | AG37: =IF(I37,((VLOOKUP($B37,$E$7:$AE$16,7+20)+1)*AA37),) -> 0
A38: 12 | B38: 1 | C38: LDNO HV: Domestic Off Peak (related MPAN) | D38: 0 | G38: 0 | J38: =IF(D38,((VLOOKUP($B38,$E$7:$AE$16,4)+1)*D38),) -> 0 | K38: =IF(E38,((VLOOKUP($B38,$E$7:$AE$16,8)+1)*E38),) -> 0 | L38: =IF(F38,((VLOOKUP($B38,$E$7:$AE$16,12)+1)*F38),) -> 0 | M38: =IF(G38,((VLOOKUP($B38,$E$7:$AE$16,16)+1)*G38),) -> 0 | N38: =IF(H38,((VLOOKUP($B38,$E$7:$AE$16,20)+1)*H38),) -> 0 | O38: =IF(I38,((VLOOKUP($B38,$E$7:$AE$16,24)+1)*I38),) -> 0 | P38: =IF(D38,((VLOOKUP($B38,$E$7:$AE$16,5)+1)*J38),) -> 0 | Q38: =IF(E38,((VLOOKUP($B38,$E$7:$AE$16,5+4)+1)*K38),) -> 0 | R38: =IF(F38,((VLOOKUP($B38,$E$7:$AE$16,5+8)+1)*L38),) -> 0 | S38: =IF(G38,((VLOOKUP($B38,$E$7:$AE$16,5+12)+1)*M38),) -> 0 | T38: =IF(H38,((VLOOKUP($B38,$E$7:$AE$16,5+16)+1)*N38),) -> 0 | U38: =IF(I38,((VLOOKUP($B38,$E$7:$AE$16,5+20)+1)*O38),) -> 0 | V38: =IF(D38,((VLOOKUP($B38,$E$7:$AE$16,6)+1)*P38),) -> 0 | W38: =IF(E38,((VLOOKUP($B38,$E$7:$AE$16,6+4)+1)*Q38),) -> 0 | X38: =IF(F38,((VLOOKUP($B38,$E$7:$AE$16,6+8)+1)*R38),) -> 0 | Y38: =IF(G38,((VLOOKUP($B38,$E$7:$AE$16,6+12)+1)*S38),) -> 0 | Z38: =IF(H38,((VLOOKUP($B38,$E$7:$AE$16,6+16)+1)*T38),) -> 0 | AA38: =IF(I38,((VLOOKUP($B38,$E$7:$AE$16,6+20)+1)*U38),) -> 0 | AB38: =IF(D38,((VLOOKUP($B38,$E$7:$AE$16,7)+1)*V38),) -> 0 | AC38: =IF(E38,((VLOOKUP($B38,$E$7:$AE$16,7+4)+1)*W38),) -> 0 | AD38: =IF(F38,((VLOOKUP($B38,$E$7:$AE$16,7+8)+1)*X38),) -> 0 | AE38: =IF(G38,((VLOOKUP($B38,$E$7:$AE$16,7+12)+1)*Y38),) -> 0 | AF38: =IF(H38,((VLOOKUP($B38,$E$7:$AE$16,7+16)+1)*Z38),) -> 0 | AG38: =IF(I38,((VLOOKUP($B38,$E$7:$AE$16,7+20)+1)*AA38),) -> 0
A39: 13 | C39: > Small Non Domestic Unrestricted
A40: 14 | B40: 1 | C40: Small Non Domestic Unrestricted | D40: 1693554.973 | G40: 123201 | J40: =IF(D40,((VLOOKUP($B40,$E$7:$AE$16,4)+1)*D40),) -> 1676619.423 | K40: =IF(E40,((VLOOKUP($B40,$E$7:$AE$16,8)+1)*E40),) -> 0 | L40: =IF(F40,((VLOOKUP($B40,$E$7:$AE$16,12)+1)*F40),) -> 0 | M40: =IF(G40,((VLOOKUP($B40,$E$7:$AE$16,16)+1)*G40),) -> 123348.8412 | N40: =IF(H40,((VLOOKUP($B40,$E$7:$AE$16,20)+1)*H40),) -> 0 | O40: =IF(I40,((VLOOKUP($B40,$E$7:$AE$16,24)+1)*I40),) -> 0 | P40: =IF(D40,((VLOOKUP($B40,$E$7:$AE$16,5)+1)*J40),) -> 1659853.229 | Q40: =IF(E40,((VLOOKUP($B40,$E$7:$AE$16,5+4)+1)*K40),) -> 0 | R40: =IF(F40,((VLOOKUP($B40,$E$7:$AE$16,5+8)+1)*L40),) -> 0 | S40: =IF(G40,((VLOOKUP($B40,$E$7:$AE$16,5+12)+1)*M40),) -> 123496.8598 | T40: =IF(H40,((VLOOKUP($B40,$E$7:$AE$16,5+16)+1)*N40),) -> 0 | U40: =IF(I40,((VLOOKUP($B40,$E$7:$AE$16,5+20)+1)*O40),) -> 0 | V40: =IF(D40,((VLOOKUP($B40,$E$7:$AE$16,6)+1)*P40),) -> 1643254.697 | W40: =IF(E40,((VLOOKUP($B40,$E$7:$AE$16,6+4)+1)*Q40),) -> 0 | X40: =IF(F40,((VLOOKUP($B40,$E$7:$AE$16,6+8)+1)*R40),) -> 0 | Y40: =IF(G40,((VLOOKUP($B40,$E$7:$AE$16,6+12)+1)*S40),) -> 123645.056 | Z40: =IF(H40,((VLOOKUP($B40,$E$7:$AE$16,6+16)+1)*T40),) -> 0 | AA40: =IF(I40,((VLOOKUP($B40,$E$7:$AE$16,6+20)+1)*U40),) -> 0 | AB40: =IF(D40,((VLOOKUP($B40,$E$7:$AE$16,7)+1)*V40),) -> 1626822.15 | AC40: =IF(E40,((VLOOKUP($B40,$E$7:$AE$16,7+4)+1)*W40),) -> 0 | AD40: =IF(F40,((VLOOKUP($B40,$E$7:$AE$16,7+8)+1)*X40),) -> 0 | AE40: =IF(G40,((VLOOKUP($B40,$E$7:$AE$16,7+12)+1)*Y40),) -> 123793.4301 | AF40: =IF(H40,((VLOOKUP($B40,$E$7:$AE$16,7+16)+1)*Z40),) -> 0 | AG40: =IF(I40,((VLOOKUP($B40,$E$7:$AE$16,7+20)+1)*AA40),) -> 0
A41: 15 | B41: 1 | C41: LDNO LV: Small Non Domestic Unrestricted | D41: 2905.726851 | G41: 342 | J41: =IF(D41,((VLOOKUP($B41,$E$7:$AE$16,4)+1)*D41),) -> 2876.669583 | K41: =IF(E41,((VLOOKUP($B41,$E$7:$AE$16,8)+1)*E41),) -> 0 | L41: =IF(F41,((VLOOKUP($B41,$E$7:$AE$16,12)+1)*F41),) -> 0 | M41: =IF(G41,((VLOOKUP($B41,$E$7:$AE$16,16)+1)*G41),) -> 342.4104 | N41: =IF(H41,((VLOOKUP($B41,$E$7:$AE$16,20)+1)*H41),) -> 0 | O41: =IF(I41,((VLOOKUP($B41,$E$7:$AE$16,24)+1)*I41),) -> 0 | P41: =IF(D41,((VLOOKUP($B41,$E$7:$AE$16,5)+1)*J41),) -> 2847.902887 | Q41: =IF(E41,((VLOOKUP($B41,$E$7:$AE$16,5+4)+1)*K41),) -> 0 | R41: =IF(F41,((VLOOKUP($B41,$E$7:$AE$16,5+8)+1)*L41),) -> 0 | S41: =IF(G41,((VLOOKUP($B41,$E$7:$AE$16,5+12)+1)*M41),) -> 342.8212925 | T41: =IF(H41,((VLOOKUP($B41,$E$7:$AE$16,5+16)+1)*N41),) -> 0 | U41: =IF(I41,((VLOOKUP($B41,$E$7:$AE$16,5+20)+1)*O41),) -> 0 | V41: =IF(D41,((VLOOKUP($B41,$E$7:$AE$16,6)+1)*P41),) -> 2819.423858 | W41: =IF(E41,((VLOOKUP($B41,$E$7:$AE$16,6+4)+1)*Q41),) -> 0 | X41: =IF(F41,((VLOOKUP($B41,$E$7:$AE$16,6+8)+1)*R41),) -> 0 | Y41: =IF(G41,((VLOOKUP($B41,$E$7:$AE$16,6+12)+1)*S41),) -> 343.232678 | Z41: =IF(H41,((VLOOKUP($B41,$E$7:$AE$16,6+16)+1)*T41),) -> 0 | AA41: =IF(I41,((VLOOKUP($B41,$E$7:$AE$16,6+20)+1)*U41),) -> 0 | AB41: =IF(D41,((VLOOKUP($B41,$E$7:$AE$16,7)+1)*V41),) -> 2791.229619 | AC41: =IF(E41,((VLOOKUP($B41,$E$7:$AE$16,7+4)+1)*W41),) -> 0 | AD41: =IF(F41,((VLOOKUP($B41,$E$7:$AE$16,7+8)+1)*X41),) -> 0 | AE41: =IF(G41,((VLOOKUP($B41,$E$7:$AE$16,7+12)+1)*Y41),) -> 343.6445572 | AF41: =IF(H41,((VLOOKUP($B41,$E$7:$AE$16,7+16)+1)*Z41),) -> 0 | AG41: =IF(I41,((VLOOKUP($B41,$E$7:$AE$16,7+20)+1)*AA41),) -> 0
A42: 16 | B42: 1 | C42: LDNO HV: Small Non Domestic Unrestricted | D42: 4333.463455 | G42: 379 | J42: =IF(D42,((VLOOKUP($B42,$E$7:$AE$16,4)+1)*D42),) -> 4290.128821 | K42: =IF(E42,((VLOOKUP($B42,$E$7:$AE$16,8)+1)*E42),) -> 0 | L42: =IF(F42,((VLOOKUP($B42,$E$7:$AE$16,12)+1)*F42),) -> 0 | M42: =IF(G42,((VLOOKUP($B42,$E$7:$AE$16,16)+1)*G42),) -> 379.4548 | N42: =IF(H42,((VLOOKUP($B42,$E$7:$AE$16,20)+1)*H42),) -> 0 | O42: =IF(I42,((VLOOKUP($B42,$E$7:$AE$16,24)+1)*I42),) -> 0 | P42: =IF(D42,((VLOOKUP($B42,$E$7:$AE$16,5)+1)*J42),) -> 4247.227533 | Q42: =IF(E42,((VLOOKUP($B42,$E$7:$AE$16,5+4)+1)*K42),) -> 0 | R42: =IF(F42,((VLOOKUP($B42,$E$7:$AE$16,5+8)+1)*L42),) -> 0 | S42: =IF(G42,((VLOOKUP($B42,$E$7:$AE$16,5+12)+1)*M42),) -> 379.9101458 | T42: =IF(H42,((VLOOKUP($B42,$E$7:$AE$16,5+16)+1)*N42),) -> 0 | U42: =IF(I42,((VLOOKUP($B42,$E$7:$AE$16,5+20)+1)*O42),) -> 0 | V42: =IF(D42,((VLOOKUP($B42,$E$7:$AE$16,6)+1)*P42),) -> 4204.755257 | W42: =IF(E42,((VLOOKUP($B42,$E$7:$AE$16,6+4)+1)*Q42),) -> 0 | X42: =IF(F42,((VLOOKUP($B42,$E$7:$AE$16,6+8)+1)*R42),) -> 0 | Y42: =IF(G42,((VLOOKUP($B42,$E$7:$AE$16,6+12)+1)*S42),) -> 380.3660379 | Z42: =IF(H42,((VLOOKUP($B42,$E$7:$AE$16,6+16)+1)*T42),) -> 0 | AA42: =IF(I42,((VLOOKUP($B42,$E$7:$AE$16,6+20)+1)*U42),) -> 0 | AB42: =IF(D42,((VLOOKUP($B42,$E$7:$AE$16,7)+1)*V42),) -> 4162.707705 | AC42: =IF(E42,((VLOOKUP($B42,$E$7:$AE$16,7+4)+1)*W42),) -> 0 | AD42: =IF(F42,((VLOOKUP($B42,$E$7:$AE$16,7+8)+1)*X42),) -> 0 | AE42: =IF(G42,((VLOOKUP($B42,$E$7:$AE$16,7+12)+1)*Y42),) -> 380.8224772 | AF42: =IF(H42,((VLOOKUP($B42,$E$7:$AE$16,7+16)+1)*Z42),) -> 0 | AG42: =IF(I42,((VLOOKUP($B42,$E$7:$AE$16,7+20)+1)*AA42),) -> 0
A43: 17 | C43: > Small Non Domestic Two Rate
A44: 18 | B44: 1 | C44: Small Non Domestic Two Rate | D44: 570324.9748 | E44: 206753.7608 | G44: 32088 | J44: =IF(D44,((VLOOKUP($B44,$E$7:$AE$16,4)+1)*D44),) -> 564621.725 | K44: =IF(E44,((VLOOKUP($B44,$E$7:$AE$16,8)+1)*E44),) -> 204686.2232 | L44: =IF(F44,((VLOOKUP($B44,$E$7:$AE$16,12)+1)*F44),) -> 0 | M44: =IF(G44,((VLOOKUP($B44,$E$7:$AE$16,16)+1)*G44),) -> 32126.5056 | N44: =IF(H44,((VLOOKUP($B44,$E$7:$AE$16,20)+1)*H44),) -> 0 | O44: =IF(I44,((VLOOKUP($B44,$E$7:$AE$16,24)+1)*I44),) -> 0 | P44: =IF(D44,((VLOOKUP($B44,$E$7:$AE$16,5)+1)*J44),) -> 558975.5078 | Q44: =IF(E44,((VLOOKUP($B44,$E$7:$AE$16,5+4)+1)*K44),) -> 202639.361 | R44: =IF(F44,((VLOOKUP($B44,$E$7:$AE$16,5+8)+1)*L44),) -> 0 | S44: =IF(G44,((VLOOKUP($B44,$E$7:$AE$16,5+12)+1)*M44),) -> 32165.05741 | T44: =IF(H44,((VLOOKUP($B44,$E$7:$AE$16,5+16)+1)*N44),) -> 0 | U44: =IF(I44,((VLOOKUP($B44,$E$7:$AE$16,5+20)+1)*O44),) -> 0 | V44: =IF(D44,((VLOOKUP($B44,$E$7:$AE$16,6)+1)*P44),) -> 553385.7527 | W44: =IF(E44,((VLOOKUP($B44,$E$7:$AE$16,6+4)+1)*Q44),) -> 200612.9674 | X44: =IF(F44,((VLOOKUP($B44,$E$7:$AE$16,6+8)+1)*R44),) -> 0 | Y44: =IF(G44,((VLOOKUP($B44,$E$7:$AE$16,6+12)+1)*S44),) -> 32203.65548 | Z44: =IF(H44,((VLOOKUP($B44,$E$7:$AE$16,6+16)+1)*T44),) -> 0 | AA44: =IF(I44,((VLOOKUP($B44,$E$7:$AE$16,6+20)+1)*U44),) -> 0 | AB44: =IF(D44,((VLOOKUP($B44,$E$7:$AE$16,7)+1)*V44),) -> 547851.8952 | AC44: =IF(E44,((VLOOKUP($B44,$E$7:$AE$16,7+4)+1)*W44),) -> 198606.8377 | AD44: =IF(F44,((VLOOKUP($B44,$E$7:$AE$16,7+8)+1)*X44),) -> 0 | AE44: =IF(G44,((VLOOKUP($B44,$E$7:$AE$16,7+12)+1)*Y44),) -> 32242.29986 | AF44: =IF(H44,((VLOOKUP($B44,$E$7:$AE$16,7+16)+1)*Z44),) -> 0 | AG44: =IF(I44,((VLOOKUP($B44,$E$7:$AE$16,7+20)+1)*AA44),) -> 0
A45: 19 | B45: 1 | C45: LDNO LV: Small Non Domestic Two Rate | D45: 16.8852 | E45: 8.9988 | G45: 6 | J45: 16.716348 | K45: 8.908812 | L45: 0 | M45: 6.0072 | N45: 0 | O45: 0 | P45: 16.54918452 | Q45: 8.81972388 | R45: 0 | S45: 6.01440864 | T45: 0 | U45: 0 | V45: 16.38369267 | W45: 8.731526641 | X45: 0 | Y45: 6.02162593 | Z45: 0 | AA45: 0 | AB45: 16.21985575 | AC45: 8.644211375 | AD45: 0 | AE45: 6.028851881 | AF45: 0 | AG45: 0
A46: 20 | B46: 1 | C46: LDNO HV: Small Non Domestic Two Rate | D46: 356.3706667 | E46: 141.753 | G46: 10 | J46: 352.80696 | K46: 140.33547 | L46: 0 | M46: 10.012 | N46: 0 | O46: 0 | P46: 349.2788904 | Q46: 138.9321153 | R46: 0 | S46: 10.0240144 | T46: 0 | U46: 0 | V46: 345.7861015 | W46: 137.5427941 | X46: 0 | Y46: 10.03604322 | Z46: 0 | AA46: 0 | AB46: 342.3282405 | AC46: 136.1673662 | AD46: 0 | AE46: 10.04808647 | AF46: 0 | AG46: 0
A47: 21 | C47: > Small Non Domestic Off Peak (related MPAN) | J47: 0 | K47: 0 | L47: 0 | M47: 0 | N47: 0 | O47: 0 | P47: 0 | Q47: 0 | R47: 0 | S47: 0 | T47: 0 | U47: 0 | V47: 0 | W47: 0 | X47: 0 | Y47: 0 | Z47: 0 | AA47: 0 | AB47: 0 | AC47: 0 | AD47: 0 | AE47: 0 | AF47: 0 | AG47: 0
A48: 22 | B48: 1 | C48: Small Non Domestic Off Peak (related MPAN) | D48: 23102.08788 | G48: 3998 | J48: 22871.06701 | K48: 0 | L48: 0 | M48: 4002.7976 | N48: 0 | O48: 0 | P48: 22642.35634 | Q48: 0 | R48: 0 | S48: 4007.600957 | T48: 0 | U48: 0 | V48: 22415.93277 | W48: 0 | X48: 0 | Y48: 4012.410078 | Z48: 0 | AA48: 0 | AB48: 22191.77344 | AC48: 0 | AD48: 0 | AE48: 4017.22497 | AF48: 0 | AG48: 0
A49: 23 | B49: 1 | C49: LDNO LV: Small Non Domestic Off Peak (related MPAN) | D49: 0 | G49: 0 | J49: 0 | K49: 0 | L49: 0 | M49: 0 | N49: 0 | O49: 0 | P49: 0 | Q49: 0 | R49: 0 | S49: 0 | T49: 0 | U49: 0 | V49: 0 | W49: 0 | X49: 0 | Y49: 0 | Z49: 0 | AA49: 0 | AB49: 0 | AC49: 0 | AD49: 0 | AE49: 0 | AF49: 0 | AG49: 0
A50: 24 | B50: 1 | C50: LDNO HV: Small Non Domestic Off Peak (related MPAN) | D50: 0 | G50: 0 | J50: 0 | K50: 0 | L50: 0 | M50: 0 | N50: 0 | O50: 0 | P50: 0 | Q50: 0 | R50: 0 | S50: 0 | T50: 0 | U50: 0 | V50: 0 | W50: 0 | X50: 0 | Y50: 0 | Z50: 0 | AA50: 0 | AB50: 0 | AC50: 0 | AD50: 0 | AE50: 0 | AF50: 0 | AG50: 0
A51: 25 | C51: > LV Medium Non-Domestic | J51: 0 | K51: 0 | L51: 0 | M51: 0 | N51: 0 | O51: 0 | P51: 0 | Q51: 0 | R51: 0 | S51: 0 | T51: 0 | U51: 0 | V51: 0 | W51: 0 | X51: 0 | Y51: 0 | Z51: 0 | AA51: 0 | AB51: 0 | AC51: 0 | AD51: 0 | AE51: 0 | AF51: 0 | AG51: 0
A52: 26 | B52: 1 | C52: LV Medium Non-Domestic | D52: 945009.606 | E52: 228953.5447 | G52: 11260 | J52: 935559.5099 | K52: 226664.0092 | L52: 0 | M52: 11273.512 | N52: 0 | O52: 0 | P52: 926203.9148 | Q52: 224397.3692 | R52: 0 | S52: 11287.04021 | T52: 0 | U52: 0 | V52: 916941.8757 | W52: 222153.3955 | X52: 0 | Y52: 11300.58466 | Z52: 0 | AA52: 0 | AB52: 907772.4569 | AC52: 219931.8615 | AD52: 0 | AE52: 11314.14536 | AF52: 0 | AG52: 0
A53: 27 | B53: 1 | C53: LDNO LV: LV Medium Non-Domestic | D53: 1048.88725 | E53: 232.6466786 | G53: 9 | J53: 1038.398377 | K53: 230.3202118 | L53: 0 | M53: 9.0108 | N53: 0 | O53: 0 | P53: 1028.014394 | Q53: 228.0170097 | R53: 0 | S53: 9.02161296 | T53: 0 | U53: 0 | V53: 1017.73425 | W53: 225.7368396 | X53: 0 | Y53: 9.032438896 | Z53: 0 | AA53: 0 | AB53: 1007.556907 | AC53: 223.4794712 | AD53: 0 | AE53: 9.043277822 | AF53: 0 | AG53: 0
A54: 28 | B54: 1 | C54: LDNO HV: LV Medium Non-Domestic | D54: 998.364 | E54: 260.955 | G54: 19 | J54: 988.38036 | K54: 258.34545 | L54: 0 | M54: 19.0228 | N54: 0 | O54: 0 | P54: 978.4965564 | Q54: 255.7619955 | R54: 0 | S54: 19.04562736 | T54: 0 | U54: 0 | V54: 968.7115908 | W54: 253.2043755 | X54: 0 | Y54: 19.06848211 | Z54: 0 | AA54: 0 | AB54: 959.0244749 | AC54: 250.6723318 | AD54: 0 | AE54: 19.09136429 | AF54: 0 | AG54: 0
A55: 29 | C55: > LV Sub Medium Non-Domestic | J55: 0 | K55: 0 | L55: 0 | M55: 0 | N55: 0 | O55: 0 | P55: 0 | Q55: 0 | R55: 0 | S55: 0 | T55: 0 | U55: 0 | V55: 0 | W55: 0 | X55: 0 | Y55: 0 | Z55: 0 | AA55: 0 | AB55: 0 | AC55: 0 | AD55: 0 | AE55: 0 | AF55: 0 | AG55: 0
A56: 30 | B56: 1 | C56: LV Sub Medium Non-Domestic | D56: 35406.2791 | E56: 9910.038121 | G56: 369 | J56: 35052.21631 | K56: 9810.937739 | L56: 0 | M56: 369.4428 | N56: 0 | O56: 0 | P56: 34701.69415 | Q56: 9712.828362 | R56: 0 | S56: 369.8861314 | T56: 0 | U56: 0 | V56: 34354.67721 | W56: 9615.700078 | X56: 0 | Y56: 370.3299947 | Z56: 0 | AA56: 0 | AB56: 34011.13043 | AC56: 9519.543078 | AD56: 0 | AE56: 370.7743907 | AF56: 0 | AG56: 0
A57: 31 | C57: > HV Medium Non-Domestic | J57: 0 | K57: 0 | L57: 0 | M57: 0 | N57: 0 | O57: 0 | P57: 0 | Q57: 0 | R57: 0 | S57: 0 | T57: 0 | U57: 0 | V57: 0 | W57: 0 | X57: 0 | Y57: 0 | Z57: 0 | AA57: 0 | AB57: 0 | AC57: 0 | AD57: 0 | AE57: 0 | AF57: 0 | AG57: 0
A58: 32 | B58: 1 | C58: HV Medium Non-Domestic | D58: 7827.797313 | E58: 2178.497845 | G58: 64 | J58: 7749.51934 | K58: 2156.712866 | L58: 0 | M58: 64.0768 | N58: 0 | O58: 0 | P58: 7672.024147 | Q58: 2135.145738 | R58: 0 | S58: 64.15369216 | T58: 0 | U58: 0 | V58: 7595.303905 | W58: 2113.79428 | X58: 0 | Y58: 64.23067659 | Z58: 0 | AA58: 0 | AB58: 7519.350866 | AC58: 2092.656338 | AD58: 0 | AE58: 64.3077534 | AF58: 0 | AG58: 0
A59: 33 | C59: > LV Network Domestic | J59: 0 | K59: 0 | L59: 0 | M59: 0 | N59: 0 | O59: 0 | P59: 0 | Q59: 0 | R59: 0 | S59: 0 | T59: 0 | U59: 0 | V59: 0 | W59: 0 | X59: 0 | Y59: 0 | Z59: 0 | AA59: 0 | AB59: 0 | AC59: 0 | AD59: 0 | AE59: 0 | AF59: 0 | AG59: 0
A60: 34 | B60: 1 | C60: LV Network Domestic | J60: 0 | K60: 0 | L60: 0 | M60: 0 | N60: 0 | O60: 0 | P60: 0 | Q60: 0 | R60: 0 | S60: 0 | T60: 0 | U60: 0 | V60: 0 | W60: 0 | X60: 0 | Y60: 0 | Z60: 0 | AA60: 0 | AB60: 0 | AC60: 0 | AD60: 0 | AE60: 0 | AF60: 0 | AG60: 0
A61: 35 | B61: 1 | C61: LDNO LV: LV Network Domestic | J61: 0 | K61: 0 | L61: 0 | M61: 0 | N61: 0 | O61: 0 | P61: 0 | Q61: 0 | R61: 0 | S61: 0 | T61: 0 | U61: 0 | V61: 0 | W61: 0 | X61: 0 | Y61: 0 | Z61: 0 | AA61: 0 | AB61: 0 | AC61: 0 | AD61: 0 | AE61: 0 | AF61: 0 | AG61: 0
A62: 36 | B62: 1 | C62: LDNO HV: LV Network Domestic | J62: 0 | K62: 0 | L62: 0 | M62: 0 | N62: 0 | O62: 0 | P62: 0 | Q62: 0 | R62: 0 | S62: 0 | T62: 0 | U62: 0 | V62: 0 | W62: 0 | X62: 0 | Y62: 0 | Z62: 0 | AA62: 0 | AB62: 0 | AC62: 0 | AD62: 0 | AE62: 0 | AF62: 0 | AG62: 0
A63: 37 | C63: > LV Network Non-Domestic Non-CT | J63: 0 | K63: 0 | L63: 0 | M63: 0 | N63: 0 | O63: 0 | P63: 0 | Q63: 0 | R63: 0 | S63: 0 | T63: 0 | U63: 0 | V63: 0 | W63: 0 | X63: 0 | Y63: 0 | Z63: 0 | AA63: 0 | AB63: 0 | AC63: 0 | AD63: 0 | AE63: 0 | AF63: 0 | AG63: 0
A64: 38 | B64: 1 | C64: LV Network Non-Domestic Non-CT | J64: 0 | K64: 0 | L64: 0 | M64: 0 | N64: 0 | O64: 0 | P64: 0 | Q64: 0 | R64: 0 | S64: 0 | T64: 0 | U64: 0 | V64: 0 | W64: 0 | X64: 0 | Y64: 0 | Z64: 0 | AA64: 0 | AB64: 0 | AC64: 0 | AD64: 0 | AE64: 0 | AF64: 0 | AG64: 0
A65: 39 | B65: 1 | C65: LDNO LV: LV Network Non-Domestic Non-CT | J65: 0 | K65: 0 | L65: 0 | M65: 0 | N65: 0 | O65: 0 | P65: 0 | Q65: 0 | R65: 0 | S65: 0 | T65: 0 | U65: 0 | V65: 0 | W65: 0 | X65: 0 | Y65: 0 | Z65: 0 | AA65: 0 | AB65: 0 | AC65: 0 | AD65: 0 | AE65: 0 | AF65: 0 | AG65: 0
A66: 40 | B66: 1 | C66: LDNO HV: LV Network Non-Domestic Non-CT | J66: 0 | K66: 0 | L66: 0 | M66: 0 | N66: 0 | O66: 0 | P66: 0 | Q66: 0 | R66: 0 | S66: 0 | T66: 0 | U66: 0 | V66: 0 | W66: 0 | X66: 0 | Y66: 0 | Z66: 0 | AA66: 0 | AB66: 0 | AC66: 0 | AD66: 0 | AE66: 0 | AF66: 0 | AG66: 0
A67: 41 | C67: > LV HH Metered | J67: 0 | K67: 0 | L67: 0 | M67: 0 | N67: 0 | O67: 0 | P67: 0 | Q67: 0 | R67: 0 | S67: 0 | T67: 0 | U67: 0 | V67: 0 | W67: 0 | X67: 0 | Y67: 0 | Z67: 0 | AA67: 0 | AB67: 0 | AC67: 0 | AD67: 0 | AE67: 0 | AF67: 0 | AG67: 0
A68: 42 | B68: 2 | C68: LV HH Metered | D68: 175631.8116 | E68: 621630.4069 | F68: 799024.7005 | G68: 5306 | H68: 768023.4249 | I68: 132125.4743 | J68: 173875.4935 | K68: 615414.1028 | L68: 791034.4535 | M68: 5312.3672 | N68: 760343.1906 | O68: 132125.4743 | P68: 172136.7386 | Q68: 609259.9618 | R68: 783124.109 | S68: 5318.742041 | T68: 752739.7587 | U68: 132125.4743 | V68: 170415.3712 | W68: 603167.3622 | X68: 775292.8679 | Y68: 5325.124531 | Z68: 745212.3612 | AA68: 132125.4743 | AB68: 168711.2175 | AC68: 597135.6886 | AD68: 767539.9392 | AE68: 5331.514681 | AF68: 737760.2375 | AG68: 132125.4743
A69: 43 | B69: 2 | C69: LDNO LV: LV HH Metered | D69: 285.4746293 | E69: 1010.215366 | F69: 1300.388164 | G69: 10 | H69: 1751.309737 | I69: 151.5306 | J69: 282.619883 | K69: 1000.113212 | L69: 1287.384282 | M69: 10.012 | N69: 1733.79664 | O69: 151.5306 | P69: 279.7936842 | Q69: 990.1120801 | R69: 1274.510439 | S69: 10.0240144 | T69: 1716.458673 | U69: 151.5306 | V69: 276.9957473 | W69: 980.2109593 | X69: 1261.765335 | Y69: 10.03604322 | Z69: 1699.294086 | AA69: 151.5306 | AB69: 274.2257898 | AC69: 970.4088497 | AD69: 1249.147682 | AE69: 10.04808647 | AF69: 1682.301146 | AG69: 151.5306
A70: 44 | B70: 2 | C70: LDNO HV: LV HH Metered | D70: 4582.031036 | E70: 16235.37014 | F70: 20901.9679 | G70: 65 | H70: 22056.25581 | I70: 985.555 | J70: 4536.210726 | K70: 16073.01643 | L70: 20692.94822 | M70: 65.078 | N70: 21835.69325 | O70: 985.555 | P70: 4490.848619 | Q70: 15912.28627 | R70: 20486.01874 | S70: 65.1560936 | T70: 21617.33632 | U70: 985.555 | V70: 4445.940133 | W70: 15753.16341 | X70: 20281.15855 | Y70: 65.23428091 | Z70: 21401.16296 | AA70: 985.555 | AB70: 4401.480731 | AC70: 15595.63177 | AD70: 20078.34697 | AE70: 65.31256205 | AF70: 21187.15133 | AG70: 985.555
A71: 45 | C71: > LV Sub HH Metered | J71: 0 | K71: 0 | L71: 0 | M71: 0 | N71: 0 | O71: 0 | P71: 0 | Q71: 0 | R71: 0 | S71: 0 | T71: 0 | U71: 0 | V71: 0 | W71: 0 | X71: 0 | Y71: 0 | Z71: 0 | AA71: 0 | AB71: 0 | AC71: 0 | AD71: 0 | AE71: 0 | AF71: 0 | AG71: 0
A72: 46 | B72: 2 | C72: LV Sub HH Metered | D72: 135375.1703 | E72: 490799.1693 | F72: 649673.9221 | G72: 1843 | H72: 634173.1853 | I72: 95399.90129 | J72: 134021.4186 | K72: 485891.1776 | L72: 643177.1829 | M72: 1845.2116 | N72: 627831.4534 | O72: 95399.90129 | P72: 132681.2044 | Q72: 481032.2658 | R72: 636745.4111 | S72: 1847.425854 | T72: 621553.1389 | U72: 95399.90129 | V72: 131354.3924 | W72: 476221.9431 | X72: 630377.957 | Y72: 1849.642765 | Z72: 615337.6075 | AA72: 95399.90129 | AB72: 130040.8484 | AC72: 471459.7237 | AD72: 624074.1774 | AE72: 1851.862336 | AF72: 609184.2314 | AG72: 95399.90129
A73: 47 | B73: 2 | C73: LDNO HV: LV Sub HH Metered | D73: 40.93288733 | E73: 148.3847092 | F73: 196.3874035 | G73: 1 | H73: 225.8027769 | I73: 0.039 | J73: 40.52355846 | K73: 146.9008621 | L73: 194.4235295 | M73: 1.0012 | N73: 223.5447491 | O73: 0.039 | P73: 40.11832287 | Q73: 145.4318535 | R73: 192.4792942 | S73: 1.00240144 | T73: 221.3093016 | U73: 0.039 | V73: 39.71713964 | W73: 143.9775349 | X73: 190.5545012 | Y73: 1.003604322 | Z73: 219.0962086 | AA73: 0.039 | AB73: 39.31996825 | AC73: 142.5377596 | AD73: 188.6489562 | AE73: 1.004808647 | AF73: 216.9052465 | AG73: 0.039
A74: 48 | C74: > HV HH Metered | J74: =IF(D74,((VLOOKUP($B74,$E$7:$AE$16,4)+1)*D74),) -> 0 | K74: =IF(E74,((VLOOKUP($B74,$E$7:$AE$16,8)+1)*E74),) -> 0 | L74: =IF(F74,((VLOOKUP($B74,$E$7:$AE$16,12)+1)*F74),) -> 0 | M74: =IF(G74,((VLOOKUP($B74,$E$7:$AE$16,16)+1)*G74),) -> 0 | N74: =IF(H74,((VLOOKUP($B74,$E$7:$AE$16,20)+1)*H74),) -> 0 | O74: =IF(I74,((VLOOKUP($B74,$E$7:$AE$16,24)+1)*I74),) -> 0 | P74: =IF(D74,((VLOOKUP($B74,$E$7:$AE$16,5)+1)*J74),) -> 0 | Q74: =IF(E74,((VLOOKUP($B74,$E$7:$AE$16,5+4)+1)*K74),) -> 0 | R74: =IF(F74,((VLOOKUP($B74,$E$7:$AE$16,5+8)+1)*L74),) -> 0 | S74: =IF(G74,((VLOOKUP($B74,$E$7:$AE$16,5+12)+1)*M74),) -> 0 | T74: =IF(H74,((VLOOKUP($B74,$E$7:$AE$16,5+16)+1)*N74),) -> 0 | U74: =IF(I74,((VLOOKUP($B74,$E$7:$AE$16,5+20)+1)*O74),) -> 0 | V74: =IF(D74,((VLOOKUP($B74,$E$7:$AE$16,6)+1)*P74),) -> 0 | W74: =IF(E74,((VLOOKUP($B74,$E$7:$AE$16,6+4)+1)*Q74),) -> 0 | X74: =IF(F74,((VLOOKUP($B74,$E$7:$AE$16,6+8)+1)*R74),) -> 0 | Y74: =IF(G74,((VLOOKUP($B74,$E$7:$AE$16,6+12)+1)*S74),) -> 0 | Z74: =IF(H74,((VLOOKUP($B74,$E$7:$AE$16,6+16)+1)*T74),) -> 0 | AA74: =IF(I74,((VLOOKUP($B74,$E$7:$AE$16,6+20)+1)*U74),) -> 0 | AB74: =IF(D74,((VLOOKUP($B74,$E$7:$AE$16,7)+1)*V74),) -> 0 | AC74: =IF(E74,((VLOOKUP($B74,$E$7:$AE$16,7+4)+1)*W74),) -> 0 | AD74: =IF(F74,((VLOOKUP($B74,$E$7:$AE$16,7+8)+1)*X74),) -> 0 | AE74: =IF(G74,((VLOOKUP($B74,$E$7:$AE$16,7+12)+1)*Y74),) -> 0 | AF74: =IF(H74,((VLOOKUP($B74,$E$7:$AE$16,7+16)+1)*Z74),) -> 0 | AG74: =IF(I74,((VLOOKUP($B74,$E$7:$AE$16,7+20)+1)*AA74),) -> 0
A75: 49 | B75: 2 | C75: HV HH Metered | D75: 513876.5189 | E75: 1744082.795 | F75: 2851335.555 | G75: 2038 | H75: 1825406.472 | I75: 375871.926 | J75: 508737.7538 | K75: 1726641.967 | L75: 2822822.2 | M75: 2040.4456 | N75: 1807152.407 | O75: 375871.926 | P75: 503650.3762 | Q75: 1709375.547 | R75: 2794593.978 | S75: 2042.894135 | T75: 1789080.883 | U75: 375871.926 | V75: 498613.8725 | W75: 1692281.791 | X75: 2766648.038 | Y75: 2045.345608 | Z75: 1771190.074 | AA75: 375871.926 | AB75: 493627.7337 | AC75: 1675358.974 | AD75: 2738981.557 | AE75: 2047.800022 | AF75: 1753478.173 | AG75: 375871.926
A76: 50 | B76: 2 | C76: LDNO HV: HV HH Metered | D76: 2050.762694 | E76: 6966.651353 | F76: 11419.28754 | G76: 7 | H76: 11571.86395 | I76: 3.9938 | J76: 2030.255067 | K76: 6896.98484 | L76: 11305.09467 | M76: 7.0084 | N76: 11456.14531 | O76: 3.9938 | P76: 2009.952516 | Q76: 6828.014992 | R76: 11192.04372 | S76: 7.01681008 | T76: 11341.58386 | U76: 3.9938 | V76: 1989.852991 | W76: 6759.734842 | X76: 11080.12328 | Y76: 7.025230252 | Z76: 11228.16802 | AA76: 3.9938 | AB76: 1969.954461 | AC76: 6692.137493 | AD76: 10969.32205 | AE76: 7.033660528 | AF76: 11115.88634 | AG76: 3.9938
A77: 51 | C77: > NHH UMS category A | J77: 0 | K77: 0 | L77: 0 | M77: 0 | N77: 0 | O77: 0 | P77: 0 | Q77: 0 | R77: 0 | S77: 0 | T77: 0 | U77: 0 | V77: 0 | W77: 0 | X77: 0 | Y77: 0 | Z77: 0 | AA77: 0 | AB77: 0 | AC77: 0 | AD77: 0 | AE77: 0 | AF77: 0 | AG77: 0
A78: 52 | B78: 1 | C78: NHH UMS category A | D78: 37733.79311 | G78: 235 | J78: 37356.45518 | K78: 0 | L78: 0 | M78: 235.282 | N78: 0 | O78: 0 | P78: 36982.89063 | Q78: 0 | R78: 0 | S78: 235.5643384 | T78: 0 | U78: 0 | V78: 36613.06172 | W78: 0 | X78: 0 | Y78: 235.8470156 | Z78: 0 | AA78: 0 | AB78: 36246.93111 | AC78: 0 | AD78: 0 | AE78: 236.130032 | AF78: 0 | AG78: 0
A79: 53 | B79: 1 | C79: LDNO LV: NHH UMS category A | D79: 147.8 | G79: 30 | J79: 146.322 | K79: 0 | L79: 0 | M79: 30.036 | N79: 0 | O79: 0 | P79: 144.85878 | Q79: 0 | R79: 0 | S79: 30.0720432 | T79: 0 | U79: 0 | V79: 143.4101922 | W79: 0 | X79: 0 | Y79: 30.10812965 | Z79: 0 | AA79: 0 | AB79: 141.9760903 | AC79: 0 | AD79: 0 | AE79: 30.14425941 | AF79: 0 | AG79: 0
A80: 54 | B80: 1 | C80: LDNO HV: NHH UMS category A | D80: 92.7 | G80: 7 | J80: 91.773 | K80: 0 | L80: 0 | M80: 7.0084 | N80: 0 | O80: 0 | P80: 90.85527 | Q80: 0 | R80: 0 | S80: 7.01681008 | T80: 0 | U80: 0 | V80: 89.9467173 | W80: 0 | X80: 0 | Y80: 7.025230252 | Z80: 0 | AA80: 0 | AB80: 89.04725013 | AC80: 0 | AD80: 0 | AE80: 7.033660528 | AF80: 0 | AG80: 0
A81: 55 | C81: > NHH UMS category B | J81: 0 | K81: 0 | L81: 0 | M81: 0 | N81: 0 | O81: 0 | P81: 0 | Q81: 0 | R81: 0 | S81: 0 | T81: 0 | U81: 0 | V81: 0 | W81: 0 | X81: 0 | Y81: 0 | Z81: 0 | AA81: 0 | AB81: 0 | AC81: 0 | AD81: 0 | AE81: 0 | AF81: 0 | AG81: 0
A82: 56 | B82: 1 | C82: NHH UMS category B | D82: 12652.36029 | G82: 307 | J82: 12525.83669 | K82: 0 | L82: 0 | M82: 307.3684 | N82: 0 | O82: 0 | P82: 12400.57832 | Q82: 0 | R82: 0 | S82: 307.7372421 | T82: 0 | U82: 0 | V82: 12276.57254 | W82: 0 | X82: 0 | Y82: 308.1065268 | Z82: 0 | AA82: 0 | AB82: 12153.80681 | AC82: 0 | AD82: 0 | AE82: 308.4762546 | AF82: 0 | AG82: 0
A83: 57 | B83: 1 | C83: LDNO LV: NHH UMS category B | D83: 48.2 | G83: 38 | J83: 47.718 | K83: 0 | L83: 0 | M83: 38.0456 | N83: 0 | O83: 0 | P83: 47.24082 | Q83: 0 | R83: 0 | S83: 38.09125472 | T83: 0 | U83: 0 | V83: 46.7684118 | W83: 0 | X83: 0 | Y83: 38.13696423 | Z83: 0 | AA83: 0 | AB83: 46.30072768 | AC83: 0 | AD83: 0 | AE83: 38.18272858 | AF83: 0 | AG83: 0
A84: 58 | B84: 1 | C84: LDNO HV: NHH UMS category B | D84: 30.3 | G84: 9 | J84: 29.997 | K84: 0 | L84: 0 | M84: 9.0108 | N84: 0 | O84: 0 | P84: 29.69703 | Q84: 0 | R84: 0 | S84: 9.02161296 | T84: 0 | U84: 0 | V84: 29.4000597 | W84: 0 | X84: 0 | Y84: 9.032438896 | Z84: 0 | AA84: 0 | AB84: 29.1060591 | AC84: 0 | AD84: 0 | AE84: 9.043277822 | AF84: 0 | AG84: 0
A85: 59 | C85: > NHH UMS category C | J85: 0 | K85: 0 | L85: 0 | M85: 0 | N85: 0 | O85: 0 | P85: 0 | Q85: 0 | R85: 0 | S85: 0 | T85: 0 | U85: 0 | V85: 0 | W85: 0 | X85: 0 | Y85: 0 | Z85: 0 | AA85: 0 | AB85: 0 | AC85: 0 | AD85: 0 | AE85: 0 | AF85: 0 | AG85: 0
A86: 60 | B86: 1 | C86: NHH UMS category C | D86: 49.16873277 | G86: 6 | J86: 48.67704544 | K86: 0 | L86: 0 | M86: 6.0072 | N86: 0 | O86: 0 | P86: 48.19027499 | Q86: 0 | R86: 0 | S86: 6.01440864 | T86: 0 | U86: 0 | V86: 47.70837224 | W86: 0 | X86: 0 | Y86: 6.02162593 | Z86: 0 | AA86: 0 | AB86: 47.23128851 | AC86: 0 | AD86: 0 | AE86: 6.028851881 | AF86: 0 | AG86: 0
A87: 61 | B87: 1 | C87: LDNO LV: NHH UMS category C | J87: 0 | K87: 0 | L87: 0 | M87: 0 | N87: 0 | O87: 0 | P87: 0 | Q87: 0 | R87: 0 | S87: 0 | T87: 0 | U87: 0 | V87: 0 | W87: 0 | X87: 0 | Y87: 0 | Z87: 0 | AA87: 0 | AB87: 0 | AC87: 0 | AD87: 0 | AE87: 0 | AF87: 0 | AG87: 0
A88: 62 | B88: 1 | C88: LDNO HV: NHH UMS category C | J88: 0 | K88: 0 | L88: 0 | M88: 0 | N88: 0 | O88: 0 | P88: 0 | Q88: 0 | R88: 0 | S88: 0 | T88: 0 | U88: 0 | V88: 0 | W88: 0 | X88: 0 | Y88: 0 | Z88: 0 | AA88: 0 | AB88: 0 | AC88: 0 | AD88: 0 | AE88: 0 | AF88: 0 | AG88: 0
A89: 63 | C89: > NHH UMS category D | J89: 0 | K89: 0 | L89: 0 | M89: 0 | N89: 0 | O89: 0 | P89: 0 | Q89: 0 | R89: 0 | S89: 0 | T89: 0 | U89: 0 | V89: 0 | W89: 0 | X89: 0 | Y89: 0 | Z89: 0 | AA89: 0 | AB89: 0 | AC89: 0 | AD89: 0 | AE89: 0 | AF89: 0 | AG89: 0
A90: 64 | B90: 1 | C90: NHH UMS category D | G90: 0 | J90: 0 | K90: 0 | L90: 0 | M90: 0 | N90: 0 | O90: 0 | P90: 0 | Q90: 0 | R90: 0 | S90: 0 | T90: 0 | U90: 0 | V90: 0 | W90: 0 | X90: 0 | Y90: 0 | Z90: 0 | AA90: 0 | AB90: 0 | AC90: 0 | AD90: 0 | AE90: 0 | AF90: 0 | AG90: 0
A91: 65 | B91: 1 | C91: LDNO LV: NHH UMS category D | J91: 0 | K91: 0 | L91: 0 | M91: 0 | N91: 0 | O91: 0 | P91: 0 | Q91: 0 | R91: 0 | S91: 0 | T91: 0 | U91: 0 | V91: 0 | W91: 0 | X91: 0 | Y91: 0 | Z91: 0 | AA91: 0 | AB91: 0 | AC91: 0 | AD91: 0 | AE91: 0 | AF91: 0 | AG91: 0
A92: 66 | B92: 1 | C92: LDNO HV: NHH UMS category D | J92: 0 | K92: 0 | L92: 0 | M92: 0 | N92: 0 | O92: 0 | P92: 0 | Q92: 0 | R92: 0 | S92: 0 | T92: 0 | U92: 0 | V92: 0 | W92: 0 | X92: 0 | Y92: 0 | Z92: 0 | AA92: 0 | AB92: 0 | AC92: 0 | AD92: 0 | AE92: 0 | AF92: 0 | AG92: 0
A93: =A92+1 -> 67 | C93: > LV UMS (Pseudo HH Metered) | J93: 0 | K93: 0 | L93: 0 | M93: 0 | N93: 0 | O93: 0 | P93: 0 | Q93: 0 | R93: 0 | S93: 0 | T93: 0 | U93: 0 | V93: 0 | W93: 0 | X93: 0 | Y93: 0 | Z93: 0 | AA93: 0 | AB93: 0 | AC93: 0 | AD93: 0 | AE93: 0 | AF93: 0 | AG93: 0
A94: 68 | B94: 2 | C94: LV UMS (Pseudo HH Metered) | D94: 14015.0102 | E94: 33274.78945 | F94: 229923.2841 | G94: 23 | J94: 13874.8601 | K94: 32942.04155 | L94: 227624.0513 | M94: 23.0276 | N94: 0 | O94: 0 | P94: 13736.1115 | Q94: 32612.62114 | R94: 225347.8108 | S94: 23.05523312 | T94: 0 | U94: 0 | V94: 13598.75039 | W94: 32286.49493 | X94: 223094.3326 | Y94: 23.0828994 | Z94: 0 | AA94: 0 | AB94: 13462.76288 | AC94: 31963.62998 | AD94: 220863.3893 | AE94: 23.11059888 | AF94: 0 | AG94: 0
A95: 69 | B95: 2 | C95: LDNO LV: LV UMS (Pseudo HH Metered) | D95: 0 | E95: 0 | F95: 0 | G95: 0 | J95: 0 | K95: 0 | L95: 0 | M95: 0 | N95: 0 | O95: 0 | P95: 0 | Q95: 0 | R95: 0 | S95: 0 | T95: 0 | U95: 0 | V95: 0 | W95: 0 | X95: 0 | Y95: 0 | Z95: 0 | AA95: 0 | AB95: 0 | AC95: 0 | AD95: 0 | AE95: 0 | AF95: 0 | AG95: 0
A96: 70 | B96: 2 | C96: LDNO HV: LV UMS (Pseudo HH Metered) | D96: 0 | E96: 0 | F96: 0 | G96: 0 | J96: 0 | K96: 0 | L96: 0 | M96: 0 | N96: 0 | O96: 0 | P96: 0 | Q96: 0 | R96: 0 | S96: 0 | T96: 0 | U96: 0 | V96: 0 | W96: 0 | X96: 0 | Y96: 0 | Z96: 0 | AA96: 0 | AB96: 0 | AC96: 0 | AD96: 0 | AE96: 0 | AF96: 0 | AG96: 0
A97: 71 | C97: > LV Generation NHH or Aggregate HH | J97: 0 | K97: 0 | L97: 0 | M97: 0 | N97: 0 | O97: 0 | P97: 0 | Q97: 0 | R97: 0 | S97: 0 | T97: 0 | U97: 0 | V97: 0 | W97: 0 | X97: 0 | Y97: 0 | Z97: 0 | AA97: 0 | AB97: 0 | AC97: 0 | AD97: 0 | AE97: 0 | AF97: 0 | AG97: 0
A98: 72 | B98: 4 | C98: LV Generation NHH or Aggregate HH | D98: 653.0360581 | G98: 54 | J98: 659.5664187 | K98: 0 | L98: 0 | M98: 54.0648 | N98: 0 | O98: 0 | P98: 666.1620828 | Q98: 0 | R98: 0 | S98: 54.12967776 | T98: 0 | U98: 0 | V98: 672.8237037 | W98: 0 | X98: 0 | Y98: 54.19463337 | Z98: 0 | AA98: 0 | AB98: 679.5519407 | AC98: 0 | AD98: 0 | AE98: 54.25966693 | AF98: 0 | AG98: 0
A99: 73 | B99: 4 | C99: LDNO LV: LV Generation NHH or Aggregate HH | D99: 0 | G99: 0 | J99: 0 | K99: 0 | L99: 0 | M99: 0 | N99: 0 | O99: 0 | P99: 0 | Q99: 0 | R99: 0 | S99: 0 | T99: 0 | U99: 0 | V99: 0 | W99: 0 | X99: 0 | Y99: 0 | Z99: 0 | AA99: 0 | AB99: 0 | AC99: 0 | AD99: 0 | AE99: 0 | AF99: 0 | AG99: 0
A100: 74 | B100: 4 | C100: LDNO HV: LV Generation NHH or Aggregate HH | D100: 0 | G100: 0 | J100: 0 | K100: 0 | L100: 0 | M100: 0 | N100: 0 | O100: 0 | P100: 0 | Q100: 0 | R100: 0 | S100: 0 | T100: 0 | U100: 0 | V100: 0 | W100: 0 | X100: 0 | Y100: 0 | Z100: 0 | AA100: 0 | AB100: 0 | AC100: 0 | AD100: 0 | AE100: 0 | AF100: 0 | AG100: 0
A101: 75 | C101: > LV Sub Generation NHH | J101: 0 | K101: 0 | L101: 0 | M101: 0 | N101: 0 | O101: 0 | P101: 0 | Q101: 0 | R101: 0 | S101: 0 | T101: 0 | U101: 0 | V101: 0 | W101: 0 | X101: 0 | Y101: 0 | Z101: 0 | AA101: 0 | AB101: 0 | AC101: 0 | AD101: 0 | AE101: 0 | AF101: 0 | AG101: 0
A102: 76 | B102: 4 | C102: LV Sub Generation NHH | D102: 0 | G102: 0 | J102: 0 | K102: 0 | L102: 0 | M102: 0 | N102: 0 | O102: 0 | P102: 0 | Q102: 0 | R102: 0 | S102: 0 | T102: 0 | U102: 0 | V102: 0 | W102: 0 | X102: 0 | Y102: 0 | Z102: 0 | AA102: 0 | AB102: 0 | AC102: 0 | AD102: 0 | AE102: 0 | AF102: 0 | AG102: 0
A103: 77 | B103: 4 | C103: LDNO HV: LV Sub Generation NHH | D103: 0 | G103: 0 | J103: 0 | K103: 0 | L103: 0 | M103: 0 | N103: 0 | O103: 0 | P103: 0 | Q103: 0 | R103: 0 | S103: 0 | T103: 0 | U103: 0 | V103: 0 | W103: 0 | X103: 0 | Y103: 0 | Z103: 0 | AA103: 0 | AB103: 0 | AC103: 0 | AD103: 0 | AE103: 0 | AF103: 0 | AG103: 0
A104: 78 | C104: > LV Generation Intermittent | J104: 0 | K104: 0 | L104: 0 | M104: 0 | N104: 0 | O104: 0 | P104: 0 | Q104: 0 | R104: 0 | S104: 0 | T104: 0 | U104: 0 | V104: 0 | W104: 0 | X104: 0 | Y104: 0 | Z104: 0 | AA104: 0 | AB104: 0 | AC104: 0 | AD104: 0 | AE104: 0 | AF104: 0 | AG104: 0
A105: 79 | B105: 4 | C105: LV Generation Intermittent | D105: 12543.44024 | G105: 111 | I105: 449.3942928 | J105: 12668.87464 | K105: 0 | L105: 0 | M105: 111.1332 | N105: 0 | O105: 449.3942928 | P105: 12795.56339 | Q105: 0 | R105: 0 | S105: 111.2665598 | T105: 0 | U105: 449.3942928 | V105: 12923.51902 | W105: 0 | X105: 0 | Y105: 111.4000797 | Z105: 0 | AA105: 449.3942928 | AB105: 13052.75421 | AC105: 0 | AD105: 0 | AE105: 111.5337598 | AF105: 0 | AG105: 449.3942928
A106: 80 | B106: 4 | C106: LDNO LV: LV Generation Intermittent | D106: 0 | I106: 0 | J106: =IF(D106,((VLOOKUP($B106,$E$7:$AE$16,4)+1)*D106),) -> 0 | K106: =IF(E106,((VLOOKUP($B106,$E$7:$AE$16,8)+1)*E106),) -> 0 | L106: =IF(F106,((VLOOKUP($B106,$E$7:$AE$16,12)+1)*F106),) -> 0 | M106: =IF(G106,((VLOOKUP($B106,$E$7:$AE$16,16)+1)*G106),) -> 0 | N106: =IF(H106,((VLOOKUP($B106,$E$7:$AE$16,20)+1)*H106),) -> 0 | O106: =IF(I106,((VLOOKUP($B106,$E$7:$AE$16,24)+1)*I106),) -> 0 | P106: =IF(D106,((VLOOKUP($B106,$E$7:$AE$16,5)+1)*J106),) -> 0 | Q106: =IF(E106,((VLOOKUP($B106,$E$7:$AE$16,5+4)+1)*K106),) -> 0 | R106: =IF(F106,((VLOOKUP($B106,$E$7:$AE$16,5+8)+1)*L106),) -> 0 | S106: =IF(G106,((VLOOKUP($B106,$E$7:$AE$16,5+12)+1)*M106),) -> 0 | T106: =IF(H106,((VLOOKUP($B106,$E$7:$AE$16,5+16)+1)*N106),) -> 0 | U106: =IF(I106,((VLOOKUP($B106,$E$7:$AE$16,5+20)+1)*O106),) -> 0 | V106: =IF(D106,((VLOOKUP($B106,$E$7:$AE$16,6)+1)*P106),) -> 0 | W106: =IF(E106,((VLOOKUP($B106,$E$7:$AE$16,6+4)+1)*Q106),) -> 0 | X106: =IF(F106,((VLOOKUP($B106,$E$7:$AE$16,6+8)+1)*R106),) -> 0 | Y106: =IF(G106,((VLOOKUP($B106,$E$7:$AE$16,6+12)+1)*S106),) -> 0 | Z106: =IF(H106,((VLOOKUP($B106,$E$7:$AE$16,6+16)+1)*T106),) -> 0 | AA106: =IF(I106,((VLOOKUP($B106,$E$7:$AE$16,6+20)+1)*U106),) -> 0 | AB106: =IF(D106,((VLOOKUP($B106,$E$7:$AE$16,7)+1)*V106),) -> 0 | AC106: =IF(E106,((VLOOKUP($B106,$E$7:$AE$16,7+4)+1)*W106),) -> 0 | AD106: =IF(F106,((VLOOKUP($B106,$E$7:$AE$16,7+8)+1)*X106),) -> 0 | AE106: =IF(G106,((VLOOKUP($B106,$E$7:$AE$16,7+12)+1)*Y106),) -> 0 | AF106: =IF(H106,((VLOOKUP($B106,$E$7:$AE$16,7+16)+1)*Z106),) -> 0 | AG106: =IF(I106,((VLOOKUP($B106,$E$7:$AE$16,7+20)+1)*AA106),) -> 0
A107: 81 | B107: 4 | C107: LDNO HV: LV Generation Intermittent | D107: 0 | G107: 0 | I107: 0 | J107: 0 | K107: 0 | L107: 0 | M107: 0 | N107: 0 | O107: 0 | P107: 0 | Q107: 0 | R107: 0 | S107: 0 | T107: 0 | U107: 0 | V107: 0 | W107: 0 | X107: 0 | Y107: 0 | Z107: 0 | AA107: 0 | AB107: 0 | AC107: 0 | AD107: 0 | AE107: 0 | AF107: 0 | AG107: 0
A108: 82 | C108: > LV Generation Non-Intermittent | J108: 0 | K108: 0 | L108: 0 | M108: 0 | N108: 0 | O108: 0 | P108: 0 | Q108: 0 | R108: 0 | S108: 0 | T108: 0 | U108: 0 | V108: 0 | W108: 0 | X108: 0 | Y108: 0 | Z108: 0 | AA108: 0 | AB108: 0 | AC108: 0 | AD108: 0 | AE108: 0 | AF108: 0 | AG108: 0
A109: 83 | B109: 4 | C109: LV Generation Non-Intermittent | D109: 81.14051287 | E109: 287.2435286 | F109: 370.8878919 | G109: 10 | I109: 25.07207859 | J109: 81.951918 | K109: 290.1159639 | L109: 374.5967708 | M109: 10.012 | N109: 0 | O109: 25.07207859 | P109: 82.77143718 | Q109: 293.0171235 | R109: 378.3427385 | S109: 10.0240144 | T109: 0 | U109: 25.07207859 | V109: 83.59915155 | W109: 295.9472948 | X109: 382.1261659 | Y109: 10.03604322 | Z109: 0 | AA109: 25.07207859 | AB109: 84.43514306 | AC109: 298.9067677 | AD109: 385.9474275 | AE109: 10.04808647 | AF109: 0 | AG109: 25.07207859
A110: 84 | B110: 4 | C110: LDNO LV: LV Generation Non-Intermittent | D110: 4.093684976 | E110: 14.49695783 | F110: 18.70455038 | G110: 2 | I110: 1.9386 | J110: 4.134621826 | K110: 14.6419274 | L110: 18.89159589 | M110: 2.0024 | N110: 0 | O110: 1.9386 | P110: 4.175968044 | Q110: 14.78834668 | R110: 19.08051185 | S110: 2.00480288 | T110: 0 | U110: 1.9386 | V110: 4.217727725 | W110: 14.93623015 | X110: 19.27131696 | Y110: 2.007208643 | Z110: 0 | AA110: 1.9386 | AB110: 4.259905002 | AC110: 15.08559245 | AD110: 19.46403013 | AE110: 2.009617294 | AF110: 0 | AG110: 1.9386
A111: 85 | B111: 4 | C111: LDNO HV: LV Generation Non-Intermittent | D111: 0 | E111: 0 | F111: 0 | G111: 0 | I111: 0 | J111: 0 | K111: 0 | L111: 0 | M111: 0 | N111: 0 | O111: 0 | P111: 0 | Q111: 0 | R111: 0 | S111: 0 | T111: 0 | U111: 0 | V111: 0 | W111: 0 | X111: 0 | Y111: 0 | Z111: 0 | AA111: 0 | AB111: 0 | AC111: 0 | AD111: 0 | AE111: 0 | AF111: 0 | AG111: 0
A112: 86 | C112: > LV Sub Generation Intermittent | J112: 0 | K112: 0 | L112: 0 | M112: 0 | N112: 0 | O112: 0 | P112: 0 | Q112: 0 | R112: 0 | S112: 0 | T112: 0 | U112: 0 | V112: 0 | W112: 0 | X112: 0 | Y112: 0 | Z112: 0 | AA112: 0 | AB112: 0 | AC112: 0 | AD112: 0 | AE112: 0 | AF112: 0 | AG112: 0
A113: 87 | B113: 4 | C113: LV Sub Generation Intermittent | D113: 249.08382 | G113: 10 | I113: 3.460723069 | J113: 251.5746582 | K113: 0 | L113: 0 | M113: 10.012 | N113: 0 | O113: 3.460723069 | P113: 254.0904048 | Q113: 0 | R113: 0 | S113: 10.0240144 | T113: 0 | U113: 3.460723069 | V113: 256.6313088 | W113: 0 | X113: 0 | Y113: 10.03604322 | Z113: 0 | AA113: 3.460723069 | AB113: 259.1976219 | AC113: 0 | AD113: 0 | AE113: 10.04808647 | AF113: 0 | AG113: 3.460723069
A114: 88 | B114: 4 | C114: LDNO HV: LV Sub Generation Intermittent | D114: 0 | G114: 0 | I114: 0 | J114: 0 | K114: 0 | L114: 0 | M114: 0 | N114: 0 | O114: 0 | P114: 0 | Q114: 0 | R114: 0 | S114: 0 | T114: 0 | U114: 0 | V114: 0 | W114: 0 | X114: 0 | Y114: 0 | Z114: 0 | AA114: 0 | AB114: 0 | AC114: 0 | AD114: 0 | AE114: 0 | AF114: 0 | AG114: 0
A115: 89 | C115: > LV Sub Generation Non-Intermittent | J115: 0 | K115: 0 | L115: 0 | M115: 0 | N115: 0 | O115: 0 | P115: 0 | Q115: 0 | R115: 0 | S115: 0 | T115: 0 | U115: 0 | V115: 0 | W115: 0 | X115: 0 | Y115: 0 | Z115: 0 | AA115: 0 | AB115: 0 | AC115: 0 | AD115: 0 | AE115: 0 | AF115: 0 | AG115: 0
A116: 90 | B116: 4 | C116: LV Sub Generation Non-Intermittent | D116: 34.01752546 | E116: 122.9529147 | F116: 162.8709598 | G116: 9 | I116: 275.3255398 | J116: =IF(D116,((VLOOKUP($B116,$E$7:$AE$16,4)+1)*D116),) -> 34.35770072 | K116: =IF(E116,((VLOOKUP($B116,$E$7:$AE$16,8)+1)*E116),) -> 124.1824439 | L116: =IF(F116,((VLOOKUP($B116,$E$7:$AE$16,12)+1)*F116),) -> 164.4996694 | M116: =IF(G116,((VLOOKUP($B116,$E$7:$AE$16,16)+1)*G116),) -> 9.0108 | N116: =IF(H116,((VLOOKUP($B116,$E$7:$AE$16,20)+1)*H116),) -> 0 | O116: =IF(I116,((VLOOKUP($B116,$E$7:$AE$16,24)+1)*I116),) -> 275.3255398 | P116: =IF(D116,((VLOOKUP($B116,$E$7:$AE$16,5)+1)*J116),) -> 34.70127772 | Q116: =IF(E116,((VLOOKUP($B116,$E$7:$AE$16,5+4)+1)*K116),) -> 125.4242683 | R116: =IF(F116,((VLOOKUP($B116,$E$7:$AE$16,5+8)+1)*L116),) -> 166.1446661 | S116: =IF(G116,((VLOOKUP($B116,$E$7:$AE$16,5+12)+1)*M116),) -> 9.02161296 | T116: =IF(H116,((VLOOKUP($B116,$E$7:$AE$16,5+16)+1)*N116),) -> 0 | U116: =IF(I116,((VLOOKUP($B116,$E$7:$AE$16,5+20)+1)*O116),) -> 275.3255398 | V116: =IF(D116,((VLOOKUP($B116,$E$7:$AE$16,6)+1)*P116),) -> 35.0482905 | W116: =IF(E116,((VLOOKUP($B116,$E$7:$AE$16,6+4)+1)*Q116),) -> 126.678511 | X116: =IF(F116,((VLOOKUP($B116,$E$7:$AE$16,6+8)+1)*R116),) -> 167.8061128 | Y116: =IF(G116,((VLOOKUP($B116,$E$7:$AE$16,6+12)+1)*S116),) -> 9.032438896 | Z116: =IF(H116,((VLOOKUP($B116,$E$7:$AE$16,6+16)+1)*T116),) -> 0 | AA116: =IF(I116,((VLOOKUP($B116,$E$7:$AE$16,6+20)+1)*U116),) -> 275.3255398 | AB116: =IF(D116,((VLOOKUP($B116,$E$7:$AE$16,7)+1)*V116),) -> 35.39877341 | AC116: =IF(E116,((VLOOKUP($B116,$E$7:$AE$16,7+4)+1)*W116),) -> 127.9452961 | AD116: =IF(F116,((VLOOKUP($B116,$E$7:$AE$16,7+8)+1)*X116),) -> 169.4841739 | AE116: =IF(G116,((VLOOKUP($B116,$E$7:$AE$16,7+12)+1)*Y116),) -> 9.043277822 | AF116: =IF(H116,((VLOOKUP($B116,$E$7:$AE$16,7+16)+1)*Z116),) -> 0 | AG116: =IF(I116,((VLOOKUP($B116,$E$7:$AE$16,7+20)+1)*AA116),) -> 275.3255398
A117: 91 | B117: 4 | C117: LDNO HV: LV Sub Generation Non-Intermittent | D117: 0 | E117: 0 | F117: 0 | G117: 0 | H117: 0 | I117: 0 | J117: 0 | K117: 0 | L117: 0 | M117: 0 | N117: 0 | O117: 0 | P117: 0 | Q117: 0 | R117: 0 | S117: 0 | T117: 0 | U117: 0 | V117: 0 | W117: 0 | X117: 0 | Y117: 0 | Z117: 0 | AA117: 0 | AB117: 0 | AC117: 0 | AD117: 0 | AE117: 0 | AF117: 0 | AG117: 0
A118: 92 | C118: > HV Generation Intermittent | J118: 0 | K118: 0 | L118: 0 | M118: 0 | N118: 0 | O118: 0 | P118: 0 | Q118: 0 | R118: 0 | S118: 0 | T118: 0 | U118: 0 | V118: 0 | W118: 0 | X118: 0 | Y118: 0 | Z118: 0 | AA118: 0 | AB118: 0 | AC118: 0 | AD118: 0 | AE118: 0 | AF118: 0 | AG118: 0
A119: 93 | B119: 4 | C119: HV Generation Intermittent | D119: 207654.6694 | G119: 73 | I119: 5691.340636 | J119: 209731.2161 | K119: 0 | L119: 0 | M119: 73.0876 | N119: 0 | O119: 5691.340636 | P119: 211828.5282 | Q119: 0 | R119: 0 | S119: 73.17530512 | T119: 0 | U119: 5691.340636 | V119: 213946.8135 | W119: 0 | X119: 0 | Y119: 73.26311549 | Z119: 0 | AA119: 5691.340636 | AB119: 216086.2817 | AC119: 0 | AD119: 0 | AE119: 73.35103122 | AF119: 0 | AG119: 5691.340636
A120: 94 | B120: 4 | C120: LDNO HV: HV Generation Intermittent | D120: 0 | G120: 0 | I120: 0 | J120: 0 | K120: 0 | L120: 0 | M120: 0 | N120: 0 | O120: 0 | P120: 0 | Q120: 0 | R120: 0 | S120: 0 | T120: 0 | U120: 0 | V120: 0 | W120: 0 | X120: 0 | Y120: 0 | Z120: 0 | AA120: 0 | AB120: 0 | AC120: 0 | AD120: 0 | AE120: 0 | AF120: 0 | AG120: 0
A121: 95 | C121: > HV Generation Non-Intermittent | J121: 0 | K121: 0 | L121: 0 | M121: 0 | N121: 0 | O121: 0 | P121: 0 | Q121: 0 | R121: 0 | S121: 0 | T121: 0 | U121: 0 | V121: 0 | W121: 0 | X121: 0 | Y121: 0 | Z121: 0 | AA121: 0 | AB121: 0 | AC121: 0 | AD121: 0 | AE121: 0 | AF121: 0 | AG121: 0
A122: 96 | B122: 4 | C122: HV Generation Non-Intermittent | D122: 46437.09519 | E122: 157649.8324 | F122: 258014.7604 | G122: 100 | I122: 12252.96923 | J122: =IF(D122,((VLOOKUP($B122,$E$7:$AE$16,4)+1)*D122),) -> 46901.46614 | K122: =IF(E122,((VLOOKUP($B122,$E$7:$AE$16,8)+1)*E122),) -> 159226.3308 | L122: =IF(F122,((VLOOKUP($B122,$E$7:$AE$16,12)+1)*F122),) -> 260594.908 | M122: =IF(G122,((VLOOKUP($B122,$E$7:$AE$16,16)+1)*G122),) -> 100.12 | N122: =IF(H122,((VLOOKUP($B122,$E$7:$AE$16,20)+1)*H122),) -> 0 | O122: =IF(I122,((VLOOKUP($B122,$E$7:$AE$16,24)+1)*I122),) -> 12252.96923 | P122: =IF(D122,((VLOOKUP($B122,$E$7:$AE$16,5)+1)*J122),) -> 47370.4808 | Q122: =IF(E122,((VLOOKUP($B122,$E$7:$AE$16,5+4)+1)*K122),) -> 160818.5941 | R122: =IF(F122,((VLOOKUP($B122,$E$7:$AE$16,5+8)+1)*L122),) -> 263200.8571 | S122: =IF(G122,((VLOOKUP($B122,$E$7:$AE$16,5+12)+1)*M122),) -> 100.240144 | T122: =IF(H122,((VLOOKUP($B122,$E$7:$AE$16,5+16)+1)*N122),) -> 0 | U122: =IF(I122,((VLOOKUP($B122,$E$7:$AE$16,5+20)+1)*O122),) -> 12252.96923 | V122: =IF(D122,((VLOOKUP($B122,$E$7:$AE$16,6)+1)*P122),) -> 47844.18561 | W122: =IF(E122,((VLOOKUP($B122,$E$7:$AE$16,6+4)+1)*Q122),) -> 162426.78 | X122: =IF(F122,((VLOOKUP($B122,$E$7:$AE$16,6+8)+1)*R122),) -> 265832.8657 | Y122: =IF(G122,((VLOOKUP($B122,$E$7:$AE$16,6+12)+1)*S122),) -> 100.3604322 | Z122: =IF(H122,((VLOOKUP($B122,$E$7:$AE$16,6+16)+1)*T122),) -> 0 | AA122: =IF(I122,((VLOOKUP($B122,$E$7:$AE$16,6+20)+1)*U122),) -> 12252.96923 | AB122: =IF(D122,((VLOOKUP($B122,$E$7:$AE$16,7)+1)*V122),) -> 48322.62747 | AC122: =IF(E122,((VLOOKUP($B122,$E$7:$AE$16,7+4)+1)*W122),) -> 164051.0478 | AD122: =IF(F122,((VLOOKUP($B122,$E$7:$AE$16,7+8)+1)*X122),) -> 268491.1944 | AE122: =IF(G122,((VLOOKUP($B122,$E$7:$AE$16,7+12)+1)*Y122),) -> 100.4808647 | AF122: =IF(H122,((VLOOKUP($B122,$E$7:$AE$16,7+16)+1)*Z122),) -> 0 | AG122: =IF(I122,((VLOOKUP($B122,$E$7:$AE$16,7+20)+1)*AA122),) -> 12252.96923
A123: 97 | B123: 4 | C123: LDNO HV: HV Generation Non-Intermittent | J123: 0 | K123: 0 | L123: 0 | M123: 0 | N123: 0 | O123: 0 | P123: 0 | Q123: 0 | R123: 0 | S123: 0 | T123: 0 | U123: 0 | V123: 0 | W123: 0 | X123: 0 | Y123: 0 | Z123: 0 | AA123: 0 | AB123: 0 | AC123: 0 | AD123: 0 | AE123: 0 | AF123: 0 | AG123: 0

Sheet CDCM Timebands
B2: CDCM Timebands
C4: 2015/16
C5: WD (incl. bank holidays) | D5: WE | E5: 2016/17 | F5: 2017/18 | G5: 2018/19 | H5: 2019/20
B6: Red | C6: 16:00 to 19:00 | E6: No change from 2015/16 | F6: No change from 2015/16 | G6: No change from 2015/16 | H6: No change from 2015/16
B8: Amber | C8: 09:00 to 16:00 | D8: 16:00 to 19:00
C9: 19:00 to 20:30
B11: Green | C11: 00:00 to 09:00 | D11: 00:00 to 16:00
C12: 20:30 to 24:00 | D12: 19:00 to 24:00
C17: 2015/16 Nov to Feb | E17: 2015/16 Mar to Oct
C18: WD (incl. bank holidays) | D18: WE | E18: WD (incl. bank holidays) | F18: WE | G18: 2016/17 | H18: 2017/18 | I18: 2018/19
B19: Black | C19: 16:00 to 19:00 | G19: No change from 2015/16 | H19: No change from 2015/16 | I19: No change from 2015/16
B21: Yellow | C21: 09:00 to 16:00 | D21: 16:00 to 19:00 | E21: 09:00 to 20:30 | F21: 16:00 to 19:00
C22: 19:00 to 20:30
B24: Green
C25: 00:00 to 09:00 | D25: 00:00 to 16:00 | E25: 00:00 to 09:00 | F25: 00:00 to 16:00
C26: 20:30 to 24:00 | D26: 19:00 to 24:00 | E26: 20:30 to 24:00 | F26: 19:00 to 24:00

Sheet (Y)
A1: Input data (Y)
A4: 1000. Company, charging year, data version
B6: Company | C6: Year | D6: Version
A7: Company, charging year, data version | B7: =VLOOKUP(Vlookup!B7,'CDCM Forecast Data'!$A$14:$I$271,5,FALSE) -> ENWL | C7: =VLOOKUP(Vlookup!C7,'CDCM Forecast Data'!$A$14:$I$271,5,FALSE) -> 2015/16 | D7: =VLOOKUP(Vlookup!D7,'CDCM Forecast Data'!$A$14:$I$271,5,FALSE) -> v1
A9: 1010. Financial and general assumptions
A11: Sources: financial assumptions; calendar; network model.
A12: These financial assumptions determine the annuity rate applied to convert the asset values of the network model into an annual charge.
B13: Rate of return | C13: Annualisation period (years) | D13: Annuity proportion for customer-contributed assets | E13: Power factor | F13: Days in the charging period
A14: Financial and general assumptions | B14: =VLOOKUP(Vlookup!B14,'CDCM Forecast Data'!$A$14:$I$271,5,FALSE) -> 0.056 | C14: =VLOOKUP(Vlookup!C14,'CDCM Forecast Data'!$A$14:$I$271,5,FALSE) -> 40 | E14: =VLOOKUP(Vlookup!E14,'CDCM Forecast Data'!$A$14:$I$271,5,FALSE) -> 0.95 | F14: =VLOOKUP(Vlookup!F14,'CDCM Forecast Data'!$A$14:$I$271,5,FALSE) -> 366
A16: 1017. Diversity allowance between top and bottom of network level
A18: Source: operational data analysis and/or network model.
A19: The diversity figure against GSP is the diversity between GSP Group (the whole system) and individual GSPs.
A20: The diversity figure against 132kV is the diversity between GSPs (the top of the 132kV network) and 132kV/EHV bulk supply points (the bottom of the 132kV network).
A21: The diversity figure against EHV is the diversity between 132kV/EHV bulk supply points (the top of the EHV network) and EHV/HV primary substations (the bottom of the EHV network).
A22: The diversity figure against HV is the diversity between EHV/HV primary substations (the top of the HV network) and HV/LV substations (the bottom of the HV network).
B23: Diversity allowance between top and bottom of network level
A24: GSPs | B24: =VLOOKUP(Vlookup!B24,'CDCM Forecast Data'!$A$14:$I$271,5,FALSE) -> 0.114
A25: 132kV | B25: =VLOOKUP(Vlookup!B25,'CDCM Forecast Data'!$A$14:$I$271,5,FALSE) -> 0.049
A26: 132kV/EHV
A27: EHV | B27: =VLOOKUP(Vlookup!B27,'CDCM Forecast Data'!$A$14:$I$271,5,FALSE) -> 0.07
A28: EHV/HV
A29: HV | B29: =VLOOKUP(Vlookup!B29,'CDCM Forecast Data'!$A$14:$I$271,5,FALSE) -> 0.34
A30: HV/LV
A31: LV circuits
A33: 1018. Proportion of relevant load going through 132kV/HV direct transformation
B35: 132kV/HV
A36: EHV/HV | B36: =VLOOKUP(Vlookup!B36,'CDCM Forecast Data'!$A$14:$I$271,5,FALSE) -> 0
A38: 1019. Network model GSP peak demand (MW)
B40: Network model GSP peak demand (MW)
A41: Network model GSP peak demand (MW) | B41: =VLOOKUP(Vlookup!B41,'CDCM Forecast Data'!$A$14:$I$271,5,FALSE) -> 500
A43: 1020. Gross asset cost by network level (£)
B45: Gross assets £
A46: 132kV | B46: =VLOOKUP(Vlookup!B46,'CDCM Forecast Data'!$A$14:$I$271,5,FALSE) -> 83368102.69
A47: 132kV/EHV | B47: =VLOOKUP(Vlookup!B47,'CDCM Forecast Data'!$A$14:$I$271,5,FALSE) -> 34102423.29
A48: EHV | B48: =VLOOKUP(Vlookup!B48,'CDCM Forecast Data'!$A$14:$I$271,5,FALSE) -> 84319183.47
A49: EHV/HV | B49: =VLOOKUP(Vlookup!B49,'CDCM Forecast Data'!$A$14:$I$271,5,FALSE) -> 61366613.59
A50: 132kV/HV | B50: =VLOOKUP(Vlookup!B50,'CDCM Forecast Data'!$A$14:$I$271,5,FALSE) -> 0
A51: HV | B51: =VLOOKUP(Vlookup!B51,'CDCM Forecast Data'!$A$14:$I$271,5,FALSE) -> 107407524
A52: HV/LV | B52: =VLOOKUP(Vlookup!B52,'CDCM Forecast Data'!$A$14:$I$271,5,FALSE) -> 88717503.72
A53: LV circuits | B53: =VLOOKUP(Vlookup!B53,'CDCM Forecast Data'!$A$14:$I$271,5,FALSE) -> 56877258.37
A55: 1022. LV service model asset cost (£)
B57: LV service model 1 | C57: LV service model 2 | D57: LV service model 3 | E57: LV service model 4 | F57: LV service model 5 | G57: LV service model 6 | H57: LV service model 7 | I57: LV service model 8
A58: LV service model asset cost (£) | B58: =VLOOKUP(Vlookup!B58,'CDCM Forecast Data'!$A$14:$I$271,5,FALSE) -> 9801.997385 | C58: =VLOOKUP(Vlookup!C58,'CDCM Forecast Data'!$A$14:$I$271,5,FALSE) -> 490.0998692 | D58: =VLOOKUP(Vlookup!D58,'CDCM Forecast Data'!$A$14:$I$271,5,FALSE) -> 2347.400002 | E58: =VLOOKUP(Vlookup!E58,'CDCM Forecast Data'!$A$14:$I$271,5,FALSE) -> 7517.031302 | F58: =VLOOKUP(Vlookup!F58,'CDCM Forecast Data'!$A$14:$I$271,5,FALSE) -> 271.9836973 | G58: =VLOOKUP(Vlookup!G58,'CDCM Forecast Data'!$A$14:$I$271,5,FALSE) -> 0 | H58: =VLOOKUP(Vlookup!H58,'CDCM Forecast Data'!$A$14:$I$271,5,FALSE) -> 0 | I58: =VLOOKUP(Vlookup!I58,'CDCM Forecast Data'!$A$14:$I$271,5,FALSE) -> 0
A60: 1023. HV service model asset cost (£)
B62: HV service model 1 | C62: HV service model 2 | D62: HV service model 3 | E62: HV service model 4 | F62: HV service model 5
A63: HV service model asset cost (£) | B63: =VLOOKUP(Vlookup!B63,'CDCM Forecast Data'!$A$14:$I$271,5,FALSE) -> 18868.15825 | C63: =VLOOKUP(Vlookup!C63,'CDCM Forecast Data'!$A$14:$I$271,5,FALSE) -> 16696.82258 | D63: =VLOOKUP(Vlookup!D63,'CDCM Forecast Data'!$A$14:$I$271,5,FALSE) -> 1187.91403 | E63: =VLOOKUP(Vlookup!E63,'CDCM Forecast Data'!$A$14:$I$271,5,FALSE) -> - | F63: =VLOOKUP(Vlookup!F63,'CDCM Forecast Data'!$A$14:$I$271,5,FALSE) -> -
A65: 1025. Matrix of applicability of LV service models to tariffs with fixed charges
B66: 2 | C66: =B66+1 -> 3 | D66: 4 | E66: 5 | F66: 6 | G66: 7 | H66: 8 | I66: 9
B67: LV service model 1 | C67: LV service model 2 | D67: LV service model 3 | E67: LV service model 4 | F67: LV service model 5 | G67: LV service model 6 | H67: LV service model 7 | I67: LV service model 8
A68: Domestic Unrestricted | B68: =VLOOKUP($A68,'Mat of App'!$B$7:$AP$37,B$66,FALSE) -> 0.05 | C68: =VLOOKUP($A68,'Mat of App'!$B$7:$AP$37,C$66,FALSE) -> 0 | D68: =VLOOKUP($A68,'Mat of App'!$B$7:$AP$37,D$66,FALSE) -> 0 | E68: =VLOOKUP($A68,'Mat of App'!$B$7:$AP$37,E$66,FALSE) -> 0 | F68: =VLOOKUP($A68,'Mat of App'!$B$7:$AP$37,F$66,FALSE) -> 0 | G68: =VLOOKUP($A68,'Mat of App'!$B$7:$AP$37,G$66,FALSE) -> 0 | H68: =VLOOKUP($A68,'Mat of App'!$B$7:$AP$37,H$66,FALSE) -> 0 | I68: =VLOOKUP($A68,'Mat of App'!$B$7:$AP$37,I$66,FALSE) -> 0
A69: Domestic Two Rate | B69: =VLOOKUP($A69,'Mat of App'!$B$7:$AP$37,B$66,FALSE) -> 0.05 | C69: =VLOOKUP($A69,'Mat of App'!$B$7:$AP$37,C$66,FALSE) -> 0 | D69: =VLOOKUP($A69,'Mat of App'!$B$7:$AP$37,D$66,FALSE) -> 0 | E69: =VLOOKUP($A69,'Mat of App'!$B$7:$AP$37,E$66,FALSE) -> 0 | F69: =VLOOKUP($A69,'Mat of App'!$B$7:$AP$37,F$66,FALSE) -> 0 | G69: =VLOOKUP($A69,'Mat of App'!$B$7:$AP$37,G$66,FALSE) -> 0 | H69: =VLOOKUP($A69,'Mat of App'!$B$7:$AP$37,H$66,FALSE) -> 0 | I69: =VLOOKUP($A69,'Mat of App'!$B$7:$AP$37,I$66,FALSE) -> 0
A70: Small Non Domestic Unrestricted | B70: =VLOOKUP($A70,'Mat of App'!$B$7:$AP$37,B$66,FALSE) -> 0 | C70: =VLOOKUP($A70,'Mat of App'!$B$7:$AP$37,C$66,FALSE) -> 1 | D70: =VLOOKUP($A70,'Mat of App'!$B$7:$AP$37,D$66,FALSE) -> 0 | E70: =VLOOKUP($A70,'Mat of App'!$B$7:$AP$37,E$66,FALSE) -> 0 | F70: =VLOOKUP($A70,'Mat of App'!$B$7:$AP$37,F$66,FALSE) -> 0 | G70: =VLOOKUP($A70,'Mat of App'!$B$7:$AP$37,G$66,FALSE) -> 0 | H70: =VLOOKUP($A70,'Mat of App'!$B$7:$AP$37,H$66,FALSE) -> 0 | I70: =VLOOKUP($A70,'Mat of App'!$B$7:$AP$37,I$66,FALSE) -> 0
A71: Small Non Domestic Two Rate | B71: =VLOOKUP($A71,'Mat of App'!$B$7:$AP$37,B$66,FALSE) -> 0 | C71: =VLOOKUP($A71,'Mat of App'!$B$7:$AP$37,C$66,FALSE) -> 1 | D71: =VLOOKUP($A71,'Mat of App'!$B$7:$AP$37,D$66,FALSE) -> 0 | E71: =VLOOKUP($A71,'Mat of App'!$B$7:$AP$37,E$66,FALSE) -> 0 | F71: =VLOOKUP($A71,'Mat of App'!$B$7:$AP$37,F$66,FALSE) -> 0 | G71: =VLOOKUP($A71,'Mat of App'!$B$7:$AP$37,G$66,FALSE) -> 0 | H71: =VLOOKUP($A71,'Mat of App'!$B$7:$AP$37,H$66,FALSE) -> 0 | I71: =VLOOKUP($A71,'Mat of App'!$B$7:$AP$37,I$66,FALSE) -> 0
A72: LV Medium Non-Domestic | B72: =VLOOKUP($A72,'Mat of App'!$B$7:$AP$37,B$66,FALSE) -> 0 | C72: =VLOOKUP($A72,'Mat of App'!$B$7:$AP$37,C$66,FALSE) -> 0.1652421652 | D72: =VLOOKUP($A72,'Mat of App'!$B$7:$AP$37,D$66,FALSE) -> 0.8347578348 | E72: =VLOOKUP($A72,'Mat of App'!$B$7:$AP$37,E$66,FALSE) -> 0 | F72: =VLOOKUP($A72,'Mat of App'!$B$7:$AP$37,F$66,FALSE) -> 0 | G72: =VLOOKUP($A72,'Mat of App'!$B$7:$AP$37,G$66,FALSE) -> 0 | H72: =VLOOKUP($A72,'Mat of App'!$B$7:$AP$37,H$66,FALSE) -> 0 | I72: =VLOOKUP($A72,'Mat of App'!$B$7:$AP$37,I$66,FALSE) -> 0
A73: LV Sub Medium Non-Domestic | B73: =VLOOKUP($A73,'Mat of App'!$B$7:$AP$37,B$66,FALSE) -> 0 | C73: =VLOOKUP($A73,'Mat of App'!$B$7:$AP$37,C$66,FALSE) -> 0 | D73: =VLOOKUP($A73,'Mat of App'!$B$7:$AP$37,D$66,FALSE) -> 0 | E73: =VLOOKUP($A73,'Mat of App'!$B$7:$AP$37,E$66,FALSE) -> 1 | F73: =VLOOKUP($A73,'Mat of App'!$B$7:$AP$37,F$66,FALSE) -> 0 | G73: =VLOOKUP($A73,'Mat of App'!$B$7:$AP$37,G$66,FALSE) -> 0 | H73: =VLOOKUP($A73,'Mat of App'!$B$7:$AP$37,H$66,FALSE) -> 0 | I73: =VLOOKUP($A73,'Mat of App'!$B$7:$AP$37,I$66,FALSE) -> 0
A74: LV Network Domestic | B74: =VLOOKUP($A74,'Mat of App'!$B$7:$AP$37,B$66,FALSE) -> 0.05 | C74: =VLOOKUP($A74,'Mat of App'!$B$7:$AP$37,C$66,FALSE) -> 0 | D74: =VLOOKUP($A74,'Mat of App'!$B$7:$AP$37,D$66,FALSE) -> 0 | E74: =VLOOKUP($A74,'Mat of App'!$B$7:$AP$37,E$66,FALSE) -> 0 | F74: =VLOOKUP($A74,'Mat of App'!$B$7:$AP$37,F$66,FALSE) -> 0 | G74: =VLOOKUP($A74,'Mat of App'!$B$7:$AP$37,G$66,FALSE) -> 0 | H74: =VLOOKUP($A74,'Mat of App'!$B$7:$AP$37,H$66,FALSE) -> 0 | I74: =VLOOKUP($A74,'Mat of App'!$B$7:$AP$37,I$66,FALSE) -> 0
A75: LV Network Non-Domestic Non-CT | B75: =VLOOKUP($A75,'Mat of App'!$B$7:$AP$37,B$66,FALSE) -> 0 | C75: =VLOOKUP($A75,'Mat of App'!$B$7:$AP$37,C$66,FALSE) -> 1 | D75: =VLOOKUP($A75,'Mat of App'!$B$7:$AP$37,D$66,FALSE) -> 0 | E75: =VLOOKUP($A75,'Mat of App'!$B$7:$AP$37,E$66,FALSE) -> 0 | F75: =VLOOKUP($A75,'Mat of App'!$B$7:$AP$37,F$66,FALSE) -> 0 | G75: =VLOOKUP($A75,'Mat of App'!$B$7:$AP$37,G$66,FALSE) -> 0 | H75: =VLOOKUP($A75,'Mat of App'!$B$7:$AP$37,H$66,FALSE) -> 0 | I75: =VLOOKUP($A75,'Mat of App'!$B$7:$AP$37,I$66,FALSE) -> 0
A76: LV HH Metered | B76: =VLOOKUP($A76,'Mat of App'!$B$7:$AP$37,B$66,FALSE) -> 0 | C76: =VLOOKUP($A76,'Mat of App'!$B$7:$AP$37,C$66,FALSE) -> 0 | D76: =VLOOKUP($A76,'Mat of App'!$B$7:$AP$37,D$66,FALSE) -> 1 | E76: =VLOOKUP($A76,'Mat of App'!$B$7:$AP$37,E$66,FALSE) -> 0 | F76: =VLOOKUP($A76,'Mat of App'!$B$7:$AP$37,F$66,FALSE) -> 0 | G76: =VLOOKUP($A76,'Mat of App'!$B$7:$AP$37,G$66,FALSE) -> 0 | H76: =VLOOKUP($A76,'Mat of App'!$B$7:$AP$37,H$66,FALSE) -> 0 | I76: =VLOOKUP($A76,'Mat of App'!$B$7:$AP$37,I$66,FALSE) -> 0
A77: LV Sub HH Metered | B77: =VLOOKUP($A77,'Mat of App'!$B$7:$AP$37,B$66,FALSE) -> 0 | C77: =VLOOKUP($A77,'Mat of App'!$B$7:$AP$37,C$66,FALSE) -> 0 | D77: =VLOOKUP($A77,'Mat of App'!$B$7:$AP$37,D$66,FALSE) -> 0 | E77: =VLOOKUP($A77,'Mat of App'!$B$7:$AP$37,E$66,FALSE) -> 1 | F77: =VLOOKUP($A77,'Mat of App'!$B$7:$AP$37,F$66,FALSE) -> 0 | G77: =VLOOKUP($A77,'Mat of App'!$B$7:$AP$37,G$66,FALSE) -> 0 | H77: =VLOOKUP($A77,'Mat of App'!$B$7:$AP$37,H$66,FALSE) -> 0 | I77: =VLOOKUP($A77,'Mat of App'!$B$7:$AP$37,I$66,FALSE) -> 0
A78: LV Generation NHH or Aggregate HH | B78: =VLOOKUP($A78,'Mat of App'!$B$7:$AP$37,B$66,FALSE) -> 0 | C78: =VLOOKUP($A78,'Mat of App'!$B$7:$AP$37,C$66,FALSE) -> 0 | D78: =VLOOKUP($A78,'Mat of App'!$B$7:$AP$37,D$66,FALSE) -> 0 | E78: =VLOOKUP($A78,'Mat of App'!$B$7:$AP$37,E$66,FALSE) -> 0 | F78: =VLOOKUP($A78,'Mat of App'!$B$7:$AP$37,F$66,FALSE) -> 0 | G78: =VLOOKUP($A78,'Mat of App'!$B$7:$AP$37,G$66,FALSE) -> 0 | H78: =VLOOKUP($A78,'Mat of App'!$B$7:$AP$37,H$66,FALSE) -> 0 | I78: =VLOOKUP($A78,'Mat of App'!$B$7:$AP$37,I$66,FALSE) -> 0
A79: LV Sub Generation NHH | B79: =VLOOKUP($A79,'Mat of App'!$B$7:$AP$37,B$66,FALSE) -> 0 | C79: =VLOOKUP($A79,'Mat of App'!$B$7:$AP$37,C$66,FALSE) -> 0 | D79: =VLOOKUP($A79,'Mat of App'!$B$7:$AP$37,D$66,FALSE) -> 0 | E79: =VLOOKUP($A79,'Mat of App'!$B$7:$AP$37,E$66,FALSE) -> 0 | F79: =VLOOKUP($A79,'Mat of App'!$B$7:$AP$37,F$66,FALSE) -> 0 | G79: =VLOOKUP($A79,'Mat of App'!$B$7:$AP$37,G$66,FALSE) -> 0 | H79: =VLOOKUP($A79,'Mat of App'!$B$7:$AP$37,H$66,FALSE) -> 0 | I79: =VLOOKUP($A79,'Mat of App'!$B$7:$AP$37,I$66,FALSE) -> 0
A80: LV Generation Intermittent | B80: =VLOOKUP($A80,'Mat of App'!$B$7:$AP$37,B$66,FALSE) -> 0 | C80: =VLOOKUP($A80,'Mat of App'!$B$7:$AP$37,C$66,FALSE) -> 0 | D80: =VLOOKUP($A80,'Mat of App'!$B$7:$AP$37,D$66,FALSE) -> 0 | E80: =VLOOKUP($A80,'Mat of App'!$B$7:$AP$37,E$66,FALSE) -> 0 | F80: =VLOOKUP($A80,'Mat of App'!$B$7:$AP$37,F$66,FALSE) -> 0 | G80: =VLOOKUP($A80,'Mat of App'!$B$7:$AP$37,G$66,FALSE) -> 0 | H80: =VLOOKUP($A80,'Mat of App'!$B$7:$AP$37,H$66,FALSE) -> 0 | I80: =VLOOKUP($A80,'Mat of App'!$B$7:$AP$37,I$66,FALSE) -> 0
A81: LV Generation Non-Intermittent | B81: =VLOOKUP($A81,'Mat of App'!$B$7:$AP$37,B$66,FALSE) -> 0 | C81: =VLOOKUP($A81,'Mat of App'!$B$7:$AP$37,C$66,FALSE) -> 0 | D81: =VLOOKUP($A81,'Mat of App'!$B$7:$AP$37,D$66,FALSE) -> 0 | E81: =VLOOKUP($A81,'Mat of App'!$B$7:$AP$37,E$66,FALSE) -> 0 | F81: =VLOOKUP($A81,'Mat of App'!$B$7:$AP$37,F$66,FALSE) -> 0 | G81: =VLOOKUP($A81,'Mat of App'!$B$7:$AP$37,G$66,FALSE) -> 0 | H81: =VLOOKUP($A81,'Mat of App'!$B$7:$AP$37,H$66,FALSE) -> 0 | I81: =VLOOKUP($A81,'Mat of App'!$B$7:$AP$37,I$66,FALSE) -> 0
A82: LV Sub Generation Intermittent | B82: =VLOOKUP($A82,'Mat of App'!$B$7:$AP$37,B$66,FALSE) -> 0 | C82: =VLOOKUP($A82,'Mat of App'!$B$7:$AP$37,C$66,FALSE) -> 0 | D82: =VLOOKUP($A82,'Mat of App'!$B$7:$AP$37,D$66,FALSE) -> 0 | E82: =VLOOKUP($A82,'Mat of App'!$B$7:$AP$37,E$66,FALSE) -> 0 | F82: =VLOOKUP($A82,'Mat of App'!$B$7:$AP$37,F$66,FALSE) -> 0 | G82: =VLOOKUP($A82,'Mat of App'!$B$7:$AP$37,G$66,FALSE) -> 0 | H82: =VLOOKUP($A82,'Mat of App'!$B$7:$AP$37,H$66,FALSE) -> 0 | I82: =VLOOKUP($A82,'Mat of App'!$B$7:$AP$37,I$66,FALSE) -> 0
A83: LV Sub Generation Non-Intermittent | B83: =VLOOKUP($A83,'Mat of App'!$B$7:$AP$37,B$66,FALSE) -> 0 | C83: =VLOOKUP($A83,'Mat of App'!$B$7:$AP$37,C$66,FALSE) -> 0 | D83: =VLOOKUP($A83,'Mat of App'!$B$7:$AP$37,D$66,FALSE) -> 0 | E83: =VLOOKUP($A83,'Mat of App'!$B$7:$AP$37,E$66,FALSE) -> 0 | F83: =VLOOKUP($A83,'Mat of App'!$B$7:$AP$37,F$66,FALSE) -> 0 | G83: =VLOOKUP($A83,'Mat of App'!$B$7:$AP$37,G$66,FALSE) -> 0 | H83: =VLOOKUP($A83,'Mat of App'!$B$7:$AP$37,H$66,FALSE) -> 0 | I83: =VLOOKUP($A83,'Mat of App'!$B$7:$AP$37,I$66,FALSE) -> 0
A85: 1026. Matrix of applicability of LV service models to unmetered tariffs
A87: Source: service models
A88: Proportion of service model involved in connecting load of 1 MWh/year
B89: LV service model 1 | C89: LV service model 2 | D89: LV service model 3 | E89: LV service model 4 | F89: LV service model 5 | G89: LV service model 6 | H89: LV service model 7 | I89: LV service model 8
A90: All LV unmetered tariffs | B90: =VLOOKUP($A90,'Mat of App'!$B$7:$AP$37,B$66,FALSE) -> 0 | C90: =VLOOKUP($A90,'Mat of App'!$B$7:$AP$37,C$66,FALSE) -> 0 | D90: =VLOOKUP($A90,'Mat of App'!$B$7:$AP$37,D$66,FALSE) -> 0 | E90: =VLOOKUP($A90,'Mat of App'!$B$7:$AP$37,E$66,FALSE) -> 0 | F90: =VLOOKUP($A90,'Mat of App'!$B$7:$AP$37,F$66,FALSE) -> 2.874359556 | G90: =VLOOKUP($A90,'Mat of App'!$B$7:$AP$37,G$66,FALSE) -> 0 | H90: =VLOOKUP($A90,'Mat of App'!$B$7:$AP$37,H$66,FALSE) -> 0 | I90: =VLOOKUP($A90,'Mat of App'!$B$7:$AP$37,I$66,FALSE) -> 0
A92: 1028. Matrix of applicability of HV service models to tariffs with fixed charges
B93: 2 | C93: =B93+1 -> 3 | D93: =C93+1 -> 4 | E93: =D93+1 -> 5 | F93: =E93+1 -> 6
B94: HV service model 1 | C94: HV service model 2 | D94: HV service model 3 | E94: HV service model 4 | F94: HV service model 5
A95: HV Medium Non-Domestic | B95: =VLOOKUP($A95,'Mat of App'!$B$7:$AP$37,B$93,FALSE) -> 0 | C95: =VLOOKUP($A95,'Mat of App'!$B$7:$AP$37,C$93,FALSE) -> 1 | D95: =VLOOKUP($A95,'Mat of App'!$B$7:$AP$37,D$93,FALSE) -> 0 | E95: =VLOOKUP($A95,'Mat of App'!$B$7:$AP$37,E$93,FALSE) -> 0 | F95: =VLOOKUP($A95,'Mat of App'!$B$7:$AP$37,F$93,FALSE) -> 0
A96: HV HH Metered | B96: =VLOOKUP($A96,'Mat of App'!$B$7:$AP$37,B$93,FALSE) -> 0 | C96: =VLOOKUP($A96,'Mat of App'!$B$7:$AP$37,C$93,FALSE) -> 1 | D96: =VLOOKUP($A96,'Mat of App'!$B$7:$AP$37,D$93,FALSE) -> 0 | E96: =VLOOKUP($A96,'Mat of App'!$B$7:$AP$37,E$93,FALSE) -> 0 | F96: =VLOOKUP($A96,'Mat of App'!$B$7:$AP$37,F$93,FALSE) -> 0
A97: HV Generation Intermittent | B97: =VLOOKUP($A97,'Mat of App'!$B$7:$AP$37,B$93,FALSE) -> 0 | C97: =VLOOKUP($A97,'Mat of App'!$B$7:$AP$37,C$93,FALSE) -> 0 | D97: =VLOOKUP($A97,'Mat of App'!$B$7:$AP$37,D$93,FALSE) -> 1 | E97: =VLOOKUP($A97,'Mat of App'!$B$7:$AP$37,E$93,FALSE) -> 0 | F97: =VLOOKUP($A97,'Mat of App'!$B$7:$AP$37,F$93,FALSE) -> 0
A98: HV Generation Non-Intermittent | B98: =VLOOKUP($A98,'Mat of App'!$B$7:$AP$37,B$93,FALSE) -> 0 | C98: =VLOOKUP($A98,'Mat of App'!$B$7:$AP$37,C$93,FALSE) -> 0 | D98: =VLOOKUP($A98,'Mat of App'!$B$7:$AP$37,D$93,FALSE) -> 1 | E98: =VLOOKUP($A98,'Mat of App'!$B$7:$AP$37,E$93,FALSE) -> 0 | F98: =VLOOKUP($A98,'Mat of App'!$B$7:$AP$37,F$93,FALSE) -> 0
A100: 1032. Loss adjustment factors to transmission
A102: Source: losses model or loss adjustment factors at time of system peak.
B103: 132kV | C103: 132kV/EHV | D103: EHV | E103: EHV/HV | F103: HV | G103: HV/LV | H103: LV circuits
A104: Loss adjustment factor | B104: =VLOOKUP(Vlookup!B69,'CDCM Forecast Data'!$A$14:$I$271,5,FALSE) -> 1.010413289 | C104: =VLOOKUP(Vlookup!C69,'CDCM Forecast Data'!$A$14:$I$271,5,FALSE) -> 1.015393496 | D104: =VLOOKUP(Vlookup!D69,'CDCM Forecast Data'!$A$14:$I$271,5,FALSE) -> 1.021993876 | E104: =VLOOKUP(Vlookup!E69,'CDCM Forecast Data'!$A$14:$I$271,5,FALSE) -> 1.027559519 | F104: =VLOOKUP(Vlookup!F69,'CDCM Forecast Data'!$A$14:$I$271,5,FALSE) -> 1.040166974 | G104: =VLOOKUP(Vlookup!G69,'CDCM Forecast Data'!$A$14:$I$271,5,FALSE) -> 1.053696394 | H104: =VLOOKUP(Vlookup!H69,'CDCM Forecast Data'!$A$14:$I$271,5,FALSE) -> 1.107034802
A106: 1037. Embedded network (LDNO) discounts
A108: Source: separate price control disaggregation model.
B109: No discount | C109: LDNO LV: LV user | D109: LDNO HV: LV user | E109: LDNO HV: LV sub user | F109: LDNO HV: HV user
A110: LDNO discount | C110: =VLOOKUP(Vlookup!C75,'CDCM Forecast Data'!$A$14:$I$271,5,FALSE) -> 0.3352006641 | D110: =VLOOKUP(Vlookup!D75,'CDCM Forecast Data'!$A$14:$I$271,5,FALSE) -> 0.5639251225 | E110: =VLOOKUP(Vlookup!E75,'CDCM Forecast Data'!$A$14:$I$271,5,FALSE) -> 0.323780574 | F110: =VLOOKUP(Vlookup!F75,'CDCM Forecast Data'!$A$14:$I$271,5,FALSE) -> 0.2035063224
A112: 1041. Load profile data for demand users
A114: Source: load data analysis.
B115: Coincidence factor | C115: Load factor
A116: Domestic Unrestricted | B116: =VLOOKUP(Vlookup!B81,'CDCM Forecast Data'!$A$14:$I$271,5,FALSE) -> 0.8719950359 | C116: =VLOOKUP(Vlookup!C81,'CDCM Forecast Data'!$A$14:$I$271,5,FALSE) -> 0.4417027055
A117: Domestic Two Rate | B117: =VLOOKUP(Vlookup!B82,'CDCM Forecast Data'!$A$14:$I$271,5,FALSE) -> 0.2892028269 | C117: =VLOOKUP(Vlookup!C82,'CDCM Forecast Data'!$A$14:$I$271,5,FALSE) -> 0.241915909
A118: Domestic Off Peak (related MPAN) | C118: =VLOOKUP(Vlookup!C83,'CDCM Forecast Data'!$A$14:$I$271,5,FALSE) -> 0.1615288733
A119: Small Non Domestic Unrestricted | B119: =VLOOKUP(Vlookup!B84,'CDCM Forecast Data'!$A$14:$I$271,5,FALSE) -> 0.6751420264 | C119: =VLOOKUP(Vlookup!C84,'CDCM Forecast Data'!$A$14:$I$271,5,FALSE) -> 0.394823
A120: Small Non Domestic Two Rate | B120: =VLOOKUP(Vlookup!B85,'CDCM Forecast Data'!$A$14:$I$271,5,FALSE) -> 0.6939934609 | C120: =VLOOKUP(Vlookup!C85,'CDCM Forecast Data'!$A$14:$I$271,5,FALSE) -> 0.5341090403
A121: Small Non Domestic Off Peak (related MPAN) | C121: =VLOOKUP(Vlookup!C86,'CDCM Forecast Data'!$A$14:$I$271,5,FALSE) -> 0.1637428864
A122: LV Medium Non-Domestic | B122: =VLOOKUP(Vlookup!B87,'CDCM Forecast Data'!$A$14:$I$271,5,FALSE) -> 0.8373261501 | C122: =VLOOKUP(Vlookup!C87,'CDCM Forecast Data'!$A$14:$I$271,5,FALSE) -> 0.5689406855
A123: LV Sub Medium Non-Domestic | B123: =VLOOKUP(Vlookup!B88,'CDCM Forecast Data'!$A$14:$I$271,5,FALSE) -> 0.8085620113 | C123: =VLOOKUP(Vlookup!C88,'CDCM Forecast Data'!$A$14:$I$271,5,FALSE) -> 0.5569858525
A124: HV Medium Non-Domestic | B124: =VLOOKUP(Vlookup!B89,'CDCM Forecast Data'!$A$14:$I$271,5,FALSE) -> 0.7394620182 | C124: =VLOOKUP(Vlookup!C89,'CDCM Forecast Data'!$A$14:$I$271,5,FALSE) -> 0.490716446
A125: LV Network Domestic | B125: =VLOOKUP(Vlookup!B90,'CDCM Forecast Data'!$A$14:$I$271,5,FALSE) -> 0.8719950359 | C125: =VLOOKUP(Vlookup!C90,'CDCM Forecast Data'!$A$14:$I$271,5,FALSE) -> 0.4417027055
A126: LV Network Non-Domestic Non-CT | B126: =VLOOKUP(Vlookup!B91,'CDCM Forecast Data'!$A$14:$I$271,5,FALSE) -> 0.6751420264 | C126: =VLOOKUP(Vlookup!C91,'CDCM Forecast Data'!$A$14:$I$271,5,FALSE) -> 0.394823
A127: LV HH Metered | B127: =VLOOKUP(Vlookup!B92,'CDCM Forecast Data'!$A$14:$I$271,5,FALSE) -> 0.8134580127 | C127: =VLOOKUP(Vlookup!C92,'CDCM Forecast Data'!$A$14:$I$271,5,FALSE) -> 0.5556497797
A128: LV Sub HH Metered | B128: =VLOOKUP(Vlookup!B93,'CDCM Forecast Data'!$A$14:$I$271,5,FALSE) -> 0.7861625851 | C128: =VLOOKUP(Vlookup!C93,'CDCM Forecast Data'!$A$14:$I$271,5,FALSE) -> 0.5560856276
A129: HV HH Metered | B129: =VLOOKUP(Vlookup!B94,'CDCM Forecast Data'!$A$14:$I$271,5,FALSE) -> 0.8548488611 | C129: =VLOOKUP(Vlookup!C94,'CDCM Forecast Data'!$A$14:$I$271,5,FALSE) -> 0.7107054151
A130: NHH UMS category A | B130: =VLOOKUP(Vlookup!B95,'CDCM Forecast Data'!$A$14:$I$271,5,FALSE) -> 1 | C130: =VLOOKUP(Vlookup!C95,'CDCM Forecast Data'!$A$14:$I$271,5,FALSE) -> 1
A131: NHH UMS category B | B131: =VLOOKUP(Vlookup!B96,'CDCM Forecast Data'!$A$14:$I$271,5,FALSE) -> 1 | C131: =VLOOKUP(Vlookup!C96,'CDCM Forecast Data'!$A$14:$I$271,5,FALSE) -> 0.474
A132: NHH UMS category C | B132: =VLOOKUP(Vlookup!B97,'CDCM Forecast Data'!$A$14:$I$271,5,FALSE) -> 1 | C132: =VLOOKUP(Vlookup!C97,'CDCM Forecast Data'!$A$14:$I$271,5,FALSE) -> 0.258
A133: NHH UMS category D | B133: =VLOOKUP(Vlookup!B98,'CDCM Forecast Data'!$A$14:$I$271,5,FALSE) -> 0 | C133: =VLOOKUP(Vlookup!C98,'CDCM Forecast Data'!$A$14:$I$271,5,FALSE) -> 0.554
A134: LV UMS (Pseudo HH Metered) | B134: =VLOOKUP(Vlookup!B99,'CDCM Forecast Data'!$A$14:$I$271,5,FALSE) -> 0.9774688096 | C134: =VLOOKUP(Vlookup!C99,'CDCM Forecast Data'!$A$14:$I$271,5,FALSE) -> 0.4829227126
A136: 1053. Volume forecasts for the charging year
B137: 4 | C137: 5 | D137: 6 | E137: 7 | F137: 8 | G137: 9
A138: Source: forecast.
A139: Please include MPAN counts for tariffs with no fixed charge (e.g. off-peak tariffs),
A140: but exclude MPANs on tariffs with a fixed charge that are not subject to a fixed charge due to a site grouping arrangement.
B141: Rate 1 units (MWh) | C141: Rate 2 units (MWh) | D141: Rate 3 units (MWh) | E141: MPANs | F141: Import capacity (kVA) | G141: Reactive power units (MVArh)
A142: > Domestic Unrestricted | B142: =VLOOKUP(Vlookup!$B107,'CDCM Volume Forecasts'!$A$27:$AG$123,B$137,FALSE) -> 0 | C142: =VLOOKUP(Vlookup!$B107,'CDCM Volume Forecasts'!$A$27:$AG$123,C$137,FALSE) -> 0 | D142: =VLOOKUP(Vlookup!$B107,'CDCM Volume Forecasts'!$A$27:$AG$123,D$137,FALSE) -> 0 | E142: =VLOOKUP(Vlookup!$B107,'CDCM Volume Forecasts'!$A$27:$AG$123,E$137,FALSE) -> 0 | F142: =VLOOKUP(Vlookup!$B107,'CDCM Volume Forecasts'!$A$27:$AG$123,F$137,FALSE) -> 0 | G142: =VLOOKUP(Vlookup!$B107,'CDCM Volume Forecasts'!$A$27:$AG$123,G$137,FALSE) -> 0
A143: Domestic Unrestricted | B143: =VLOOKUP(Vlookup!$B108,'CDCM Volume Forecasts'!$A$27:$AG$123,B$137,FALSE) -> 6342407.374 | C143: =VLOOKUP(Vlookup!$B108,'CDCM Volume Forecasts'!$A$27:$AG$123,C$137,FALSE) -> 0 | D143: =VLOOKUP(Vlookup!$B108,'CDCM Volume Forecasts'!$A$27:$AG$123,D$137,FALSE) -> 0 | E143: =VLOOKUP(Vlookup!$B108,'CDCM Volume Forecasts'!$A$27:$AG$123,E$137,FALSE) -> 1988141 | F143: =VLOOKUP(Vlookup!$B108,'CDCM Volume Forecasts'!$A$27:$AG$123,F$137,FALSE) -> 0 | G143: =VLOOKUP(Vlookup!$B108,'CDCM Volume Forecasts'!$A$27:$AG$123,G$137,FALSE) -> 0
A144: LDNO LV: Domestic Unrestricted | B144: =VLOOKUP(Vlookup!$B109,'CDCM Volume Forecasts'!$A$27:$AG$123,B$137,FALSE) -> 55033.65405 | C144: =VLOOKUP(Vlookup!$B109,'CDCM Volume Forecasts'!$A$27:$AG$123,C$137,FALSE) -> 0 | D144: =VLOOKUP(Vlookup!$B109,'CDCM Volume Forecasts'!$A$27:$AG$123,D$137,FALSE) -> 0 | E144: =VLOOKUP(Vlookup!$B109,'CDCM Volume Forecasts'!$A$27:$AG$123,E$137,FALSE) -> 17735 | F144: =VLOOKUP(Vlookup!$B109,'CDCM Volume Forecasts'!$A$27:$AG$123,F$137,FALSE) -> 0 | G144: =VLOOKUP(Vlookup!$B109,'CDCM Volume Forecasts'!$A$27:$AG$123,G$137,FALSE) -> 0
A145: LDNO HV: Domestic Unrestricted | B145: =VLOOKUP(Vlookup!$B110,'CDCM Volume Forecasts'!$A$27:$AG$123,B$137,FALSE) -> 31916.31155 | C145: =VLOOKUP(Vlookup!$B110,'CDCM Volume Forecasts'!$A$27:$AG$123,C$137,FALSE) -> 0 | D145: =VLOOKUP(Vlookup!$B110,'CDCM Volume Forecasts'!$A$27:$AG$123,D$137,FALSE) -> 0 | E145: =VLOOKUP(Vlookup!$B110,'CDCM Volume Forecasts'!$A$27:$AG$123,E$137,FALSE) -> 9551 | F145: =VLOOKUP(Vlookup!$B110,'CDCM Volume Forecasts'!$A$27:$AG$123,F$137,FALSE) -> 0 | G145: =VLOOKUP(Vlookup!$B110,'CDCM Volume Forecasts'!$A$27:$AG$123,G$137,FALSE) -> 0
A146: > Domestic Two Rate | B146: =VLOOKUP(Vlookup!$B111,'CDCM Volume Forecasts'!$A$27:$AG$123,B$137,FALSE) -> 0 | C146: =VLOOKUP(Vlookup!$B111,'CDCM Volume Forecasts'!$A$27:$AG$123,C$137,FALSE) -> 0 | D146: =VLOOKUP(Vlookup!$B111,'CDCM Volume Forecasts'!$A$27:$AG$123,D$137,FALSE) -> 0 | E146: =VLOOKUP(Vlookup!$B111,'CDCM Volume Forecasts'!$A$27:$AG$123,E$137,FALSE) -> 0 | F146: =VLOOKUP(Vlookup!$B111,'CDCM Volume Forecasts'!$A$27:$AG$123,F$137,FALSE) -> 0 | G146: =VLOOKUP(Vlookup!$B111,'CDCM Volume Forecasts'!$A$27:$AG$123,G$137,FALSE) -> 0
A147: Domestic Two Rate | B147: =VLOOKUP(Vlookup!$B112,'CDCM Volume Forecasts'!$A$27:$AG$123,B$137,FALSE) -> 598065.3452 | C147: =VLOOKUP(Vlookup!$B112,'CDCM Volume Forecasts'!$A$27:$AG$123,C$137,FALSE) -> 468502.2944 | D147: =VLOOKUP(Vlookup!$B112,'CDCM Volume Forecasts'!$A$27:$AG$123,D$137,FALSE) -> 0 | E147: =VLOOKUP(Vlookup!$B112,'CDCM Volume Forecasts'!$A$27:$AG$123,E$137,FALSE) -> 186300 | F147: =VLOOKUP(Vlookup!$B112,'CDCM Volume Forecasts'!$A$27:$AG$123,F$137,FALSE) -> 0 | G147: =VLOOKUP(Vlookup!$B112,'CDCM Volume Forecasts'!$A$27:$AG$123,G$137,FALSE) -> 0
A148: LDNO LV: Domestic Two Rate | B148: =VLOOKUP(Vlookup!$B113,'CDCM Volume Forecasts'!$A$27:$AG$123,B$137,FALSE) -> 831.56368 | C148: =VLOOKUP(Vlookup!$B113,'CDCM Volume Forecasts'!$A$27:$AG$123,C$137,FALSE) -> 322.5247782 | D148: =VLOOKUP(Vlookup!$B113,'CDCM Volume Forecasts'!$A$27:$AG$123,D$137,FALSE) -> 0 | E148: =VLOOKUP(Vlookup!$B113,'CDCM Volume Forecasts'!$A$27:$AG$123,E$137,FALSE) -> 356 | F148: =VLOOKUP(Vlookup!$B113,'CDCM Volume Forecasts'!$A$27:$AG$123,F$137,FALSE) -> 0 | G148: =VLOOKUP(Vlookup!$B113,'CDCM Volume Forecasts'!$A$27:$AG$123,G$137,FALSE) -> 0
A149: LDNO HV: Domestic Two Rate | B149: =VLOOKUP(Vlookup!$B114,'CDCM Volume Forecasts'!$A$27:$AG$123,B$137,FALSE) -> 2631.0999 | C149: =VLOOKUP(Vlookup!$B114,'CDCM Volume Forecasts'!$A$27:$AG$123,C$137,FALSE) -> 2089.870385 | D149: =VLOOKUP(Vlookup!$B114,'CDCM Volume Forecasts'!$A$27:$AG$123,D$137,FALSE) -> 0 | E149: =VLOOKUP(Vlookup!$B114,'CDCM Volume Forecasts'!$A$27:$AG$123,E$137,FALSE) -> 994 | F149: =VLOOKUP(Vlookup!$B114,'CDCM Volume Forecasts'!$A$27:$AG$123,F$137,FALSE) -> 0 | G149: =VLOOKUP(Vlookup!$B114,'CDCM Volume Forecasts'!$A$27:$AG$123,G$137,FALSE) -> 0
A150: > Domestic Off Peak (related MPAN) | B150: =VLOOKUP(Vlookup!$B115,'CDCM Volume Forecasts'!$A$27:$AG$123,B$137,FALSE) -> 0 | C150: =VLOOKUP(Vlookup!$B115,'CDCM Volume Forecasts'!$A$27:$AG$123,C$137,FALSE) -> 0 | D150: =VLOOKUP(Vlookup!$B115,'CDCM Volume Forecasts'!$A$27:$AG$123,D$137,FALSE) -> 0 | E150: =VLOOKUP(Vlookup!$B115,'CDCM Volume Forecasts'!$A$27:$AG$123,E$137,FALSE) -> 0 | F150: =VLOOKUP(Vlookup!$B115,'CDCM Volume Forecasts'!$A$27:$AG$123,F$137,FALSE) -> 0 | G150: =VLOOKUP(Vlookup!$B115,'CDCM Volume Forecasts'!$A$27:$AG$123,G$137,FALSE) -> 0
A151: Domestic Off Peak (related MPAN) | B151: =VLOOKUP(Vlookup!$B116,'CDCM Volume Forecasts'!$A$27:$AG$123,B$137,FALSE) -> 21970.22791 | C151: =VLOOKUP(Vlookup!$B116,'CDCM Volume Forecasts'!$A$27:$AG$123,C$137,FALSE) -> 0 | D151: =VLOOKUP(Vlookup!$B116,'CDCM Volume Forecasts'!$A$27:$AG$123,D$137,FALSE) -> 0 | E151: =VLOOKUP(Vlookup!$B116,'CDCM Volume Forecasts'!$A$27:$AG$123,E$137,FALSE) -> 6309 | F151: =VLOOKUP(Vlookup!$B116,'CDCM Volume Forecasts'!$A$27:$AG$123,F$137,FALSE) -> 0 | G151: =VLOOKUP(Vlookup!$B116,'CDCM Volume Forecasts'!$A$27:$AG$123,G$137,FALSE) -> 0
A152: LDNO LV: Domestic Off Peak (related MPAN) | B152: =VLOOKUP(Vlookup!$B117,'CDCM Volume Forecasts'!$A$27:$AG$123,B$137,FALSE) -> 0 | C152: =VLOOKUP(Vlookup!$B117,'CDCM Volume Forecasts'!$A$27:$AG$123,C$137,FALSE) -> 0 | D152: =VLOOKUP(Vlookup!$B117,'CDCM Volume Forecasts'!$A$27:$AG$123,D$137,FALSE) -> 0 | E152: =VLOOKUP(Vlookup!$B117,'CDCM Volume Forecasts'!$A$27:$AG$123,E$137,FALSE) -> 0 | F152: =VLOOKUP(Vlookup!$B117,'CDCM Volume Forecasts'!$A$27:$AG$123,F$137,FALSE) -> 0 | G152: =VLOOKUP(Vlookup!$B117,'CDCM Volume Forecasts'!$A$27:$AG$123,G$137,FALSE) -> 0
A153: LDNO HV: Domestic Off Peak (related MPAN) | B153: =VLOOKUP(Vlookup!$B118,'CDCM Volume Forecasts'!$A$27:$AG$123,B$137,FALSE) -> 0 | C153: =VLOOKUP(Vlookup!$B118,'CDCM Volume Forecasts'!$A$27:$AG$123,C$137,FALSE) -> 0 | D153: =VLOOKUP(Vlookup!$B118,'CDCM Volume Forecasts'!$A$27:$AG$123,D$137,FALSE) -> 0 | E153: =VLOOKUP(Vlookup!$B118,'CDCM Volume Forecasts'!$A$27:$AG$123,E$137,FALSE) -> 0 | F153: =VLOOKUP(Vlookup!$B118,'CDCM Volume Forecasts'!$A$27:$AG$123,F$137,FALSE) -> 0 | G153: =VLOOKUP(Vlookup!$B118,'CDCM Volume Forecasts'!$A$27:$AG$123,G$137,FALSE) -> 0
A154: > Small Non Domestic Unrestricted | B154: =VLOOKUP(Vlookup!$B119,'CDCM Volume Forecasts'!$A$27:$AG$123,B$137,FALSE) -> 0 | C154: =VLOOKUP(Vlookup!$B119,'CDCM Volume Forecasts'!$A$27:$AG$123,C$137,FALSE) -> 0 | D154: =VLOOKUP(Vlookup!$B119,'CDCM Volume Forecasts'!$A$27:$AG$123,D$137,FALSE) -> 0 | E154: =VLOOKUP(Vlookup!$B119,'CDCM Volume Forecasts'!$A$27:$AG$123,E$137,FALSE) -> 0 | F154: =VLOOKUP(Vlookup!$B119,'CDCM Volume Forecasts'!$A$27:$AG$123,F$137,FALSE) -> 0 | G154: =VLOOKUP(Vlookup!$B119,'CDCM Volume Forecasts'!$A$27:$AG$123,G$137,FALSE) -> 0
A155: Small Non Domestic Unrestricted | B155: =VLOOKUP(Vlookup!$B120,'CDCM Volume Forecasts'!$A$27:$AG$123,B$137,FALSE) -> 1693554.973 | C155: =VLOOKUP(Vlookup!$B120,'CDCM Volume Forecasts'!$A$27:$AG$123,C$137,FALSE) -> 0 | D155: =VLOOKUP(Vlookup!$B120,'CDCM Volume Forecasts'!$A$27:$AG$123,D$137,FALSE) -> 0 | E155: =VLOOKUP(Vlookup!$B120,'CDCM Volume Forecasts'!$A$27:$AG$123,E$137,FALSE) -> 123201 | F155: =VLOOKUP(Vlookup!$B120,'CDCM Volume Forecasts'!$A$27:$AG$123,F$137,FALSE) -> 0 | G155: =VLOOKUP(Vlookup!$B120,'CDCM Volume Forecasts'!$A$27:$AG$123,G$137,FALSE) -> 0
A156: LDNO LV: Small Non Domestic Unrestricted | B156: =VLOOKUP(Vlookup!$B121,'CDCM Volume Forecasts'!$A$27:$AG$123,B$137,FALSE) -> 2905.726851 | C156: =VLOOKUP(Vlookup!$B121,'CDCM Volume Forecasts'!$A$27:$AG$123,C$137,FALSE) -> 0 | D156: =VLOOKUP(Vlookup!$B121,'CDCM Volume Forecasts'!$A$27:$AG$123,D$137,FALSE) -> 0 | E156: =VLOOKUP(Vlookup!$B121,'CDCM Volume Forecasts'!$A$27:$AG$123,E$137,FALSE) -> 342 | F156: =VLOOKUP(Vlookup!$B121,'CDCM Volume Forecasts'!$A$27:$AG$123,F$137,FALSE) -> 0 | G156: =VLOOKUP(Vlookup!$B121,'CDCM Volume Forecasts'!$A$27:$AG$123,G$137,FALSE) -> 0
A157: LDNO HV: Small Non Domestic Unrestricted | B157: =VLOOKUP(Vlookup!$B122,'CDCM Volume Forecasts'!$A$27:$AG$123,B$137,FALSE) -> 4333.463455 | C157: =VLOOKUP(Vlookup!$B122,'CDCM Volume Forecasts'!$A$27:$AG$123,C$137,FALSE) -> 0 | D157: =VLOOKUP(Vlookup!$B122,'CDCM Volume Forecasts'!$A$27:$AG$123,D$137,FALSE) -> 0 | E157: =VLOOKUP(Vlookup!$B122,'CDCM Volume Forecasts'!$A$27:$AG$123,E$137,FALSE) -> 379 | F157: =VLOOKUP(Vlookup!$B122,'CDCM Volume Forecasts'!$A$27:$AG$123,F$137,FALSE) -> 0 | G157: =VLOOKUP(Vlookup!$B122,'CDCM Volume Forecasts'!$A$27:$AG$123,G$137,FALSE) -> 0
A158: > Small Non Domestic Two Rate | B158: =VLOOKUP(Vlookup!$B123,'CDCM Volume Forecasts'!$A$27:$AG$123,B$137,FALSE) -> 0 | C158: =VLOOKUP(Vlookup!$B123,'CDCM Volume Forecasts'!$A$27:$AG$123,C$137,FALSE) -> 0 | D158: =VLOOKUP(Vlookup!$B123,'CDCM Volume Forecasts'!$A$27:$AG$123,D$137,FALSE) -> 0 | E158: =VLOOKUP(Vlookup!$B123,'CDCM Volume Forecasts'!$A$27:$AG$123,E$137,FALSE) -> 0 | F158: =VLOOKUP(Vlookup!$B123,'CDCM Volume Forecasts'!$A$27:$AG$123,F$137,FALSE) -> 0 | G158: =VLOOKUP(Vlookup!$B123,'CDCM Volume Forecasts'!$A$27:$AG$123,G$137,FALSE) -> 0
A159: Small Non Domestic Two Rate | B159: =VLOOKUP(Vlookup!$B124,'CDCM Volume Forecasts'!$A$27:$AG$123,B$137,FALSE) -> 570324.9748 | C159: =VLOOKUP(Vlookup!$B124,'CDCM Volume Forecasts'!$A$27:$AG$123,C$137,FALSE) -> 206753.7608 | D159: =VLOOKUP(Vlookup!$B124,'CDCM Volume Forecasts'!$A$27:$AG$123,D$137,FALSE) -> 0 | E159: =VLOOKUP(Vlookup!$B124,'CDCM Volume Forecasts'!$A$27:$AG$123,E$137,FALSE) -> 32088 | F159: =VLOOKUP(Vlookup!$B124,'CDCM Volume Forecasts'!$A$27:$AG$123,F$137,FALSE) -> 0 | G159: =VLOOKUP(Vlookup!$B124,'CDCM Volume Forecasts'!$A$27:$AG$123,G$137,FALSE) -> 0
A160: LDNO LV: Small Non Domestic Two Rate | B160: =VLOOKUP(Vlookup!$B125,'CDCM Volume Forecasts'!$A$27:$AG$123,B$137,FALSE) -> 16.8852 | C160: =VLOOKUP(Vlookup!$B125,'CDCM Volume Forecasts'!$A$27:$AG$123,C$137,FALSE) -> 8.9988 | D160: =VLOOKUP(Vlookup!$B125,'CDCM Volume Forecasts'!$A$27:$AG$123,D$137,FALSE) -> 0 | E160: =VLOOKUP(Vlookup!$B125,'CDCM Volume Forecasts'!$A$27:$AG$123,E$137,FALSE) -> 6 | F160: =VLOOKUP(Vlookup!$B125,'CDCM Volume Forecasts'!$A$27:$AG$123,F$137,FALSE) -> 0 | G160: =VLOOKUP(Vlookup!$B125,'CDCM Volume Forecasts'!$A$27:$AG$123,G$137,FALSE) -> 0
A161: LDNO HV: Small Non Domestic Two Rate | B161: =VLOOKUP(Vlookup!$B126,'CDCM Volume Forecasts'!$A$27:$AG$123,B$137,FALSE) -> 356.3706667 | C161: =VLOOKUP(Vlookup!$B126,'CDCM Volume Forecasts'!$A$27:$AG$123,C$137,FALSE) -> 141.753 | D161: =VLOOKUP(Vlookup!$B126,'CDCM Volume Forecasts'!$A$27:$AG$123,D$137,FALSE) -> 0 | E161: =VLOOKUP(Vlookup!$B126,'CDCM Volume Forecasts'!$A$27:$AG$123,E$137,FALSE) -> 10 | F161: =VLOOKUP(Vlookup!$B126,'CDCM Volume Forecasts'!$A$27:$AG$123,F$137,FALSE) -> 0 | G161: =VLOOKUP(Vlookup!$B126,'CDCM Volume Forecasts'!$A$27:$AG$123,G$137,FALSE) -> 0
A162: > Small Non Domestic Off Peak (related MPAN) | B162: =VLOOKUP(Vlookup!$B127,'CDCM Volume Forecasts'!$A$27:$AG$123,B$137,FALSE) -> 0 | C162: =VLOOKUP(Vlookup!$B127,'CDCM Volume Forecasts'!$A$27:$AG$123,C$137,FALSE) -> 0 | D162: =VLOOKUP(Vlookup!$B127,'CDCM Volume Forecasts'!$A$27:$AG$123,D$137,FALSE) -> 0 | E162: =VLOOKUP(Vlookup!$B127,'CDCM Volume Forecasts'!$A$27:$AG$123,E$137,FALSE) -> 0 | F162: =VLOOKUP(Vlookup!$B127,'CDCM Volume Forecasts'!$A$27:$AG$123,F$137,FALSE) -> 0 | G162: =VLOOKUP(Vlookup!$B127,'CDCM Volume Forecasts'!$A$27:$AG$123,G$137,FALSE) -> 0
A163: Small Non Domestic Off Peak (related MPAN) | B163: =VLOOKUP(Vlookup!$B128,'CDCM Volume Forecasts'!$A$27:$AG$123,B$137,FALSE) -> 23102.08788 | C163: =VLOOKUP(Vlookup!$B128,'CDCM Volume Forecasts'!$A$27:$AG$123,C$137,FALSE) -> 0 | D163: =VLOOKUP(Vlookup!$B128,'CDCM Volume Forecasts'!$A$27:$AG$123,D$137,FALSE) -> 0 | E163: =VLOOKUP(Vlookup!$B128,'CDCM Volume Forecasts'!$A$27:$AG$123,E$137,FALSE) -> 3998 | F163: =VLOOKUP(Vlookup!$B128,'CDCM Volume Forecasts'!$A$27:$AG$123,F$137,FALSE) -> 0 | G163: =VLOOKUP(Vlookup!$B128,'CDCM Volume Forecasts'!$A$27:$AG$123,G$137,FALSE) -> 0
A164: LDNO LV: Small Non Domestic Off Peak (related MPAN) | B164: =VLOOKUP(Vlookup!$B129,'CDCM Volume Forecasts'!$A$27:$AG$123,B$137,FALSE) -> 0 | C164: =VLOOKUP(Vlookup!$B129,'CDCM Volume Forecasts'!$A$27:$AG$123,C$137,FALSE) -> 0 | D164: =VLOOKUP(Vlookup!$B129,'CDCM Volume Forecasts'!$A$27:$AG$123,D$137,FALSE) -> 0 | E164: =VLOOKUP(Vlookup!$B129,'CDCM Volume Forecasts'!$A$27:$AG$123,E$137,FALSE) -> 0 | F164: =VLOOKUP(Vlookup!$B129,'CDCM Volume Forecasts'!$A$27:$AG$123,F$137,FALSE) -> 0 | G164: =VLOOKUP(Vlookup!$B129,'CDCM Volume Forecasts'!$A$27:$AG$123,G$137,FALSE) -> 0
A165: LDNO HV: Small Non Domestic Off Peak (related MPAN) | B165: =VLOOKUP(Vlookup!$B130,'CDCM Volume Forecasts'!$A$27:$AG$123,B$137,FALSE) -> 0 | C165: =VLOOKUP(Vlookup!$B130,'CDCM Volume Forecasts'!$A$27:$AG$123,C$137,FALSE) -> 0 | D165: =VLOOKUP(Vlookup!$B130,'CDCM Volume Forecasts'!$A$27:$AG$123,D$137,FALSE) -> 0 | E165: =VLOOKUP(Vlookup!$B130,'CDCM Volume Forecasts'!$A$27:$AG$123,E$137,FALSE) -> 0 | F165: =VLOOKUP(Vlookup!$B130,'CDCM Volume Forecasts'!$A$27:$AG$123,F$137,FALSE) -> 0 | G165: =VLOOKUP(Vlookup!$B130,'CDCM Volume Forecasts'!$A$27:$AG$123,G$137,FALSE) -> 0
A166: > LV Medium Non-Domestic | B166: =VLOOKUP(Vlookup!$B131,'CDCM Volume Forecasts'!$A$27:$AG$123,B$137,FALSE) -> 0 | C166: =VLOOKUP(Vlookup!$B131,'CDCM Volume Forecasts'!$A$27:$AG$123,C$137,FALSE) -> 0 | D166: =VLOOKUP(Vlookup!$B131,'CDCM Volume Forecasts'!$A$27:$AG$123,D$137,FALSE) -> 0 | E166: =VLOOKUP(Vlookup!$B131,'CDCM Volume Forecasts'!$A$27:$AG$123,E$137,FALSE) -> 0 | F166: =VLOOKUP(Vlookup!$B131,'CDCM Volume Forecasts'!$A$27:$AG$123,F$137,FALSE) -> 0 | G166: =VLOOKUP(Vlookup!$B131,'CDCM Volume Forecasts'!$A$27:$AG$123,G$137,FALSE) -> 0
A167: LV Medium Non-Domestic | B167: =VLOOKUP(Vlookup!$B132,'CDCM Volume Forecasts'!$A$27:$AG$123,B$137,FALSE) -> 945009.606 | C167: =VLOOKUP(Vlookup!$B132,'CDCM Volume Forecasts'!$A$27:$AG$123,C$137,FALSE) -> 228953.5447 | D167: =VLOOKUP(Vlookup!$B132,'CDCM Volume Forecasts'!$A$27:$AG$123,D$137,FALSE) -> 0 | E167: =VLOOKUP(Vlookup!$B132,'CDCM Volume Forecasts'!$A$27:$AG$123,E$137,FALSE) -> 11260 | F167: =VLOOKUP(Vlookup!$B132,'CDCM Volume Forecasts'!$A$27:$AG$123,F$137,FALSE) -> 0 | G167: =VLOOKUP(Vlookup!$B132,'CDCM Volume Forecasts'!$A$27:$AG$123,G$137,FALSE) -> 0
A168: LDNO LV: LV Medium Non-Domestic | B168: =VLOOKUP(Vlookup!$B133,'CDCM Volume Forecasts'!$A$27:$AG$123,B$137,FALSE) -> 1048.88725 | C168: =VLOOKUP(Vlookup!$B133,'CDCM Volume Forecasts'!$A$27:$AG$123,C$137,FALSE) -> 232.6466786 | D168: =VLOOKUP(Vlookup!$B133,'CDCM Volume Forecasts'!$A$27:$AG$123,D$137,FALSE) -> 0 | E168: =VLOOKUP(Vlookup!$B133,'CDCM Volume Forecasts'!$A$27:$AG$123,E$137,FALSE) -> 9 | F168: =VLOOKUP(Vlookup!$B133,'CDCM Volume Forecasts'!$A$27:$AG$123,F$137,FALSE) -> 0 | G168: =VLOOKUP(Vlookup!$B133,'CDCM Volume Forecasts'!$A$27:$AG$123,G$137,FALSE) -> 0
A169: LDNO HV: LV Medium Non-Domestic | B169: =VLOOKUP(Vlookup!$B134,'CDCM Volume Forecasts'!$A$27:$AG$123,B$137,FALSE) -> 998.364 | C169: =VLOOKUP(Vlookup!$B134,'CDCM Volume Forecasts'!$A$27:$AG$123,C$137,FALSE) -> 260.955 | D169: =VLOOKUP(Vlookup!$B134,'CDCM Volume Forecasts'!$A$27:$AG$123,D$137,FALSE) -> 0 | E169: =VLOOKUP(Vlookup!$B134,'CDCM Volume Forecasts'!$A$27:$AG$123,E$137,FALSE) -> 19 | F169: =VLOOKUP(Vlookup!$B134,'CDCM Volume Forecasts'!$A$27:$AG$123,F$137,FALSE) -> 0 | G169: =VLOOKUP(Vlookup!$B134,'CDCM Volume Forecasts'!$A$27:$AG$123,G$137,FALSE) -> 0
A170: > LV Sub Medium Non-Domestic | B170: =VLOOKUP(Vlookup!$B135,'CDCM Volume Forecasts'!$A$27:$AG$123,B$137,FALSE) -> 0 | C170: =VLOOKUP(Vlookup!$B135,'CDCM Volume Forecasts'!$A$27:$AG$123,C$137,FALSE) -> 0 | D170: =VLOOKUP(Vlookup!$B135,'CDCM Volume Forecasts'!$A$27:$AG$123,D$137,FALSE) -> 0 | E170: =VLOOKUP(Vlookup!$B135,'CDCM Volume Forecasts'!$A$27:$AG$123,E$137,FALSE) -> 0 | F170: =VLOOKUP(Vlookup!$B135,'CDCM Volume Forecasts'!$A$27:$AG$123,F$137,FALSE) -> 0 | G170: =VLOOKUP(Vlookup!$B135,'CDCM Volume Forecasts'!$A$27:$AG$123,G$137,FALSE) -> 0
A171: LV Sub Medium Non-Domestic | B171: =VLOOKUP(Vlookup!$B136,'CDCM Volume Forecasts'!$A$27:$AG$123,B$137,FALSE) -> 35406.2791 | C171: =VLOOKUP(Vlookup!$B136,'CDCM Volume Forecasts'!$A$27:$AG$123,C$137,FALSE) -> 9910.038121 | D171: =VLOOKUP(Vlookup!$B136,'CDCM Volume Forecasts'!$A$27:$AG$123,D$137,FALSE) -> 0 | E171: =VLOOKUP(Vlookup!$B136,'CDCM Volume Forecasts'!$A$27:$AG$123,E$137,FALSE) -> 369 | F171: =VLOOKUP(Vlookup!$B136,'CDCM Volume Forecasts'!$A$27:$AG$123,F$137,FALSE) -> 0 | G171: =VLOOKUP(Vlookup!$B136,'CDCM Volume Forecasts'!$A$27:$AG$123,G$137,FALSE) -> 0
A172: > HV Medium Non-Domestic | B172: =VLOOKUP(Vlookup!$B137,'CDCM Volume Forecasts'!$A$27:$AG$123,B$137,FALSE) -> 0 | C172: =VLOOKUP(Vlookup!$B137,'CDCM Volume Forecasts'!$A$27:$AG$123,C$137,FALSE) -> 0 | D172: =VLOOKUP(Vlookup!$B137,'CDCM Volume Forecasts'!$A$27:$AG$123,D$137,FALSE) -> 0 | E172: =VLOOKUP(Vlookup!$B137,'CDCM Volume Forecasts'!$A$27:$AG$123,E$137,FALSE) -> 0 | F172: =VLOOKUP(Vlookup!$B137,'CDCM Volume Forecasts'!$A$27:$AG$123,F$137,FALSE) -> 0 | G172: =VLOOKUP(Vlookup!$B137,'CDCM Volume Forecasts'!$A$27:$AG$123,G$137,FALSE) -> 0
A173: HV Medium Non-Domestic | B173: =VLOOKUP(Vlookup!$B138,'CDCM Volume Forecasts'!$A$27:$AG$123,B$137,FALSE) -> 7827.797313 | C173: =VLOOKUP(Vlookup!$B138,'CDCM Volume Forecasts'!$A$27:$AG$123,C$137,FALSE) -> 2178.497845 | D173: =VLOOKUP(Vlookup!$B138,'CDCM Volume Forecasts'!$A$27:$AG$123,D$137,FALSE) -> 0 | E173: =VLOOKUP(Vlookup!$B138,'CDCM Volume Forecasts'!$A$27:$AG$123,E$137,FALSE) -> 64 | F173: =VLOOKUP(Vlookup!$B138,'CDCM Volume Forecasts'!$A$27:$AG$123,F$137,FALSE) -> 0 | G173: =VLOOKUP(Vlookup!$B138,'CDCM Volume Forecasts'!$A$27:$AG$123,G$137,FALSE) -> 0
A174: > LV Network Domestic | B174: =VLOOKUP(Vlookup!$B139,'CDCM Volume Forecasts'!$A$27:$AG$123,B$137,FALSE) -> 0 | C174: =VLOOKUP(Vlookup!$B139,'CDCM Volume Forecasts'!$A$27:$AG$123,C$137,FALSE) -> 0 | D174: =VLOOKUP(Vlookup!$B139,'CDCM Volume Forecasts'!$A$27:$AG$123,D$137,FALSE) -> 0 | E174: =VLOOKUP(Vlookup!$B139,'CDCM Volume Forecasts'!$A$27:$AG$123,E$137,FALSE) -> 0 | F174: =VLOOKUP(Vlookup!$B139,'CDCM Volume Forecasts'!$A$27:$AG$123,F$137,FALSE) -> 0 | G174: =VLOOKUP(Vlookup!$B139,'CDCM Volume Forecasts'!$A$27:$AG$123,G$137,FALSE) -> 0
A175: LV Network Domestic | B175: =VLOOKUP(Vlookup!$B140,'CDCM Volume Forecasts'!$A$27:$AG$123,B$137,FALSE) -> 0 | C175: =VLOOKUP(Vlookup!$B140,'CDCM Volume Forecasts'!$A$27:$AG$123,C$137,FALSE) -> 0 | D175: =VLOOKUP(Vlookup!$B140,'CDCM Volume Forecasts'!$A$27:$AG$123,D$137,FALSE) -> 0 | E175: =VLOOKUP(Vlookup!$B140,'CDCM Volume Forecasts'!$A$27:$AG$123,E$137,FALSE) -> 0 | F175: =VLOOKUP(Vlookup!$B140,'CDCM Volume Forecasts'!$A$27:$AG$123,F$137,FALSE) -> 0 | G175: =VLOOKUP(Vlookup!$B140,'CDCM Volume Forecasts'!$A$27:$AG$123,G$137,FALSE) -> 0
A176: LDNO LV: LV Network Domestic | B176: =VLOOKUP(Vlookup!$B141,'CDCM Volume Forecasts'!$A$27:$AG$123,B$137,FALSE) -> 0 | C176: =VLOOKUP(Vlookup!$B141,'CDCM Volume Forecasts'!$A$27:$AG$123,C$137,FALSE) -> 0 | D176: =VLOOKUP(Vlookup!$B141,'CDCM Volume Forecasts'!$A$27:$AG$123,D$137,FALSE) -> 0 | E176: =VLOOKUP(Vlookup!$B141,'CDCM Volume Forecasts'!$A$27:$AG$123,E$137,FALSE) -> 0 | F176: =VLOOKUP(Vlookup!$B141,'CDCM Volume Forecasts'!$A$27:$AG$123,F$137,FALSE) -> 0 | G176: =VLOOKUP(Vlookup!$B141,'CDCM Volume Forecasts'!$A$27:$AG$123,G$137,FALSE) -> 0
A177: LDNO HV: LV Network Domestic | B177: =VLOOKUP(Vlookup!$B142,'CDCM Volume Forecasts'!$A$27:$AG$123,B$137,FALSE) -> 0 | C177: =VLOOKUP(Vlookup!$B142,'CDCM Volume Forecasts'!$A$27:$AG$123,C$137,FALSE) -> 0 | D177: =VLOOKUP(Vlookup!$B142,'CDCM Volume Forecasts'!$A$27:$AG$123,D$137,FALSE) -> 0 | E177: =VLOOKUP(Vlookup!$B142,'CDCM Volume Forecasts'!$A$27:$AG$123,E$137,FALSE) -> 0 | F177: =VLOOKUP(Vlookup!$B142,'CDCM Volume Forecasts'!$A$27:$AG$123,F$137,FALSE) -> 0 | G177: =VLOOKUP(Vlookup!$B142,'CDCM Volume Forecasts'!$A$27:$AG$123,G$137,FALSE) -> 0
A178: > LV Network Non-Domestic Non-CT | B178: =VLOOKUP(Vlookup!$B143,'CDCM Volume Forecasts'!$A$27:$AG$123,B$137,FALSE) -> 0 | C178: =VLOOKUP(Vlookup!$B143,'CDCM Volume Forecasts'!$A$27:$AG$123,C$137,FALSE) -> 0 | D178: =VLOOKUP(Vlookup!$B143,'CDCM Volume Forecasts'!$A$27:$AG$123,D$137,FALSE) -> 0 | E178: =VLOOKUP(Vlookup!$B143,'CDCM Volume Forecasts'!$A$27:$AG$123,E$137,FALSE) -> 0 | F178: =VLOOKUP(Vlookup!$B143,'CDCM Volume Forecasts'!$A$27:$AG$123,F$137,FALSE) -> 0 | G178: =VLOOKUP(Vlookup!$B143,'CDCM Volume Forecasts'!$A$27:$AG$123,G$137,FALSE) -> 0
A179: LV Network Non-Domestic Non-CT | B179: =VLOOKUP(Vlookup!$B144,'CDCM Volume Forecasts'!$A$27:$AG$123,B$137,FALSE) -> 0 | C179: =VLOOKUP(Vlookup!$B144,'CDCM Volume Forecasts'!$A$27:$AG$123,C$137,FALSE) -> 0 | D179: =VLOOKUP(Vlookup!$B144,'CDCM Volume Forecasts'!$A$27:$AG$123,D$137,FALSE) -> 0 | E179: =VLOOKUP(Vlookup!$B144,'CDCM Volume Forecasts'!$A$27:$AG$123,E$137,FALSE) -> 0 | F179: =VLOOKUP(Vlookup!$B144,'CDCM Volume Forecasts'!$A$27:$AG$123,F$137,FALSE) -> 0 | G179: =VLOOKUP(Vlookup!$B144,'CDCM Volume Forecasts'!$A$27:$AG$123,G$137,FALSE) -> 0
A180: LDNO LV: LV Network Non-Domestic Non-CT | B180: =VLOOKUP(Vlookup!$B145,'CDCM Volume Forecasts'!$A$27:$AG$123,B$137,FALSE) -> 0 | C180: =VLOOKUP(Vlookup!$B145,'CDCM Volume Forecasts'!$A$27:$AG$123,C$137,FALSE) -> 0 | D180: =VLOOKUP(Vlookup!$B145,'CDCM Volume Forecasts'!$A$27:$AG$123,D$137,FALSE) -> 0 | E180: =VLOOKUP(Vlookup!$B145,'CDCM Volume Forecasts'!$A$27:$AG$123,E$137,FALSE) -> 0 | F180: =VLOOKUP(Vlookup!$B145,'CDCM Volume Forecasts'!$A$27:$AG$123,F$137,FALSE) -> 0 | G180: =VLOOKUP(Vlookup!$B145,'CDCM Volume Forecasts'!$A$27:$AG$123,G$137,FALSE) -> 0
A181: LDNO HV: LV Network Non-Domestic Non-CT | B181: =VLOOKUP(Vlookup!$B146,'CDCM Volume Forecasts'!$A$27:$AG$123,B$137,FALSE) -> 0 | C181: =VLOOKUP(Vlookup!$B146,'CDCM Volume Forecasts'!$A$27:$AG$123,C$137,FALSE) -> 0 | D181: =VLOOKUP(Vlookup!$B146,'CDCM Volume Forecasts'!$A$27:$AG$123,D$137,FALSE) -> 0 | E181: =VLOOKUP(Vlookup!$B146,'CDCM Volume Forecasts'!$A$27:$AG$123,E$137,FALSE) -> 0 | F181: =VLOOKUP(Vlookup!$B146,'CDCM Volume Forecasts'!$A$27:$AG$123,F$137,FALSE) -> 0 | G181: =VLOOKUP(Vlookup!$B146,'CDCM Volume Forecasts'!$A$27:$AG$123,G$137,FALSE) -> 0
A182: > LV HH Metered | B182: =VLOOKUP(Vlookup!$B147,'CDCM Volume Forecasts'!$A$27:$AG$123,B$137,FALSE) -> 0 | C182: =VLOOKUP(Vlookup!$B147,'CDCM Volume Forecasts'!$A$27:$AG$123,C$137,FALSE) -> 0 | D182: =VLOOKUP(Vlookup!$B147,'CDCM Volume Forecasts'!$A$27:$AG$123,D$137,FALSE) -> 0 | E182: =VLOOKUP(Vlookup!$B147,'CDCM Volume Forecasts'!$A$27:$AG$123,E$137,FALSE) -> 0 | F182: =VLOOKUP(Vlookup!$B147,'CDCM Volume Forecasts'!$A$27:$AG$123,F$137,FALSE) -> 0 | G182: =VLOOKUP(Vlookup!$B147,'CDCM Volume Forecasts'!$A$27:$AG$123,G$137,FALSE) -> 0
A183: LV HH Metered | B183: =VLOOKUP(Vlookup!$B148,'CDCM Volume Forecasts'!$A$27:$AG$123,B$137,FALSE) -> 175631.8116 | C183: =VLOOKUP(Vlookup!$B148,'CDCM Volume Forecasts'!$A$27:$AG$123,C$137,FALSE) -> 621630.4069 | D183: =VLOOKUP(Vlookup!$B148,'CDCM Volume Forecasts'!$A$27:$AG$123,D$137,FALSE) -> 799024.7005 | E183: =VLOOKUP(Vlookup!$B148,'CDCM Volume Forecasts'!$A$27:$AG$123,E$137,FALSE) -> 5306 | F183: =VLOOKUP(Vlookup!$B148,'CDCM Volume Forecasts'!$A$27:$AG$123,F$137,FALSE) -> 768023.4249 | G183: =VLOOKUP(Vlookup!$B148,'CDCM Volume Forecasts'!$A$27:$AG$123,G$137,FALSE) -> 132125.4743
A184: LDNO LV: LV HH Metered | B184: =VLOOKUP(Vlookup!$B149,'CDCM Volume Forecasts'!$A$27:$AG$123,B$137,FALSE) -> 285.4746293 | C184: =VLOOKUP(Vlookup!$B149,'CDCM Volume Forecasts'!$A$27:$AG$123,C$137,FALSE) -> 1010.215366 | D184: =VLOOKUP(Vlookup!$B149,'CDCM Volume Forecasts'!$A$27:$AG$123,D$137,FALSE) -> 1300.388164 | E184: =VLOOKUP(Vlookup!$B149,'CDCM Volume Forecasts'!$A$27:$AG$123,E$137,FALSE) -> 10 | F184: =VLOOKUP(Vlookup!$B149,'CDCM Volume Forecasts'!$A$27:$AG$123,F$137,FALSE) -> 1751.309737 | G184: =VLOOKUP(Vlookup!$B149,'CDCM Volume Forecasts'!$A$27:$AG$123,G$137,FALSE) -> 151.5306
A185: LDNO HV: LV HH Metered | B185: =VLOOKUP(Vlookup!$B150,'CDCM Volume Forecasts'!$A$27:$AG$123,B$137,FALSE) -> 4582.031036 | C185: =VLOOKUP(Vlookup!$B150,'CDCM Volume Forecasts'!$A$27:$AG$123,C$137,FALSE) -> 16235.37014 | D185: =VLOOKUP(Vlookup!$B150,'CDCM Volume Forecasts'!$A$27:$AG$123,D$137,FALSE) -> 20901.9679 | E185: =VLOOKUP(Vlookup!$B150,'CDCM Volume Forecasts'!$A$27:$AG$123,E$137,FALSE) -> 65 | F185: =VLOOKUP(Vlookup!$B150,'CDCM Volume Forecasts'!$A$27:$AG$123,F$137,FALSE) -> 22056.25581 | G185: =VLOOKUP(Vlookup!$B150,'CDCM Volume Forecasts'!$A$27:$AG$123,G$137,FALSE) -> 985.555
A186: > LV Sub HH Metered | B186: =VLOOKUP(Vlookup!$B151,'CDCM Volume Forecasts'!$A$27:$AG$123,B$137,FALSE) -> 0 | C186: =VLOOKUP(Vlookup!$B151,'CDCM Volume Forecasts'!$A$27:$AG$123,C$137,FALSE) -> 0 | D186: =VLOOKUP(Vlookup!$B151,'CDCM Volume Forecasts'!$A$27:$AG$123,D$137,FALSE) -> 0 | E186: =VLOOKUP(Vlookup!$B151,'CDCM Volume Forecasts'!$A$27:$AG$123,E$137,FALSE) -> 0 | F186: =VLOOKUP(Vlookup!$B151,'CDCM Volume Forecasts'!$A$27:$AG$123,F$137,FALSE) -> 0 | G186: =VLOOKUP(Vlookup!$B151,'CDCM Volume Forecasts'!$A$27:$AG$123,G$137,FALSE) -> 0
A187: LV Sub HH Metered | B187: =VLOOKUP(Vlookup!$B152,'CDCM Volume Forecasts'!$A$27:$AG$123,B$137,FALSE) -> 135375.1703 | C187: =VLOOKUP(Vlookup!$B152,'CDCM Volume Forecasts'!$A$27:$AG$123,C$137,FALSE) -> 490799.1693 | D187: =VLOOKUP(Vlookup!$B152,'CDCM Volume Forecasts'!$A$27:$AG$123,D$137,FALSE) -> 649673.9221 | E187: =VLOOKUP(Vlookup!$B152,'CDCM Volume Forecasts'!$A$27:$AG$123,E$137,FALSE) -> 1843 | F187: =VLOOKUP(Vlookup!$B152,'CDCM Volume Forecasts'!$A$27:$AG$123,F$137,FALSE) -> 634173.1853 | G187: =VLOOKUP(Vlookup!$B152,'CDCM Volume Forecasts'!$A$27:$AG$123,G$137,FALSE) -> 95399.90129
A188: LDNO HV: LV Sub HH Metered | B188: =VLOOKUP(Vlookup!$B153,'CDCM Volume Forecasts'!$A$27:$AG$123,B$137,FALSE) -> 40.93288733 | C188: =VLOOKUP(Vlookup!$B153,'CDCM Volume Forecasts'!$A$27:$AG$123,C$137,FALSE) -> 148.3847092 | D188: =VLOOKUP(Vlookup!$B153,'CDCM Volume Forecasts'!$A$27:$AG$123,D$137,FALSE) -> 196.3874035 | E188: =VLOOKUP(Vlookup!$B153,'CDCM Volume Forecasts'!$A$27:$AG$123,E$137,FALSE) -> 1 | F188: =VLOOKUP(Vlookup!$B153,'CDCM Volume Forecasts'!$A$27:$AG$123,F$137,FALSE) -> 225.8027769 | G188: =VLOOKUP(Vlookup!$B153,'CDCM Volume Forecasts'!$A$27:$AG$123,G$137,FALSE) -> 0.039
A189: > HV HH Metered | B189: =VLOOKUP(Vlookup!$B154,'CDCM Volume Forecasts'!$A$27:$AG$123,B$137,FALSE) -> 0 | C189: =VLOOKUP(Vlookup!$B154,'CDCM Volume Forecasts'!$A$27:$AG$123,C$137,FALSE) -> 0 | D189: =VLOOKUP(Vlookup!$B154,'CDCM Volume Forecasts'!$A$27:$AG$123,D$137,FALSE) -> 0 | E189: =VLOOKUP(Vlookup!$B154,'CDCM Volume Forecasts'!$A$27:$AG$123,E$137,FALSE) -> 0 | F189: =VLOOKUP(Vlookup!$B154,'CDCM Volume Forecasts'!$A$27:$AG$123,F$137,FALSE) -> 0 | G189: =VLOOKUP(Vlookup!$B154,'CDCM Volume Forecasts'!$A$27:$AG$123,G$137,FALSE) -> 0
A190: HV HH Metered | B190: =VLOOKUP(Vlookup!$B155,'CDCM Volume Forecasts'!$A$27:$AG$123,B$137,FALSE) -> 513876.5189 | C190: =VLOOKUP(Vlookup!$B155,'CDCM Volume Forecasts'!$A$27:$AG$123,C$137,FALSE) -> 1744082.795 | D190: =VLOOKUP(Vlookup!$B155,'CDCM Volume Forecasts'!$A$27:$AG$123,D$137,FALSE) -> 2851335.555 | E190: =VLOOKUP(Vlookup!$B155,'CDCM Volume Forecasts'!$A$27:$AG$123,E$137,FALSE) -> 2038 | F190: =VLOOKUP(Vlookup!$B155,'CDCM Volume Forecasts'!$A$27:$AG$123,F$137,FALSE) -> 1825406.472 | G190: =VLOOKUP(Vlookup!$B155,'CDCM Volume Forecasts'!$A$27:$AG$123,G$137,FALSE) -> 375871.926
A191: LDNO HV: HV HH Metered | B191: =VLOOKUP(Vlookup!$B156,'CDCM Volume Forecasts'!$A$27:$AG$123,B$137,FALSE) -> 2050.762694 | C191: =VLOOKUP(Vlookup!$B156,'CDCM Volume Forecasts'!$A$27:$AG$123,C$137,FALSE) -> 6966.651353 | D191: =VLOOKUP(Vlookup!$B156,'CDCM Volume Forecasts'!$A$27:$AG$123,D$137,FALSE) -> 11419.28754 | E191: =VLOOKUP(Vlookup!$B156,'CDCM Volume Forecasts'!$A$27:$AG$123,E$137,FALSE) -> 7 | F191: =VLOOKUP(Vlookup!$B156,'CDCM Volume Forecasts'!$A$27:$AG$123,F$137,FALSE) -> 11571.86395 | G191: =VLOOKUP(Vlookup!$B156,'CDCM Volume Forecasts'!$A$27:$AG$123,G$137,FALSE) -> 3.9938
A192: > NHH UMS category A | B192: =VLOOKUP(Vlookup!$B157,'CDCM Volume Forecasts'!$A$27:$AG$123,B$137,FALSE) -> 0 | C192: =VLOOKUP(Vlookup!$B157,'CDCM Volume Forecasts'!$A$27:$AG$123,C$137,FALSE) -> 0 | D192: =VLOOKUP(Vlookup!$B157,'CDCM Volume Forecasts'!$A$27:$AG$123,D$137,FALSE) -> 0 | E192: =VLOOKUP(Vlookup!$B157,'CDCM Volume Forecasts'!$A$27:$AG$123,E$137,FALSE) -> 0 | F192: =VLOOKUP(Vlookup!$B157,'CDCM Volume Forecasts'!$A$27:$AG$123,F$137,FALSE) -> 0 | G192: =VLOOKUP(Vlookup!$B157,'CDCM Volume Forecasts'!$A$27:$AG$123,G$137,FALSE) -> 0
A193: NHH UMS category A | B193: =VLOOKUP(Vlookup!$B158,'CDCM Volume Forecasts'!$A$27:$AG$123,B$137,FALSE) -> 37733.79311 | C193: =VLOOKUP(Vlookup!$B158,'CDCM Volume Forecasts'!$A$27:$AG$123,C$137,FALSE) -> 0 | D193: =VLOOKUP(Vlookup!$B158,'CDCM Volume Forecasts'!$A$27:$AG$123,D$137,FALSE) -> 0 | E193: =VLOOKUP(Vlookup!$B158,'CDCM Volume Forecasts'!$A$27:$AG$123,E$137,FALSE) -> 235 | F193: =VLOOKUP(Vlookup!$B158,'CDCM Volume Forecasts'!$A$27:$AG$123,F$137,FALSE) -> 0 | G193: =VLOOKUP(Vlookup!$B158,'CDCM Volume Forecasts'!$A$27:$AG$123,G$137,FALSE) -> 0
A194: LDNO LV: NHH UMS category A | B194: =VLOOKUP(Vlookup!$B159,'CDCM Volume Forecasts'!$A$27:$AG$123,B$137,FALSE) -> 147.8 | C194: =VLOOKUP(Vlookup!$B159,'CDCM Volume Forecasts'!$A$27:$AG$123,C$137,FALSE) -> 0 | D194: =VLOOKUP(Vlookup!$B159,'CDCM Volume Forecasts'!$A$27:$AG$123,D$137,FALSE) -> 0 | E194: =VLOOKUP(Vlookup!$B159,'CDCM Volume Forecasts'!$A$27:$AG$123,E$137,FALSE) -> 30 | F194: =VLOOKUP(Vlookup!$B159,'CDCM Volume Forecasts'!$A$27:$AG$123,F$137,FALSE) -> 0 | G194: =VLOOKUP(Vlookup!$B159,'CDCM Volume Forecasts'!$A$27:$AG$123,G$137,FALSE) -> 0
A195: LDNO HV: NHH UMS category A | B195: =VLOOKUP(Vlookup!$B160,'CDCM Volume Forecasts'!$A$27:$AG$123,B$137,FALSE) -> 92.7 | C195: =VLOOKUP(Vlookup!$B160,'CDCM Volume Forecasts'!$A$27:$AG$123,C$137,FALSE) -> 0 | D195: =VLOOKUP(Vlookup!$B160,'CDCM Volume Forecasts'!$A$27:$AG$123,D$137,FALSE) -> 0 | E195: =VLOOKUP(Vlookup!$B160,'CDCM Volume Forecasts'!$A$27:$AG$123,E$137,FALSE) -> 7 | F195: =VLOOKUP(Vlookup!$B160,'CDCM Volume Forecasts'!$A$27:$AG$123,F$137,FALSE) -> 0 | G195: =VLOOKUP(Vlookup!$B160,'CDCM Volume Forecasts'!$A$27:$AG$123,G$137,FALSE) -> 0
A196: > NHH UMS category B | B196: =VLOOKUP(Vlookup!$B161,'CDCM Volume Forecasts'!$A$27:$AG$123,B$137,FALSE) -> 0 | C196: =VLOOKUP(Vlookup!$B161,'CDCM Volume Forecasts'!$A$27:$AG$123,C$137,FALSE) -> 0 | D196: =VLOOKUP(Vlookup!$B161,'CDCM Volume Forecasts'!$A$27:$AG$123,D$137,FALSE) -> 0 | E196: =VLOOKUP(Vlookup!$B161,'CDCM Volume Forecasts'!$A$27:$AG$123,E$137,FALSE) -> 0 | F196: =VLOOKUP(Vlookup!$B161,'CDCM Volume Forecasts'!$A$27:$AG$123,F$137,FALSE) -> 0 | G196: =VLOOKUP(Vlookup!$B161,'CDCM Volume Forecasts'!$A$27:$AG$123,G$137,FALSE) -> 0
A197: NHH UMS category B | B197: =VLOOKUP(Vlookup!$B162,'CDCM Volume Forecasts'!$A$27:$AG$123,B$137,FALSE) -> 12652.36029 | C197: =VLOOKUP(Vlookup!$B162,'CDCM Volume Forecasts'!$A$27:$AG$123,C$137,FALSE) -> 0 | D197: =VLOOKUP(Vlookup!$B162,'CDCM Volume Forecasts'!$A$27:$AG$123,D$137,FALSE) -> 0 | E197: =VLOOKUP(Vlookup!$B162,'CDCM Volume Forecasts'!$A$27:$AG$123,E$137,FALSE) -> 307 | F197: =VLOOKUP(Vlookup!$B162,'CDCM Volume Forecasts'!$A$27:$AG$123,F$137,FALSE) -> 0 | G197: =VLOOKUP(Vlookup!$B162,'CDCM Volume Forecasts'!$A$27:$AG$123,G$137,FALSE) -> 0
A198: LDNO LV: NHH UMS category B | B198: =VLOOKUP(Vlookup!$B163,'CDCM Volume Forecasts'!$A$27:$AG$123,B$137,FALSE) -> 48.2 | C198: =VLOOKUP(Vlookup!$B163,'CDCM Volume Forecasts'!$A$27:$AG$123,C$137,FALSE) -> 0 | D198: =VLOOKUP(Vlookup!$B163,'CDCM Volume Forecasts'!$A$27:$AG$123,D$137,FALSE) -> 0 | E198: =VLOOKUP(Vlookup!$B163,'CDCM Volume Forecasts'!$A$27:$AG$123,E$137,FALSE) -> 38 | F198: =VLOOKUP(Vlookup!$B163,'CDCM Volume Forecasts'!$A$27:$AG$123,F$137,FALSE) -> 0 | G198: =VLOOKUP(Vlookup!$B163,'CDCM Volume Forecasts'!$A$27:$AG$123,G$137,FALSE) -> 0
A199: LDNO HV: NHH UMS category B | B199: =VLOOKUP(Vlookup!$B164,'CDCM Volume Forecasts'!$A$27:$AG$123,B$137,FALSE) -> 30.3 | C199: =VLOOKUP(Vlookup!$B164,'CDCM Volume Forecasts'!$A$27:$AG$123,C$137,FALSE) -> 0 | D199: =VLOOKUP(Vlookup!$B164,'CDCM Volume Forecasts'!$A$27:$AG$123,D$137,FALSE) -> 0 | E199: =VLOOKUP(Vlookup!$B164,'CDCM Volume Forecasts'!$A$27:$AG$123,E$137,FALSE) -> 9 | F199: =VLOOKUP(Vlookup!$B164,'CDCM Volume Forecasts'!$A$27:$AG$123,F$137,FALSE) -> 0 | G199: =VLOOKUP(Vlookup!$B164,'CDCM Volume Forecasts'!$A$27:$AG$123,G$137,FALSE) -> 0
A200: > NHH UMS category C | B200: =VLOOKUP(Vlookup!$B165,'CDCM Volume Forecasts'!$A$27:$AG$123,B$137,FALSE) -> 0 | C200: =VLOOKUP(Vlookup!$B165,'CDCM Volume Forecasts'!$A$27:$AG$123,C$137,FALSE) -> 0 | D200: =VLOOKUP(Vlookup!$B165,'CDCM Volume Forecasts'!$A$27:$AG$123,D$137,FALSE) -> 0 | E200: =VLOOKUP(Vlookup!$B165,'CDCM Volume Forecasts'!$A$27:$AG$123,E$137,FALSE) -> 0 | F200: =VLOOKUP(Vlookup!$B165,'CDCM Volume Forecasts'!$A$27:$AG$123,F$137,FALSE) -> 0 | G200: =VLOOKUP(Vlookup!$B165,'CDCM Volume Forecasts'!$A$27:$AG$123,G$137,FALSE) -> 0
A201: NHH UMS category C | B201: =VLOOKUP(Vlookup!$B166,'CDCM Volume Forecasts'!$A$27:$AG$123,B$137,FALSE) -> 49.16873277 | C201: =VLOOKUP(Vlookup!$B166,'CDCM Volume Forecasts'!$A$27:$AG$123,C$137,FALSE) -> 0 | D201: =VLOOKUP(Vlookup!$B166,'CDCM Volume Forecasts'!$A$27:$AG$123,D$137,FALSE) -> 0 | E201: =VLOOKUP(Vlookup!$B166,'CDCM Volume Forecasts'!$A$27:$AG$123,E$137,FALSE) -> 6 | F201: =VLOOKUP(Vlookup!$B166,'CDCM Volume Forecasts'!$A$27:$AG$123,F$137,FALSE) -> 0 | G201: =VLOOKUP(Vlookup!$B166,'CDCM Volume Forecasts'!$A$27:$AG$123,G$137,FALSE) -> 0
A202: LDNO LV: NHH UMS category C | B202: =VLOOKUP(Vlookup!$B167,'CDCM Volume Forecasts'!$A$27:$AG$123,B$137,FALSE) -> 0 | C202: =VLOOKUP(Vlookup!$B167,'CDCM Volume Forecasts'!$A$27:$AG$123,C$137,FALSE) -> 0 | D202: =VLOOKUP(Vlookup!$B167,'CDCM Volume Forecasts'!$A$27:$AG$123,D$137,FALSE) -> 0 | E202: =VLOOKUP(Vlookup!$B167,'CDCM Volume Forecasts'!$A$27:$AG$123,E$137,FALSE) -> 0 | F202: =VLOOKUP(Vlookup!$B167,'CDCM Volume Forecasts'!$A$27:$AG$123,F$137,FALSE) -> 0 | G202: =VLOOKUP(Vlookup!$B167,'CDCM Volume Forecasts'!$A$27:$AG$123,G$137,FALSE) -> 0
A203: LDNO HV: NHH UMS category C | B203: =VLOOKUP(Vlookup!$B168,'CDCM Volume Forecasts'!$A$27:$AG$123,B$137,FALSE) -> 0 | C203: =VLOOKUP(Vlookup!$B168,'CDCM Volume Forecasts'!$A$27:$AG$123,C$137,FALSE) -> 0 | D203: =VLOOKUP(Vlookup!$B168,'CDCM Volume Forecasts'!$A$27:$AG$123,D$137,FALSE) -> 0 | E203: =VLOOKUP(Vlookup!$B168,'CDCM Volume Forecasts'!$A$27:$AG$123,E$137,FALSE) -> 0 | F203: =VLOOKUP(Vlookup!$B168,'CDCM Volume Forecasts'!$A$27:$AG$123,F$137,FALSE) -> 0 | G203: =VLOOKUP(Vlookup!$B168,'CDCM Volume Forecasts'!$A$27:$AG$123,G$137,FALSE) -> 0
A204: > NHH UMS category D | B204: =VLOOKUP(Vlookup!$B169,'CDCM Volume Forecasts'!$A$27:$AG$123,B$137,FALSE) -> 0 | C204: =VLOOKUP(Vlookup!$B169,'CDCM Volume Forecasts'!$A$27:$AG$123,C$137,FALSE) -> 0 | D204: =VLOOKUP(Vlookup!$B169,'CDCM Volume Forecasts'!$A$27:$AG$123,D$137,FALSE) -> 0 | E204: =VLOOKUP(Vlookup!$B169,'CDCM Volume Forecasts'!$A$27:$AG$123,E$137,FALSE) -> 0 | F204: =VLOOKUP(Vlookup!$B169,'CDCM Volume Forecasts'!$A$27:$AG$123,F$137,FALSE) -> 0 | G204: =VLOOKUP(Vlookup!$B169,'CDCM Volume Forecasts'!$A$27:$AG$123,G$137,FALSE) -> 0
A205: NHH UMS category D | B205: =VLOOKUP(Vlookup!$B170,'CDCM Volume Forecasts'!$A$27:$AG$123,B$137,FALSE) -> 0 | C205: =VLOOKUP(Vlookup!$B170,'CDCM Volume Forecasts'!$A$27:$AG$123,C$137,FALSE) -> 0 | D205: =VLOOKUP(Vlookup!$B170,'CDCM Volume Forecasts'!$A$27:$AG$123,D$137,FALSE) -> 0 | E205: =VLOOKUP(Vlookup!$B170,'CDCM Volume Forecasts'!$A$27:$AG$123,E$137,FALSE) -> 0 | F205: =VLOOKUP(Vlookup!$B170,'CDCM Volume Forecasts'!$A$27:$AG$123,F$137,FALSE) -> 0 | G205: =VLOOKUP(Vlookup!$B170,'CDCM Volume Forecasts'!$A$27:$AG$123,G$137,FALSE) -> 0
A206: LDNO LV: NHH UMS category D | B206: =VLOOKUP(Vlookup!$B171,'CDCM Volume Forecasts'!$A$27:$AG$123,B$137,FALSE) -> 0 | C206: =VLOOKUP(Vlookup!$B171,'CDCM Volume Forecasts'!$A$27:$AG$123,C$137,FALSE) -> 0 | D206: =VLOOKUP(Vlookup!$B171,'CDCM Volume Forecasts'!$A$27:$AG$123,D$137,FALSE) -> 0 | E206: =VLOOKUP(Vlookup!$B171,'CDCM Volume Forecasts'!$A$27:$AG$123,E$137,FALSE) -> 0 | F206: =VLOOKUP(Vlookup!$B171,'CDCM Volume Forecasts'!$A$27:$AG$123,F$137,FALSE) -> 0 | G206: =VLOOKUP(Vlookup!$B171,'CDCM Volume Forecasts'!$A$27:$AG$123,G$137,FALSE) -> 0
A207: LDNO HV: NHH UMS category D | B207: =VLOOKUP(Vlookup!$B172,'CDCM Volume Forecasts'!$A$27:$AG$123,B$137,FALSE) -> 0 | C207: =VLOOKUP(Vlookup!$B172,'CDCM Volume Forecasts'!$A$27:$AG$123,C$137,FALSE) -> 0 | D207: =VLOOKUP(Vlookup!$B172,'CDCM Volume Forecasts'!$A$27:$AG$123,D$137,FALSE) -> 0 | E207: =VLOOKUP(Vlookup!$B172,'CDCM Volume Forecasts'!$A$27:$AG$123,E$137,FALSE) -> 0 | F207: =VLOOKUP(Vlookup!$B172,'CDCM Volume Forecasts'!$A$27:$AG$123,F$137,FALSE) -> 0 | G207: =VLOOKUP(Vlookup!$B172,'CDCM Volume Forecasts'!$A$27:$AG$123,G$137,FALSE) -> 0
A208: > LV UMS (Pseudo HH Metered) | B208: =VLOOKUP(Vlookup!$B173,'CDCM Volume Forecasts'!$A$27:$AG$123,B$137,FALSE) -> 0 | C208: =VLOOKUP(Vlookup!$B173,'CDCM Volume Forecasts'!$A$27:$AG$123,C$137,FALSE) -> 0 | D208: =VLOOKUP(Vlookup!$B173,'CDCM Volume Forecasts'!$A$27:$AG$123,D$137,FALSE) -> 0 | E208: =VLOOKUP(Vlookup!$B173,'CDCM Volume Forecasts'!$A$27:$AG$123,E$137,FALSE) -> 0 | F208: =VLOOKUP(Vlookup!$B173,'CDCM Volume Forecasts'!$A$27:$AG$123,F$137,FALSE) -> 0 | G208: =VLOOKUP(Vlookup!$B173,'CDCM Volume Forecasts'!$A$27:$AG$123,G$137,FALSE) -> 0
A209: LV UMS (Pseudo HH Metered) | B209: =VLOOKUP(Vlookup!$B174,'CDCM Volume Forecasts'!$A$27:$AG$123,B$137,FALSE) -> 14015.0102 | C209: =VLOOKUP(Vlookup!$B174,'CDCM Volume Forecasts'!$A$27:$AG$123,C$137,FALSE) -> 33274.78945 | D209: =VLOOKUP(Vlookup!$B174,'CDCM Volume Forecasts'!$A$27:$AG$123,D$137,FALSE) -> 229923.2841 | E209: =VLOOKUP(Vlookup!$B174,'CDCM Volume Forecasts'!$A$27:$AG$123,E$137,FALSE) -> 23 | F209: =VLOOKUP(Vlookup!$B174,'CDCM Volume Forecasts'!$A$27:$AG$123,F$137,FALSE) -> 0 | G209: =VLOOKUP(Vlookup!$B174,'CDCM Volume Forecasts'!$A$27:$AG$123,G$137,FALSE) -> 0
A210: LDNO LV: LV UMS (Pseudo HH Metered) | B210: =VLOOKUP(Vlookup!$B175,'CDCM Volume Forecasts'!$A$27:$AG$123,B$137,FALSE) -> 0 | C210: =VLOOKUP(Vlookup!$B175,'CDCM Volume Forecasts'!$A$27:$AG$123,C$137,FALSE) -> 0 | D210: =VLOOKUP(Vlookup!$B175,'CDCM Volume Forecasts'!$A$27:$AG$123,D$137,FALSE) -> 0 | E210: =VLOOKUP(Vlookup!$B175,'CDCM Volume Forecasts'!$A$27:$AG$123,E$137,FALSE) -> 0 | F210: =VLOOKUP(Vlookup!$B175,'CDCM Volume Forecasts'!$A$27:$AG$123,F$137,FALSE) -> 0 | G210: =VLOOKUP(Vlookup!$B175,'CDCM Volume Forecasts'!$A$27:$AG$123,G$137,FALSE) -> 0
A211: LDNO HV: LV UMS (Pseudo HH Metered) | B211: =VLOOKUP(Vlookup!$B176,'CDCM Volume Forecasts'!$A$27:$AG$123,B$137,FALSE) -> 0 | C211: =VLOOKUP(Vlookup!$B176,'CDCM Volume Forecasts'!$A$27:$AG$123,C$137,FALSE) -> 0 | D211: =VLOOKUP(Vlookup!$B176,'CDCM Volume Forecasts'!$A$27:$AG$123,D$137,FALSE) -> 0 | E211: =VLOOKUP(Vlookup!$B176,'CDCM Volume Forecasts'!$A$27:$AG$123,E$137,FALSE) -> 0 | F211: =VLOOKUP(Vlookup!$B176,'CDCM Volume Forecasts'!$A$27:$AG$123,F$137,FALSE) -> 0 | G211: =VLOOKUP(Vlookup!$B176,'CDCM Volume Forecasts'!$A$27:$AG$123,G$137,FALSE) -> 0
A212: > LV Generation NHH or Aggregate HH | B212: =VLOOKUP(Vlookup!$B177,'CDCM Volume Forecasts'!$A$27:$AG$123,B$137,FALSE) -> 0 | C212: =VLOOKUP(Vlookup!$B177,'CDCM Volume Forecasts'!$A$27:$AG$123,C$137,FALSE) -> 0 | D212: =VLOOKUP(Vlookup!$B177,'CDCM Volume Forecasts'!$A$27:$AG$123,D$137,FALSE) -> 0 | E212: =VLOOKUP(Vlookup!$B177,'CDCM Volume Forecasts'!$A$27:$AG$123,E$137,FALSE) -> 0 | F212: =VLOOKUP(Vlookup!$B177,'CDCM Volume Forecasts'!$A$27:$AG$123,F$137,FALSE) -> 0 | G212: =VLOOKUP(Vlookup!$B177,'CDCM Volume Forecasts'!$A$27:$AG$123,G$137,FALSE) -> 0
A213: LV Generation NHH or Aggregate HH | B213: =VLOOKUP(Vlookup!$B178,'CDCM Volume Forecasts'!$A$27:$AG$123,B$137,FALSE) -> 653.0360581 | C213: =VLOOKUP(Vlookup!$B178,'CDCM Volume Forecasts'!$A$27:$AG$123,C$137,FALSE) -> 0 | D213: =VLOOKUP(Vlookup!$B178,'CDCM Volume Forecasts'!$A$27:$AG$123,D$137,FALSE) -> 0 | E213: =VLOOKUP(Vlookup!$B178,'CDCM Volume Forecasts'!$A$27:$AG$123,E$137,FALSE) -> 54 | F213: =VLOOKUP(Vlookup!$B178,'CDCM Volume Forecasts'!$A$27:$AG$123,F$137,FALSE) -> 0 | G213: =VLOOKUP(Vlookup!$B178,'CDCM Volume Forecasts'!$A$27:$AG$123,G$137,FALSE) -> 0
A214: LDNO LV: LV Generation NHH or Aggregate HH | B214: =VLOOKUP(Vlookup!$B179,'CDCM Volume Forecasts'!$A$27:$AG$123,B$137,FALSE) -> 0 | C214: =VLOOKUP(Vlookup!$B179,'CDCM Volume Forecasts'!$A$27:$AG$123,C$137,FALSE) -> 0 | D214: =VLOOKUP(Vlookup!$B179,'CDCM Volume Forecasts'!$A$27:$AG$123,D$137,FALSE) -> 0 | E214: =VLOOKUP(Vlookup!$B179,'CDCM Volume Forecasts'!$A$27:$AG$123,E$137,FALSE) -> 0 | F214: =VLOOKUP(Vlookup!$B179,'CDCM Volume Forecasts'!$A$27:$AG$123,F$137,FALSE) -> 0 | G214: =VLOOKUP(Vlookup!$B179,'CDCM Volume Forecasts'!$A$27:$AG$123,G$137,FALSE) -> 0
A215: LDNO HV: LV Generation NHH or Aggregate HH | B215: =VLOOKUP(Vlookup!$B180,'CDCM Volume Forecasts'!$A$27:$AG$123,B$137,FALSE) -> 0 | C215: =VLOOKUP(Vlookup!$B180,'CDCM Volume Forecasts'!$A$27:$AG$123,C$137,FALSE) -> 0 | D215: =VLOOKUP(Vlookup!$B180,'CDCM Volume Forecasts'!$A$27:$AG$123,D$137,FALSE) -> 0 | E215: =VLOOKUP(Vlookup!$B180,'CDCM Volume Forecasts'!$A$27:$AG$123,E$137,FALSE) -> 0 | F215: =VLOOKUP(Vlookup!$B180,'CDCM Volume Forecasts'!$A$27:$AG$123,F$137,FALSE) -> 0 | G215: =VLOOKUP(Vlookup!$B180,'CDCM Volume Forecasts'!$A$27:$AG$123,G$137,FALSE) -> 0
A216: > LV Sub Generation NHH | B216: =VLOOKUP(Vlookup!$B181,'CDCM Volume Forecasts'!$A$27:$AG$123,B$137,FALSE) -> 0 | C216: =VLOOKUP(Vlookup!$B181,'CDCM Volume Forecasts'!$A$27:$AG$123,C$137,FALSE) -> 0 | D216: =VLOOKUP(Vlookup!$B181,'CDCM Volume Forecasts'!$A$27:$AG$123,D$137,FALSE) -> 0 | E216: =VLOOKUP(Vlookup!$B181,'CDCM Volume Forecasts'!$A$27:$AG$123,E$137,FALSE) -> 0 | F216: =VLOOKUP(Vlookup!$B181,'CDCM Volume Forecasts'!$A$27:$AG$123,F$137,FALSE) -> 0 | G216: =VLOOKUP(Vlookup!$B181,'CDCM Volume Forecasts'!$A$27:$AG$123,G$137,FALSE) -> 0
A217: LV Sub Generation NHH | B217: =VLOOKUP(Vlookup!$B182,'CDCM Volume Forecasts'!$A$27:$AG$123,B$137,FALSE) -> 0 | C217: =VLOOKUP(Vlookup!$B182,'CDCM Volume Forecasts'!$A$27:$AG$123,C$137,FALSE) -> 0 | D217: =VLOOKUP(Vlookup!$B182,'CDCM Volume Forecasts'!$A$27:$AG$123,D$137,FALSE) -> 0 | E217: =VLOOKUP(Vlookup!$B182,'CDCM Volume Forecasts'!$A$27:$AG$123,E$137,FALSE) -> 0 | F217: =VLOOKUP(Vlookup!$B182,'CDCM Volume Forecasts'!$A$27:$AG$123,F$137,FALSE) -> 0 | G217: =VLOOKUP(Vlookup!$B182,'CDCM Volume Forecasts'!$A$27:$AG$123,G$137,FALSE) -> 0
A218: LDNO HV: LV Sub Generation NHH | B218: =VLOOKUP(Vlookup!$B183,'CDCM Volume Forecasts'!$A$27:$AG$123,B$137,FALSE) -> 0 | C218: =VLOOKUP(Vlookup!$B183,'CDCM Volume Forecasts'!$A$27:$AG$123,C$137,FALSE) -> 0 | D218: =VLOOKUP(Vlookup!$B183,'CDCM Volume Forecasts'!$A$27:$AG$123,D$137,FALSE) -> 0 | E218: =VLOOKUP(Vlookup!$B183,'CDCM Volume Forecasts'!$A$27:$AG$123,E$137,FALSE) -> 0 | F218: =VLOOKUP(Vlookup!$B183,'CDCM Volume Forecasts'!$A$27:$AG$123,F$137,FALSE) -> 0 | G218: =VLOOKUP(Vlookup!$B183,'CDCM Volume Forecasts'!$A$27:$AG$123,G$137,FALSE) -> 0
A219: > LV Generation Intermittent | B219: =VLOOKUP(Vlookup!$B184,'CDCM Volume Forecasts'!$A$27:$AG$123,B$137,FALSE) -> 0 | C219: =VLOOKUP(Vlookup!$B184,'CDCM Volume Forecasts'!$A$27:$AG$123,C$137,FALSE) -> 0 | D219: =VLOOKUP(Vlookup!$B184,'CDCM Volume Forecasts'!$A$27:$AG$123,D$137,FALSE) -> 0 | E219: =VLOOKUP(Vlookup!$B184,'CDCM Volume Forecasts'!$A$27:$AG$123,E$137,FALSE) -> 0 | F219: =VLOOKUP(Vlookup!$B184,'CDCM Volume Forecasts'!$A$27:$AG$123,F$137,FALSE) -> 0 | G219: =VLOOKUP(Vlookup!$B184,'CDCM Volume Forecasts'!$A$27:$AG$123,G$137,FALSE) -> 0
A220: LV Generation Intermittent | B220: =VLOOKUP(Vlookup!$B185,'CDCM Volume Forecasts'!$A$27:$AG$123,B$137,FALSE) -> 12543.44024 | C220: =VLOOKUP(Vlookup!$B185,'CDCM Volume Forecasts'!$A$27:$AG$123,C$137,FALSE) -> 0 | D220: =VLOOKUP(Vlookup!$B185,'CDCM Volume Forecasts'!$A$27:$AG$123,D$137,FALSE) -> 0 | E220: =VLOOKUP(Vlookup!$B185,'CDCM Volume Forecasts'!$A$27:$AG$123,E$137,FALSE) -> 111 | F220: =VLOOKUP(Vlookup!$B185,'CDCM Volume Forecasts'!$A$27:$AG$123,F$137,FALSE) -> 0 | G220: =VLOOKUP(Vlookup!$B185,'CDCM Volume Forecasts'!$A$27:$AG$123,G$137,FALSE) -> 449.3942928
A221: LDNO LV: LV Generation Intermittent | B221: =VLOOKUP(Vlookup!$B186,'CDCM Volume Forecasts'!$A$27:$AG$123,B$137,FALSE) -> 0 | C221: =VLOOKUP(Vlookup!$B186,'CDCM Volume Forecasts'!$A$27:$AG$123,C$137,FALSE) -> 0 | D221: =VLOOKUP(Vlookup!$B186,'CDCM Volume Forecasts'!$A$27:$AG$123,D$137,FALSE) -> 0 | E221: =VLOOKUP(Vlookup!$B186,'CDCM Volume Forecasts'!$A$27:$AG$123,E$137,FALSE) -> 0 | F221: =VLOOKUP(Vlookup!$B186,'CDCM Volume Forecasts'!$A$27:$AG$123,F$137,FALSE) -> 0 | G221: =VLOOKUP(Vlookup!$B186,'CDCM Volume Forecasts'!$A$27:$AG$123,G$137,FALSE) -> 0
A222: LDNO HV: LV Generation Intermittent | B222: =VLOOKUP(Vlookup!$B187,'CDCM Volume Forecasts'!$A$27:$AG$123,B$137,FALSE) -> 0 | C222: =VLOOKUP(Vlookup!$B187,'CDCM Volume Forecasts'!$A$27:$AG$123,C$137,FALSE) -> 0 | D222: =VLOOKUP(Vlookup!$B187,'CDCM Volume Forecasts'!$A$27:$AG$123,D$137,FALSE) -> 0 | E222: =VLOOKUP(Vlookup!$B187,'CDCM Volume Forecasts'!$A$27:$AG$123,E$137,FALSE) -> 0 | F222: =VLOOKUP(Vlookup!$B187,'CDCM Volume Forecasts'!$A$27:$AG$123,F$137,FALSE) -> 0 | G222: =VLOOKUP(Vlookup!$B187,'CDCM Volume Forecasts'!$A$27:$AG$123,G$137,FALSE) -> 0
A223: > LV Generation Non-Intermittent | B223: =VLOOKUP(Vlookup!$B188,'CDCM Volume Forecasts'!$A$27:$AG$123,B$137,FALSE) -> 0 | C223: =VLOOKUP(Vlookup!$B188,'CDCM Volume Forecasts'!$A$27:$AG$123,C$137,FALSE) -> 0 | D223: =VLOOKUP(Vlookup!$B188,'CDCM Volume Forecasts'!$A$27:$AG$123,D$137,FALSE) -> 0 | E223: =VLOOKUP(Vlookup!$B188,'CDCM Volume Forecasts'!$A$27:$AG$123,E$137,FALSE) -> 0 | F223: =VLOOKUP(Vlookup!$B188,'CDCM Volume Forecasts'!$A$27:$AG$123,F$137,FALSE) -> 0 | G223: =VLOOKUP(Vlookup!$B188,'CDCM Volume Forecasts'!$A$27:$AG$123,G$137,FALSE) -> 0
A224: LV Generation Non-Intermittent | B224: =VLOOKUP(Vlookup!$B189,'CDCM Volume Forecasts'!$A$27:$AG$123,B$137,FALSE) -> 81.14051287 | C224: =VLOOKUP(Vlookup!$B189,'CDCM Volume Forecasts'!$A$27:$AG$123,C$137,FALSE) -> 287.2435286 | D224: =VLOOKUP(Vlookup!$B189,'CDCM Volume Forecasts'!$A$27:$AG$123,D$137,FALSE) -> 370.8878919 | E224: =VLOOKUP(Vlookup!$B189,'CDCM Volume Forecasts'!$A$27:$AG$123,E$137,FALSE) -> 10 | F224: =VLOOKUP(Vlookup!$B189,'CDCM Volume Forecasts'!$A$27:$AG$123,F$137,FALSE) -> 0 | G224: =VLOOKUP(Vlookup!$B189,'CDCM Volume Forecasts'!$A$27:$AG$123,G$137,FALSE) -> 25.07207859
A225: LDNO LV: LV Generation Non-Intermittent | B225: =VLOOKUP(Vlookup!$B190,'CDCM Volume Forecasts'!$A$27:$AG$123,B$137,FALSE) -> 4.093684976 | C225: =VLOOKUP(Vlookup!$B190,'CDCM Volume Forecasts'!$A$27:$AG$123,C$137,FALSE) -> 14.49695783 | D225: =VLOOKUP(Vlookup!$B190,'CDCM Volume Forecasts'!$A$27:$AG$123,D$137,FALSE) -> 18.70455038 | E225: =VLOOKUP(Vlookup!$B190,'CDCM Volume Forecasts'!$A$27:$AG$123,E$137,FALSE) -> 2 | F225: =VLOOKUP(Vlookup!$B190,'CDCM Volume Forecasts'!$A$27:$AG$123,F$137,FALSE) -> 0 | G225: =VLOOKUP(Vlookup!$B190,'CDCM Volume Forecasts'!$A$27:$AG$123,G$137,FALSE) -> 1.9386
A226: LDNO HV: LV Generation Non-Intermittent | B226: =VLOOKUP(Vlookup!$B191,'CDCM Volume Forecasts'!$A$27:$AG$123,B$137,FALSE) -> 0 | C226: =VLOOKUP(Vlookup!$B191,'CDCM Volume Forecasts'!$A$27:$AG$123,C$137,FALSE) -> 0 | D226: =VLOOKUP(Vlookup!$B191,'CDCM Volume Forecasts'!$A$27:$AG$123,D$137,FALSE) -> 0 | E226: =VLOOKUP(Vlookup!$B191,'CDCM Volume Forecasts'!$A$27:$AG$123,E$137,FALSE) -> 0 | F226: =VLOOKUP(Vlookup!$B191,'CDCM Volume Forecasts'!$A$27:$AG$123,F$137,FALSE) -> 0 | G226: =VLOOKUP(Vlookup!$B191,'CDCM Volume Forecasts'!$A$27:$AG$123,G$137,FALSE) -> 0
A227: > LV Sub Generation Intermittent | B227: =VLOOKUP(Vlookup!$B192,'CDCM Volume Forecasts'!$A$27:$AG$123,B$137,FALSE) -> 0 | C227: =VLOOKUP(Vlookup!$B192,'CDCM Volume Forecasts'!$A$27:$AG$123,C$137,FALSE) -> 0 | D227: =VLOOKUP(Vlookup!$B192,'CDCM Volume Forecasts'!$A$27:$AG$123,D$137,FALSE) -> 0 | E227: =VLOOKUP(Vlookup!$B192,'CDCM Volume Forecasts'!$A$27:$AG$123,E$137,FALSE) -> 0 | F227: =VLOOKUP(Vlookup!$B192,'CDCM Volume Forecasts'!$A$27:$AG$123,F$137,FALSE) -> 0 | G227: =VLOOKUP(Vlookup!$B192,'CDCM Volume Forecasts'!$A$27:$AG$123,G$137,FALSE) -> 0
A228: LV Sub Generation Intermittent | B228: =VLOOKUP(Vlookup!$B193,'CDCM Volume Forecasts'!$A$27:$AG$123,B$137,FALSE) -> 249.08382 | C228: =VLOOKUP(Vlookup!$B193,'CDCM Volume Forecasts'!$A$27:$AG$123,C$137,FALSE) -> 0 | D228: =VLOOKUP(Vlookup!$B193,'CDCM Volume Forecasts'!$A$27:$AG$123,D$137,FALSE) -> 0 | E228: =VLOOKUP(Vlookup!$B193,'CDCM Volume Forecasts'!$A$27:$AG$123,E$137,FALSE) -> 10 | F228: =VLOOKUP(Vlookup!$B193,'CDCM Volume Forecasts'!$A$27:$AG$123,F$137,FALSE) -> 0 | G228: =VLOOKUP(Vlookup!$B193,'CDCM Volume Forecasts'!$A$27:$AG$123,G$137,FALSE) -> 3.460723069
... 81 more rows

Sheet (Y+1)
A1: Input data (Y+1)
A4: 1000. Company, charging year, data version
B6: Company | C6: Year | D6: Version
A7: Company, charging year, data version | B7: =VLOOKUP(Vlookup!B7,'CDCM Forecast Data'!$A$14:$I$271,6,FALSE) -> ENWL | C7: =VLOOKUP(Vlookup!C7,'CDCM Forecast Data'!$A$14:$I$271,6,FALSE) -> 2016/17 | D7: =VLOOKUP(Vlookup!D7,'CDCM Forecast Data'!$A$14:$I$271,6,FALSE) -> v1
A9: 1010. Financial and general assumptions
A11: Sources: financial assumptions; calendar; network model.
A12: These financial assumptions determine the annuity rate applied to convert the asset values of the network model into an annual charge.
B13: Rate of return | C13: Annualisation period (years) | D13: Annuity proportion for customer-contributed assets | E13: Power factor | F13: Days in the charging period
A14: Financial and general assumptions | B14: =VLOOKUP(Vlookup!B14,'CDCM Forecast Data'!$A$14:$I$271,6,FALSE) -> 0.056 | C14: =VLOOKUP(Vlookup!C14,'CDCM Forecast Data'!$A$14:$I$271,6,FALSE) -> 40 | E14: =VLOOKUP(Vlookup!E14,'CDCM Forecast Data'!$A$14:$I$271,6,FALSE) -> 0.95 | F14: =VLOOKUP(Vlookup!F14,'CDCM Forecast Data'!$A$14:$I$271,6,FALSE) -> 365
A16: 1017. Diversity allowance between top and bottom of network level
A18: Source: operational data analysis and/or network model.
A19: The diversity figure against GSP is the diversity between GSP Group (the whole system) and individual GSPs.
A20: The diversity figure against 132kV is the diversity between GSPs (the top of the 132kV network) and 132kV/EHV bulk supply points (the bottom of the 132kV network).
A21: The diversity figure against EHV is the diversity between 132kV/EHV bulk supply points (the top of the EHV network) and EHV/HV primary substations (the bottom of the EHV network).
A22: The diversity figure against HV is the diversity between EHV/HV primary substations (the top of the HV network) and HV/LV substations (the bottom of the HV network).
B23: Diversity allowance between top and bottom of network level
A24: GSPs | B24: =VLOOKUP(Vlookup!B24,'CDCM Forecast Data'!$A$14:$I$271,6,FALSE) -> 0.08164011631
A25: 132kV | B25: =VLOOKUP(Vlookup!B25,'CDCM Forecast Data'!$A$14:$I$271,6,FALSE) -> 0.049
A26: 132kV/EHV
A27: EHV | B27: =VLOOKUP(Vlookup!B27,'CDCM Forecast Data'!$A$14:$I$271,6,FALSE) -> 0.06653429705
A28: EHV/HV
A29: HV | B29: =VLOOKUP(Vlookup!B29,'CDCM Forecast Data'!$A$14:$I$271,6,FALSE) -> 0.3056153455
A30: HV/LV
A31: LV circuits
A33: 1018. Proportion of relevant load going through 132kV/HV direct transformation
B35: 132kV/HV
A36: EHV/HV | B36: =VLOOKUP(Vlookup!B36,'CDCM Forecast Data'!$A$14:$I$271,6,FALSE) -> 0
A38: 1019. Network model GSP peak demand (MW)
B40: Network model GSP peak demand (MW)
A41: Network model GSP peak demand (MW) | B41: =VLOOKUP(Vlookup!B41,'CDCM Forecast Data'!$A$14:$I$271,6,FALSE) -> 500
A43: 1020. Gross asset cost by network level (£)
B45: Gross assets £
A46: 132kV | B46: =VLOOKUP(Vlookup!B46,'CDCM Forecast Data'!$A$14:$I$271,6,FALSE) -> 88430333.73
A47: 132kV/EHV | B47: =VLOOKUP(Vlookup!B47,'CDCM Forecast Data'!$A$14:$I$271,6,FALSE) -> 35408417.71
A48: EHV | B48: =VLOOKUP(Vlookup!B48,'CDCM Forecast Data'!$A$14:$I$271,6,FALSE) -> 80625641.92
A49: EHV/HV | B49: =VLOOKUP(Vlookup!B49,'CDCM Forecast Data'!$A$14:$I$271,6,FALSE) -> 56826402.11
A50: 132kV/HV | B50: =VLOOKUP(Vlookup!B50,'CDCM Forecast Data'!$A$14:$I$271,6,FALSE) -> 0
A51: HV | B51: =VLOOKUP(Vlookup!B51,'CDCM Forecast Data'!$A$14:$I$271,6,FALSE) -> 105110360.2
A52: HV/LV | B52: =VLOOKUP(Vlookup!B52,'CDCM Forecast Data'!$A$14:$I$271,6,FALSE) -> 95431840.51
A53: LV circuits | B53: =VLOOKUP(Vlookup!B53,'CDCM Forecast Data'!$A$14:$I$271,6,FALSE) -> 52903758.2
A55: 1022. LV service model asset cost (£)
B57: LV service model 1 | C57: LV service model 2 | D57: LV service model 3 | E57: LV service model 4 | F57: LV service model 5 | G57: LV service model 6 | H57: LV service model 7 | I57: LV service model 8
A58: LV service model asset cost (£) | B58: =VLOOKUP(Vlookup!B58,'CDCM Forecast Data'!$A$14:$I$271,6,FALSE) -> 10042.78468 | C58: =VLOOKUP(Vlookup!C58,'CDCM Forecast Data'!$A$14:$I$271,6,FALSE) -> 502.1392339 | D58: =VLOOKUP(Vlookup!D58,'CDCM Forecast Data'!$A$14:$I$271,6,FALSE) -> 2360.703536 | E58: =VLOOKUP(Vlookup!E58,'CDCM Forecast Data'!$A$14:$I$271,6,FALSE) -> 7578.139443 | F58: =VLOOKUP(Vlookup!F58,'CDCM Forecast Data'!$A$14:$I$271,6,FALSE) -> 276.0055187 | G58: =VLOOKUP(Vlookup!G58,'CDCM Forecast Data'!$A$14:$I$271,6,FALSE) -> 0 | H58: =VLOOKUP(Vlookup!H58,'CDCM Forecast Data'!$A$14:$I$271,6,FALSE) -> 0 | I58: =VLOOKUP(Vlookup!I58,'CDCM Forecast Data'!$A$14:$I$271,6,FALSE) -> 0
A60: 1023. HV service model asset cost (£)
B62: HV service model 1 | C62: HV service model 2 | D62: HV service model 3 | E62: HV service model 4 | F62: HV service model 5
A63: HV service model asset cost (£) | B63: =VLOOKUP(Vlookup!B63,'CDCM Forecast Data'!$A$14:$I$271,6,FALSE) -> 18851.02254 | C63: =VLOOKUP(Vlookup!C63,'CDCM Forecast Data'!$A$14:$I$271,6,FALSE) -> 16663.31822 | D63: =VLOOKUP(Vlookup!D63,'CDCM Forecast Data'!$A$14:$I$271,6,FALSE) -> 1136.64 | E63: =VLOOKUP(Vlookup!E63,'CDCM Forecast Data'!$A$14:$I$271,6,FALSE) -> 0 | F63: =VLOOKUP(Vlookup!F63,'CDCM Forecast Data'!$A$14:$I$271,6,FALSE) -> 0
A65: 1025. Matrix of applicability of LV service models to tariffs with fixed charges
B66: 10 | C66: =B66+1 -> 11 | D66: 12 | E66: 13 | F66: 14 | G66: 15 | H66: 16 | I66: 17
B67: LV service model 1 | C67: LV service model 2 | D67: LV service model 3 | E67: LV service model 4 | F67: LV service model 5 | G67: LV service model 6 | H67: LV service model 7 | I67: LV service model 8
A68: Domestic Unrestricted | B68: =VLOOKUP($A68,'Mat of App'!$B$7:$AP$37,B$66,FALSE) -> 0.05 | C68: =VLOOKUP($A68,'Mat of App'!$B$7:$AP$37,C$66,FALSE) -> 0 | D68: =VLOOKUP($A68,'Mat of App'!$B$7:$AP$37,D$66,FALSE) -> 0 | E68: =VLOOKUP($A68,'Mat of App'!$B$7:$AP$37,E$66,FALSE) -> 0 | F68: =VLOOKUP($A68,'Mat of App'!$B$7:$AP$37,F$66,FALSE) -> 0 | G68: =VLOOKUP($A68,'Mat of App'!$B$7:$AP$37,G$66,FALSE) -> 0 | H68: =VLOOKUP($A68,'Mat of App'!$B$7:$AP$37,H$66,FALSE) -> 0 | I68: =VLOOKUP($A68,'Mat of App'!$B$7:$AP$37,I$66,FALSE) -> 0
A69: Domestic Two Rate | B69: =VLOOKUP($A69,'Mat of App'!$B$7:$AP$37,B$66,FALSE) -> 0.05 | C69: =VLOOKUP($A69,'Mat of App'!$B$7:$AP$37,C$66,FALSE) -> 0 | D69: =VLOOKUP($A69,'Mat of App'!$B$7:$AP$37,D$66,FALSE) -> 0 | E69: =VLOOKUP($A69,'Mat of App'!$B$7:$AP$37,E$66,FALSE) -> 0 | F69: =VLOOKUP($A69,'Mat of App'!$B$7:$AP$37,F$66,FALSE) -> 0 | G69: =VLOOKUP($A69,'Mat of App'!$B$7:$AP$37,G$66,FALSE) -> 0 | H69: =VLOOKUP($A69,'Mat of App'!$B$7:$AP$37,H$66,FALSE) -> 0 | I69: =VLOOKUP($A69,'Mat of App'!$B$7:$AP$37,I$66,FALSE) -> 0
A70: Small Non Domestic Unrestricted | B70: =VLOOKUP($A70,'Mat of App'!$B$7:$AP$37,B$66,FALSE) -> 0 | C70: =VLOOKUP($A70,'Mat of App'!$B$7:$AP$37,C$66,FALSE) -> 1 | D70: =VLOOKUP($A70,'Mat of App'!$B$7:$AP$37,D$66,FALSE) -> 0 | E70: =VLOOKUP($A70,'Mat of App'!$B$7:$AP$37,E$66,FALSE) -> 0 | F70: =VLOOKUP($A70,'Mat of App'!$B$7:$AP$37,F$66,FALSE) -> 0 | G70: =VLOOKUP($A70,'Mat of App'!$B$7:$AP$37,G$66,FALSE) -> 0 | H70: =VLOOKUP($A70,'Mat of App'!$B$7:$AP$37,H$66,FALSE) -> 0 | I70: =VLOOKUP($A70,'Mat of App'!$B$7:$AP$37,I$66,FALSE) -> 0
A71: Small Non Domestic Two Rate | B71: =VLOOKUP($A71,'Mat of App'!$B$7:$AP$37,B$66,FALSE) -> 0 | C71: =VLOOKUP($A71,'Mat of App'!$B$7:$AP$37,C$66,FALSE) -> 1 | D71: =VLOOKUP($A71,'Mat of App'!$B$7:$AP$37,D$66,FALSE) -> 0 | E71: =VLOOKUP($A71,'Mat of App'!$B$7:$AP$37,E$66,FALSE) -> 0 | F71: =VLOOKUP($A71,'Mat of App'!$B$7:$AP$37,F$66,FALSE) -> 0 | G71: =VLOOKUP($A71,'Mat of App'!$B$7:$AP$37,G$66,FALSE) -> 0 | H71: =VLOOKUP($A71,'Mat of App'!$B$7:$AP$37,H$66,FALSE) -> 0 | I71: =VLOOKUP($A71,'Mat of App'!$B$7:$AP$37,I$66,FALSE) -> 0
A72: LV Medium Non-Domestic | B72: =VLOOKUP($A72,'Mat of App'!$B$7:$AP$37,B$66,FALSE) -> 0 | C72: =VLOOKUP($A72,'Mat of App'!$B$7:$AP$37,C$66,FALSE) -> 0.1807435653 | D72: =VLOOKUP($A72,'Mat of App'!$B$7:$AP$37,D$66,FALSE) -> 0.8192564347 | E72: =VLOOKUP($A72,'Mat of App'!$B$7:$AP$37,E$66,FALSE) -> 0 | F72: =VLOOKUP($A72,'Mat of App'!$B$7:$AP$37,F$66,FALSE) -> 0 | G72: =VLOOKUP($A72,'Mat of App'!$B$7:$AP$37,G$66,FALSE) -> 0 | H72: =VLOOKUP($A72,'Mat of App'!$B$7:$AP$37,H$66,FALSE) -> 0 | I72: =VLOOKUP($A72,'Mat of App'!$B$7:$AP$37,I$66,FALSE) -> 0
A73: LV Sub Medium Non-Domestic | B73: =VLOOKUP($A73,'Mat of App'!$B$7:$AP$37,B$66,FALSE) -> 0 | C73: =VLOOKUP($A73,'Mat of App'!$B$7:$AP$37,C$66,FALSE) -> 0 | D73: =VLOOKUP($A73,'Mat of App'!$B$7:$AP$37,D$66,FALSE) -> 0 | E73: =VLOOKUP($A73,'Mat of App'!$B$7:$AP$37,E$66,FALSE) -> 1 | F73: =VLOOKUP($A73,'Mat of App'!$B$7:$AP$37,F$66,FALSE) -> 0 | G73: =VLOOKUP($A73,'Mat of App'!$B$7:$AP$37,G$66,FALSE) -> 0 | H73: =VLOOKUP($A73,'Mat of App'!$B$7:$AP$37,H$66,FALSE) -> 0 | I73: =VLOOKUP($A73,'Mat of App'!$B$7:$AP$37,I$66,FALSE) -> 0
A74: LV Network Domestic | B74: =VLOOKUP($A74,'Mat of App'!$B$7:$AP$37,B$66,FALSE) -> 0.05 | C74: =VLOOKUP($A74,'Mat of App'!$B$7:$AP$37,C$66,FALSE) -> 0 | D74: =VLOOKUP($A74,'Mat of App'!$B$7:$AP$37,D$66,FALSE) -> 0 | E74: =VLOOKUP($A74,'Mat of App'!$B$7:$AP$37,E$66,FALSE) -> 0 | F74: =VLOOKUP($A74,'Mat of App'!$B$7:$AP$37,F$66,FALSE) -> 0 | G74: =VLOOKUP($A74,'Mat of App'!$B$7:$AP$37,G$66,FALSE) -> 0 | H74: =VLOOKUP($A74,'Mat of App'!$B$7:$AP$37,H$66,FALSE) -> 0 | I74: =VLOOKUP($A74,'Mat of App'!$B$7:$AP$37,I$66,FALSE) -> 0
A75: LV Network Non-Domestic Non-CT | B75: =VLOOKUP($A75,'Mat of App'!$B$7:$AP$37,B$66,FALSE) -> 0 | C75: =VLOOKUP($A75,'Mat of App'!$B$7:$AP$37,C$66,FALSE) -> 1 | D75: =VLOOKUP($A75,'Mat of App'!$B$7:$AP$37,D$66,FALSE) -> 0 | E75: =VLOOKUP($A75,'Mat of App'!$B$7:$AP$37,E$66,FALSE) -> 0 | F75: =VLOOKUP($A75,'Mat of App'!$B$7:$AP$37,F$66,FALSE) -> 0 | G75: =VLOOKUP($A75,'Mat of App'!$B$7:$AP$37,G$66,FALSE) -> 0 | H75: =VLOOKUP($A75,'Mat of App'!$B$7:$AP$37,H$66,FALSE) -> 0 | I75: =VLOOKUP($A75,'Mat of App'!$B$7:$AP$37,I$66,FALSE) -> 0
A76: LV HH Metered | B76: =VLOOKUP($A76,'Mat of App'!$B$7:$AP$37,B$66,FALSE) -> 0 | C76: =VLOOKUP($A76,'Mat of App'!$B$7:$AP$37,C$66,FALSE) -> 0 | D76: =VLOOKUP($A76,'Mat of App'!$B$7:$AP$37,D$66,FALSE) -> 1 | E76: =VLOOKUP($A76,'Mat of App'!$B$7:$AP$37,E$66,FALSE) -> 0 | F76: =VLOOKUP($A76,'Mat of App'!$B$7:$AP$37,F$66,FALSE) -> 0 | G76: =VLOOKUP($A76,'Mat of App'!$B$7:$AP$37,G$66,FALSE) -> 0 | H76: =VLOOKUP($A76,'Mat of App'!$B$7:$AP$37,H$66,FALSE) -> 0 | I76: =VLOOKUP($A76,'Mat of App'!$B$7:$AP$37,I$66,FALSE) -> 0
A77: LV Sub HH Metered | B77: =VLOOKUP($A77,'Mat of App'!$B$7:$AP$37,B$66,FALSE) -> 0 | C77: =VLOOKUP($A77,'Mat of App'!$B$7:$AP$37,C$66,FALSE) -> 0 | D77: =VLOOKUP($A77,'Mat of App'!$B$7:$AP$37,D$66,FALSE) -> 0 | E77: =VLOOKUP($A77,'Mat of App'!$B$7:$AP$37,E$66,FALSE) -> 1 | F77: =VLOOKUP($A77,'Mat of App'!$B$7:$AP$37,F$66,FALSE) -> 0 | G77: =VLOOKUP($A77,'Mat of App'!$B$7:$AP$37,G$66,FALSE) -> 0 | H77: =VLOOKUP($A77,'Mat of App'!$B$7:$AP$37,H$66,FALSE) -> 0 | I77: =VLOOKUP($A77,'Mat of App'!$B$7:$AP$37,I$66,FALSE) -> 0
A78: LV Generation NHH or Aggregate HH | B78: =VLOOKUP($A78,'Mat of App'!$B$7:$AP$37,B$66,FALSE) -> 0 | C78: =VLOOKUP($A78,'Mat of App'!$B$7:$AP$37,C$66,FALSE) -> 0 | D78: =VLOOKUP($A78,'Mat of App'!$B$7:$AP$37,D$66,FALSE) -> 0 | E78: =VLOOKUP($A78,'Mat of App'!$B$7:$AP$37,E$66,FALSE) -> 0 | F78: =VLOOKUP($A78,'Mat of App'!$B$7:$AP$37,F$66,FALSE) -> 0 | G78: =VLOOKUP($A78,'Mat of App'!$B$7:$AP$37,G$66,FALSE) -> 0 | H78: =VLOOKUP($A78,'Mat of App'!$B$7:$AP$37,H$66,FALSE) -> 0 | I78: =VLOOKUP($A78,'Mat of App'!$B$7:$AP$37,I$66,FALSE) -> 0
A79: LV Sub Generation NHH | B79: =VLOOKUP($A79,'Mat of App'!$B$7:$AP$37,B$66,FALSE) -> 0 | C79: =VLOOKUP($A79,'Mat of App'!$B$7:$AP$37,C$66,FALSE) -> 0 | D79: =VLOOKUP($A79,'Mat of App'!$B$7:$AP$37,D$66,FALSE) -> 0 | E79: =VLOOKUP($A79,'Mat of App'!$B$7:$AP$37,E$66,FALSE) -> 0 | F79: =VLOOKUP($A79,'Mat of App'!$B$7:$AP$37,F$66,FALSE) -> 0 | G79: =VLOOKUP($A79,'Mat of App'!$B$7:$AP$37,G$66,FALSE) -> 0 | H79: =VLOOKUP($A79,'Mat of App'!$B$7:$AP$37,H$66,FALSE) -> 0 | I79: =VLOOKUP($A79,'Mat of App'!$B$7:$AP$37,I$66,FALSE) -> 0
A80: LV Generation Intermittent | B80: =VLOOKUP($A80,'Mat of App'!$B$7:$AP$37,B$66,FALSE) -> 0 | C80: =VLOOKUP($A80,'Mat of App'!$B$7:$AP$37,C$66,FALSE) -> 0 | D80: =VLOOKUP($A80,'Mat of App'!$B$7:$AP$37,D$66,FALSE) -> 0 | E80: =VLOOKUP($A80,'Mat of App'!$B$7:$AP$37,E$66,FALSE) -> 0 | F80: =VLOOKUP($A80,'Mat of App'!$B$7:$AP$37,F$66,FALSE) -> 0 | G80: =VLOOKUP($A80,'Mat of App'!$B$7:$AP$37,G$66,FALSE) -> 0 | H80: =VLOOKUP($A80,'Mat of App'!$B$7:$AP$37,H$66,FALSE) -> 0 | I80: =VLOOKUP($A80,'Mat of App'!$B$7:$AP$37,I$66,FALSE) -> 0
A81: LV Generation Non-Intermittent | B81: =VLOOKUP($A81,'Mat of App'!$B$7:$AP$37,B$66,FALSE) -> 0 | C81: =VLOOKUP($A81,'Mat of App'!$B$7:$AP$37,C$66,FALSE) -> 0 | D81: =VLOOKUP($A81,'Mat of App'!$B$7:$AP$37,D$66,FALSE) -> 0 | E81: =VLOOKUP($A81,'Mat of App'!$B$7:$AP$37,E$66,FALSE) -> 0 | F81: =VLOOKUP($A81,'Mat of App'!$B$7:$AP$37,F$66,FALSE) -> 0 | G81: =VLOOKUP($A81,'Mat of App'!$B$7:$AP$37,G$66,FALSE) -> 0 | H81: =VLOOKUP($A81,'Mat of App'!$B$7:$AP$37,H$66,FALSE) -> 0 | I81: =VLOOKUP($A81,'Mat of App'!$B$7:$AP$37,I$66,FALSE) -> 0
A82: LV Sub Generation Intermittent | B82: =VLOOKUP($A82,'Mat of App'!$B$7:$AP$37,B$66,FALSE) -> 0 | C82: =VLOOKUP($A82,'Mat of App'!$B$7:$AP$37,C$66,FALSE) -> 0 | D82: =VLOOKUP($A82,'Mat of App'!$B$7:$AP$37,D$66,FALSE) -> 0 | E82: =VLOOKUP($A82,'Mat of App'!$B$7:$AP$37,E$66,FALSE) -> 0 | F82: =VLOOKUP($A82,'Mat of App'!$B$7:$AP$37,F$66,FALSE) -> 0 | G82: =VLOOKUP($A82,'Mat of App'!$B$7:$AP$37,G$66,FALSE) -> 0 | H82: =VLOOKUP($A82,'Mat of App'!$B$7:$AP$37,H$66,FALSE) -> 0 | I82: =VLOOKUP($A82,'Mat of App'!$B$7:$AP$37,I$66,FALSE) -> 0
A83: LV Sub Generation Non-Intermittent | B83: =VLOOKUP($A83,'Mat of App'!$B$7:$AP$37,B$66,FALSE) -> 0 | C83: =VLOOKUP($A83,'Mat of App'!$B$7:$AP$37,C$66,FALSE) -> 0 | D83: =VLOOKUP($A83,'Mat of App'!$B$7:$AP$37,D$66,FALSE) -> 0 | E83: =VLOOKUP($A83,'Mat of App'!$B$7:$AP$37,E$66,FALSE) -> 0 | F83: =VLOOKUP($A83,'Mat of App'!$B$7:$AP$37,F$66,FALSE) -> 0 | G83: =VLOOKUP($A83,'Mat of App'!$B$7:$AP$37,G$66,FALSE) -> 0 | H83: =VLOOKUP($A83,'Mat of App'!$B$7:$AP$37,H$66,FALSE) -> 0 | I83: =VLOOKUP($A83,'Mat of App'!$B$7:$AP$37,I$66,FALSE) -> 0
A85: 1026. Matrix of applicability of LV service models to unmetered tariffs
A87: Source: service models
A88: Proportion of service model involved in connecting load of 1 MWh/year
B89: LV service model 1 | C89: LV service model 2 | D89: LV service model 3 | E89: LV service model 4 | F89: LV service model 5 | G89: LV service model 6 | H89: LV service model 7 | I89: LV service model 8
A90: All LV unmetered tariffs | B90: =VLOOKUP($A90,'Mat of App'!$B$7:$AP$37,B$66,FALSE) -> 0 | C90: =VLOOKUP($A90,'Mat of App'!$B$7:$AP$37,C$66,FALSE) -> 0 | D90: =VLOOKUP($A90,'Mat of App'!$B$7:$AP$37,D$66,FALSE) -> 0 | E90: =VLOOKUP($A90,'Mat of App'!$B$7:$AP$37,E$66,FALSE) -> 0 | F90: =VLOOKUP($A90,'Mat of App'!$B$7:$AP$37,F$66,FALSE) -> 2.872632768 | G90: =VLOOKUP($A90,'Mat of App'!$B$7:$AP$37,G$66,FALSE) -> 0 | H90: =VLOOKUP($A90,'Mat of App'!$B$7:$AP$37,H$66,FALSE) -> 0 | I90: =VLOOKUP($A90,'Mat of App'!$B$7:$AP$37,I$66,FALSE) -> 0
A92: 1028. Matrix of applicability of HV service models to tariffs with fixed charges
B93: 7 | C93: =B93+1 -> 8 | D93: =C93+1 -> 9 | E93: =D93+1 -> 10 | F93: =E93+1 -> 11
B94: HV service model 1 | C94: HV service model 2 | D94: HV service model 3 | E94: HV service model 4 | F94: HV service model 5
A95: HV Medium Non-Domestic | B95: =VLOOKUP($A95,'Mat of App'!$B$7:$AP$37,B$93,FALSE) -> 0 | C95: =VLOOKUP($A95,'Mat of App'!$B$7:$AP$37,C$93,FALSE) -> 1 | D95: =VLOOKUP($A95,'Mat of App'!$B$7:$AP$37,D$93,FALSE) -> 0 | E95: =VLOOKUP($A95,'Mat of App'!$B$7:$AP$37,E$93,FALSE) -> 0 | F95: =VLOOKUP($A95,'Mat of App'!$B$7:$AP$37,F$93,FALSE) -> 0
A96: HV HH Metered | B96: =VLOOKUP($A96,'Mat of App'!$B$7:$AP$37,B$93,FALSE) -> 0 | C96: =VLOOKUP($A96,'Mat of App'!$B$7:$AP$37,C$93,FALSE) -> 1 | D96: =VLOOKUP($A96,'Mat of App'!$B$7:$AP$37,D$93,FALSE) -> 0 | E96: =VLOOKUP($A96,'Mat of App'!$B$7:$AP$37,E$93,FALSE) -> 0 | F96: =VLOOKUP($A96,'Mat of App'!$B$7:$AP$37,F$93,FALSE) -> 0
A97: HV Generation Intermittent | B97: =VLOOKUP($A97,'Mat of App'!$B$7:$AP$37,B$93,FALSE) -> 0 | C97: =VLOOKUP($A97,'Mat of App'!$B$7:$AP$37,C$93,FALSE) -> 0 | D97: =VLOOKUP($A97,'Mat of App'!$B$7:$AP$37,D$93,FALSE) -> 1 | E97: =VLOOKUP($A97,'Mat of App'!$B$7:$AP$37,E$93,FALSE) -> 0 | F97: =VLOOKUP($A97,'Mat of App'!$B$7:$AP$37,F$93,FALSE) -> 0
A98: HV Generation Non-Intermittent | B98: =VLOOKUP($A98,'Mat of App'!$B$7:$AP$37,B$93,FALSE) -> 0 | C98: =VLOOKUP($A98,'Mat of App'!$B$7:$AP$37,C$93,FALSE) -> 0 | D98: =VLOOKUP($A98,'Mat of App'!$B$7:$AP$37,D$93,FALSE) -> 1 | E98: =VLOOKUP($A98,'Mat of App'!$B$7:$AP$37,E$93,FALSE) -> 0 | F98: =VLOOKUP($A98,'Mat of App'!$B$7:$AP$37,F$93,FALSE) -> 0
A100: 1032. Loss adjustment factors to transmission
A102: Source: losses model or loss adjustment factors at time of system peak.
B103: 132kV | C103: 132kV/EHV | D103: EHV | E103: EHV/HV | F103: HV | G103: HV/LV | H103: LV circuits
A104: Loss adjustment factor | B104: =VLOOKUP(Vlookup!B69,'CDCM Forecast Data'!$A$14:$I$271,6,FALSE) -> 1.010413289 | C104: =VLOOKUP(Vlookup!C69,'CDCM Forecast Data'!$A$14:$I$271,6,FALSE) -> 1.015393496 | D104: =VLOOKUP(Vlookup!D69,'CDCM Forecast Data'!$A$14:$I$271,6,FALSE) -> 1.021993876 | E104: =VLOOKUP(Vlookup!E69,'CDCM Forecast Data'!$A$14:$I$271,6,FALSE) -> 1.027559519 | F104: =VLOOKUP(Vlookup!F69,'CDCM Forecast Data'!$A$14:$I$271,6,FALSE) -> 1.040166974 | G104: =VLOOKUP(Vlookup!G69,'CDCM Forecast Data'!$A$14:$I$271,6,FALSE) -> 1.053696394 | H104: =VLOOKUP(Vlookup!H69,'CDCM Forecast Data'!$A$14:$I$271,6,FALSE) -> 1.107034802
A106: 1037. Embedded network (LDNO) discounts
A108: Source: separate price control disaggregation model.
B109: No discount | C109: LDNO LV: LV user | D109: LDNO HV: LV user | E109: LDNO HV: LV sub user | F109: LDNO HV: HV user
A110: LDNO discount | C110: =VLOOKUP(Vlookup!C75,'CDCM Forecast Data'!$A$14:$I$271,6,FALSE) -> 0.3352006641 | D110: =VLOOKUP(Vlookup!D75,'CDCM Forecast Data'!$A$14:$I$271,6,FALSE) -> 0.5639251225 | E110: =VLOOKUP(Vlookup!E75,'CDCM Forecast Data'!$A$14:$I$271,6,FALSE) -> 0.323780574 | F110: =VLOOKUP(Vlookup!F75,'CDCM Forecast Data'!$A$14:$I$271,6,FALSE) -> 0.2035063224
A112: 1041. Load profile data for demand users
A114: Source: load data analysis.
B115: Coincidence factor | C115: Load factor
A116: Domestic Unrestricted | B116: =VLOOKUP(Vlookup!B81,'CDCM Forecast Data'!$A$14:$I$271,6,FALSE) -> 0.8719950359 | C116: =VLOOKUP(Vlookup!C81,'CDCM Forecast Data'!$A$14:$I$271,6,FALSE) -> 0.4417027055
A117: Domestic Two Rate | B117: =VLOOKUP(Vlookup!B82,'CDCM Forecast Data'!$A$14:$I$271,6,FALSE) -> 0.2892028269 | C117: =VLOOKUP(Vlookup!C82,'CDCM Forecast Data'!$A$14:$I$271,6,FALSE) -> 0.241915909
A118: Domestic Off Peak (related MPAN) | C118: =VLOOKUP(Vlookup!C83,'CDCM Forecast Data'!$A$14:$I$271,6,FALSE) -> 0.1615288733
A119: Small Non Domestic Unrestricted | B119: =VLOOKUP(Vlookup!B84,'CDCM Forecast Data'!$A$14:$I$271,6,FALSE) -> 0.6751420264 | C119: =VLOOKUP(Vlookup!C84,'CDCM Forecast Data'!$A$14:$I$271,6,FALSE) -> 0.394823
A120: Small Non Domestic Two Rate | B120: =VLOOKUP(Vlookup!B85,'CDCM Forecast Data'!$A$14:$I$271,6,FALSE) -> 0.6939934609 | C120: =VLOOKUP(Vlookup!C85,'CDCM Forecast Data'!$A$14:$I$271,6,FALSE) -> 0.5341090403
A121: Small Non Domestic Off Peak (related MPAN) | C121: =VLOOKUP(Vlookup!C86,'CDCM Forecast Data'!$A$14:$I$271,6,FALSE) -> 0.1637428864
A122: LV Medium Non-Domestic | B122: =VLOOKUP(Vlookup!B87,'CDCM Forecast Data'!$A$14:$I$271,6,FALSE) -> 0.8373261501 | C122: =VLOOKUP(Vlookup!C87,'CDCM Forecast Data'!$A$14:$I$271,6,FALSE) -> 0.5689406855
A123: LV Sub Medium Non-Domestic | B123: =VLOOKUP(Vlookup!B88,'CDCM Forecast Data'!$A$14:$I$271,6,FALSE) -> 0.8085620113 | C123: =VLOOKUP(Vlookup!C88,'CDCM Forecast Data'!$A$14:$I$271,6,FALSE) -> 0.5569858525
A124: HV Medium Non-Domestic | B124: =VLOOKUP(Vlookup!B89,'CDCM Forecast Data'!$A$14:$I$271,6,FALSE) -> 0.7394620182 | C124: =VLOOKUP(Vlookup!C89,'CDCM Forecast Data'!$A$14:$I$271,6,FALSE) -> 0.490716446
A125: LV Network Domestic | B125: =VLOOKUP(Vlookup!B90,'CDCM Forecast Data'!$A$14:$I$271,6,FALSE) -> 0.8719950359 | C125: =VLOOKUP(Vlookup!C90,'CDCM Forecast Data'!$A$14:$I$271,6,FALSE) -> 0.4417027055
A126: LV Network Non-Domestic Non-CT | B126: =VLOOKUP(Vlookup!B91,'CDCM Forecast Data'!$A$14:$I$271,6,FALSE) -> 0.6751420264 | C126: =VLOOKUP(Vlookup!C91,'CDCM Forecast Data'!$A$14:$I$271,6,FALSE) -> 0.394823
A127: LV HH Metered | B127: =VLOOKUP(Vlookup!B92,'CDCM Forecast Data'!$A$14:$I$271,6,FALSE) -> 0.8134580127 | C127: =VLOOKUP(Vlookup!C92,'CDCM Forecast Data'!$A$14:$I$271,6,FALSE) -> 0.5556497797
A128: LV Sub HH Metered | B128: =VLOOKUP(Vlookup!B93,'CDCM Forecast Data'!$A$14:$I$271,6,FALSE) -> 0.7861625851 | C128: =VLOOKUP(Vlookup!C93,'CDCM Forecast Data'!$A$14:$I$271,6,FALSE) -> 0.5560856276
A129: HV HH Metered | B129: =VLOOKUP(Vlookup!B94,'CDCM Forecast Data'!$A$14:$I$271,6,FALSE) -> 0.8548488611 | C129: =VLOOKUP(Vlookup!C94,'CDCM Forecast Data'!$A$14:$I$271,6,FALSE) -> 0.7107054151
A130: NHH UMS category A | B130: =VLOOKUP(Vlookup!B95,'CDCM Forecast Data'!$A$14:$I$271,6,FALSE) -> 1 | C130: =VLOOKUP(Vlookup!C95,'CDCM Forecast Data'!$A$14:$I$271,6,FALSE) -> 1
A131: NHH UMS category B | B131: =VLOOKUP(Vlookup!B96,'CDCM Forecast Data'!$A$14:$I$271,6,FALSE) -> 1 | C131: =VLOOKUP(Vlookup!C96,'CDCM Forecast Data'!$A$14:$I$271,6,FALSE) -> 0.474
A132: NHH UMS category C | B132: =VLOOKUP(Vlookup!B97,'CDCM Forecast Data'!$A$14:$I$271,6,FALSE) -> 1 | C132: =VLOOKUP(Vlookup!C97,'CDCM Forecast Data'!$A$14:$I$271,6,FALSE) -> 0.258
A133: NHH UMS category D | B133: =VLOOKUP(Vlookup!B98,'CDCM Forecast Data'!$A$14:$I$271,6,FALSE) -> 0 | C133: =VLOOKUP(Vlookup!C98,'CDCM Forecast Data'!$A$14:$I$271,6,FALSE) -> 0.554
A134: LV UMS (Pseudo HH Metered) | B134: =VLOOKUP(Vlookup!B99,'CDCM Forecast Data'!$A$14:$I$271,6,FALSE) -> 0.9774688096 | C134: =VLOOKUP(Vlookup!C99,'CDCM Forecast Data'!$A$14:$I$271,6,FALSE) -> 0.4829227126
A136: 1053. Volume forecasts for the charging year
B137: 10 | C137: 11 | D137: 12 | E137: 13 | F137: 14 | G137: 15
A138: Source: forecast.
A139: Please include MPAN counts for tariffs with no fixed charge (e.g. off-peak tariffs),
A140: but exclude MPANs on tariffs with a fixed charge that are not subject to a fixed charge due to a site grouping arrangement.
B141: Rate 1 units (MWh) | C141: Rate 2 units (MWh) | D141: Rate 3 units (MWh) | E141: MPANs | F141: Import capacity (kVA) | G141: Reactive power units (MVArh)
A142: > Domestic Unrestricted | B142: =VLOOKUP(Vlookup!$B107,'CDCM Volume Forecasts'!$A$27:$AG$123,B$137,FALSE) -> 0 | C142: =VLOOKUP(Vlookup!$B107,'CDCM Volume Forecasts'!$A$27:$AG$123,C$137,FALSE) -> 0 | D142: =VLOOKUP(Vlookup!$B107,'CDCM Volume Forecasts'!$A$27:$AG$123,D$137,FALSE) -> 0 | E142: =VLOOKUP(Vlookup!$B107,'CDCM Volume Forecasts'!$A$27:$AG$123,E$137,FALSE) -> 0 | F142: =VLOOKUP(Vlookup!$B107,'CDCM Volume Forecasts'!$A$27:$AG$123,F$137,FALSE) -> 0 | G142: =VLOOKUP(Vlookup!$B107,'CDCM Volume Forecasts'!$A$27:$AG$123,G$137,FALSE) -> 0
A143: Domestic Unrestricted | B143: =VLOOKUP(Vlookup!$B108,'CDCM Volume Forecasts'!$A$27:$AG$123,B$137,FALSE) -> 6278983.3 | C143: =VLOOKUP(Vlookup!$B108,'CDCM Volume Forecasts'!$A$27:$AG$123,C$137,FALSE) -> 0 | D143: =VLOOKUP(Vlookup!$B108,'CDCM Volume Forecasts'!$A$27:$AG$123,D$137,FALSE) -> 0 | E143: =VLOOKUP(Vlookup!$B108,'CDCM Volume Forecasts'!$A$27:$AG$123,E$137,FALSE) -> 1990526.769 | F143: =VLOOKUP(Vlookup!$B108,'CDCM Volume Forecasts'!$A$27:$AG$123,F$137,FALSE) -> 0 | G143: =VLOOKUP(Vlookup!$B108,'CDCM Volume Forecasts'!$A$27:$AG$123,G$137,FALSE) -> 0
A144: LDNO LV: Domestic Unrestricted | B144: =VLOOKUP(Vlookup!$B109,'CDCM Volume Forecasts'!$A$27:$AG$123,B$137,FALSE) -> 54483.31751 | C144: =VLOOKUP(Vlookup!$B109,'CDCM Volume Forecasts'!$A$27:$AG$123,C$137,FALSE) -> 0 | D144: =VLOOKUP(Vlookup!$B109,'CDCM Volume Forecasts'!$A$27:$AG$123,D$137,FALSE) -> 0 | E144: =VLOOKUP(Vlookup!$B109,'CDCM Volume Forecasts'!$A$27:$AG$123,E$137,FALSE) -> 17756.282 | F144: =VLOOKUP(Vlookup!$B109,'CDCM Volume Forecasts'!$A$27:$AG$123,F$137,FALSE) -> 0 | G144: =VLOOKUP(Vlookup!$B109,'CDCM Volume Forecasts'!$A$27:$AG$123,G$137,FALSE) -> 0
A145: LDNO HV: Domestic Unrestricted | B145: =VLOOKUP(Vlookup!$B110,'CDCM Volume Forecasts'!$A$27:$AG$123,B$137,FALSE) -> 31597.14843 | C145: =VLOOKUP(Vlookup!$B110,'CDCM Volume Forecasts'!$A$27:$AG$123,C$137,FALSE) -> 0 | D145: =VLOOKUP(Vlookup!$B110,'CDCM Volume Forecasts'!$A$27:$AG$123,D$137,FALSE) -> 0 | E145: =VLOOKUP(Vlookup!$B110,'CDCM Volume Forecasts'!$A$27:$AG$123,E$137,FALSE) -> 9562.4612 | F145: =VLOOKUP(Vlookup!$B110,'CDCM Volume Forecasts'!$A$27:$AG$123,F$137,FALSE) -> 0 | G145: =VLOOKUP(Vlookup!$B110,'CDCM Volume Forecasts'!$A$27:$AG$123,G$137,FALSE) -> 0
A146: > Domestic Two Rate | B146: =VLOOKUP(Vlookup!$B111,'CDCM Volume Forecasts'!$A$27:$AG$123,B$137,FALSE) -> 0 | C146: =VLOOKUP(Vlookup!$B111,'CDCM Volume Forecasts'!$A$27:$AG$123,C$137,FALSE) -> 0 | D146: =VLOOKUP(Vlookup!$B111,'CDCM Volume Forecasts'!$A$27:$AG$123,D$137,FALSE) -> 0 | E146: =VLOOKUP(Vlookup!$B111,'CDCM Volume Forecasts'!$A$27:$AG$123,E$137,FALSE) -> 0 | F146: =VLOOKUP(Vlookup!$B111,'CDCM Volume Forecasts'!$A$27:$AG$123,F$137,FALSE) -> 0 | G146: =VLOOKUP(Vlookup!$B111,'CDCM Volume Forecasts'!$A$27:$AG$123,G$137,FALSE) -> 0
A147: Domestic Two Rate | B147: =VLOOKUP(Vlookup!$B112,'CDCM Volume Forecasts'!$A$27:$AG$123,B$137,FALSE) -> 592084.6918 | C147: =VLOOKUP(Vlookup!$B112,'CDCM Volume Forecasts'!$A$27:$AG$123,C$137,FALSE) -> 463817.2715 | D147: =VLOOKUP(Vlookup!$B112,'CDCM Volume Forecasts'!$A$27:$AG$123,D$137,FALSE) -> 0 | E147: =VLOOKUP(Vlookup!$B112,'CDCM Volume Forecasts'!$A$27:$AG$123,E$137,FALSE) -> 186523.56 | F147: =VLOOKUP(Vlookup!$B112,'CDCM Volume Forecasts'!$A$27:$AG$123,F$137,FALSE) -> 0 | G147: =VLOOKUP(Vlookup!$B112,'CDCM Volume Forecasts'!$A$27:$AG$123,G$137,FALSE) -> 0
A148: LDNO LV: Domestic Two Rate | B148: =VLOOKUP(Vlookup!$B113,'CDCM Volume Forecasts'!$A$27:$AG$123,B$137,FALSE) -> 823.2480432 | C148: =VLOOKUP(Vlookup!$B113,'CDCM Volume Forecasts'!$A$27:$AG$123,C$137,FALSE) -> 319.2995304 | D148: =VLOOKUP(Vlookup!$B113,'CDCM Volume Forecasts'!$A$27:$AG$123,D$137,FALSE) -> 0 | E148: =VLOOKUP(Vlookup!$B113,'CDCM Volume Forecasts'!$A$27:$AG$123,E$137,FALSE) -> 356.4272 | F148: =VLOOKUP(Vlookup!$B113,'CDCM Volume Forecasts'!$A$27:$AG$123,F$137,FALSE) -> 0 | G148: =VLOOKUP(Vlookup!$B113,'CDCM Volume Forecasts'!$A$27:$AG$123,G$137,FALSE) -> 0
A149: LDNO HV: Domestic Two Rate | B149: =VLOOKUP(Vlookup!$B114,'CDCM Volume Forecasts'!$A$27:$AG$123,B$137,FALSE) -> 2604.788901 | C149: =VLOOKUP(Vlookup!$B114,'CDCM Volume Forecasts'!$A$27:$AG$123,C$137,FALSE) -> 2068.971681 | D149: =VLOOKUP(Vlookup!$B114,'CDCM Volume Forecasts'!$A$27:$AG$123,D$137,FALSE) -> 0 | E149: =VLOOKUP(Vlookup!$B114,'CDCM Volume Forecasts'!$A$27:$AG$123,E$137,FALSE) -> 995.1928 | F149: =VLOOKUP(Vlookup!$B114,'CDCM Volume Forecasts'!$A$27:$AG$123,F$137,FALSE) -> 0 | G149: =VLOOKUP(Vlookup!$B114,'CDCM Volume Forecasts'!$A$27:$AG$123,G$137,FALSE) -> 0
A150: > Domestic Off Peak (related MPAN) | B150: =VLOOKUP(Vlookup!$B115,'CDCM Volume Forecasts'!$A$27:$AG$123,B$137,FALSE) -> 0 | C150: =VLOOKUP(Vlookup!$B115,'CDCM Volume Forecasts'!$A$27:$AG$123,C$137,FALSE) -> 0 | D150: =VLOOKUP(Vlookup!$B115,'CDCM Volume Forecasts'!$A$27:$AG$123,D$137,FALSE) -> 0 | E150: =VLOOKUP(Vlookup!$B115,'CDCM Volume Forecasts'!$A$27:$AG$123,E$137,FALSE) -> 0 | F150: =VLOOKUP(Vlookup!$B115,'CDCM Volume Forecasts'!$A$27:$AG$123,F$137,FALSE) -> 0 | G150: =VLOOKUP(Vlookup!$B115,'CDCM Volume Forecasts'!$A$27:$AG$123,G$137,FALSE) -> 0
A151: Domestic Off Peak (related MPAN) | B151: =VLOOKUP(Vlookup!$B116,'CDCM Volume Forecasts'!$A$27:$AG$123,B$137,FALSE) -> 21750.52563 | C151: =VLOOKUP(Vlookup!$B116,'CDCM Volume Forecasts'!$A$27:$AG$123,C$137,FALSE) -> 0 | D151: =VLOOKUP(Vlookup!$B116,'CDCM Volume Forecasts'!$A$27:$AG$123,D$137,FALSE) -> 0 | E151: =VLOOKUP(Vlookup!$B116,'CDCM Volume Forecasts'!$A$27:$AG$123,E$137,FALSE) -> 6316.5708 | F151: =VLOOKUP(Vlookup!$B116,'CDCM Volume Forecasts'!$A$27:$AG$123,F$137,FALSE) -> 0 | G151: =VLOOKUP(Vlookup!$B116,'CDCM Volume Forecasts'!$A$27:$AG$123,G$137,FALSE) -> 0
A152: LDNO LV: Domestic Off Peak (related MPAN) | B152: =VLOOKUP(Vlookup!$B117,'CDCM Volume Forecasts'!$A$27:$AG$123,B$137,FALSE) -> 0 | C152: =VLOOKUP(Vlookup!$B117,'CDCM Volume Forecasts'!$A$27:$AG$123,C$137,FALSE) -> 0 | D152: =VLOOKUP(Vlookup!$B117,'CDCM Volume Forecasts'!$A$27:$AG$123,D$137,FALSE) -> 0 | E152: =VLOOKUP(Vlookup!$B117,'CDCM Volume Forecasts'!$A$27:$AG$123,E$137,FALSE) -> 0 | F152: =VLOOKUP(Vlookup!$B117,'CDCM Volume Forecasts'!$A$27:$AG$123,F$137,FALSE) -> 0 | G152: =VLOOKUP(Vlookup!$B117,'CDCM Volume Forecasts'!$A$27:$AG$123,G$137,FALSE) -> 0
A153: LDNO HV: Domestic Off Peak (related MPAN) | B153: =VLOOKUP(Vlookup!$B118,'CDCM Volume Forecasts'!$A$27:$AG$123,B$137,FALSE) -> 0 | C153: =VLOOKUP(Vlookup!$B118,'CDCM Volume Forecasts'!$A$27:$AG$123,C$137,FALSE) -> 0 | D153: =VLOOKUP(Vlookup!$B118,'CDCM Volume Forecasts'!$A$27:$AG$123,D$137,FALSE) -> 0 | E153: =VLOOKUP(Vlookup!$B118,'CDCM Volume Forecasts'!$A$27:$AG$123,E$137,FALSE) -> 0 | F153: =VLOOKUP(Vlookup!$B118,'CDCM Volume Forecasts'!$A$27:$AG$123,F$137,FALSE) -> 0 | G153: =VLOOKUP(Vlookup!$B118,'CDCM Volume Forecasts'!$A$27:$AG$123,G$137,FALSE) -> 0
A154: > Small Non Domestic Unrestricted | B154: =VLOOKUP(Vlookup!$B119,'CDCM Volume Forecasts'!$A$27:$AG$123,B$137,FALSE) -> 0 | C154: =VLOOKUP(Vlookup!$B119,'CDCM Volume Forecasts'!$A$27:$AG$123,C$137,FALSE) -> 0 | D154: =VLOOKUP(Vlookup!$B119,'CDCM Volume Forecasts'!$A$27:$AG$123,D$137,FALSE) -> 0 | E154: =VLOOKUP(Vlookup!$B119,'CDCM Volume Forecasts'!$A$27:$AG$123,E$137,FALSE) -> 0 | F154: =VLOOKUP(Vlookup!$B119,'CDCM Volume Forecasts'!$A$27:$AG$123,F$137,FALSE) -> 0 | G154: =VLOOKUP(Vlookup!$B119,'CDCM Volume Forecasts'!$A$27:$AG$123,G$137,FALSE) -> 0
A155: Small Non Domestic Unrestricted | B155: =VLOOKUP(Vlookup!$B120,'CDCM Volume Forecasts'!$A$27:$AG$123,B$137,FALSE) -> 1676619.423 | C155: =VLOOKUP(Vlookup!$B120,'CDCM Volume Forecasts'!$A$27:$AG$123,C$137,FALSE) -> 0 | D155: =VLOOKUP(Vlookup!$B120,'CDCM Volume Forecasts'!$A$27:$AG$123,D$137,FALSE) -> 0 | E155: =VLOOKUP(Vlookup!$B120,'CDCM Volume Forecasts'!$A$27:$AG$123,E$137,FALSE) -> 123348.8412 | F155: =VLOOKUP(Vlookup!$B120,'CDCM Volume Forecasts'!$A$27:$AG$123,F$137,FALSE) -> 0 | G155: =VLOOKUP(Vlookup!$B120,'CDCM Volume Forecasts'!$A$27:$AG$123,G$137,FALSE) -> 0
A156: LDNO LV: Small Non Domestic Unrestricted | B156: =VLOOKUP(Vlookup!$B121,'CDCM Volume Forecasts'!$A$27:$AG$123,B$137,FALSE) -> 2876.669583 | C156: =VLOOKUP(Vlookup!$B121,'CDCM Volume Forecasts'!$A$27:$AG$123,C$137,FALSE) -> 0 | D156: =VLOOKUP(Vlookup!$B121,'CDCM Volume Forecasts'!$A$27:$AG$123,D$137,FALSE) -> 0 | E156: =VLOOKUP(Vlookup!$B121,'CDCM Volume Forecasts'!$A$27:$AG$123,E$137,FALSE) -> 342.4104 | F156: =VLOOKUP(Vlookup!$B121,'CDCM Volume Forecasts'!$A$27:$AG$123,F$137,FALSE) -> 0 | G156: =VLOOKUP(Vlookup!$B121,'CDCM Volume Forecasts'!$A$27:$AG$123,G$137,FALSE) -> 0
A157: LDNO HV: Small Non Domestic Unrestricted | B157: =VLOOKUP(Vlookup!$B122,'CDCM Volume Forecasts'!$A$27:$AG$123,B$137,FALSE) -> 4290.128821 | C157: =VLOOKUP(Vlookup!$B122,'CDCM Volume Forecasts'!$A$27:$AG$123,C$137,FALSE) -> 0 | D157: =VLOOKUP(Vlookup!$B122,'CDCM Volume Forecasts'!$A$27:$AG$123,D$137,FALSE) -> 0 | E157: =VLOOKUP(Vlookup!$B122,'CDCM Volume Forecasts'!$A$27:$AG$123,E$137,FALSE) -> 379.4548 | F157: =VLOOKUP(Vlookup!$B122,'CDCM Volume Forecasts'!$A$27:$AG$123,F$137,FALSE) -> 0 | G157: =VLOOKUP(Vlookup!$B122,'CDCM Volume Forecasts'!$A$27:$AG$123,G$137,FALSE) -> 0
A158: > Small Non Domestic Two Rate | B158: =VLOOKUP(Vlookup!$B123,'CDCM Volume Forecasts'!$A$27:$AG$123,B$137,FALSE) -> 0 | C158: =VLOOKUP(Vlookup!$B123,'CDCM Volume Forecasts'!$A$27:$AG$123,C$137,FALSE) -> 0 | D158: =VLOOKUP(Vlookup!$B123,'CDCM Volume Forecasts'!$A$27:$AG$123,D$137,FALSE) -> 0 | E158: =VLOOKUP(Vlookup!$B123,'CDCM Volume Forecasts'!$A$27:$AG$123,E$137,FALSE) -> 0 | F158: =VLOOKUP(Vlookup!$B123,'CDCM Volume Forecasts'!$A$27:$AG$123,F$137,FALSE) -> 0 | G158: =VLOOKUP(Vlookup!$B123,'CDCM Volume Forecasts'!$A$27:$AG$123,G$137,FALSE) -> 0
A159: Small Non Domestic Two Rate | B159: =VLOOKUP(Vlookup!$B124,'CDCM Volume Forecasts'!$A$27:$AG$123,B$137,FALSE) -> 564621.725 | C159: =VLOOKUP(Vlookup!$B124,'CDCM Volume Forecasts'!$A$27:$AG$123,C$137,FALSE) -> 204686.2232 | D159: =VLOOKUP(Vlookup!$B124,'CDCM Volume Forecasts'!$A$27:$AG$123,D$137,FALSE) -> 0 | E159: =VLOOKUP(Vlookup!$B124,'CDCM Volume Forecasts'!$A$27:$AG$123,E$137,FALSE) -> 32126.5056 | F159: =VLOOKUP(Vlookup!$B124,'CDCM Volume Forecasts'!$A$27:$AG$123,F$137,FALSE) -> 0 | G159: =VLOOKUP(Vlookup!$B124,'CDCM Volume Forecasts'!$A$27:$AG$123,G$137,FALSE) -> 0
A160: LDNO LV: Small Non Domestic Two Rate | B160: =VLOOKUP(Vlookup!$B125,'CDCM Volume Forecasts'!$A$27:$AG$123,B$137,FALSE) -> 16.716348 | C160: =VLOOKUP(Vlookup!$B125,'CDCM Volume Forecasts'!$A$27:$AG$123,C$137,FALSE) -> 8.908812 | D160: =VLOOKUP(Vlookup!$B125,'CDCM Volume Forecasts'!$A$27:$AG$123,D$137,FALSE) -> 0 | E160: =VLOOKUP(Vlookup!$B125,'CDCM Volume Forecasts'!$A$27:$AG$123,E$137,FALSE) -> 6.0072 | F160: =VLOOKUP(Vlookup!$B125,'CDCM Volume Forecasts'!$A$27:$AG$123,F$137,FALSE) -> 0 | G160: =VLOOKUP(Vlookup!$B125,'CDCM Volume Forecasts'!$A$27:$AG$123,G$137,FALSE) -> 0
A161: LDNO HV: Small Non Domestic Two Rate | B161: =VLOOKUP(Vlookup!$B126,'CDCM Volume Forecasts'!$A$27:$AG$123,B$137,FALSE) -> 352.80696 | C161: =VLOOKUP(Vlookup!$B126,'CDCM Volume Forecasts'!$A$27:$AG$123,C$137,FALSE) -> 140.33547 | D161: =VLOOKUP(Vlookup!$B126,'CDCM Volume Forecasts'!$A$27:$AG$123,D$137,FALSE) -> 0 | E161: =VLOOKUP(Vlookup!$B126,'CDCM Volume Forecasts'!$A$27:$AG$123,E$137,FALSE) -> 10.012 | F161: =VLOOKUP(Vlookup!$B126,'CDCM Volume Forecasts'!$A$27:$AG$123,F$137,FALSE) -> 0 | G161: =VLOOKUP(Vlookup!$B126,'CDCM Volume Forecasts'!$A$27:$AG$123,G$137,FALSE) -> 0
A162: > Small Non Domestic Off Peak (related MPAN) | B162: =VLOOKUP(Vlookup!$B127,'CDCM Volume Forecasts'!$A$27:$AG$123,B$137,FALSE) -> 0 | C162: =VLOOKUP(Vlookup!$B127,'CDCM Volume Forecasts'!$A$27:$AG$123,C$137,FALSE) -> 0 | D162: =VLOOKUP(Vlookup!$B127,'CDCM Volume Forecasts'!$A$27:$AG$123,D$137,FALSE) -> 0 | E162: =VLOOKUP(Vlookup!$B127,'CDCM Volume Forecasts'!$A$27:$AG$123,E$137,FALSE) -> 0 | F162: =VLOOKUP(Vlookup!$B127,'CDCM Volume Forecasts'!$A$27:$AG$123,F$137,FALSE) -> 0 | G162: =VLOOKUP(Vlookup!$B127,'CDCM Volume Forecasts'!$A$27:$AG$123,G$137,FALSE) -> 0
A163: Small Non Domestic Off Peak (related MPAN) | B163: =VLOOKUP(Vlookup!$B128,'CDCM Volume Forecasts'!$A$27:$AG$123,B$137,FALSE) -> 22871.06701 | C163: =VLOOKUP(Vlookup!$B128,'CDCM Volume Forecasts'!$A$27:$AG$123,C$137,FALSE) -> 0 | D163: =VLOOKUP(Vlookup!$B128,'CDCM Volume Forecasts'!$A$27:$AG$123,D$137,FALSE) -> 0 | E163: =VLOOKUP(Vlookup!$B128,'CDCM Volume Forecasts'!$A$27:$AG$123,E$137,FALSE) -> 4002.7976 | F163: =VLOOKUP(Vlookup!$B128,'CDCM Volume Forecasts'!$A$27:$AG$123,F$137,FALSE) -> 0 | G163: =VLOOKUP(Vlookup!$B128,'CDCM Volume Forecasts'!$A$27:$AG$123,G$137,FALSE) -> 0
A164: LDNO LV: Small Non Domestic Off Peak (related MPAN) | B164: =VLOOKUP(Vlookup!$B129,'CDCM Volume Forecasts'!$A$27:$AG$123,B$137,FALSE) -> 0 | C164: =VLOOKUP(Vlookup!$B129,'CDCM Volume Forecasts'!$A$27:$AG$123,C$137,FALSE) -> 0 | D164: =VLOOKUP(Vlookup!$B129,'CDCM Volume Forecasts'!$A$27:$AG$123,D$137,FALSE) -> 0 | E164: =VLOOKUP(Vlookup!$B129,'CDCM Volume Forecasts'!$A$27:$AG$123,E$137,FALSE) -> 0 | F164: =VLOOKUP(Vlookup!$B129,'CDCM Volume Forecasts'!$A$27:$AG$123,F$137,FALSE) -> 0 | G164: =VLOOKUP(Vlookup!$B129,'CDCM Volume Forecasts'!$A$27:$AG$123,G$137,FALSE) -> 0
A165: LDNO HV: Small Non Domestic Off Peak (related MPAN) | B165: =VLOOKUP(Vlookup!$B130,'CDCM Volume Forecasts'!$A$27:$AG$123,B$137,FALSE) -> 0 | C165: =VLOOKUP(Vlookup!$B130,'CDCM Volume Forecasts'!$A$27:$AG$123,C$137,FALSE) -> 0 | D165: =VLOOKUP(Vlookup!$B130,'CDCM Volume Forecasts'!$A$27:$AG$123,D$137,FALSE) -> 0 | E165: =VLOOKUP(Vlookup!$B130,'CDCM Volume Forecasts'!$A$27:$AG$123,E$137,FALSE) -> 0 | F165: =VLOOKUP(Vlookup!$B130,'CDCM Volume Forecasts'!$A$27:$AG$123,F$137,FALSE) -> 0 | G165: =VLOOKUP(Vlookup!$B130,'CDCM Volume Forecasts'!$A$27:$AG$123,G$137,FALSE) -> 0
A166: > LV Medium Non-Domestic | B166: =VLOOKUP(Vlookup!$B131,'CDCM Volume Forecasts'!$A$27:$AG$123,B$137,FALSE) -> 0 | C166: =VLOOKUP(Vlookup!$B131,'CDCM Volume Forecasts'!$A$27:$AG$123,C$137,FALSE) -> 0 | D166: =VLOOKUP(Vlookup!$B131,'CDCM Volume Forecasts'!$A$27:$AG$123,D$137,FALSE) -> 0 | E166: =VLOOKUP(Vlookup!$B131,'CDCM Volume Forecasts'!$A$27:$AG$123,E$137,FALSE) -> 0 | F166: =VLOOKUP(Vlookup!$B131,'CDCM Volume Forecasts'!$A$27:$AG$123,F$137,FALSE) -> 0 | G166: =VLOOKUP(Vlookup!$B131,'CDCM Volume Forecasts'!$A$27:$AG$123,G$137,FALSE) -> 0
A167: LV Medium Non-Domestic | B167: =VLOOKUP(Vlookup!$B132,'CDCM Volume Forecasts'!$A$27:$AG$123,B$137,FALSE) -> 935559.5099 | C167: =VLOOKUP(Vlookup!$B132,'CDCM Volume Forecasts'!$A$27:$AG$123,C$137,FALSE) -> 226664.0092 | D167: =VLOOKUP(Vlookup!$B132,'CDCM Volume Forecasts'!$A$27:$AG$123,D$137,FALSE) -> 0 | E167: =VLOOKUP(Vlookup!$B132,'CDCM Volume Forecasts'!$A$27:$AG$123,E$137,FALSE) -> 11273.512 | F167: =VLOOKUP(Vlookup!$B132,'CDCM Volume Forecasts'!$A$27:$AG$123,F$137,FALSE) -> 0 | G167: =VLOOKUP(Vlookup!$B132,'CDCM Volume Forecasts'!$A$27:$AG$123,G$137,FALSE) -> 0
A168: LDNO LV: LV Medium Non-Domestic | B168: =VLOOKUP(Vlookup!$B133,'CDCM Volume Forecasts'!$A$27:$AG$123,B$137,FALSE) -> 1038.398377 | C168: =VLOOKUP(Vlookup!$B133,'CDCM Volume Forecasts'!$A$27:$AG$123,C$137,FALSE) -> 230.3202118 | D168: =VLOOKUP(Vlookup!$B133,'CDCM Volume Forecasts'!$A$27:$AG$123,D$137,FALSE) -> 0 | E168: =VLOOKUP(Vlookup!$B133,'CDCM Volume Forecasts'!$A$27:$AG$123,E$137,FALSE) -> 9.0108 | F168: =VLOOKUP(Vlookup!$B133,'CDCM Volume Forecasts'!$A$27:$AG$123,F$137,FALSE) -> 0 | G168: =VLOOKUP(Vlookup!$B133,'CDCM Volume Forecasts'!$A$27:$AG$123,G$137,FALSE) -> 0
A169: LDNO HV: LV Medium Non-Domestic | B169: =VLOOKUP(Vlookup!$B134,'CDCM Volume Forecasts'!$A$27:$AG$123,B$137,FALSE) -> 988.38036 | C169: =VLOOKUP(Vlookup!$B134,'CDCM Volume Forecasts'!$A$27:$AG$123,C$137,FALSE) -> 258.34545 | D169: =VLOOKUP(Vlookup!$B134,'CDCM Volume Forecasts'!$A$27:$AG$123,D$137,FALSE) -> 0 | E169: =VLOOKUP(Vlookup!$B134,'CDCM Volume Forecasts'!$A$27:$AG$123,E$137,FALSE) -> 19.0228 | F169: =VLOOKUP(Vlookup!$B134,'CDCM Volume Forecasts'!$A$27:$AG$123,F$137,FALSE) -> 0 | G169: =VLOOKUP(Vlookup!$B134,'CDCM Volume Forecasts'!$A$27:$AG$123,G$137,FALSE) -> 0
A170: > LV Sub Medium Non-Domestic | B170: =VLOOKUP(Vlookup!$B135,'CDCM Volume Forecasts'!$A$27:$AG$123,B$137,FALSE) -> 0 | C170: =VLOOKUP(Vlookup!$B135,'CDCM Volume Forecasts'!$A$27:$AG$123,C$137,FALSE) -> 0 | D170: =VLOOKUP(Vlookup!$B135,'CDCM Volume Forecasts'!$A$27:$AG$123,D$137,FALSE) -> 0 | E170: =VLOOKUP(Vlookup!$B135,'CDCM Volume Forecasts'!$A$27:$AG$123,E$137,FALSE) -> 0 | F170: =VLOOKUP(Vlookup!$B135,'CDCM Volume Forecasts'!$A$27:$AG$123,F$137,FALSE) -> 0 | G170: =VLOOKUP(Vlookup!$B135,'CDCM Volume Forecasts'!$A$27:$AG$123,G$137,FALSE) -> 0
A171: LV Sub Medium Non-Domestic | B171: =VLOOKUP(Vlookup!$B136,'CDCM Volume Forecasts'!$A$27:$AG$123,B$137,FALSE) -> 35052.21631 | C171: =VLOOKUP(Vlookup!$B136,'CDCM Volume Forecasts'!$A$27:$AG$123,C$137,FALSE) -> 9810.937739 | D171: =VLOOKUP(Vlookup!$B136,'CDCM Volume Forecasts'!$A$27:$AG$123,D$137,FALSE) -> 0 | E171: =VLOOKUP(Vlookup!$B136,'CDCM Volume Forecasts'!$A$27:$AG$123,E$137,FALSE) -> 369.4428 | F171: =VLOOKUP(Vlookup!$B136,'CDCM Volume Forecasts'!$A$27:$AG$123,F$137,FALSE) -> 0 | G171: =VLOOKUP(Vlookup!$B136,'CDCM Volume Forecasts'!$A$27:$AG$123,G$137,FALSE) -> 0
A172: > HV Medium Non-Domestic | B172: =VLOOKUP(Vlookup!$B137,'CDCM Volume Forecasts'!$A$27:$AG$123,B$137,FALSE) -> 0 | C172: =VLOOKUP(Vlookup!$B137,'CDCM Volume Forecasts'!$A$27:$AG$123,C$137,FALSE) -> 0 | D172: =VLOOKUP(Vlookup!$B137,'CDCM Volume Forecasts'!$A$27:$AG$123,D$137,FALSE) -> 0 | E172: =VLOOKUP(Vlookup!$B137,'CDCM Volume Forecasts'!$A$27:$AG$123,E$137,FALSE) -> 0 | F172: =VLOOKUP(Vlookup!$B137,'CDCM Volume Forecasts'!$A$27:$AG$123,F$137,FALSE) -> 0 | G172: =VLOOKUP(Vlookup!$B137,'CDCM Volume Forecasts'!$A$27:$AG$123,G$137,FALSE) -> 0
A173: HV Medium Non-Domestic | B173: =VLOOKUP(Vlookup!$B138,'CDCM Volume Forecasts'!$A$27:$AG$123,B$137,FALSE) -> 7749.51934 | C173: =VLOOKUP(Vlookup!$B138,'CDCM Volume Forecasts'!$A$27:$AG$123,C$137,FALSE) -> 2156.712866 | D173: =VLOOKUP(Vlookup!$B138,'CDCM Volume Forecasts'!$A$27:$AG$123,D$137,FALSE) -> 0 | E173: =VLOOKUP(Vlookup!$B138,'CDCM Volume Forecasts'!$A$27:$AG$123,E$137,FALSE) -> 64.0768 | F173: =VLOOKUP(Vlookup!$B138,'CDCM Volume Forecasts'!$A$27:$AG$123,F$137,FALSE) -> 0 | G173: =VLOOKUP(Vlookup!$B138,'CDCM Volume Forecasts'!$A$27:$AG$123,G$137,FALSE) -> 0
A174: > LV Network Domestic | B174: =VLOOKUP(Vlookup!$B139,'CDCM Volume Forecasts'!$A$27:$AG$123,B$137,FALSE) -> 0 | C174: =VLOOKUP(Vlookup!$B139,'CDCM Volume Forecasts'!$A$27:$AG$123,C$137,FALSE) -> 0 | D174: =VLOOKUP(Vlookup!$B139,'CDCM Volume Forecasts'!$A$27:$AG$123,D$137,FALSE) -> 0 | E174: =VLOOKUP(Vlookup!$B139,'CDCM Volume Forecasts'!$A$27:$AG$123,E$137,FALSE) -> 0 | F174: =VLOOKUP(Vlookup!$B139,'CDCM Volume Forecasts'!$A$27:$AG$123,F$137,FALSE) -> 0 | G174: =VLOOKUP(Vlookup!$B139,'CDCM Volume Forecasts'!$A$27:$AG$123,G$137,FALSE) -> 0
A175: LV Network Domestic | B175: =VLOOKUP(Vlookup!$B140,'CDCM Volume Forecasts'!$A$27:$AG$123,B$137,FALSE) -> 0 | C175: =VLOOKUP(Vlookup!$B140,'CDCM Volume Forecasts'!$A$27:$AG$123,C$137,FALSE) -> 0 | D175: =VLOOKUP(Vlookup!$B140,'CDCM Volume Forecasts'!$A$27:$AG$123,D$137,FALSE) -> 0 | E175: =VLOOKUP(Vlookup!$B140,'CDCM Volume Forecasts'!$A$27:$AG$123,E$137,FALSE) -> 0 | F175: =VLOOKUP(Vlookup!$B140,'CDCM Volume Forecasts'!$A$27:$AG$123,F$137,FALSE) -> 0 | G175: =VLOOKUP(Vlookup!$B140,'CDCM Volume Forecasts'!$A$27:$AG$123,G$137,FALSE) -> 0
A176: LDNO LV: LV Network Domestic | B176: =VLOOKUP(Vlookup!$B141,'CDCM Volume Forecasts'!$A$27:$AG$123,B$137,FALSE) -> 0 | C176: =VLOOKUP(Vlookup!$B141,'CDCM Volume Forecasts'!$A$27:$AG$123,C$137,FALSE) -> 0 | D176: =VLOOKUP(Vlookup!$B141,'CDCM Volume Forecasts'!$A$27:$AG$123,D$137,FALSE) -> 0 | E176: =VLOOKUP(Vlookup!$B141,'CDCM Volume Forecasts'!$A$27:$AG$123,E$137,FALSE) -> 0 | F176: =VLOOKUP(Vlookup!$B141,'CDCM Volume Forecasts'!$A$27:$AG$123,F$137,FALSE) -> 0 | G176: =VLOOKUP(Vlookup!$B141,'CDCM Volume Forecasts'!$A$27:$AG$123,G$137,FALSE) -> 0
A177: LDNO HV: LV Network Domestic | B177: =VLOOKUP(Vlookup!$B142,'CDCM Volume Forecasts'!$A$27:$AG$123,B$137,FALSE) -> 0 | C177: =VLOOKUP(Vlookup!$B142,'CDCM Volume Forecasts'!$A$27:$AG$123,C$137,FALSE) -> 0 | D177: =VLOOKUP(Vlookup!$B142,'CDCM Volume Forecasts'!$A$27:$AG$123,D$137,FALSE) -> 0 | E177: =VLOOKUP(Vlookup!$B142,'CDCM Volume Forecasts'!$A$27:$AG$123,E$137,FALSE) -> 0 | F177: =VLOOKUP(Vlookup!$B142,'CDCM Volume Forecasts'!$A$27:$AG$123,F$137,FALSE) -> 0 | G177: =VLOOKUP(Vlookup!$B142,'CDCM Volume Forecasts'!$A$27:$AG$123,G$137,FALSE) -> 0
A178: > LV Network Non-Domestic Non-CT | B178: =VLOOKUP(Vlookup!$B143,'CDCM Volume Forecasts'!$A$27:$AG$123,B$137,FALSE) -> 0 | C178: =VLOOKUP(Vlookup!$B143,'CDCM Volume Forecasts'!$A$27:$AG$123,C$137,FALSE) -> 0 | D178: =VLOOKUP(Vlookup!$B143,'CDCM Volume Forecasts'!$A$27:$AG$123,D$137,FALSE) -> 0 | E178: =VLOOKUP(Vlookup!$B143,'CDCM Volume Forecasts'!$A$27:$AG$123,E$137,FALSE) -> 0 | F178: =VLOOKUP(Vlookup!$B143,'CDCM Volume Forecasts'!$A$27:$AG$123,F$137,FALSE) -> 0 | G178: =VLOOKUP(Vlookup!$B143,'CDCM Volume Forecasts'!$A$27:$AG$123,G$137,FALSE) -> 0
A179: LV Network Non-Domestic Non-CT | B179: =VLOOKUP(Vlookup!$B144,'CDCM Volume Forecasts'!$A$27:$AG$123,B$137,FALSE) -> 0 | C179: =VLOOKUP(Vlookup!$B144,'CDCM Volume Forecasts'!$A$27:$AG$123,C$137,FALSE) -> 0 | D179: =VLOOKUP(Vlookup!$B144,'CDCM Volume Forecasts'!$A$27:$AG$123,D$137,FALSE) -> 0 | E179: =VLOOKUP(Vlookup!$B144,'CDCM Volume Forecasts'!$A$27:$AG$123,E$137,FALSE) -> 0 | F179: =VLOOKUP(Vlookup!$B144,'CDCM Volume Forecasts'!$A$27:$AG$123,F$137,FALSE) -> 0 | G179: =VLOOKUP(Vlookup!$B144,'CDCM Volume Forecasts'!$A$27:$AG$123,G$137,FALSE) -> 0
A180: LDNO LV: LV Network Non-Domestic Non-CT | B180: =VLOOKUP(Vlookup!$B145,'CDCM Volume Forecasts'!$A$27:$AG$123,B$137,FALSE) -> 0 | C180: =VLOOKUP(Vlookup!$B145,'CDCM Volume Forecasts'!$A$27:$AG$123,C$137,FALSE) -> 0 | D180: =VLOOKUP(Vlookup!$B145,'CDCM Volume Forecasts'!$A$27:$AG$123,D$137,FALSE) -> 0 | E180: =VLOOKUP(Vlookup!$B145,'CDCM Volume Forecasts'!$A$27:$AG$123,E$137,FALSE) -> 0 | F180: =VLOOKUP(Vlookup!$B145,'CDCM Volume Forecasts'!$A$27:$AG$123,F$137,FALSE) -> 0 | G180: =VLOOKUP(Vlookup!$B145,'CDCM Volume Forecasts'!$A$27:$AG$123,G$137,FALSE) -> 0
A181: LDNO HV: LV Network Non-Domestic Non-CT | B181: =VLOOKUP(Vlookup!$B146,'CDCM Volume Forecasts'!$A$27:$AG$123,B$137,FALSE) -> 0 | C181: =VLOOKUP(Vlookup!$B146,'CDCM Volume Forecasts'!$A$27:$AG$123,C$137,FALSE) -> 0 | D181: =VLOOKUP(Vlookup!$B146,'CDCM Volume Forecasts'!$A$27:$AG$123,D$137,FALSE) -> 0 | E181: =VLOOKUP(Vlookup!$B146,'CDCM Volume Forecasts'!$A$27:$AG$123,E$137,FALSE) -> 0 | F181: =VLOOKUP(Vlookup!$B146,'CDCM Volume Forecasts'!$A$27:$AG$123,F$137,FALSE) -> 0 | G181: =VLOOKUP(Vlookup!$B146,'CDCM Volume Forecasts'!$A$27:$AG$123,G$137,FALSE) -> 0
A182: > LV HH Metered | B182: =VLOOKUP(Vlookup!$B147,'CDCM Volume Forecasts'!$A$27:$AG$123,B$137,FALSE) -> 0 | C182: =VLOOKUP(Vlookup!$B147,'CDCM Volume Forecasts'!$A$27:$AG$123,C$137,FALSE) -> 0 | D182: =VLOOKUP(Vlookup!$B147,'CDCM Volume Forecasts'!$A$27:$AG$123,D$137,FALSE) -> 0 | E182: =VLOOKUP(Vlookup!$B147,'CDCM Volume Forecasts'!$A$27:$AG$123,E$137,FALSE) -> 0 | F182: =VLOOKUP(Vlookup!$B147,'CDCM Volume Forecasts'!$A$27:$AG$123,F$137,FALSE) -> 0 | G182: =VLOOKUP(Vlookup!$B147,'CDCM Volume Forecasts'!$A$27:$AG$123,G$137,FALSE) -> 0
A183: LV HH Metered | B183: =VLOOKUP(Vlookup!$B148,'CDCM Volume Forecasts'!$A$27:$AG$123,B$137,FALSE) -> 173875.4935 | C183: =VLOOKUP(Vlookup!$B148,'CDCM Volume Forecasts'!$A$27:$AG$123,C$137,FALSE) -> 615414.1028 | D183: =VLOOKUP(Vlookup!$B148,'CDCM Volume Forecasts'!$A$27:$AG$123,D$137,FALSE) -> 791034.4535 | E183: =VLOOKUP(Vlookup!$B148,'CDCM Volume Forecasts'!$A$27:$AG$123,E$137,FALSE) -> 5312.3672 | F183: =VLOOKUP(Vlookup!$B148,'CDCM Volume Forecasts'!$A$27:$AG$123,F$137,FALSE) -> 760343.1906 | G183: =VLOOKUP(Vlookup!$B148,'CDCM Volume Forecasts'!$A$27:$AG$123,G$137,FALSE) -> 132125.4743
A184: LDNO LV: LV HH Metered | B184: =VLOOKUP(Vlookup!$B149,'CDCM Volume Forecasts'!$A$27:$AG$123,B$137,FALSE) -> 282.619883 | C184: =VLOOKUP(Vlookup!$B149,'CDCM Volume Forecasts'!$A$27:$AG$123,C$137,FALSE) -> 1000.113212 | D184: =VLOOKUP(Vlookup!$B149,'CDCM Volume Forecasts'!$A$27:$AG$123,D$137,FALSE) -> 1287.384282 | E184: =VLOOKUP(Vlookup!$B149,'CDCM Volume Forecasts'!$A$27:$AG$123,E$137,FALSE) -> 10.012 | F184: =VLOOKUP(Vlookup!$B149,'CDCM Volume Forecasts'!$A$27:$AG$123,F$137,FALSE) -> 1733.79664 | G184: =VLOOKUP(Vlookup!$B149,'CDCM Volume Forecasts'!$A$27:$AG$123,G$137,FALSE) -> 151.5306
A185: LDNO HV: LV HH Metered | B185: =VLOOKUP(Vlookup!$B150,'CDCM Volume Forecasts'!$A$27:$AG$123,B$137,FALSE) -> 4536.210726 | C185: =VLOOKUP(Vlookup!$B150,'CDCM Volume Forecasts'!$A$27:$AG$123,C$137,FALSE) -> 16073.01643 | D185: =VLOOKUP(Vlookup!$B150,'CDCM Volume Forecasts'!$A$27:$AG$123,D$137,FALSE) -> 20692.94822 | E185: =VLOOKUP(Vlookup!$B150,'CDCM Volume Forecasts'!$A$27:$AG$123,E$137,FALSE) -> 65.078 | F185: =VLOOKUP(Vlookup!$B150,'CDCM Volume Forecasts'!$A$27:$AG$123,F$137,FALSE) -> 21835.69325 | G185: =VLOOKUP(Vlookup!$B150,'CDCM Volume Forecasts'!$A$27:$AG$123,G$137,FALSE) -> 985.555
A186: > LV Sub HH Metered | B186: =VLOOKUP(Vlookup!$B151,'CDCM Volume Forecasts'!$A$27:$AG$123,B$137,FALSE) -> 0 | C186: =VLOOKUP(Vlookup!$B151,'CDCM Volume Forecasts'!$A$27:$AG$123,C$137,FALSE) -> 0 | D186: =VLOOKUP(Vlookup!$B151,'CDCM Volume Forecasts'!$A$27:$AG$123,D$137,FALSE) -> 0 | E186: =VLOOKUP(Vlookup!$B151,'CDCM Volume Forecasts'!$A$27:$AG$123,E$137,FALSE) -> 0 | F186: =VLOOKUP(Vlookup!$B151,'CDCM Volume Forecasts'!$A$27:$AG$123,F$137,FALSE) -> 0 | G186: =VLOOKUP(Vlookup!$B151,'CDCM Volume Forecasts'!$A$27:$AG$123,G$137,FALSE) -> 0
A187: LV Sub HH Metered | B187: =VLOOKUP(Vlookup!$B152,'CDCM Volume Forecasts'!$A$27:$AG$123,B$137,FALSE) -> 134021.4186 | C187: =VLOOKUP(Vlookup!$B152,'CDCM Volume Forecasts'!$A$27:$AG$123,C$137,FALSE) -> 485891.1776 | D187: =VLOOKUP(Vlookup!$B152,'CDCM Volume Forecasts'!$A$27:$AG$123,D$137,FALSE) -> 643177.1829 | E187: =VLOOKUP(Vlookup!$B152,'CDCM Volume Forecasts'!$A$27:$AG$123,E$137,FALSE) -> 1845.2116 | F187: =VLOOKUP(Vlookup!$B152,'CDCM Volume Forecasts'!$A$27:$AG$123,F$137,FALSE) -> 627831.4534 | G187: =VLOOKUP(Vlookup!$B152,'CDCM Volume Forecasts'!$A$27:$AG$123,G$137,FALSE) -> 95399.90129
A188: LDNO HV: LV Sub HH Metered | B188: =VLOOKUP(Vlookup!$B153,'CDCM Volume Forecasts'!$A$27:$AG$123,B$137,FALSE) -> 40.52355846 | C188: =VLOOKUP(Vlookup!$B153,'CDCM Volume Forecasts'!$A$27:$AG$123,C$137,FALSE) -> 146.9008621 | D188: =VLOOKUP(Vlookup!$B153,'CDCM Volume Forecasts'!$A$27:$AG$123,D$137,FALSE) -> 194.4235295 | E188: =VLOOKUP(Vlookup!$B153,'CDCM Volume Forecasts'!$A$27:$AG$123,E$137,FALSE) -> 1.0012 | F188: =VLOOKUP(Vlookup!$B153,'CDCM Volume Forecasts'!$A$27:$AG$123,F$137,FALSE) -> 223.5447491 | G188: =VLOOKUP(Vlookup!$B153,'CDCM Volume Forecasts'!$A$27:$AG$123,G$137,FALSE) -> 0.039
A189: > HV HH Metered | B189: =VLOOKUP(Vlookup!$B154,'CDCM Volume Forecasts'!$A$27:$AG$123,B$137,FALSE) -> 0 | C189: =VLOOKUP(Vlookup!$B154,'CDCM Volume Forecasts'!$A$27:$AG$123,C$137,FALSE) -> 0 | D189: =VLOOKUP(Vlookup!$B154,'CDCM Volume Forecasts'!$A$27:$AG$123,D$137,FALSE) -> 0 | E189: =VLOOKUP(Vlookup!$B154,'CDCM Volume Forecasts'!$A$27:$AG$123,E$137,FALSE) -> 0 | F189: =VLOOKUP(Vlookup!$B154,'CDCM Volume Forecasts'!$A$27:$AG$123,F$137,FALSE) -> 0 | G189: =VLOOKUP(Vlookup!$B154,'CDCM Volume Forecasts'!$A$27:$AG$123,G$137,FALSE) -> 0
A190: HV HH Metered | B190: =VLOOKUP(Vlookup!$B155,'CDCM Volume Forecasts'!$A$27:$AG$123,B$137,FALSE) -> 508737.7538 | C190: =VLOOKUP(Vlookup!$B155,'CDCM Volume Forecasts'!$A$27:$AG$123,C$137,FALSE) -> 1726641.967 | D190: =VLOOKUP(Vlookup!$B155,'CDCM Volume Forecasts'!$A$27:$AG$123,D$137,FALSE) -> 2822822.2 | E190: =VLOOKUP(Vlookup!$B155,'CDCM Volume Forecasts'!$A$27:$AG$123,E$137,FALSE) -> 2040.4456 | F190: =VLOOKUP(Vlookup!$B155,'CDCM Volume Forecasts'!$A$27:$AG$123,F$137,FALSE) -> 1807152.407 | G190: =VLOOKUP(Vlookup!$B155,'CDCM Volume Forecasts'!$A$27:$AG$123,G$137,FALSE) -> 375871.926
A191: LDNO HV: HV HH Metered | B191: =VLOOKUP(Vlookup!$B156,'CDCM Volume Forecasts'!$A$27:$AG$123,B$137,FALSE) -> 2030.255067 | C191: =VLOOKUP(Vlookup!$B156,'CDCM Volume Forecasts'!$A$27:$AG$123,C$137,FALSE) -> 6896.98484 | D191: =VLOOKUP(Vlookup!$B156,'CDCM Volume Forecasts'!$A$27:$AG$123,D$137,FALSE) -> 11305.09467 | E191: =VLOOKUP(Vlookup!$B156,'CDCM Volume Forecasts'!$A$27:$AG$123,E$137,FALSE) -> 7.0084 | F191: =VLOOKUP(Vlookup!$B156,'CDCM Volume Forecasts'!$A$27:$AG$123,F$137,FALSE) -> 11456.14531 | G191: =VLOOKUP(Vlookup!$B156,'CDCM Volume Forecasts'!$A$27:$AG$123,G$137,FALSE) -> 3.9938
A192: > NHH UMS category A | B192: =VLOOKUP(Vlookup!$B157,'CDCM Volume Forecasts'!$A$27:$AG$123,B$137,FALSE) -> 0 | C192: =VLOOKUP(Vlookup!$B157,'CDCM Volume Forecasts'!$A$27:$AG$123,C$137,FALSE) -> 0 | D192: =VLOOKUP(Vlookup!$B157,'CDCM Volume Forecasts'!$A$27:$AG$123,D$137,FALSE) -> 0 | E192: =VLOOKUP(Vlookup!$B157,'CDCM Volume Forecasts'!$A$27:$AG$123,E$137,FALSE) -> 0 | F192: =VLOOKUP(Vlookup!$B157,'CDCM Volume Forecasts'!$A$27:$AG$123,F$137,FALSE) -> 0 | G192: =VLOOKUP(Vlookup!$B157,'CDCM Volume Forecasts'!$A$27:$AG$123,G$137,FALSE) -> 0
A193: NHH UMS category A | B193: =VLOOKUP(Vlookup!$B158,'CDCM Volume Forecasts'!$A$27:$AG$123,B$137,FALSE) -> 37356.45518 | C193: =VLOOKUP(Vlookup!$B158,'CDCM Volume Forecasts'!$A$27:$AG$123,C$137,FALSE) -> 0 | D193: =VLOOKUP(Vlookup!$B158,'CDCM Volume Forecasts'!$A$27:$AG$123,D$137,FALSE) -> 0 | E193: =VLOOKUP(Vlookup!$B158,'CDCM Volume Forecasts'!$A$27:$AG$123,E$137,FALSE) -> 235.282 | F193: =VLOOKUP(Vlookup!$B158,'CDCM Volume Forecasts'!$A$27:$AG$123,F$137,FALSE) -> 0 | G193: =VLOOKUP(Vlookup!$B158,'CDCM Volume Forecasts'!$A$27:$AG$123,G$137,FALSE) -> 0
A194: LDNO LV: NHH UMS category A | B194: =VLOOKUP(Vlookup!$B159,'CDCM Volume Forecasts'!$A$27:$AG$123,B$137,FALSE) -> 146.322 | C194: =VLOOKUP(Vlookup!$B159,'CDCM Volume Forecasts'!$A$27:$AG$123,C$137,FALSE) -> 0 | D194: =VLOOKUP(Vlookup!$B159,'CDCM Volume Forecasts'!$A$27:$AG$123,D$137,FALSE) -> 0 | E194: =VLOOKUP(Vlookup!$B159,'CDCM Volume Forecasts'!$A$27:$AG$123,E$137,FALSE) -> 30.036 | F194: =VLOOKUP(Vlookup!$B159,'CDCM Volume Forecasts'!$A$27:$AG$123,F$137,FALSE) -> 0 | G194: =VLOOKUP(Vlookup!$B159,'CDCM Volume Forecasts'!$A$27:$AG$123,G$137,FALSE) -> 0
A195: LDNO HV: NHH UMS category A | B195: =VLOOKUP(Vlookup!$B160,'CDCM Volume Forecasts'!$A$27:$AG$123,B$137,FALSE) -> 91.773 | C195: =VLOOKUP(Vlookup!$B160,'CDCM Volume Forecasts'!$A$27:$AG$123,C$137,FALSE) -> 0 | D195: =VLOOKUP(Vlookup!$B160,'CDCM Volume Forecasts'!$A$27:$AG$123,D$137,FALSE) -> 0 | E195: =VLOOKUP(Vlookup!$B160,'CDCM Volume Forecasts'!$A$27:$AG$123,E$137,FALSE) -> 7.0084 | F195: =VLOOKUP(Vlookup!$B160,'CDCM Volume Forecasts'!$A$27:$AG$123,F$137,FALSE) -> 0 | G195: =VLOOKUP(Vlookup!$B160,'CDCM Volume Forecasts'!$A$27:$AG$123,G$137,FALSE) -> 0
A196: > NHH UMS category B | B196: =VLOOKUP(Vlookup!$B161,'CDCM Volume Forecasts'!$A$27:$AG$123,B$137,FALSE) -> 0 | C196: =VLOOKUP(Vlookup!$B161,'CDCM Volume Forecasts'!$A$27:$AG$123,C$137,FALSE) -> 0 | D196: =VLOOKUP(Vlookup!$B161,'CDCM Volume Forecasts'!$A$27:$AG$123,D$137,FALSE) -> 0 | E196: =VLOOKUP(Vlookup!$B161,'CDCM Volume Forecasts'!$A$27:$AG$123,E$137,FALSE) -> 0 | F196: =VLOOKUP(Vlookup!$B161,'CDCM Volume Forecasts'!$A$27:$AG$123,F$137,FALSE) -> 0 | G196: =VLOOKUP(Vlookup!$B161,'CDCM Volume Forecasts'!$A$27:$AG$123,G$137,FALSE) -> 0
A197: NHH UMS category B | B197: =VLOOKUP(Vlookup!$B162,'CDCM Volume Forecasts'!$A$27:$AG$123,B$137,FALSE) -> 12525.83669 | C197: =VLOOKUP(Vlookup!$B162,'CDCM Volume Forecasts'!$A$27:$AG$123,C$137,FALSE) -> 0 | D197: =VLOOKUP(Vlookup!$B162,'CDCM Volume Forecasts'!$A$27:$AG$123,D$137,FALSE) -> 0 | E197: =VLOOKUP(Vlookup!$B162,'CDCM Volume Forecasts'!$A$27:$AG$123,E$137,FALSE) -> 307.3684 | F197: =VLOOKUP(Vlookup!$B162,'CDCM Volume Forecasts'!$A$27:$AG$123,F$137,FALSE) -> 0 | G197: =VLOOKUP(Vlookup!$B162,'CDCM Volume Forecasts'!$A$27:$AG$123,G$137,FALSE) -> 0
A198: LDNO LV: NHH UMS category B | B198: =VLOOKUP(Vlookup!$B163,'CDCM Volume Forecasts'!$A$27:$AG$123,B$137,FALSE) -> 47.718 | C198: =VLOOKUP(Vlookup!$B163,'CDCM Volume Forecasts'!$A$27:$AG$123,C$137,FALSE) -> 0 | D198: =VLOOKUP(Vlookup!$B163,'CDCM Volume Forecasts'!$A$27:$AG$123,D$137,FALSE) -> 0 | E198: =VLOOKUP(Vlookup!$B163,'CDCM Volume Forecasts'!$A$27:$AG$123,E$137,FALSE) -> 38.0456 | F198: =VLOOKUP(Vlookup!$B163,'CDCM Volume Forecasts'!$A$27:$AG$123,F$137,FALSE) -> 0 | G198: =VLOOKUP(Vlookup!$B163,'CDCM Volume Forecasts'!$A$27:$AG$123,G$137,FALSE) -> 0
A199: LDNO HV: NHH UMS category B | B199: =VLOOKUP(Vlookup!$B164,'CDCM Volume Forecasts'!$A$27:$AG$123,B$137,FALSE) -> 29.997 | C199: =VLOOKUP(Vlookup!$B164,'CDCM Volume Forecasts'!$A$27:$AG$123,C$137,FALSE) -> 0 | D199: =VLOOKUP(Vlookup!$B164,'CDCM Volume Forecasts'!$A$27:$AG$123,D$137,FALSE) -> 0 | E199: =VLOOKUP(Vlookup!$B164,'CDCM Volume Forecasts'!$A$27:$AG$123,E$137,FALSE) -> 9.0108 | F199: =VLOOKUP(Vlookup!$B164,'CDCM Volume Forecasts'!$A$27:$AG$123,F$137,FALSE) -> 0 | G199: =VLOOKUP(Vlookup!$B164,'CDCM Volume Forecasts'!$A$27:$AG$123,G$137,FALSE) -> 0
A200: > NHH UMS category C | B200: =VLOOKUP(Vlookup!$B165,'CDCM Volume Forecasts'!$A$27:$AG$123,B$137,FALSE) -> 0 | C200: =VLOOKUP(Vlookup!$B165,'CDCM Volume Forecasts'!$A$27:$AG$123,C$137,FALSE) -> 0 | D200: =VLOOKUP(Vlookup!$B165,'CDCM Volume Forecasts'!$A$27:$AG$123,D$137,FALSE) -> 0 | E200: =VLOOKUP(Vlookup!$B165,'CDCM Volume Forecasts'!$A$27:$AG$123,E$137,FALSE) -> 0 | F200: =VLOOKUP(Vlookup!$B165,'CDCM Volume Forecasts'!$A$27:$AG$123,F$137,FALSE) -> 0 | G200: =VLOOKUP(Vlookup!$B165,'CDCM Volume Forecasts'!$A$27:$AG$123,G$137,FALSE) -> 0
A201: NHH UMS category C | B201: =VLOOKUP(Vlookup!$B166,'CDCM Volume Forecasts'!$A$27:$AG$123,B$137,FALSE) -> 48.67704544 | C201: =VLOOKUP(Vlookup!$B166,'CDCM Volume Forecasts'!$A$27:$AG$123,C$137,FALSE) -> 0 | D201: =VLOOKUP(Vlookup!$B166,'CDCM Volume Forecasts'!$A$27:$AG$123,D$137,FALSE) -> 0 | E201: =VLOOKUP(Vlookup!$B166,'CDCM Volume Forecasts'!$A$27:$AG$123,E$137,FALSE) -> 6.0072 | F201: =VLOOKUP(Vlookup!$B166,'CDCM Volume Forecasts'!$A$27:$AG$123,F$137,FALSE) -> 0 | G201: =VLOOKUP(Vlookup!$B166,'CDCM Volume Forecasts'!$A$27:$AG$123,G$137,FALSE) -> 0
A202: LDNO LV: NHH UMS category C | B202: =VLOOKUP(Vlookup!$B167,'CDCM Volume Forecasts'!$A$27:$AG$123,B$137,FALSE) -> 0 | C202: =VLOOKUP(Vlookup!$B167,'CDCM Volume Forecasts'!$A$27:$AG$123,C$137,FALSE) -> 0 | D202: =VLOOKUP(Vlookup!$B167,'CDCM Volume Forecasts'!$A$27:$AG$123,D$137,FALSE) -> 0 | E202: =VLOOKUP(Vlookup!$B167,'CDCM Volume Forecasts'!$A$27:$AG$123,E$137,FALSE) -> 0 | F202: =VLOOKUP(Vlookup!$B167,'CDCM Volume Forecasts'!$A$27:$AG$123,F$137,FALSE) -> 0 | G202: =VLOOKUP(Vlookup!$B167,'CDCM Volume Forecasts'!$A$27:$AG$123,G$137,FALSE) -> 0
A203: LDNO HV: NHH UMS category C | B203: =VLOOKUP(Vlookup!$B168,'CDCM Volume Forecasts'!$A$27:$AG$123,B$137,FALSE) -> 0 | C203: =VLOOKUP(Vlookup!$B168,'CDCM Volume Forecasts'!$A$27:$AG$123,C$137,FALSE) -> 0 | D203: =VLOOKUP(Vlookup!$B168,'CDCM Volume Forecasts'!$A$27:$AG$123,D$137,FALSE) -> 0 | E203: =VLOOKUP(Vlookup!$B168,'CDCM Volume Forecasts'!$A$27:$AG$123,E$137,FALSE) -> 0 | F203: =VLOOKUP(Vlookup!$B168,'CDCM Volume Forecasts'!$A$27:$AG$123,F$137,FALSE) -> 0 | G203: =VLOOKUP(Vlookup!$B168,'CDCM Volume Forecasts'!$A$27:$AG$123,G$137,FALSE) -> 0
A204: > NHH UMS category D | B204: =VLOOKUP(Vlookup!$B169,'CDCM Volume Forecasts'!$A$27:$AG$123,B$137,FALSE) -> 0 | C204: =VLOOKUP(Vlookup!$B169,'CDCM Volume Forecasts'!$A$27:$AG$123,C$137,FALSE) -> 0 | D204: =VLOOKUP(Vlookup!$B169,'CDCM Volume Forecasts'!$A$27:$AG$123,D$137,FALSE) -> 0 | E204: =VLOOKUP(Vlookup!$B169,'CDCM Volume Forecasts'!$A$27:$AG$123,E$137,FALSE) -> 0 | F204: =VLOOKUP(Vlookup!$B169,'CDCM Volume Forecasts'!$A$27:$AG$123,F$137,FALSE) -> 0 | G204: =VLOOKUP(Vlookup!$B169,'CDCM Volume Forecasts'!$A$27:$AG$123,G$137,FALSE) -> 0
A205: NHH UMS category D | B205: =VLOOKUP(Vlookup!$B170,'CDCM Volume Forecasts'!$A$27:$AG$123,B$137,FALSE) -> 0 | C205: =VLOOKUP(Vlookup!$B170,'CDCM Volume Forecasts'!$A$27:$AG$123,C$137,FALSE) -> 0 | D205: =VLOOKUP(Vlookup!$B170,'CDCM Volume Forecasts'!$A$27:$AG$123,D$137,FALSE) -> 0 | E205: =VLOOKUP(Vlookup!$B170,'CDCM Volume Forecasts'!$A$27:$AG$123,E$137,FALSE) -> 0 | F205: =VLOOKUP(Vlookup!$B170,'CDCM Volume Forecasts'!$A$27:$AG$123,F$137,FALSE) -> 0 | G205: =VLOOKUP(Vlookup!$B170,'CDCM Volume Forecasts'!$A$27:$AG$123,G$137,FALSE) -> 0
A206: LDNO LV: NHH UMS category D | B206: =VLOOKUP(Vlookup!$B171,'CDCM Volume Forecasts'!$A$27:$AG$123,B$137,FALSE) -> 0 | C206: =VLOOKUP(Vlookup!$B171,'CDCM Volume Forecasts'!$A$27:$AG$123,C$137,FALSE) -> 0 | D206: =VLOOKUP(Vlookup!$B171,'CDCM Volume Forecasts'!$A$27:$AG$123,D$137,FALSE) -> 0 | E206: =VLOOKUP(Vlookup!$B171,'CDCM Volume Forecasts'!$A$27:$AG$123,E$137,FALSE) -> 0 | F206: =VLOOKUP(Vlookup!$B171,'CDCM Volume Forecasts'!$A$27:$AG$123,F$137,FALSE) -> 0 | G206: =VLOOKUP(Vlookup!$B171,'CDCM Volume Forecasts'!$A$27:$AG$123,G$137,FALSE) -> 0
A207: LDNO HV: NHH UMS category D | B207: =VLOOKUP(Vlookup!$B172,'CDCM Volume Forecasts'!$A$27:$AG$123,B$137,FALSE) -> 0 | C207: =VLOOKUP(Vlookup!$B172,'CDCM Volume Forecasts'!$A$27:$AG$123,C$137,FALSE) -> 0 | D207: =VLOOKUP(Vlookup!$B172,'CDCM Volume Forecasts'!$A$27:$AG$123,D$137,FALSE) -> 0 | E207: =VLOOKUP(Vlookup!$B172,'CDCM Volume Forecasts'!$A$27:$AG$123,E$137,FALSE) -> 0 | F207: =VLOOKUP(Vlookup!$B172,'CDCM Volume Forecasts'!$A$27:$AG$123,F$137,FALSE) -> 0 | G207: =VLOOKUP(Vlookup!$B172,'CDCM Volume Forecasts'!$A$27:$AG$123,G$137,FALSE) -> 0
A208: > LV UMS (Pseudo HH Metered) | B208: =VLOOKUP(Vlookup!$B173,'CDCM Volume Forecasts'!$A$27:$AG$123,B$137,FALSE) -> 0 | C208: =VLOOKUP(Vlookup!$B173,'CDCM Volume Forecasts'!$A$27:$AG$123,C$137,FALSE) -> 0 | D208: =VLOOKUP(Vlookup!$B173,'CDCM Volume Forecasts'!$A$27:$AG$123,D$137,FALSE) -> 0 | E208: =VLOOKUP(Vlookup!$B173,'CDCM Volume Forecasts'!$A$27:$AG$123,E$137,FALSE) -> 0 | F208: =VLOOKUP(Vlookup!$B173,'CDCM Volume Forecasts'!$A$27:$AG$123,F$137,FALSE) -> 0 | G208: =VLOOKUP(Vlookup!$B173,'CDCM Volume Forecasts'!$A$27:$AG$123,G$137,FALSE) -> 0
A209: LV UMS (Pseudo HH Metered) | B209: =VLOOKUP(Vlookup!$B174,'CDCM Volume Forecasts'!$A$27:$AG$123,B$137,FALSE) -> 13874.8601 | C209: =VLOOKUP(Vlookup!$B174,'CDCM Volume Forecasts'!$A$27:$AG$123,C$137,FALSE) -> 32942.04155 | D209: =VLOOKUP(Vlookup!$B174,'CDCM Volume Forecasts'!$A$27:$AG$123,D$137,FALSE) -> 227624.0513 | E209: =VLOOKUP(Vlookup!$B174,'CDCM Volume Forecasts'!$A$27:$AG$123,E$137,FALSE) -> 23.0276 | F209: =VLOOKUP(Vlookup!$B174,'CDCM Volume Forecasts'!$A$27:$AG$123,F$137,FALSE) -> 0 | G209: =VLOOKUP(Vlookup!$B174,'CDCM Volume Forecasts'!$A$27:$AG$123,G$137,FALSE) -> 0
A210: LDNO LV: LV UMS (Pseudo HH Metered) | B210: =VLOOKUP(Vlookup!$B175,'CDCM Volume Forecasts'!$A$27:$AG$123,B$137,FALSE) -> 0 | C210: =VLOOKUP(Vlookup!$B175,'CDCM Volume Forecasts'!$A$27:$AG$123,C$137,FALSE) -> 0 | D210: =VLOOKUP(Vlookup!$B175,'CDCM Volume Forecasts'!$A$27:$AG$123,D$137,FALSE) -> 0 | E210: =VLOOKUP(Vlookup!$B175,'CDCM Volume Forecasts'!$A$27:$AG$123,E$137,FALSE) -> 0 | F210: =VLOOKUP(Vlookup!$B175,'CDCM Volume Forecasts'!$A$27:$AG$123,F$137,FALSE) -> 0 | G210: =VLOOKUP(Vlookup!$B175,'CDCM Volume Forecasts'!$A$27:$AG$123,G$137,FALSE) -> 0
A211: LDNO HV: LV UMS (Pseudo HH Metered) | B211: =VLOOKUP(Vlookup!$B176,'CDCM Volume Forecasts'!$A$27:$AG$123,B$137,FALSE) -> 0 | C211: =VLOOKUP(Vlookup!$B176,'CDCM Volume Forecasts'!$A$27:$AG$123,C$137,FALSE) -> 0 | D211: =VLOOKUP(Vlookup!$B176,'CDCM Volume Forecasts'!$A$27:$AG$123,D$137,FALSE) -> 0 | E211: =VLOOKUP(Vlookup!$B176,'CDCM Volume Forecasts'!$A$27:$AG$123,E$137,FALSE) -> 0 | F211: =VLOOKUP(Vlookup!$B176,'CDCM Volume Forecasts'!$A$27:$AG$123,F$137,FALSE) -> 0 | G211: =VLOOKUP(Vlookup!$B176,'CDCM Volume Forecasts'!$A$27:$AG$123,G$137,FALSE) -> 0
A212: > LV Generation NHH or Aggregate HH | B212: =VLOOKUP(Vlookup!$B177,'CDCM Volume Forecasts'!$A$27:$AG$123,B$137,FALSE) -> 0 | C212: =VLOOKUP(Vlookup!$B177,'CDCM Volume Forecasts'!$A$27:$AG$123,C$137,FALSE) -> 0 | D212: =VLOOKUP(Vlookup!$B177,'CDCM Volume Forecasts'!$A$27:$AG$123,D$137,FALSE) -> 0 | E212: =VLOOKUP(Vlookup!$B177,'CDCM Volume Forecasts'!$A$27:$AG$123,E$137,FALSE) -> 0 | F212: =VLOOKUP(Vlookup!$B177,'CDCM Volume Forecasts'!$A$27:$AG$123,F$137,FALSE) -> 0 | G212: =VLOOKUP(Vlookup!$B177,'CDCM Volume Forecasts'!$A$27:$AG$123,G$137,FALSE) -> 0
A213: LV Generation NHH or Aggregate HH | B213: =VLOOKUP(Vlookup!$B178,'CDCM Volume Forecasts'!$A$27:$AG$123,B$137,FALSE) -> 659.5664187 | C213: =VLOOKUP(Vlookup!$B178,'CDCM Volume Forecasts'!$A$27:$AG$123,C$137,FALSE) -> 0 | D213: =VLOOKUP(Vlookup!$B178,'CDCM Volume Forecasts'!$A$27:$AG$123,D$137,FALSE) -> 0 | E213: =VLOOKUP(Vlookup!$B178,'CDCM Volume Forecasts'!$A$27:$AG$123,E$137,FALSE) -> 54.0648 | F213: =VLOOKUP(Vlookup!$B178,'CDCM Volume Forecasts'!$A$27:$AG$123,F$137,FALSE) -> 0 | G213: =VLOOKUP(Vlookup!$B178,'CDCM Volume Forecasts'!$A$27:$AG$123,G$137,FALSE) -> 0
A214: LDNO LV: LV Generation NHH or Aggregate HH | B214: =VLOOKUP(Vlookup!$B179,'CDCM Volume Forecasts'!$A$27:$AG$123,B$137,FALSE) -> 0 | C214: =VLOOKUP(Vlookup!$B179,'CDCM Volume Forecasts'!$A$27:$AG$123,C$137,FALSE) -> 0 | D214: =VLOOKUP(Vlookup!$B179,'CDCM Volume Forecasts'!$A$27:$AG$123,D$137,FALSE) -> 0 | E214: =VLOOKUP(Vlookup!$B179,'CDCM Volume Forecasts'!$A$27:$AG$123,E$137,FALSE) -> 0 | F214: =VLOOKUP(Vlookup!$B179,'CDCM Volume Forecasts'!$A$27:$AG$123,F$137,FALSE) -> 0 | G214: =VLOOKUP(Vlookup!$B179,'CDCM Volume Forecasts'!$A$27:$AG$123,G$137,FALSE) -> 0
A215: LDNO HV: LV Generation NHH or Aggregate HH | B215: =VLOOKUP(Vlookup!$B180,'CDCM Volume Forecasts'!$A$27:$AG$123,B$137,FALSE) -> 0 | C215: =VLOOKUP(Vlookup!$B180,'CDCM Volume Forecasts'!$A$27:$AG$123,C$137,FALSE) -> 0 | D215: =VLOOKUP(Vlookup!$B180,'CDCM Volume Forecasts'!$A$27:$AG$123,D$137,FALSE) -> 0 | E215: =VLOOKUP(Vlookup!$B180,'CDCM Volume Forecasts'!$A$27:$AG$123,E$137,FALSE) -> 0 | F215: =VLOOKUP(Vlookup!$B180,'CDCM Volume Forecasts'!$A$27:$AG$123,F$137,FALSE) -> 0 | G215: =VLOOKUP(Vlookup!$B180,'CDCM Volume Forecasts'!$A$27:$AG$123,G$137,FALSE) -> 0
A216: > LV Sub Generation NHH | B216: =VLOOKUP(Vlookup!$B181,'CDCM Volume Forecasts'!$A$27:$AG$123,B$137,FALSE) -> 0 | C216: =VLOOKUP(Vlookup!$B181,'CDCM Volume Forecasts'!$A$27:$AG$123,C$137,FALSE) -> 0 | D216: =VLOOKUP(Vlookup!$B181,'CDCM Volume Forecasts'!$A$27:$AG$123,D$137,FALSE) -> 0 | E216: =VLOOKUP(Vlookup!$B181,'CDCM Volume Forecasts'!$A$27:$AG$123,E$137,FALSE) -> 0 | F216: =VLOOKUP(Vlookup!$B181,'CDCM Volume Forecasts'!$A$27:$AG$123,F$137,FALSE) -> 0 | G216: =VLOOKUP(Vlookup!$B181,'CDCM Volume Forecasts'!$A$27:$AG$123,G$137,FALSE) -> 0
A217: LV Sub Generation NHH | B217: =VLOOKUP(Vlookup!$B182,'CDCM Volume Forecasts'!$A$27:$AG$123,B$137,FALSE) -> 0 | C217: =VLOOKUP(Vlookup!$B182,'CDCM Volume Forecasts'!$A$27:$AG$123,C$137,FALSE) -> 0 | D217: =VLOOKUP(Vlookup!$B182,'CDCM Volume Forecasts'!$A$27:$AG$123,D$137,FALSE) -> 0 | E217: =VLOOKUP(Vlookup!$B182,'CDCM Volume Forecasts'!$A$27:$AG$123,E$137,FALSE) -> 0 | F217: =VLOOKUP(Vlookup!$B182,'CDCM Volume Forecasts'!$A$27:$AG$123,F$137,FALSE) -> 0 | G217: =VLOOKUP(Vlookup!$B182,'CDCM Volume Forecasts'!$A$27:$AG$123,G$137,FALSE) -> 0
A218: LDNO HV: LV Sub Generation NHH | B218: =VLOOKUP(Vlookup!$B183,'CDCM Volume Forecasts'!$A$27:$AG$123,B$137,FALSE) -> 0 | C218: =VLOOKUP(Vlookup!$B183,'CDCM Volume Forecasts'!$A$27:$AG$123,C$137,FALSE) -> 0 | D218: =VLOOKUP(Vlookup!$B183,'CDCM Volume Forecasts'!$A$27:$AG$123,D$137,FALSE) -> 0 | E218: =VLOOKUP(Vlookup!$B183,'CDCM Volume Forecasts'!$A$27:$AG$123,E$137,FALSE) -> 0 | F218: =VLOOKUP(Vlookup!$B183,'CDCM Volume Forecasts'!$A$27:$AG$123,F$137,FALSE) -> 0 | G218: =VLOOKUP(Vlookup!$B183,'CDCM Volume Forecasts'!$A$27:$AG$123,G$137,FALSE) -> 0
A219: > LV Generation Intermittent | B219: =VLOOKUP(Vlookup!$B184,'CDCM Volume Forecasts'!$A$27:$AG$123,B$137,FALSE) -> 0 | C219: =VLOOKUP(Vlookup!$B184,'CDCM Volume Forecasts'!$A$27:$AG$123,C$137,FALSE) -> 0 | D219: =VLOOKUP(Vlookup!$B184,'CDCM Volume Forecasts'!$A$27:$AG$123,D$137,FALSE) -> 0 | E219: =VLOOKUP(Vlookup!$B184,'CDCM Volume Forecasts'!$A$27:$AG$123,E$137,FALSE) -> 0 | F219: =VLOOKUP(Vlookup!$B184,'CDCM Volume Forecasts'!$A$27:$AG$123,F$137,FALSE) -> 0 | G219: =VLOOKUP(Vlookup!$B184,'CDCM Volume Forecasts'!$A$27:$AG$123,G$137,FALSE) -> 0
A220: LV Generation Intermittent | B220: =VLOOKUP(Vlookup!$B185,'CDCM Volume Forecasts'!$A$27:$AG$123,B$137,FALSE) -> 12668.87464 | C220: =VLOOKUP(Vlookup!$B185,'CDCM Volume Forecasts'!$A$27:$AG$123,C$137,FALSE) -> 0 | D220: =VLOOKUP(Vlookup!$B185,'CDCM Volume Forecasts'!$A$27:$AG$123,D$137,FALSE) -> 0 | E220: =VLOOKUP(Vlookup!$B185,'CDCM Volume Forecasts'!$A$27:$AG$123,E$137,FALSE) -> 111.1332 | F220: =VLOOKUP(Vlookup!$B185,'CDCM Volume Forecasts'!$A$27:$AG$123,F$137,FALSE) -> 0 | G220: =VLOOKUP(Vlookup!$B185,'CDCM Volume Forecasts'!$A$27:$AG$123,G$137,FALSE) -> 449.3942928
A221: LDNO LV: LV Generation Intermittent | B221: =VLOOKUP(Vlookup!$B186,'CDCM Volume Forecasts'!$A$27:$AG$123,B$137,FALSE) -> 0 | C221: =VLOOKUP(Vlookup!$B186,'CDCM Volume Forecasts'!$A$27:$AG$123,C$137,FALSE) -> 0 | D221: =VLOOKUP(Vlookup!$B186,'CDCM Volume Forecasts'!$A$27:$AG$123,D$137,FALSE) -> 0 | E221: =VLOOKUP(Vlookup!$B186,'CDCM Volume Forecasts'!$A$27:$AG$123,E$137,FALSE) -> 0 | F221: =VLOOKUP(Vlookup!$B186,'CDCM Volume Forecasts'!$A$27:$AG$123,F$137,FALSE) -> 0 | G221: =VLOOKUP(Vlookup!$B186,'CDCM Volume Forecasts'!$A$27:$AG$123,G$137,FALSE) -> 0
A222: LDNO HV: LV Generation Intermittent | B222: =VLOOKUP(Vlookup!$B187,'CDCM Volume Forecasts'!$A$27:$AG$123,B$137,FALSE) -> 0 | C222: =VLOOKUP(Vlookup!$B187,'CDCM Volume Forecasts'!$A$27:$AG$123,C$137,FALSE) -> 0 | D222: =VLOOKUP(Vlookup!$B187,'CDCM Volume Forecasts'!$A$27:$AG$123,D$137,FALSE) -> 0 | E222: =VLOOKUP(Vlookup!$B187,'CDCM Volume Forecasts'!$A$27:$AG$123,E$137,FALSE) -> 0 | F222: =VLOOKUP(Vlookup!$B187,'CDCM Volume Forecasts'!$A$27:$AG$123,F$137,FALSE) -> 0 | G222: =VLOOKUP(Vlookup!$B187,'CDCM Volume Forecasts'!$A$27:$AG$123,G$137,FALSE) -> 0
A223: > LV Generation Non-Intermittent | B223: =VLOOKUP(Vlookup!$B188,'CDCM Volume Forecasts'!$A$27:$AG$123,B$137,FALSE) -> 0 | C223: =VLOOKUP(Vlookup!$B188,'CDCM Volume Forecasts'!$A$27:$AG$123,C$137,FALSE) -> 0 | D223: =VLOOKUP(Vlookup!$B188,'CDCM Volume Forecasts'!$A$27:$AG$123,D$137,FALSE) -> 0 | E223: =VLOOKUP(Vlookup!$B188,'CDCM Volume Forecasts'!$A$27:$AG$123,E$137,FALSE) -> 0 | F223: =VLOOKUP(Vlookup!$B188,'CDCM Volume Forecasts'!$A$27:$AG$123,F$137,FALSE) -> 0 | G223: =VLOOKUP(Vlookup!$B188,'CDCM Volume Forecasts'!$A$27:$AG$123,G$137,FALSE) -> 0
A224: LV Generation Non-Intermittent | B224: =VLOOKUP(Vlookup!$B189,'CDCM Volume Forecasts'!$A$27:$AG$123,B$137,FALSE) -> 81.951918 | C224: =VLOOKUP(Vlookup!$B189,'CDCM Volume Forecasts'!$A$27:$AG$123,C$137,FALSE) -> 290.1159639 | D224: =VLOOKUP(Vlookup!$B189,'CDCM Volume Forecasts'!$A$27:$AG$123,D$137,FALSE) -> 374.5967708 | E224: =VLOOKUP(Vlookup!$B189,'CDCM Volume Forecasts'!$A$27:$AG$123,E$137,FALSE) -> 10.012 | F224: =VLOOKUP(Vlookup!$B189,'CDCM Volume Forecasts'!$A$27:$AG$123,F$137,FALSE) -> 0 | G224: =VLOOKUP(Vlookup!$B189,'CDCM Volume Forecasts'!$A$27:$AG$123,G$137,FALSE) -> 25.07207859
A225: LDNO LV: LV Generation Non-Intermittent | B225: =VLOOKUP(Vlookup!$B190,'CDCM Volume Forecasts'!$A$27:$AG$123,B$137,FALSE) -> 4.134621826 | C225: =VLOOKUP(Vlookup!$B190,'CDCM Volume Forecasts'!$A$27:$AG$123,C$137,FALSE) -> 14.6419274 | D225: =VLOOKUP(Vlookup!$B190,'CDCM Volume Forecasts'!$A$27:$AG$123,D$137,FALSE) -> 18.89159589 | E225: =VLOOKUP(Vlookup!$B190,'CDCM Volume Forecasts'!$A$27:$AG$123,E$137,FALSE) -> 2.0024 | F225: =VLOOKUP(Vlookup!$B190,'CDCM Volume Forecasts'!$A$27:$AG$123,F$137,FALSE) -> 0 | G225: =VLOOKUP(Vlookup!$B190,'CDCM Volume Forecasts'!$A$27:$AG$123,G$137,FALSE) -> 1.9386
A226: LDNO HV: LV Generation Non-Intermittent | B226: =VLOOKUP(Vlookup!$B191,'CDCM Volume Forecasts'!$A$27:$AG$123,B$137,FALSE) -> 0 | C226: =VLOOKUP(Vlookup!$B191,'CDCM Volume Forecasts'!$A$27:$AG$123,C$137,FALSE) -> 0 | D226: =VLOOKUP(Vlookup!$B191,'CDCM Volume Forecasts'!$A$27:$AG$123,D$137,FALSE) -> 0 | E226: =VLOOKUP(Vlookup!$B191,'CDCM Volume Forecasts'!$A$27:$AG$123,E$137,FALSE) -> 0 | F226: =VLOOKUP(Vlookup!$B191,'CDCM Volume Forecasts'!$A$27:$AG$123,F$137,FALSE) -> 0 | G226: =VLOOKUP(Vlookup!$B191,'CDCM Volume Forecasts'!$A$27:$AG$123,G$137,FALSE) -> 0
A227: > LV Sub Generation Intermittent | B227: =VLOOKUP(Vlookup!$B192,'CDCM Volume Forecasts'!$A$27:$AG$123,B$137,FALSE) -> 0 | C227: =VLOOKUP(Vlookup!$B192,'CDCM Volume Forecasts'!$A$27:$AG$123,C$137,FALSE) -> 0 | D227: =VLOOKUP(Vlookup!$B192,'CDCM Volume Forecasts'!$A$27:$AG$123,D$137,FALSE) -> 0 | E227: =VLOOKUP(Vlookup!$B192,'CDCM Volume Forecasts'!$A$27:$AG$123,E$137,FALSE) -> 0 | F227: =VLOOKUP(Vlookup!$B192,'CDCM Volume Forecasts'!$A$27:$AG$123,F$137,FALSE) -> 0 | G227: =VLOOKUP(Vlookup!$B192,'CDCM Volume Forecasts'!$A$27:$AG$123,G$137,FALSE) -> 0
A228: LV Sub Generation Intermittent | B228: =VLOOKUP(Vlookup!$B193,'CDCM Volume Forecasts'!$A$27:$AG$123,B$137,FALSE) -> 251.5746582 | C228: =VLOOKUP(Vlookup!$B193,'CDCM Volume Forecasts'!$A$27:$AG$123,C$137,FALSE) -> 0 | D228: =VLOOKUP(Vlookup!$B193,'CDCM Volume Forecasts'!$A$27:$AG$123,D$137,FALSE) -> 0 | E228: =VLOOKUP(Vlookup!$B193,'CDCM Volume Forecasts'!$A$27:$AG$123,E$137,FALSE) -> 10.012 | F228: =VLOOKUP(Vlookup!$B193,'CDCM Volume Forecasts'!$A$27:$AG$123,F$137,FALSE) -> 0 | G228: =VLOOKUP(Vlookup!$B193,'CDCM Volume Forecasts'!$A$27:$AG$123,G$137,FALSE) -> 3.460723069
... 81 more rows

Sheet (Y+2)
A1: Input data (Y+2)
A4: 1000. Company, charging year, data version
B6: Company | C6: Year | D6: Version
A7: Company, charging year, data version | B7: =VLOOKUP(Vlookup!B7,'CDCM Forecast Data'!$A$14:$I$271,7,FALSE) -> ENWL | C7: =VLOOKUP(Vlookup!C7,'CDCM Forecast Data'!$A$14:$I$271,7,FALSE) -> 2017/18 | D7: =VLOOKUP(Vlookup!D7,'CDCM Forecast Data'!$A$14:$I$271,7,FALSE) -> v1
A9: 1010. Financial and general assumptions
A11: Sources: financial assumptions; calendar; network model.
A12: These financial assumptions determine the annuity rate applied to convert the asset values of the network model into an annual charge.
B13: Rate of return | C13: Annualisation period (years) | D13: Annuity proportion for customer-contributed assets | E13: Power factor | F13: Days in the charging period
A14: Financial and general assumptions | B14: =VLOOKUP(Vlookup!B14,'CDCM Forecast Data'!$A$14:$I$271,7,FALSE) -> 0.056 | C14: =VLOOKUP(Vlookup!C14,'CDCM Forecast Data'!$A$14:$I$271,7,FALSE) -> 40 | E14: =VLOOKUP(Vlookup!E14,'CDCM Forecast Data'!$A$14:$I$271,7,FALSE) -> 0.95 | F14: =VLOOKUP(Vlookup!F14,'CDCM Forecast Data'!$A$14:$I$271,7,FALSE) -> 365
A16: 1017. Diversity allowance between top and bottom of network level
A18: Source: operational data analysis and/or network model.
A19: The diversity figure against GSP is the diversity between GSP Group (the whole system) and individual GSPs.
A20: The diversity figure against 132kV is the diversity between GSPs (the top of the 132kV network) and 132kV/EHV bulk supply points (the bottom of the 132kV network).
A21: The diversity figure against EHV is the diversity between 132kV/EHV bulk supply points (the top of the EHV network) and EHV/HV primary substations (the bottom of the EHV network).
A22: The diversity figure against HV is the diversity between EHV/HV primary substations (the top of the HV network) and HV/LV substations (the bottom of the HV network).
B23: Diversity allowance between top and bottom of network level
A24: GSPs | B24: =VLOOKUP(Vlookup!B24,'CDCM Forecast Data'!$A$14:$I$271,7,FALSE) -> 0.08164011631
A25: 132kV | B25: =VLOOKUP(Vlookup!B25,'CDCM Forecast Data'!$A$14:$I$271,7,FALSE) -> 0.049
A26: 132kV/EHV
A27: EHV | B27: =VLOOKUP(Vlookup!B27,'CDCM Forecast Data'!$A$14:$I$271,7,FALSE) -> 0.06653429705
A28: EHV/HV
A29: HV | B29: =VLOOKUP(Vlookup!B29,'CDCM Forecast Data'!$A$14:$I$271,7,FALSE) -> 0.3056153455
A30: HV/LV
A31: LV circuits
A33: 1018. Proportion of relevant load going through 132kV/HV direct transformation
B35: 132kV/HV
A36: EHV/HV | B36: =VLOOKUP(Vlookup!B36,'CDCM Forecast Data'!$A$14:$I$271,7,FALSE) -> 0
A38: 1019. Network model GSP peak demand (MW)
B40: Network model GSP peak demand (MW)
A41: Network model GSP peak demand (MW) | B41: =VLOOKUP(Vlookup!B41,'CDCM Forecast Data'!$A$14:$I$271,7,FALSE) -> 500
A43: 1020. Gross asset cost by network level (£)
B45: Gross assets £
A46: 132kV | B46: =VLOOKUP(Vlookup!B46,'CDCM Forecast Data'!$A$14:$I$271,7,FALSE) -> 91171674.08
A47: 132kV/EHV | B47: =VLOOKUP(Vlookup!B47,'CDCM Forecast Data'!$A$14:$I$271,7,FALSE) -> 36506078.66
A48: EHV | B48: =VLOOKUP(Vlookup!B48,'CDCM Forecast Data'!$A$14:$I$271,7,FALSE) -> 83125036.82
A49: EHV/HV | B49: =VLOOKUP(Vlookup!B49,'CDCM Forecast Data'!$A$14:$I$271,7,FALSE) -> 58588020.58
A50: 132kV/HV | B50: =VLOOKUP(Vlookup!B50,'CDCM Forecast Data'!$A$14:$I$271,7,FALSE) -> 0
A51: HV | B51: =VLOOKUP(Vlookup!B51,'CDCM Forecast Data'!$A$14:$I$271,7,FALSE) -> 108368781.4
A52: HV/LV | B52: =VLOOKUP(Vlookup!B52,'CDCM Forecast Data'!$A$14:$I$271,7,FALSE) -> 98390227.57
A53: LV circuits | B53: =VLOOKUP(Vlookup!B53,'CDCM Forecast Data'!$A$14:$I$271,7,FALSE) -> 54543774.71
A55: 1022. LV service model asset cost (£)
B57: LV service model 1 | C57: LV service model 2 | D57: LV service model 3 | E57: LV service model 4 | F57: LV service model 5 | G57: LV service model 6 | H57: LV service model 7 | I57: LV service model 8
A58: LV service model asset cost (£) | B58: =VLOOKUP(Vlookup!B58,'CDCM Forecast Data'!$A$14:$I$271,7,FALSE) -> 10354.111 | C58: =VLOOKUP(Vlookup!C58,'CDCM Forecast Data'!$A$14:$I$271,7,FALSE) -> 517.7055501 | D58: =VLOOKUP(Vlookup!D58,'CDCM Forecast Data'!$A$14:$I$271,7,FALSE) -> 2433.885346 | E58: =VLOOKUP(Vlookup!E58,'CDCM Forecast Data'!$A$14:$I$271,7,FALSE) -> 7813.061766 | F58: =VLOOKUP(Vlookup!F58,'CDCM Forecast Data'!$A$14:$I$271,7,FALSE) -> 284.5616898 | G58: =VLOOKUP(Vlookup!G58,'CDCM Forecast Data'!$A$14:$I$271,7,FALSE) -> 0 | H58: =VLOOKUP(Vlookup!H58,'CDCM Forecast Data'!$A$14:$I$271,7,FALSE) -> 0 | I58: =VLOOKUP(Vlookup!I58,'CDCM Forecast Data'!$A$14:$I$271,7,FALSE) -> 0
A60: 1023. HV service model asset cost (£)
B62: HV service model 1 | C62: HV service model 2 | D62: HV service model 3 | E62: HV service model 4 | F62: HV service model 5
A63: HV service model asset cost (£) | B63: =VLOOKUP(Vlookup!B63,'CDCM Forecast Data'!$A$14:$I$271,7,FALSE) -> 19435.40424 | C63: =VLOOKUP(Vlookup!C63,'CDCM Forecast Data'!$A$14:$I$271,7,FALSE) -> 17179.88109 | D63: =VLOOKUP(Vlookup!D63,'CDCM Forecast Data'!$A$14:$I$271,7,FALSE) -> 1171.87584 | E63: =VLOOKUP(Vlookup!E63,'CDCM Forecast Data'!$A$14:$I$271,7,FALSE) -> - | F63: =VLOOKUP(Vlookup!F63,'CDCM Forecast Data'!$A$14:$I$271,7,FALSE) -> -
A65: 1025. Matrix of applicability of LV service models to tariffs with fixed charges
B66: 18 | C66: =B66+1 -> 19 | D66: 20 | E66: 21 | F66: 22 | G66: 23 | H66: 24 | I66: 25
B67: LV service model 1 | C67: LV service model 2 | D67: LV service model 3 | E67: LV service model 4 | F67: LV service model 5 | G67: LV service model 6 | H67: LV service model 7 | I67: LV service model 8
A68: Domestic Unrestricted | B68: =VLOOKUP($A68,'Mat of App'!$B$7:$AP$37,B$66,FALSE) -> 0.05 | C68: =VLOOKUP($A68,'Mat of App'!$B$7:$AP$37,C$66,FALSE) -> 0 | D68: =VLOOKUP($A68,'Mat of App'!$B$7:$AP$37,D$66,FALSE) -> 0 | E68: =VLOOKUP($A68,'Mat of App'!$B$7:$AP$37,E$66,FALSE) -> 0 | F68: =VLOOKUP($A68,'Mat of App'!$B$7:$AP$37,F$66,FALSE) -> 0 | G68: =VLOOKUP($A68,'Mat of App'!$B$7:$AP$37,G$66,FALSE) -> 0 | H68: =VLOOKUP($A68,'Mat of App'!$B$7:$AP$37,H$66,FALSE) -> 0 | I68: =VLOOKUP($A68,'Mat of App'!$B$7:$AP$37,I$66,FALSE) -> 0
A69: Domestic Two Rate | B69: =VLOOKUP($A69,'Mat of App'!$B$7:$AP$37,B$66,FALSE) -> 0.05 | C69: =VLOOKUP($A69,'Mat of App'!$B$7:$AP$37,C$66,FALSE) -> 0 | D69: =VLOOKUP($A69,'Mat of App'!$B$7:$AP$37,D$66,FALSE) -> 0 | E69: =VLOOKUP($A69,'Mat of App'!$B$7:$AP$37,E$66,FALSE) -> 0 | F69: =VLOOKUP($A69,'Mat of App'!$B$7:$AP$37,F$66,FALSE) -> 0 | G69: =VLOOKUP($A69,'Mat of App'!$B$7:$AP$37,G$66,FALSE) -> 0 | H69: =VLOOKUP($A69,'Mat of App'!$B$7:$AP$37,H$66,FALSE) -> 0 | I69: =VLOOKUP($A69,'Mat of App'!$B$7:$AP$37,I$66,FALSE) -> 0
A70: Small Non Domestic Unrestricted | B70: =VLOOKUP($A70,'Mat of App'!$B$7:$AP$37,B$66,FALSE) -> 0 | C70: =VLOOKUP($A70,'Mat of App'!$B$7:$AP$37,C$66,FALSE) -> 1 | D70: =VLOOKUP($A70,'Mat of App'!$B$7:$AP$37,D$66,FALSE) -> 0 | E70: =VLOOKUP($A70,'Mat of App'!$B$7:$AP$37,E$66,FALSE) -> 0 | F70: =VLOOKUP($A70,'Mat of App'!$B$7:$AP$37,F$66,FALSE) -> 0 | G70: =VLOOKUP($A70,'Mat of App'!$B$7:$AP$37,G$66,FALSE) -> 0 | H70: =VLOOKUP($A70,'Mat of App'!$B$7:$AP$37,H$66,FALSE) -> 0 | I70: =VLOOKUP($A70,'Mat of App'!$B$7:$AP$37,I$66,FALSE) -> 0
A71: Small Non Domestic Two Rate | B71: =VLOOKUP($A71,'Mat of App'!$B$7:$AP$37,B$66,FALSE) -> 0 | C71: =VLOOKUP($A71,'Mat of App'!$B$7:$AP$37,C$66,FALSE) -> 1 | D71: =VLOOKUP($A71,'Mat of App'!$B$7:$AP$37,D$66,FALSE) -> 0 | E71: =VLOOKUP($A71,'Mat of App'!$B$7:$AP$37,E$66,FALSE) -> 0 | F71: =VLOOKUP($A71,'Mat of App'!$B$7:$AP$37,F$66,FALSE) -> 0 | G71: =VLOOKUP($A71,'Mat of App'!$B$7:$AP$37,G$66,FALSE) -> 0 | H71: =VLOOKUP($A71,'Mat of App'!$B$7:$AP$37,H$66,FALSE) -> 0 | I71: =VLOOKUP($A71,'Mat of App'!$B$7:$AP$37,I$66,FALSE) -> 0
A72: LV Medium Non-Domestic | B72: =VLOOKUP($A72,'Mat of App'!$B$7:$AP$37,B$66,FALSE) -> 0 | C72: =VLOOKUP($A72,'Mat of App'!$B$7:$AP$37,C$66,FALSE) -> 0.1807435653 | D72: =VLOOKUP($A72,'Mat of App'!$B$7:$AP$37,D$66,FALSE) -> 0.8192564347 | E72: =VLOOKUP($A72,'Mat of App'!$B$7:$AP$37,E$66,FALSE) -> 0 | F72: =VLOOKUP($A72,'Mat of App'!$B$7:$AP$37,F$66,FALSE) -> 0 | G72: =VLOOKUP($A72,'Mat of App'!$B$7:$AP$37,G$66,FALSE) -> 0 | H72: =VLOOKUP($A72,'Mat of App'!$B$7:$AP$37,H$66,FALSE) -> 0 | I72: =VLOOKUP($A72,'Mat of App'!$B$7:$AP$37,I$66,FALSE) -> 0
A73: LV Sub Medium Non-Domestic | B73: =VLOOKUP($A73,'Mat of App'!$B$7:$AP$37,B$66,FALSE) -> 0 | C73: =VLOOKUP($A73,'Mat of App'!$B$7:$AP$37,C$66,FALSE) -> 0 | D73: =VLOOKUP($A73,'Mat of App'!$B$7:$AP$37,D$66,FALSE) -> 0 | E73: =VLOOKUP($A73,'Mat of App'!$B$7:$AP$37,E$66,FALSE) -> 1 | F73: =VLOOKUP($A73,'Mat of App'!$B$7:$AP$37,F$66,FALSE) -> 0 | G73: =VLOOKUP($A73,'Mat of App'!$B$7:$AP$37,G$66,FALSE) -> 0 | H73: =VLOOKUP($A73,'Mat of App'!$B$7:$AP$37,H$66,FALSE) -> 0 | I73: =VLOOKUP($A73,'Mat of App'!$B$7:$AP$37,I$66,FALSE) -> 0
A74: LV Network Domestic | B74: =VLOOKUP($A74,'Mat of App'!$B$7:$AP$37,B$66,FALSE) -> 0.05 | C74: =VLOOKUP($A74,'Mat of App'!$B$7:$AP$37,C$66,FALSE) -> 0 | D74: =VLOOKUP($A74,'Mat of App'!$B$7:$AP$37,D$66,FALSE) -> 0 | E74: =VLOOKUP($A74,'Mat of App'!$B$7:$AP$37,E$66,FALSE) -> 0 | F74: =VLOOKUP($A74,'Mat of App'!$B$7:$AP$37,F$66,FALSE) -> 0 | G74: =VLOOKUP($A74,'Mat of App'!$B$7:$AP$37,G$66,FALSE) -> 0 | H74: =VLOOKUP($A74,'Mat of App'!$B$7:$AP$37,H$66,FALSE) -> 0 | I74: =VLOOKUP($A74,'Mat of App'!$B$7:$AP$37,I$66,FALSE) -> 0
A75: LV Network Non-Domestic Non-CT | B75: =VLOOKUP($A75,'Mat of App'!$B$7:$AP$37,B$66,FALSE) -> 0 | C75: =VLOOKUP($A75,'Mat of App'!$B$7:$AP$37,C$66,FALSE) -> 1 | D75: =VLOOKUP($A75,'Mat of App'!$B$7:$AP$37,D$66,FALSE) -> 0 | E75: =VLOOKUP($A75,'Mat of App'!$B$7:$AP$37,E$66,FALSE) -> 0 | F75: =VLOOKUP($A75,'Mat of App'!$B$7:$AP$37,F$66,FALSE) -> 0 | G75: =VLOOKUP($A75,'Mat of App'!$B$7:$AP$37,G$66,FALSE) -> 0 | H75: =VLOOKUP($A75,'Mat of App'!$B$7:$AP$37,H$66,FALSE) -> 0 | I75: =VLOOKUP($A75,'Mat of App'!$B$7:$AP$37,I$66,FALSE) -> 0
A76: LV HH Metered | B76: =VLOOKUP($A76,'Mat of App'!$B$7:$AP$37,B$66,FALSE) -> 0 | C76: =VLOOKUP($A76,'Mat of App'!$B$7:$AP$37,C$66,FALSE) -> 0 | D76: =VLOOKUP($A76,'Mat of App'!$B$7:$AP$37,D$66,FALSE) -> 1 | E76: =VLOOKUP($A76,'Mat of App'!$B$7:$AP$37,E$66,FALSE) -> 0 | F76: =VLOOKUP($A76,'Mat of App'!$B$7:$AP$37,F$66,FALSE) -> 0 | G76: =VLOOKUP($A76,'Mat of App'!$B$7:$AP$37,G$66,FALSE) -> 0 | H76: =VLOOKUP($A76,'Mat of App'!$B$7:$AP$37,H$66,FALSE) -> 0 | I76: =VLOOKUP($A76,'Mat of App'!$B$7:$AP$37,I$66,FALSE) -> 0
A77: LV Sub HH Metered | B77: =VLOOKUP($A77,'Mat of App'!$B$7:$AP$37,B$66,FALSE) -> 0 | C77: =VLOOKUP($A77,'Mat of App'!$B$7:$AP$37,C$66,FALSE) -> 0 | D77: =VLOOKUP($A77,'Mat of App'!$B$7:$AP$37,D$66,FALSE) -> 0 | E77: =VLOOKUP($A77,'Mat of App'!$B$7:$AP$37,E$66,FALSE) -> 1 | F77: =VLOOKUP($A77,'Mat of App'!$B$7:$AP$37,F$66,FALSE) -> 0 | G77: =VLOOKUP($A77,'Mat of App'!$B$7:$AP$37,G$66,FALSE) -> 0 | H77: =VLOOKUP($A77,'Mat of App'!$B$7:$AP$37,H$66,FALSE) -> 0 | I77: =VLOOKUP($A77,'Mat of App'!$B$7:$AP$37,I$66,FALSE) -> 0
A78: LV Generation NHH or Aggregate HH | B78: =VLOOKUP($A78,'Mat of App'!$B$7:$AP$37,B$66,FALSE) -> 0 | C78: =VLOOKUP($A78,'Mat of App'!$B$7:$AP$37,C$66,FALSE) -> 0 | D78: =VLOOKUP($A78,'Mat of App'!$B$7:$AP$37,D$66,FALSE) -> 0 | E78: =VLOOKUP($A78,'Mat of App'!$B$7:$AP$37,E$66,FALSE) -> 0 | F78: =VLOOKUP($A78,'Mat of App'!$B$7:$AP$37,F$66,FALSE) -> 0 | G78: =VLOOKUP($A78,'Mat of App'!$B$7:$AP$37,G$66,FALSE) -> 0 | H78: =VLOOKUP($A78,'Mat of App'!$B$7:$AP$37,H$66,FALSE) -> 0 | I78: =VLOOKUP($A78,'Mat of App'!$B$7:$AP$37,I$66,FALSE) -> 0
A79: LV Sub Generation NHH | B79: =VLOOKUP($A79,'Mat of App'!$B$7:$AP$37,B$66,FALSE) -> 0 | C79: =VLOOKUP($A79,'Mat of App'!$B$7:$AP$37,C$66,FALSE) -> 0 | D79: =VLOOKUP($A79,'Mat of App'!$B$7:$AP$37,D$66,FALSE) -> 0 | E79: =VLOOKUP($A79,'Mat of App'!$B$7:$AP$37,E$66,FALSE) -> 0 | F79: =VLOOKUP($A79,'Mat of App'!$B$7:$AP$37,F$66,FALSE) -> 0 | G79: =VLOOKUP($A79,'Mat of App'!$B$7:$AP$37,G$66,FALSE) -> 0 | H79: =VLOOKUP($A79,'Mat of App'!$B$7:$AP$37,H$66,FALSE) -> 0 | I79: =VLOOKUP($A79,'Mat of App'!$B$7:$AP$37,I$66,FALSE) -> 0
A80: LV Generation Intermittent | B80: =VLOOKUP($A80,'Mat of App'!$B$7:$AP$37,B$66,FALSE) -> 0 | C80: =VLOOKUP($A80,'Mat of App'!$B$7:$AP$37,C$66,FALSE) -> 0 | D80: =VLOOKUP($A80,'Mat of App'!$B$7:$AP$37,D$66,FALSE) -> 0 | E80: =VLOOKUP($A80,'Mat of App'!$B$7:$AP$37,E$66,FALSE) -> 0 | F80: =VLOOKUP($A80,'Mat of App'!$B$7:$AP$37,F$66,FALSE) -> 0 | G80: =VLOOKUP($A80,'Mat of App'!$B$7:$AP$37,G$66,FALSE) -> 0 | H80: =VLOOKUP($A80,'Mat of App'!$B$7:$AP$37,H$66,FALSE) -> 0 | I80: =VLOOKUP($A80,'Mat of App'!$B$7:$AP$37,I$66,FALSE) -> 0
A81: LV Generation Non-Intermittent | B81: =VLOOKUP($A81,'Mat of App'!$B$7:$AP$37,B$66,FALSE) -> 0 | C81: =VLOOKUP($A81,'Mat of App'!$B$7:$AP$37,C$66,FALSE) -> 0 | D81: =VLOOKUP($A81,'Mat of App'!$B$7:$AP$37,D$66,FALSE) -> 0 | E81: =VLOOKUP($A81,'Mat of App'!$B$7:$AP$37,E$66,FALSE) -> 0 | F81: =VLOOKUP($A81,'Mat of App'!$B$7:$AP$37,F$66,FALSE) -> 0 | G81: =VLOOKUP($A81,'Mat of App'!$B$7:$AP$37,G$66,FALSE) -> 0 | H81: =VLOOKUP($A81,'Mat of App'!$B$7:$AP$37,H$66,FALSE) -> 0 | I81: =VLOOKUP($A81,'Mat of App'!$B$7:$AP$37,I$66,FALSE) -> 0
A82: LV Sub Generation Intermittent | B82: =VLOOKUP($A82,'Mat of App'!$B$7:$AP$37,B$66,FALSE) -> 0 | C82: =VLOOKUP($A82,'Mat of App'!$B$7:$AP$37,C$66,FALSE) -> 0 | D82: =VLOOKUP($A82,'Mat of App'!$B$7:$AP$37,D$66,FALSE) -> 0 | E82: =VLOOKUP($A82,'Mat of App'!$B$7:$AP$37,E$66,FALSE) -> 0 | F82: =VLOOKUP($A82,'Mat of App'!$B$7:$AP$37,F$66,FALSE) -> 0 | G82: =VLOOKUP($A82,'Mat of App'!$B$7:$AP$37,G$66,FALSE) -> 0 | H82: =VLOOKUP($A82,'Mat of App'!$B$7:$AP$37,H$66,FALSE) -> 0 | I82: =VLOOKUP($A82,'Mat of App'!$B$7:$AP$37,I$66,FALSE) -> 0
A83: LV Sub Generation Non-Intermittent | B83: =VLOOKUP($A83,'Mat of App'!$B$7:$AP$37,B$66,FALSE) -> 0 | C83: =VLOOKUP($A83,'Mat of App'!$B$7:$AP$37,C$66,FALSE) -> 0 | D83: =VLOOKUP($A83,'Mat of App'!$B$7:$AP$37,D$66,FALSE) -> 0 | E83: =VLOOKUP($A83,'Mat of App'!$B$7:$AP$37,E$66,FALSE) -> 0 | F83: =VLOOKUP($A83,'Mat of App'!$B$7:$AP$37,F$66,FALSE) -> 0 | G83: =VLOOKUP($A83,'Mat of App'!$B$7:$AP$37,G$66,FALSE) -> 0 | H83: =VLOOKUP($A83,'Mat of App'!$B$7:$AP$37,H$66,FALSE) -> 0 | I83: =VLOOKUP($A83,'Mat of App'!$B$7:$AP$37,I$66,FALSE) -> 0
A85: 1026. Matrix of applicability of LV service models to unmetered tariffs
A87: Source: service models
A88: Proportion of service model involved in connecting load of 1 MWh/year
B89: LV service model 1 | C89: LV service model 2 | D89: LV service model 3 | E89: LV service model 4 | F89: LV service model 5 | G89: LV service model 6 | H89: LV service model 7 | I89: LV service model 8
A90: All LV unmetered tariffs | B90: =VLOOKUP($A90,'Mat of App'!$B$7:$AP$37,B$66,FALSE) -> 0 | C90: =VLOOKUP($A90,'Mat of App'!$B$7:$AP$37,C$66,FALSE) -> 0 | D90: =VLOOKUP($A90,'Mat of App'!$B$7:$AP$37,D$66,FALSE) -> 0 | E90: =VLOOKUP($A90,'Mat of App'!$B$7:$AP$37,E$66,FALSE) -> 0 | F90: =VLOOKUP($A90,'Mat of App'!$B$7:$AP$37,F$66,FALSE) -> 2.872632768 | G90: =VLOOKUP($A90,'Mat of App'!$B$7:$AP$37,G$66,FALSE) -> 0 | H90: =VLOOKUP($A90,'Mat of App'!$B$7:$AP$37,H$66,FALSE) -> 0 | I90: =VLOOKUP($A90,'Mat of App'!$B$7:$AP$37,I$66,FALSE) -> 0
A92: 1028. Matrix of applicability of HV service models to tariffs with fixed charges
B93: 12 | C93: =B93+1 -> 13 | D93: =C93+1 -> 14 | E93: =D93+1 -> 15 | F93: =E93+1 -> 16
B94: HV service model 1 | C94: HV service model 2 | D94: HV service model 3 | E94: HV service model 4 | F94: HV service model 5
A95: HV Medium Non-Domestic | B95: =VLOOKUP($A95,'Mat of App'!$B$7:$AP$37,B$93,FALSE) -> 0 | C95: =VLOOKUP($A95,'Mat of App'!$B$7:$AP$37,C$93,FALSE) -> 1 | D95: =VLOOKUP($A95,'Mat of App'!$B$7:$AP$37,D$93,FALSE) -> 0 | E95: =VLOOKUP($A95,'Mat of App'!$B$7:$AP$37,E$93,FALSE) -> 0 | F95: =VLOOKUP($A95,'Mat of App'!$B$7:$AP$37,F$93,FALSE) -> 0
A96: HV HH Metered | B96: =VLOOKUP($A96,'Mat of App'!$B$7:$AP$37,B$93,FALSE) -> 0 | C96: =VLOOKUP($A96,'Mat of App'!$B$7:$AP$37,C$93,FALSE) -> 1 | D96: =VLOOKUP($A96,'Mat of App'!$B$7:$AP$37,D$93,FALSE) -> 0 | E96: =VLOOKUP($A96,'Mat of App'!$B$7:$AP$37,E$93,FALSE) -> 0 | F96: =VLOOKUP($A96,'Mat of App'!$B$7:$AP$37,F$93,FALSE) -> 0
A97: HV Generation Intermittent | B97: =VLOOKUP($A97,'Mat of App'!$B$7:$AP$37,B$93,FALSE) -> 0 | C97: =VLOOKUP($A97,'Mat of App'!$B$7:$AP$37,C$93,FALSE) -> 0 | D97: =VLOOKUP($A97,'Mat of App'!$B$7:$AP$37,D$93,FALSE) -> 1 | E97: =VLOOKUP($A97,'Mat of App'!$B$7:$AP$37,E$93,FALSE) -> 0 | F97: =VLOOKUP($A97,'Mat of App'!$B$7:$AP$37,F$93,FALSE) -> 0
A98: HV Generation Non-Intermittent | B98: =VLOOKUP($A98,'Mat of App'!$B$7:$AP$37,B$93,FALSE) -> 0 | C98: =VLOOKUP($A98,'Mat of App'!$B$7:$AP$37,C$93,FALSE) -> 0 | D98: =VLOOKUP($A98,'Mat of App'!$B$7:$AP$37,D$93,FALSE) -> 1 | E98: =VLOOKUP($A98,'Mat of App'!$B$7:$AP$37,E$93,FALSE) -> 0 | F98: =VLOOKUP($A98,'Mat of App'!$B$7:$AP$37,F$93,FALSE) -> 0
A100: 1032. Loss adjustment factors to transmission
A102: Source: losses model or loss adjustment factors at time of system peak.
B103: 132kV | C103: 132kV/EHV | D103: EHV | E103: EHV/HV | F103: HV | G103: HV/LV | H103: LV circuits
A104: Loss adjustment factor | B104: =VLOOKUP(Vlookup!B69,'CDCM Forecast Data'!$A$14:$I$271,7,FALSE) -> 1.010413289 | C104: =VLOOKUP(Vlookup!C69,'CDCM Forecast Data'!$A$14:$I$271,7,FALSE) -> 1.015393496 | D104: =VLOOKUP(Vlookup!D69,'CDCM Forecast Data'!$A$14:$I$271,7,FALSE) -> 1.021993876 | E104: =VLOOKUP(Vlookup!E69,'CDCM Forecast Data'!$A$14:$I$271,7,FALSE) -> 1.027559519 | F104: =VLOOKUP(Vlookup!F69,'CDCM Forecast Data'!$A$14:$I$271,7,FALSE) -> 1.040166974 | G104: =VLOOKUP(Vlookup!G69,'CDCM Forecast Data'!$A$14:$I$271,7,FALSE) -> 1.053696394 | H104: =VLOOKUP(Vlookup!H69,'CDCM Forecast Data'!$A$14:$I$271,7,FALSE) -> 1.107034802
A106: 1037. Embedded network (LDNO) discounts
A108: Source: separate price control disaggregation model.
B109: No discount | C109: LDNO LV: LV user | D109: LDNO HV: LV user | E109: LDNO HV: LV sub user | F109: LDNO HV: HV user
A110: LDNO discount | C110: =VLOOKUP(Vlookup!C75,'CDCM Forecast Data'!$A$14:$I$271,7,FALSE) -> 0.3352006641 | D110: =VLOOKUP(Vlookup!D75,'CDCM Forecast Data'!$A$14:$I$271,7,FALSE) -> 0.5639251225 | E110: =VLOOKUP(Vlookup!E75,'CDCM Forecast Data'!$A$14:$I$271,7,FALSE) -> 0.323780574 | F110: =VLOOKUP(Vlookup!F75,'CDCM Forecast Data'!$A$14:$I$271,7,FALSE) -> 0.2035063224
A112: 1041. Load profile data for demand users
A114: Source: load data analysis.
B115: Coincidence factor | C115: Load factor
A116: Domestic Unrestricted | B116: =VLOOKUP(Vlookup!B81,'CDCM Forecast Data'!$A$14:$I$271,6,FALSE) -> 0.8719950359 | C116: =VLOOKUP(Vlookup!C81,'CDCM Forecast Data'!$A$14:$I$271,6,FALSE) -> 0.4417027055
A117: Domestic Two Rate | B117: =VLOOKUP(Vlookup!B82,'CDCM Forecast Data'!$A$14:$I$271,6,FALSE) -> 0.2892028269 | C117: =VLOOKUP(Vlookup!C82,'CDCM Forecast Data'!$A$14:$I$271,6,FALSE) -> 0.241915909
A118: Domestic Off Peak (related MPAN) | C118: =VLOOKUP(Vlookup!C83,'CDCM Forecast Data'!$A$14:$I$271,6,FALSE) -> 0.1615288733
A119: Small Non Domestic Unrestricted | B119: =VLOOKUP(Vlookup!B84,'CDCM Forecast Data'!$A$14:$I$271,6,FALSE) -> 0.6751420264 | C119: =VLOOKUP(Vlookup!C84,'CDCM Forecast Data'!$A$14:$I$271,6,FALSE) -> 0.394823
A120: Small Non Domestic Two Rate | B120: =VLOOKUP(Vlookup!B85,'CDCM Forecast Data'!$A$14:$I$271,6,FALSE) -> 0.6939934609 | C120: =VLOOKUP(Vlookup!C85,'CDCM Forecast Data'!$A$14:$I$271,6,FALSE) -> 0.5341090403
A121: Small Non Domestic Off Peak (related MPAN) | C121: =VLOOKUP(Vlookup!C86,'CDCM Forecast Data'!$A$14:$I$271,6,FALSE) -> 0.1637428864
A122: LV Medium Non-Domestic | B122: =VLOOKUP(Vlookup!B87,'CDCM Forecast Data'!$A$14:$I$271,6,FALSE) -> 0.8373261501 | C122: =VLOOKUP(Vlookup!C87,'CDCM Forecast Data'!$A$14:$I$271,6,FALSE) -> 0.5689406855
A123: LV Sub Medium Non-Domestic | B123: =VLOOKUP(Vlookup!B88,'CDCM Forecast Data'!$A$14:$I$271,6,FALSE) -> 0.8085620113 | C123: =VLOOKUP(Vlookup!C88,'CDCM Forecast Data'!$A$14:$I$271,6,FALSE) -> 0.5569858525
A124: HV Medium Non-Domestic | B124: =VLOOKUP(Vlookup!B89,'CDCM Forecast Data'!$A$14:$I$271,6,FALSE) -> 0.7394620182 | C124: =VLOOKUP(Vlookup!C89,'CDCM Forecast Data'!$A$14:$I$271,6,FALSE) -> 0.490716446
A125: LV Network Domestic | B125: =VLOOKUP(Vlookup!B90,'CDCM Forecast Data'!$A$14:$I$271,6,FALSE) -> 0.8719950359 | C125: =VLOOKUP(Vlookup!C90,'CDCM Forecast Data'!$A$14:$I$271,6,FALSE) -> 0.4417027055
A126: LV Network Non-Domestic Non-CT | B126: =VLOOKUP(Vlookup!B91,'CDCM Forecast Data'!$A$14:$I$271,6,FALSE) -> 0.6751420264 | C126: =VLOOKUP(Vlookup!C91,'CDCM Forecast Data'!$A$14:$I$271,6,FALSE) -> 0.394823
A127: LV HH Metered | B127: =VLOOKUP(Vlookup!B92,'CDCM Forecast Data'!$A$14:$I$271,6,FALSE) -> 0.8134580127 | C127: =VLOOKUP(Vlookup!C92,'CDCM Forecast Data'!$A$14:$I$271,6,FALSE) -> 0.5556497797
A128: LV Sub HH Metered | B128: =VLOOKUP(Vlookup!B93,'CDCM Forecast Data'!$A$14:$I$271,6,FALSE) -> 0.7861625851 | C128: =VLOOKUP(Vlookup!C93,'CDCM Forecast Data'!$A$14:$I$271,6,FALSE) -> 0.5560856276
A129: HV HH Metered | B129: =VLOOKUP(Vlookup!B94,'CDCM Forecast Data'!$A$14:$I$271,6,FALSE) -> 0.8548488611 | C129: =VLOOKUP(Vlookup!C94,'CDCM Forecast Data'!$A$14:$I$271,6,FALSE) -> 0.7107054151
A130: NHH UMS category A | B130: =VLOOKUP(Vlookup!B95,'CDCM Forecast Data'!$A$14:$I$271,6,FALSE) -> 1 | C130: =VLOOKUP(Vlookup!C95,'CDCM Forecast Data'!$A$14:$I$271,6,FALSE) -> 1
A131: NHH UMS category B | B131: =VLOOKUP(Vlookup!B96,'CDCM Forecast Data'!$A$14:$I$271,6,FALSE) -> 1 | C131: =VLOOKUP(Vlookup!C96,'CDCM Forecast Data'!$A$14:$I$271,6,FALSE) -> 0.474
A132: NHH UMS category C | B132: =VLOOKUP(Vlookup!B97,'CDCM Forecast Data'!$A$14:$I$271,6,FALSE) -> 1 | C132: =VLOOKUP(Vlookup!C97,'CDCM Forecast Data'!$A$14:$I$271,6,FALSE) -> 0.258
A133: NHH UMS category D | B133: =VLOOKUP(Vlookup!B98,'CDCM Forecast Data'!$A$14:$I$271,6,FALSE) -> 0 | C133: =VLOOKUP(Vlookup!C98,'CDCM Forecast Data'!$A$14:$I$271,6,FALSE) -> 0.554
A134: LV UMS (Pseudo HH Metered) | B134: =VLOOKUP(Vlookup!B99,'CDCM Forecast Data'!$A$14:$I$271,6,FALSE) -> 0.9774688096 | C134: =VLOOKUP(Vlookup!C99,'CDCM Forecast Data'!$A$14:$I$271,6,FALSE) -> 0.4829227126
A136: 1053. Volume forecasts for the charging year
B137: 16 | C137: 17 | D137: 18 | E137: 19 | F137: 20 | G137: 21
A138: Source: forecast.
A139: Please include MPAN counts for tariffs with no fixed charge (e.g. off-peak tariffs),
A140: but exclude MPANs on tariffs with a fixed charge that are not subject to a fixed charge due to a site grouping arrangement.
B141: Rate 1 units (MWh) | C141: Rate 2 units (MWh) | D141: Rate 3 units (MWh) | E141: MPANs | F141: Import capacity (kVA) | G141: Reactive power units (MVArh)
